Workbook

Sheet Quick Start Guide
B9: Envision Tomorrow™ Return on Investment Model
B10: Version 4.0 BETA, Updated March 20, 2012
B12: What is the ROI Model?
B13: Do you want to examine redevelopment potential in your city? Do you want to study the relationship between land use regulations and the current development market?
B14: The ROI Model is a versatile, easy-to-use tool that can be used to test the physical and financial feasibility of a proposed development or existing development regulations. The ROI Model considers a range of factors including parking, height and use requirements, costs associated with construction, fees, rents and subsidies. The ROI Model allows you to model single-use and mixed-use buildings at a range of scales.
B16: Quick Start Guide
B17: A few quick and easy steps will get you started at modeling prototype buildings and testing land use regulations.
B19: 1. Save this file with a new name.
B21: 2. Gather data for use in the ROI Model.
B22: - Existing land use regulations (e.g. parking requirements, height limits, landscaping, setbacks)
B23: - Local estimates for construction costs, rents, sales prices, and land values
B24: - Local tax rates
B26: 3. Work through the Physical and Financial tabs.
B27: Using the data you have gathered, enter data into the pink Input Cells of each Input Tab in the ROI Model. If you have questions, the Envision Tumorrow user manual as well as embedded comments (hover over cells with a red corner for more information) are available to provide answers to common questions.
C29: TAB Color Definition
C30: Input Tab
C31: Output Tab
C32: Reference Tab
C34: CELL Color Definition
C35: Input Cell
C36: Header Cell
C37: Subheader Cell
C38: Output Cell | D38: [white]
B40: 4. Make adjustments to create a building that meets your goals.
B41: Completing the ROI Model is an iterative learning process, and you will likely go through several iterations of each prototype building in order to test a variety of assumptions about market conditions, achieveable rent, desired building types and sizes, ownership schemes, financing, and regulatory conditions, among many other factors. It is helpful to have a goal or a question to guide your testing.
B42: What building types are feasible in the current market?
B43: What would X (e.g. rent, land cost, financing) need to be in order to achieve a desired building type?
B44: If certain regulatory constraints (e.g. height restrictions, high parking requirements or setbacks) were relaxed or removed, what new building types become possible?

Sheet Physical Inputs
A1: Physical Stats
A2: Housing Units / Hotel Rooms | B2: ='Physical Outputs'!D37 -> 42.96619442
A3: Jobs | B3: ='Physical Outputs'!E37 -> 9.330775862
A4: Housing / Hotel Room Density (Per Acre) | B4: ='Physical Outputs'!F37 -> 42.96619442
A5: Job Density (Per Acre) | B5: ='Physical Outputs'!G37 -> 9.330775862
A6: FAR | B6: ='Physical Outputs'!B37/'Physical Inputs'!B22 -> 1.525140591
A7: Net Rentable/Sellable Square Feet | B7: ='Physical Outputs'!C37-'Physical Outputs'!C36 -> 49411.12358
A8: Financial Stats
A9: Rental (Residential and Commercial) | B9: Target Return | C9: Actual Return
A10: Cash-on-Cash (After Year 3) | B10: ='Mixed-Use Summary'!N5 -> 0.1 | C10: ='Mixed-Use Summary'!O5 -> 0.06940504024
A11: IRR on Project Cost (Unleveraged Return) | B11: ='Mixed-Use Summary'!N6 -> 0.12 | C11: ='Mixed-Use Summary'!O6 -> 0.08430347663
A12: IRR on Investor Equity (Leveraged Return Before Tax) | B12: ='Mixed-Use Summary'!N7 -> 0.25 | C12: ='Mixed-Use Summary'!O7 -> 0.1131415662
A13: Debt Service Coverage Ratio (Year 3) | B13: ='Mixed-Use Summary'!N8 -> 1.25 | C13: ='Mixed-Use Summary'!O8 -> 1.643121039
A14: IRR on Public Participation | B14: ='Mixed-Use Summary'!N9 -> 0.05 | C14: ='Mixed-Use Summary'!O9 -> 0
A15: Owner Residential | B15: Target Return | C15: Actual Return
A16: Project Rate of Return | B16: ='Mixed-Use Summary'!S5 -> 0.25 | C16: =IF('Physical Inputs'!$B$38="Owner",'Mixed-Use Summary'!U5,"N/A") -> N/A
A17: Return to Equity | B17: ='Mixed-Use Summary'!S6 -> 0.75 | C17: =IF('Physical Inputs'!$B$38="Owner",'Mixed-Use Summary'!U6,"N/A") -> N/A
A18: Physical Inputs
A19: Site Inputs
A20: Building name | B20: Mixed-Use Building
A21: Project City/State | B21: Your City, USA
A22: Site area | B22: 43560 | C22: square feet
B23: =B22/43560 -> 1 | C23: acres
A24: Site gross-to-net ratio | B24: 1 | C24: (enter percentage)
A25: Landscaped Area | B25: =SUM('Physical Outputs'!B21,'Physical Outputs'!B23)/SUM('Physical Outputs'!B20:B23) -> 0.1446926128
A26: Additional landscaping or open space | B26: 0 | C26: (enter percentage)
A27: Building height (stories) | B27: 4 | C27: stories
A28: Under-build | B28: 0.65 | C28: (enter percentage)
A30: FAR & Density Checks
A31: Maximum FAR (if applicable) | C31: FAR
A32: Percent of Allowed FAR Used | B32: =IF(B31=0,"",B6/B31) ->  | C32: =IF(B33=0,"","of allowable FAR") -> 
A33: Maximum residential density (if applicable) | C33: units/acre
A34: Percent of Allowed Density Used | B34: =IF(B33=0,"",'Physical Outputs'!F37/B33) ->  | C34: =IF(B33=0,"","of allowable residential density") -> 
A36: Building Uses
A37: Residential | B37: Multifamily | C37: select single family, townhome, multifamily or none
B38: Renter | C38: select owner, renter or none
B39: 0.8
A40: Retail | B40: 0.2
A41: Office | B41: 0
A42: Industrial | B42: 0
A43: Public | B43: 0
A44: Education | B44: 0
A45: Hotel/Motel | B45: 0
A46: Commercial Parking | B46: 0
A47: Total (Check) | B47: =SUM(B39:B46) -> 1
A49: Residential Unit Size Estimator | B49: Avg. Unit Size (Net Sq Ft) | C49: % of Units in Building | D49: # of Units by Type
A50: Affordable | B50: 1000 | C50: 0.1 | D50: =('Physical Outputs'!$C$28/$B$56)*C50 -> 4.296619442
A51: 4+ Bedroom | B51: 2000 | C51: 0 | D51: =('Physical Outputs'!$C$28/$B$56)*C51 -> 0
A52: 3 Bedroom | B52: 1600 | C52: 0.1 | D52: =('Physical Outputs'!$C$28/$B$56)*C52 -> 4.296619442
A53: 2 Bedroom | B53: 1200 | C53: 0.2 | D53: =('Physical Outputs'!$C$28/$B$56)*C53 -> 8.593238883
A54: 1 Bedroom | B54: 800 | C54: 0.3 | D54: =('Physical Outputs'!$C$28/$B$56)*C54 -> 12.88985833
A55: Studio | B55: 600 | C55: 0.3 | D55: =('Physical Outputs'!$C$28/$B$56)*C55 -> 12.88985833
A56: Calculated Residential Unit Size | B56: =SUMPRODUCT(B50:B55,C50:C55) -> 920 | C56: =SUM(C50:C55) -> 1 | D56: =SUM(D51:D55) -> 38.66957498
A58: Residential Unit Size (Avg. Sq Ft)
A59: User-defined Avg. Residential Unit Size | B59: 920 | C59: / sq ft
A61: Gross Square Footage per Employee by Sector (Average)
A62: Retail | B62: 1246 | C62: gross square feet/employee
A63: Office | B63: 434 | C63: gross square feet/employee
A64: Industrial | B64: 2306 | C64: gross square feet/employee
A65: Public | B65: 800 | C65: gross square feet/employee
A66: Educational | B66: 800 | C66: gross square feet/employee
A67: Hotel/Motel (Sq Ft per Employee) | B67: 1000 | C67: gross square feet/employee
A68: Hotel/Motel (Room Size) | B68: 600 | C68: net square feet/unit
A69: Commercial Parking | B69: 20000 | C69: gross square feet/employee
A71: Parking Requirements
A72: Parking Spaces Per Dwelling Unit, Room or 1,000 sf of Commercial
A73: Residential | B73: 1.25 | C73: space(s)/dwelling unit
A74: Retail | B74: 2 | C74: space(s)/1000 sf
A75: Office | B75: 0 | C75: space(s)/1000 sf
A76: Industrial | B76: 0 | C76: space(s)/1000 sf
A77: Public | B77: 0 | C77: space(s)/1000 sf
A78: Educational | B78: 0 | C78: space(s)/1000 sf
A79: Hotel/Motel | B79: 2 | C79: space(s)/room
A81: Parking Type
A82: Surface or Structured Parking | B82: 1 | C82: (number of levels)
A83: Internal Parking (Tuck Under or Sandwich) | B83: 0.5 | C83: (number of levels)
B84: =IFERROR('Physical Outputs'!B58/SUM('Physical Outputs'!B43:B49),"-") -> 0.4150201195 | C84: Percent internal parking supply vs. demand
B85: =IFERROR(IF(B83=0,"",(IF('Physical Outputs'!B59=0,"Add Additional Parking Type",'Physical Outputs'!B59/'Physical Outputs'!B51))),"-") -> 1 | C85: =IF(B83=0,"",IF('Physical Outputs'!B59,"used (internal parking check, if only parking type)","")) -> used (internal parking check, if only parking type)
A86: Underground Parking | B86: 0 | C86: (maximum number of levels to test)
B87: =('Building Envelope Calculator'!C24*'Physical Inputs'!C98)/('Building Envelope Calculator'!B6) -> 1.70476087 | C87: ="levels will maximize site without surface or structured parking" -> levels will maximize site without surface or structured parking
B88: ='Building Envelope Calculator'!B141/('Physical Inputs'!B22/'Physical Inputs'!C98) -> 0 | C88: actual underground levels after factoring underbuild
A89: Mechanical parking? | B89: no
A91: Parking Layout
B92: Mark choice with "X" | C92: Square feet per space
A93: Suburban Perpendicular | B93: 0 | C93: 400 | D93: sf
A94: Urban Perpendicular | B94: 0 | C94: 315 | D94: sf
A95: Structured | B95: x | C95: 260 | D95: sf
A96: Mechanical | B96: 0 | C96: 125 | D96: sf
A97: Custom | B97: 0 | C97: 325 | D97: sf
A98: Parking Square Footage | C98: =IF(B93="X",C93,IF(B94="X",C94,IF(B95="X",C95,IF(B96="X",C96,IF(B97="X",C97,0))))) -> 260
A100: Parking Layout Diagrams
A101: Suburban Perpendicular | B101: Urban Perpendicular | D101: Structured
A161: Menu Data (Do Not Alter)
A162: Owner
A163: Renter
A164: None
A166: Single Family
A167: Townhome
A168: Multifamily
A169: Mobile Home
A170: None
A172: yes
A173: no

Sheet Physical Outputs
A1: Physical Stats
A2: Housing Units / Hotel Rooms | B2: ='Physical Outputs'!D37 -> 42.96619442
A3: Jobs | B3: ='Physical Outputs'!E37 -> 9.330775862
A4: Housing / Hotel Room Density (Per Acre) | B4: ='Physical Outputs'!F37 -> 42.96619442
A5: Job Density (Per Acre) | B5: ='Physical Outputs'!G37 -> 9.330775862
A6: FAR | B6: ='Physical Outputs'!B37/'Physical Inputs'!B22 -> 1.525140591
A7: Net Rentable/Sellable Square Feet | B7: ='Physical Outputs'!C37-'Physical Outputs'!C36 -> 49411.12358
A8: Financial Stats
A9: Rental (Residential and Commercial) | B9: Target Return | C9: Actual Return
A10: Cash-on-Cash (After Year 3) | B10: ='Mixed-Use Summary'!N5 -> 0.1 | C10: ='Mixed-Use Summary'!O5 -> 0.06940504024
A11: IRR on Project Cost (Unleveraged Return) | B11: ='Mixed-Use Summary'!N6 -> 0.12 | C11: ='Mixed-Use Summary'!O6 -> 0.08430347663
A12: IRR on Investor Equity (Leveraged Return Before Tax) | B12: ='Mixed-Use Summary'!N7 -> 0.25 | C12: ='Mixed-Use Summary'!O7 -> 0.1131415662
A13: Debt Service Coverage Ratio (Year 3) | B13: ='Mixed-Use Summary'!N8 -> 1.25 | C13: ='Mixed-Use Summary'!O8 -> 1.643121039
A14: IRR on Public Participation | B14: ='Mixed-Use Summary'!N9 -> 0.05 | C14: ='Mixed-Use Summary'!O9 -> 0
A15: Owner Residential | B15: Target Return | C15: Actual Return
A16: Project Rate of Return | B16: ='Mixed-Use Summary'!S5 -> 0.25 | C16: =IF('Physical Inputs'!$B$38="Owner",'Mixed-Use Summary'!U5,"N/A") -> N/A
A17: Return to Equity | B17: ='Mixed-Use Summary'!S6 -> 0.75 | C17: =IF('Physical Inputs'!$B$38="Owner",'Mixed-Use Summary'!U6,"N/A") -> N/A
A18: Physical Outputs
A19: Site-Level Outputs
A20: Building footprint | B20: ='Building Envelope Calculator'!B133 -> 25551.97082 | C20: square feet
A21: Landscaping or open space | B21: ='Building Envelope Calculator'!B134 -> 0 | C21: square feet
A22: Parking area next to building | B22: ='Building Envelope Calculator'!B135 -> 11705.21896 | C22: square feet
A23: Unused or flexible space | B23: ='Building Envelope Calculator'!B136 -> 6302.810212 | C23: square feet
A24: Useable building total | B24: =B37 -> 66435.12414 | C24: square feet
A26: Land Use Outputs
A27: Square Footage by Use | B27: Gross Square Feet | C27: Net Square Feet | D27: Total Dwelling Units or Hotel/Motel Rooms | E27: Total Jobs | F27: DU/acre | G27: Jobs/acre
A28: ='Physical Inputs'!A37 -> Residential | B28: ='Building Envelope Calculator'!B113 -> 46504.5869 | C28: =B28*'Building Envelope Calculator'!B11 -> 39528.89886 | D28: =IF('Physical Inputs'!B59=0,0,C28/'Physical Inputs'!B59) -> 42.96619442 | F28: =D28/'Physical Inputs'!$B$23 -> 42.96619442
A29: Retail | B29: ='Building Envelope Calculator'!B114 -> 11626.14672 | C29: =B29*'Advanced Financial'!B24 -> 9882.224716 | E29: =IF('Physical Inputs'!B62=0,0,B29/'Physical Inputs'!B62) -> 9.330775862 | G29: =E29/'Physical Inputs'!$B$23 -> 9.330775862
A30: Office | B30: ='Building Envelope Calculator'!B115 -> 0 | C30: =B30*'Advanced Financial'!B25 -> 0 | E30: =IF('Physical Inputs'!B63=0,0,B30/'Physical Inputs'!B63) -> 0 | G30: =E30/'Physical Inputs'!$B$23 -> 0
A31: Industrial | B31: ='Building Envelope Calculator'!B116 -> 0 | C31: =B31*'Advanced Financial'!B26 -> 0 | E31: =IF('Physical Inputs'!B64=0,0,B31/'Physical Inputs'!B64) -> 0 | G31: =E31/'Physical Inputs'!$B$23 -> 0
A32: Public | B32: ='Building Envelope Calculator'!B117 -> 0 | C32: =B32*'Advanced Financial'!B27 -> 0 | E32: =IF('Physical Inputs'!B65=0,0,B32/'Physical Inputs'!B65) -> 0 | G32: =E32/'Physical Inputs'!$B$23 -> 0
A33: Educational | B33: ='Building Envelope Calculator'!B118 -> 0 | C33: =B33*'Advanced Financial'!B28 -> 0 | E33: =IF('Physical Inputs'!B66=0,0,B33/'Physical Inputs'!B66) -> 0 | G33: =E33/'Physical Inputs'!$B$23 -> 0
A34: Hotel/Motel | B34: ='Building Envelope Calculator'!B119 -> 0 | C34: =B34*'Advanced Financial'!B22 -> 0 | D34: =IF('Physical Inputs'!B68=0,0,C34/'Physical Inputs'!B68) -> 0 | E34: =IF('Physical Inputs'!B67=0,0,B34/'Physical Inputs'!B67) -> 0 | F34: =D34/'Physical Inputs'!$B$23 -> 0 | G34: =E34/'Physical Inputs'!$B$23 -> 0
A35: Commercial Parking | B35: ='Building Envelope Calculator'!B120 -> 0 | C35: =B35*'Advanced Financial'!B23 -> 0 | D35: =IF('Physical Inputs'!B70=0,0,C35/'Physical Inputs'!B70) -> 0 | E35: =IF('Physical Inputs'!B69=0,0,B35/'Physical Inputs'!B69) -> 0 | F35: =D35/'Physical Inputs'!$B$23 -> 0 | G35: =E35/'Physical Inputs'!$B$23 -> 0
A36: Internal Parking | B36: ='Building Envelope Calculator'!B121 -> 8304.390518 | C36: =B36 -> 8304.390518
A37: Total | B37: =SUM(B28:B36) -> 66435.12414 | C37: 57715.5141 | D37: 42.96619442 | E37: 9.330775862 | F37: 42.96619442 | G37: 9.330775862
A39: Parking Outputs
A40: Parking spaces per 1,000 sf of development | B40: ='Building Envelope Calculator'!C32 -> 1.873363593
A42: Parking Spaces by Land Use | B42: Spaces Required | C42: Parking Area
A43: Market-Rate Residential | B43: ='Building Envelope Calculator'!C113 -> 53.70774302 | C43: ='Physical Outputs'!B43*'Physical Inputs'!$C$98 -> 13964.01319 | D43: sf
A44: Retail | B44: ='Building Envelope Calculator'!C114 -> 23.25229345 | C44: ='Physical Outputs'!B44*'Physical Inputs'!$C$98 -> 6045.596297 | D44: sf
A45: Office | B45: ='Building Envelope Calculator'!C115 -> 0 | C45: ='Physical Outputs'!B45*'Physical Inputs'!$C$98 -> 0 | D45: sf
A46: Industrial | B46: ='Building Envelope Calculator'!C116 -> 0 | C46: ='Physical Outputs'!B46*'Physical Inputs'!$C$98 -> 0 | D46: sf
A47: Public | B47: ='Building Envelope Calculator'!C117 -> 0 | C47: ='Physical Outputs'!B47*'Physical Inputs'!$C$98 -> 0 | D47: sf
A48: Educational | B48: ='Building Envelope Calculator'!C118 -> 0 | C48: ='Physical Outputs'!B48*'Physical Inputs'!$C$98 -> 0 | D48: sf
A49: Hotel/Motel | B49: ='Building Envelope Calculator'!C119 -> 0 | C49: ='Physical Outputs'!B49*'Physical Inputs'!$C$98 -> 0 | D49: sf
A50: Commercial Parking | B50: ='Building Envelope Calculator'!C120 -> 0 | C50: ='Physical Outputs'!B50*'Physical Inputs'!$C$98 -> 0 | D50: sf
A51: Total | B51: =SUM(B43:B50) -> 76.96003647 | C51: =SUM(C43:C50) -> 20009.60948 | D51: sf
A53: Parking Spaces by Type
A54: ='Basic Financial'!A64 -> Surface | B54: =IF('Physical Inputs'!B82=1,'Building Envelope Calculator'!B140,0) -> 45.02007294
A55: ='Basic Financial'!A65 -> Structured (above ground) | B55: =IF('Physical Inputs'!B82>1,'Building Envelope Calculator'!B140,0) -> 0
A56: ='Basic Financial'!A66 -> Underground | B56: ='Building Envelope Calculator'!B141 -> 0
A57: Commercial Parking | B57: ='Building Envelope Calculator'!B142 -> 0
A58: ='Basic Financial'!A67 -> Internal (Tuck Under or Sandwich) | B58: ='Building Envelope Calculator'!B143 -> 31.93996353
A59: Total | B59: =SUM(B54:B58) -> 76.96003647 | C59: spaces

Sheet Basic Financial
A1: Physical Stats
A2: Housing Units / Hotel Rooms | B2: ='Physical Outputs'!D37 -> 42.96619442
A3: Jobs | B3: ='Physical Outputs'!E37 -> 9.330775862
A4: Housing / Hotel Room Density (Per Acre) | B4: ='Physical Outputs'!F37 -> 42.96619442
A5: Job Density (Per Acre) | B5: ='Physical Outputs'!G37 -> 9.330775862
A6: FAR | B6: ='Physical Outputs'!B37/'Physical Inputs'!B22 -> 1.525140591
A7: Net Rentable/Sellable Square Feet | B7: ='Physical Outputs'!C37-'Physical Outputs'!C36 -> 49411.12358
A8: Financial Stats
A9: Rental (Residential and Commercial) | B9: Target Return | C9: Actual Return
A10: Cash-on-Cash (After Year 3) | B10: ='Mixed-Use Summary'!N5 -> 0.1 | C10: ='Mixed-Use Summary'!O5 -> 0.06940504024
A11: IRR on Project Cost (Unleveraged Return) | B11: ='Mixed-Use Summary'!N6 -> 0.12 | C11: ='Mixed-Use Summary'!O6 -> 0.08430347663
A12: IRR on Investor Equity (Leveraged Return Before Tax) | B12: ='Mixed-Use Summary'!N7 -> 0.25 | C12: ='Mixed-Use Summary'!O7 -> 0.1131415662
A13: Debt Service Coverage Ratio (Year 3) | B13: ='Mixed-Use Summary'!N8 -> 1.25 | C13: ='Mixed-Use Summary'!O8 -> 1.643121039
A14: IRR on Public Participation | B14: ='Mixed-Use Summary'!N9 -> 0.05 | C14: ='Mixed-Use Summary'!O9 -> 0
A15: Owner Residential | B15: Target Return | C15: Actual Return
A16: Project Rate of Return | B16: ='Mixed-Use Summary'!S5 -> 0.25 | C16: =IF('Physical Inputs'!$B$38="Owner",'Mixed-Use Summary'!U5,"N/A") -> N/A
A17: Return to Equity | B17: ='Mixed-Use Summary'!S6 -> 0.75 | C17: =IF('Physical Inputs'!$B$38="Owner",'Mixed-Use Summary'!U6,"N/A") -> N/A
A18: Basic Financial Inputs
A19: Construction Costs Per Square Foot or Per Space (Core, Shell and Improvements)
A20: Residential | B20: 160
A21: Retail | B21: 110
A22: Office | B22: 95
A23: Industrial | B23: 95
A24: Public | B24: 95
A25: Educational | B25: 100
A26: Hotel/Motel | B26: 120
A27: Commercial Parking (Per Space) | B27: 20000
A29: Land / Site Cost
A30: Acquisition Costs (Land and Improvements) | B30: 0 | C30: =B30/'Physical Inputs'!B22 -> 0 | D30: /Square Foot
A32: Subsidy
A33: Test Subsidy | B33: 0 | C33: % of Total Project Cost
A34: Detailed Subsidy (from Leveraging Tools tab) | B34: ='Mixed-Use Summary'!J17+'Mixed-Use Summary'!H65 -> 0 | C34: =IFERROR(B34/-B73,0) -> 0
A36: Affordable Rent Target | C36: % AMI
A37: Area Median Income | B37: 60000 | C37: 0.6
A39: Residential Rent Estimator | B39: $ / Sq Ft | C39: Unit Size | D39: Parking $/Mo | E39: Rent
A40: Affordable | B40: =IFERROR(E40/C40,0) -> 0.9 | C40: ='Physical Inputs'!B50 -> 1000 | D40: 0 | E40: =(((B37*C37)/12)*0.3)+D40 -> 900
A41: ='Physical Inputs'!A51 -> 4+ Bedroom | B41: 2 | C41: ='Physical Inputs'!B51 -> 2000 | D41: 50 | E41: =(C41*B41)+D41 -> 4050
A42: ='Physical Inputs'!A52 -> 3 Bedroom | B42: 1.5 | C42: ='Physical Inputs'!B52 -> 1600 | D42: 50 | E42: =(C42*B42)+D42 -> 2450
A43: ='Physical Inputs'!A53 -> 2 Bedroom | B43: 2 | C43: ='Physical Inputs'!B53 -> 1200 | D43: 50 | E43: =(C43*B43)+D43 -> 2450
A44: ='Physical Inputs'!A54 -> 1 Bedroom | B44: 1.25 | C44: ='Physical Inputs'!B54 -> 800 | D44: 50 | E44: =(C44*B44)+D44 -> 1050
A45: ='Physical Inputs'!A55 -> Studio | B45: 1 | C45: ='Physical Inputs'!B55 -> 600 | D45: 50 | E45: =(C45*B45)+D45 -> 650
A46: Calculated Average Monthly Rent | B46: =(SUMPRODUCT(B40:B45,'Physical Inputs'!C50:C55)) -> 1.315 | C46: =IFERROR('Physical Inputs'!B56,0) -> 920 | D46: =IFERROR(SUMPRODUCT(D40:D45,'Physical Inputs'!C50:C55),0) -> 45 | E46: =IFERROR(C46*B46+D46,0) -> 1254.8
A48: Residential Rent (Rental) | B48: $ / Sq Ft | C48: Unit Size | D48: Parking $/Mo | E48: Rent
A49: Monthly Rent per Square Foot | B49: 1.5 | C49: ='Physical Inputs'!B59 -> 920 | D49: 45 | E49: =C49*B49+D49 -> 1425
A51: Residential Sale Price (Owner) | B51: $ / Sq Ft | C51: Unit Size | D51: Sales Price
A52: Sale Price per Square Foot | B52: 250 | C52: ='Physical Inputs'!B59 -> 920 | D52: =B52*'Physical Inputs'!B59 -> 230000
A54: Commercial Rent per Square Foot (Except Hotel/Motel and Commercial Parking)
A55: Retail | B55: 25 | C55: Annual, Triple Net
A56: Office | B56: 26 | C56: Annual, Triple Net
A57: Industrial | B57: 15 | C57: Annual, Triple Net
A58: Public | B58: 25 | C58: Annual, Triple Net
A59: Educational | B59: 25 | C59: Annual, Triple Net
A60: Hotel/Motel | B60: 50 | C60: Daily, Average Room Rate
A61: Commercial Parking | B61: 1 | C61: Hourly, Average per Space
A63: Parking Costs Per Space
A64: Surface | B64: 3000
A65: Structured (above ground) | B65: 20000
A66: Underground | B66: 55000
A67: Internal (Tuck Under or Sandwich) | B67: 20000
A68: Mechanical | B68: 45000
A70: Basic Financial Outputs
A71: Building Construction (Hard Costs) | B71: =SUM('Development Costs'!E12:E22) -> -8719610.043
A72: Parking Construction (Hard Costs) | B72: ='Development Costs'!E23 -> -773859.4894
A73: Total Project Costs | B73: ='Development Costs'!E35 -> -11629521.64

Sheet Advanced Financial
A1: Physical Stats
A2: Housing Units / Hotel Rooms | B2: ='Physical Outputs'!D37 -> 42.96619442
A3: Jobs | B3: ='Physical Outputs'!E37 -> 9.330775862
A4: Housing / Hotel Room Density (Per Acre) | B4: ='Physical Outputs'!F37 -> 42.96619442
A5: Job Density (Per Acre) | B5: ='Physical Outputs'!G37 -> 9.330775862
A6: FAR | B6: ='Physical Outputs'!B37/'Physical Inputs'!B22 -> 1.525140591
A7: Net Rentable/Sellable Square Feet | B7: ='Physical Outputs'!C37-'Physical Outputs'!C36 -> 49411.12358
A8: Financial Stats
A9: Rental (Residential and Commercial) | B9: Target Return | C9: Actual Return
A10: Cash-on-Cash (After Year 3) | B10: ='Mixed-Use Summary'!N5 -> 0.1 | C10: ='Mixed-Use Summary'!O5 -> 0.06940504024
A11: IRR on Project Cost (Unleveraged Return) | B11: ='Mixed-Use Summary'!N6 -> 0.12 | C11: ='Mixed-Use Summary'!O6 -> 0.08430347663
A12: IRR on Investor Equity (Leveraged Return Before Tax) | B12: ='Mixed-Use Summary'!N7 -> 0.25 | C12: ='Mixed-Use Summary'!O7 -> 0.1131415662
A13: Debt Service Coverage Ratio (Year 3) | B13: ='Mixed-Use Summary'!N8 -> 1.25 | C13: ='Mixed-Use Summary'!O8 -> 1.643121039
A14: IRR on Public Participation | B14: ='Mixed-Use Summary'!N9 -> 0.05 | C14: ='Mixed-Use Summary'!O9 -> 0
A15: Owner Residential | B15: Target Return | C15: Actual Return
A16: Project Rate of Return | B16: ='Mixed-Use Summary'!S5 -> 0.25 | C16: =IF('Physical Inputs'!$B$38="Owner",'Mixed-Use Summary'!U5,"N/A") -> N/A
A17: Return to Equity | B17: ='Mixed-Use Summary'!S6 -> 0.75 | C17: =IF('Physical Inputs'!$B$38="Owner",'Mixed-Use Summary'!U6,"N/A") -> N/A
A18: Advanced Financial Inputs
A19: Building Efficiency
A20: Gross to Net Square Footage (% Rentable) | C20: Notes/Data Source
A21: Residential | B21: 0.85 | C21: 100% will automatically be used for single family, duplex or townhome buildings.
A22: Hotel/Motel | B22: 0.85
A23: Commercial Parking | B23: 0.95
A24: Retail | B24: 0.85
A25: Office | B25: 0.85
A26: Industrial | B26: 0.85
A27: Public | B27: 0.85
A29: Occupancy Rate (%) | B29: Rate in Year 1 | C29: Long-Term Rate | D29: Notes/Data Source
A30: Residential | B30: 0.8 | C30: 0.95
A31: Hotel/Motel | C31: 0.75 | D31: Average daily occupancy
A32: Retail | B32: 0.95 | C32: 0.95
A33: Office | B33: 0.95 | C33: 0.95
A34: Industrial | B34: 0.95 | C34: 0.95
A35: Commercial Parking | C35: 0.7 | D35: Average daily occupancy
A36: Public | C36: 0.95
A38: Pre Development Costs | C38: Notes/Data Source
A39: Due diligence | B39: 0 | C39: Enter manually if applicable
A40: Land carry (% of raw land cost) | B40: 0.05 | C40: Expert interviews
A41: Land entitlement / legal fees (% raw land) | B41: 0.02 | C41: Expert interviews
A42: Professional fees (% of hard costs) | B42: 0.05 | C42: Expert interviews
A44: Development Costs | C44: Notes/Data Source
A45: Demolition costs (total) | B45: 0 | C45: Enter manually if applicable
A46: Site development costs (per sf) | B46: 0
A47: Brownfield remediation costs (per sf of site area) | B47: 0 | C47: Enter manually if applicable
A48: Additional infrastructure enhancement costs (total) | B48: 0
A50: Indirect Costs | C50: Notes/Data Source
A51: Impact Fees (per Unit) | B51: 5000 | C51: Enter manually
A52: Impact Fees (per Job) | B52: 0 | C52: Enter manually
A53: Building permit fees | B53: 5000 | C53: Enter manually
A54: Taxes during construction (% raw land) | B54: 0.01 | C54: Expert interviews
A55: Insurance during construction (% of total building costs) | B55: 0.01 | C55: Expert interviews
A56: Developer fee | B56: 0.04 | C56: Expert interviews
A57: Contingency | B57: 0.1 | C57: Expert interviews
A59: Property Taxes | C59: Residential (Rental) | D59: Hotel/Motel | E59: Retail | F59: Office | G59: Industrial | H59: Commercial Parking
A60: Property Tax Rate (% of building value) | B60: 0.01 | C60: 0.02 | D60: 0.01 | E60: 0.02 | F60: 0.01 | G60: 0.01 | H60: 0.015
A61: Assessment Ratio (Assessment Value / Market Value) | B61: 0.75 | C61: 0.75 | D61: 0.54 | E61: 0.75 | F61: 0.54 | G61: 0.54 | H61: 0.54
A63: Financial Targets | C63: Residential (Rental) | D63: Hotel/Motel | E63: Retail | F63: Office | G63: Industrial | H63: Commercial Parking
A64: Cash-on-Cash (After Year 3) | C64: 0.1 | D64: 0.1 | E64: 0.1 | F64: 0.1 | G64: 0.1 | H64: 0.1
A65: IRR on Project Cost (Unleveraged Return) | C65: 0.12 | D65: 0.12 | E65: 0.12 | F65: 0.12 | G65: 0.12 | H65: 0.12
A66: IRR on Investor Equity (Leveraged Return Before Tax) | C66: 0.25 | D66: 0.25 | E66: 0.25 | F66: 0.25 | G66: 0.25 | H66: 0.25
A67: Debt Service Coverage Ratio (Year 3) | C67: 1.25 | D67: 1.25 | E67: 1.25 | F67: 1.25 | G67: 1.25 | H67: 1.25
A68: IRR on Public Participation | C68: 0.05 | D68: 0.05 | E68: 0.05 | F68: 0.05 | G68: 0.05 | H68: 0.05
C70: Residential (Owner)
A71: Project Rate of Return | C71: 0.25
A72: Return to Equity | C72: 0.75
A74: Financial Assumptions | B74: Residential (Owner) | C74: Residential (Rental) | D74: Hotel/Motel | E74: Retail | F74: Office | G74: Industrial | H74: Commercial Parking
A75: Projected retail sales/sf (retail only) | E75: 350
A76: % of sales to rent (retail only) | E76: 0.04
A77: Other income (vending, fines) | C77: 0.1 | D77: 0.1 | E77: 0.02 | F77: 0.1 | G77: 0.1 | H77: 0
A78: Concessions and bad debt | C78: 0.02 | D78: 0.02 | E78: 0.02 | F78: 0.02 | G78: 0.02 | H78: 0
A79: Operating costs (per unit, % of GPI, or per space) | C79: 0.12 | D79: 0.3 | E79: 0.2 | F79: 0.2 | G79: 0.2 | H79: 800
A80: Going in cap rate | C80: 0.06 | D80: 0.06 | E80: 0.06 | F80: 0.073 | G80: 0.073 | H80: 0
A81: Gross potential income - escalation | C81: 0.03 | D81: 0.03 | E81: 0.03 | F81: 0.03 | G81: 0.03 | H81: 0
A82: Operating costs - escalation | C82: 0.03 | D82: 0.03 | E82: 0.03 | F82: 0.03 | G82: 0.03 | H82: 0
A83: Terminal cap rate, gross sales price | C83: 0.073 | D83: 0.073 | E83: 0.073 | F83: 0.073 | G83: 0.08 | H83: 0
A84: Net sales = price less sales cost | C84: 0.05 | D84: 0.05 | E84: 0.05 | F84: 0.05 | G84: 0.05 | H84: 0
A86: Primary Debt | B86: Residential (Owner) | C86: Residential (Rental) | D86: Hotel/Motel | E86: Retail | F86: Office | G86: Industrial | H86: Commercial Parking
A87: Maximum LTV | B87: 0.6 | C87: 0.6 | D87: 0.6 | E87: 0.6 | F87: 0.6 | G87: 0.6 | H87: 0.6
A88: Interest rate | C88: 0.06 | D88: 0.06 | E88: 0.06 | F88: 0.04 | G88: 0.06 | H88: 0.06
A89: Amortization period - years | C89: 30 | D89: 30 | E89: 30 | F89: 30 | G89: 30 | H89: 30

Sheet Gap Financing Options
A1: Financial Stats | B1: Residential (Owner) | C1: Residential (Rental) | D1: Hotel/Motel | E1: Retail | F1: Office | G1: Industrial | H1: Mixed-Use
A2: Rental (Residential and Commercial) | B2: % | C2: % | D2: % | E2: % | F2: % | G2: % | H2: %
A3: Cash-on-Cash (After Year 3) | C3: ='Residential Rental'!M5 -> 0.0430533423 | D3: =Hotel!M5 -> 0 | E3: =Retail!M5 -> 0.1704816199 | F3: =Office!M5 -> 0 | G3: =Industrial!M5 -> 0 | H3: ='Mixed-Use Summary'!O5 -> 0.06940504024
A4: IRR on Project Cost (Unleveraged Return) | C4: ='Residential Rental'!M6 -> 0.06011283034 | D4: =Hotel!M6 -> 0 | E4: =Retail!M6 -> 0.1540730184 | F4: =Office!M6 -> 0 | G4: =Industrial!M6 -> 0 | H4: ='Mixed-Use Summary'!O6 -> 0.08430347663
A5: IRR on Investor Equity (Leveraged Return Before Tax) | C5: ='Residential Rental'!M7 -> 0.06083929084 | D5: =Hotel!M7 -> 0 | E5: =Retail!M7 -> 0.2457349404 | F5: =Office!M7 -> 0 | G5: =Industrial!M7 -> 0 | H5: ='Mixed-Use Summary'!O7 -> 0.1131415662
A6: Debt Service Coverage Ratio (Year 3) | C6: ='Residential Rental'!M8 -> 1.398940915 | D6: =Hotel!M8 -> 0 | E6: =Retail!M8 -> 2.579716923 | F6: =Office!M8 -> 0 | G6: =Industrial!M8 -> 0 | H6: ='Mixed-Use Summary'!O8 -> 1.643121039
A7: IRR on Public Participation | C7: ='Residential Rental'!M9 -> 0 | D7: =Hotel!M9 -> 0 | E7: =Retail!M9 -> 0 | F7: =Office!M9 -> 0 | G7: =Industrial!M9 -> 0 | H7: ='Mixed-Use Summary'!O9 -> 0
A8: Owner Residential | B8: % | C8: % | D8: % | E8: % | F8: % | G8: % | H8: %
A9: Project Rate of Return | B9: ='Residential Owner'!D3 -> 0 | H9: ='Mixed-Use Summary'!U5 -> 0
A10: Return to Equity | B10: ='Residential Owner'!D4 -> 0 | H10: ='Mixed-Use Summary'!U6 -> 0
A12: Leveraging Tools
A13: Cash Flow Support - Property Tax Abatements
A14: Property Tax Abatements | B14: Residential (Owner) | C14: Residential (Rental) | D14: Hotel/Motel | E14: Retail | F14: Office | G14: Industrial | H14: Commercial Parking
A15: Local property tax rate available for abatement | C15: 0 | D15: 0 | E15: 0 | F15: 0 | G15: 0 | H15: 0
A16: Total Property Tax Abatement | C16: =SUM('Residential Rental'!E122:N122) -> 0 | D16: =SUM(Hotel!E125:N125) -> 0 | E16: =SUM(Retail!E125:N125) -> 0 | F16: =SUM(Industrial!E122:N122) -> 0 | G16: =SUM(Industrial!E122:N122) -> 0 | H16: =SUM('Commercial Parking'!E125:N125) -> 0
A17: Year 1 | C17: 0 | D17: 0 | E17: 0 | F17: 0 | G17: 0 | H17: 0
A18: Year 2 | C18: 0 | D18: 0 | E18: 0 | F18: 0 | G18: 0 | H18: 0
A19: Year 3 | C19: 0 | D19: 0 | E19: 0 | F19: 0 | G19: 0 | H19: 0
A20: Year 4 | C20: 0 | D20: 0 | E20: 0 | F20: 0 | G20: 0 | H20: 0
A21: Year 5 | C21: 0 | D21: 0 | E21: 0 | F21: 0 | G21: 0 | H21: 0
A22: Year 6 | C22: 0 | D22: 0 | E22: 0 | F22: 0 | G22: 0 | H22: 0
A23: Year 7 | C23: 0 | D23: 0 | E23: 0 | F23: 0 | G23: 0 | H23: 0
A24: Year 8 | C24: 0 | D24: 0 | E24: 0 | F24: 0 | G24: 0 | H24: 0
A25: Year 9 | C25: 0 | D25: 0 | E25: 0 | F25: 0 | G25: 0 | H25: 0
A26: Year 10 | C26: 0 | D26: 0 | E26: 0 | F26: 0 | G26: 0 | H26: 0
A29: Cash Flow Support - Sales Tax Abatements
A30: Sales Tax Abatements | D30: Hotel/Motel | E30: Retail | F30: Office | G30: Industrial | H30: Commercial Parking
A31: Local sales tax rate available for abatement | D31: 0 | E31: 0 | F31: 0 | G31: 0 | H31: 0
A32: Total Sales Tax Abatements | D32: =SUM(Hotel!E126:N126) -> 0 | E32: =SUM(Retail!E126:N126) -> 0 | F32: =SUM(Office!E123:N123) -> 0 | G32: =SUM(Industrial!E123:N123) -> 0 | H32: =SUM('Commercial Parking'!E126:N126) -> 0
A33: Year 1 | D33: 0 | E33: 0 | F33: 0 | G33: 0 | H33: 0
A34: Year 2 | D34: 0 | E34: 0 | F34: 0 | G34: 0 | H34: 0
A35: Year 3 | D35: 0 | E35: 0 | F35: 0 | G35: 0 | H35: 0
A36: Year 4 | D36: 0 | E36: 0 | F36: 0 | G36: 0 | H36: 0
A37: Year 5 | D37: 0 | E37: 0 | F37: 0 | G37: 0 | H37: 0
A38: Year 6 | D38: 0 | E38: 0 | F38: 0 | G38: 0 | H38: 0
A39: Year 7 | D39: 0 | E39: 0 | F39: 0 | G39: 0 | H39: 0
A40: Year 8 | D40: 0 | E40: 0 | F40: 0 | G40: 0 | H40: 0
A41: Year 9 | D41: 0 | E41: 0 | F41: 0 | G41: 0 | H41: 0
A42: Year 10 | D42: 0 | E42: 0 | F42: 0 | G42: 0 | H42: 0
A45: Cash Flow Support - TIF or IRA Payments
A46: Cash Flow Support | C46: Residential (Rental) | D46: Hotel/Motel | E46: Retail | F46: Office | G46: Industrial | H46: Commercial Parking
A47: Total Cash Flow Support | C47: =SUM('Residential Rental'!E124:N124) -> 0 | D47: =SUM(Hotel!E127:N127) -> 0 | E47: =SUM(Retail!E127:N127) -> 0 | F47: =SUM(Office!E124:N124) -> 0 | G47: =SUM(Industrial!E124:N124) -> 0 | H47: =SUM('Commercial Parking'!E127:N127) -> 0
A48: Year 1 | C48: 0 | D48: 0 | E48: 0 | F48: 0 | G48: 0 | H48: 0
A49: Year 2 | C49: 0 | D49: 0 | E49: 0 | F49: 0 | G49: 0 | H49: 0
A50: Year 3 | C50: 0 | D50: 0 | E50: 0 | F50: 0 | G50: 0 | H50: 0
A51: Year 4 | C51: 0 | D51: 0 | E51: 0 | F51: 0 | G51: 0 | H51: 0
A52: Year 5 | C52: 0 | D52: 0 | E52: 0 | F52: 0 | G52: 0 | H52: 0
A53: Year 6 | C53: 0 | D53: 0 | E53: 0 | F53: 0 | G53: 0 | H53: 0
A54: Year 7 | C54: 0 | D54: 0 | E54: 0 | F54: 0 | G54: 0 | H54: 0
A55: Year 8 | C55: 0 | D55: 0 | E55: 0 | F55: 0 | G55: 0 | H55: 0
A56: Year 9 | C56: 0 | D56: 0 | E56: 0 | F56: 0 | G56: 0 | H56: 0
A57: Year 10 | C57: 0 | D57: 0 | E57: 0 | F57: 0 | G57: 0 | H57: 0
A60: Loan Support
A61: Loan Terms | C61: Residential (Rental) | D61: Hotel/Motel | E61: Retail | F61: Office | G61: Industrial | H61: Commercial Parking | I61: Total
A62: Public Leveraging Loan Included in Analysis? (1=Yes; 0=No) | B62: 0 | C62: =IF('Basic Financial'!B33=0,$B$62,0) -> 0 | D62: =IF('Basic Financial'!C33=0,$B$62,0) -> 0 | E62: =IF('Basic Financial'!D33=0,$B$62,0) -> 0 | F62: =IF('Basic Financial'!E33=0,$B$62,0) -> 0 | G62: =IF('Basic Financial'!F33=0,$B$62,0) -> 0
A63: Maximum LTV | C63: 0.3 | D63: 0.3 | E63: 0.3 | F63: 0.3 | G63: 0.3 | H63: 0.3
A64: Interest rate | C64: 0.03 | D64: 0.03 | E64: 0.03 | F64: 0.03 | G64: 0.03 | H64: 0.03
A65: Amortization period - years | C65: 15 | D65: 15 | E65: 15 | F65: 15 | G65: 15 | H65: 15
A66: Loan $ Amount Required to Meet Loan Terms | C66: =C63*'Mixed-Use Summary'!B55 -> 2767373.834 | D66: =D63*'Mixed-Use Summary'!E55 -> 0 | E66: =E63*'Mixed-Use Summary'!D55 -> 721482.6583 | F66: =F63*'Mixed-Use Summary'!C55 -> 0 | G66: =G63*'Mixed-Use Summary'!F55 -> 0 | H66: =H63*'Mixed-Use Summary'!G55 -> 0 | I66: =SUM(C66:H66) -> 3488856.493
A67: Baseline Loan Support (based on LTV) | C67: =IF('Physical Inputs'!$B$38="Renter",'Mixed-Use Summary'!B64,0) -> 0 | D67: ='Mixed-Use Summary'!E64 -> 0 | E67: ='Mixed-Use Summary'!D64 -> 0 | F67: ='Mixed-Use Summary'!C64 -> 0 | G67: ='Mixed-Use Summary'!F64 -> 0 | H67: ='Mixed-Use Summary'!G64 -> 0 | I67: =SUM(C67:G67) -> 0 | J67: =SUM(I67:I68) -> 0
A68: Extra Loan Support (if options selected below exceed LTV amount required) | C68: =IF('Physical Inputs'!$B$38="Renter",((B73-I67)*'Development Costs'!E39),0) -> 0 | D68: =((B73-I67)*'Development Costs'!E45) -> 0 | E68: =((B73-I67)*'Development Costs'!E40) -> 0 | F68: =((B73-I67)*SUM('Development Costs'!E41,'Development Costs'!E43:E44)) -> 0 | G68: =((B73-I67)*'Development Costs'!E42) -> 0 | H68: =((B73-I67)*'Development Costs'!E46) -> 0 | I68: =SUM(C68:H68) -> 0
A69: Capital recovery (from grants)
A70: Annual cash throw off
A71: Share of net sales price
A72: Loan Support Options | B72: Total Detailed | C72: User Overide
A73: Total Loan Support | B73: =IF(AND(B62=1,C73=0,SUM(B74:B77)=0),I66,IF(C73>0,C73,SUM(B74:B77))) -> 0 | C73: 0
A74: Private Activity Bonds (PAB)
A75: Revolving Loan Funds (RLF)
A76: Low-Interest Loans (LIL)
A77: State Infrastructure Banks (SIB)
A80: Fee Waivers / Reductions
A81: Fee Waivers | B81: Residential (Owner) | C81: Residential (Rental) | D81: Hotel/Motel | E81: Retail | F81: Office | G81: Industrial | H81: Commercial Parking
A82: Fee Waivers / Reductions Distribution | B82: =IF('Physical Inputs'!$B$38="Owner",'Gap Financing Options'!$B$84*'Development Costs'!$E$39,0) -> 0 | C82: =IF('Physical Inputs'!$B$38="Renter",'Gap Financing Options'!$B$84*'Development Costs'!$E$39,0) -> 0 | D82: =B84*'Development Costs'!$E$45 -> 0 | E82: =$B84*'Development Costs'!$E$40 -> 0 | F82: =B84*IFERROR(SUM('Development Costs'!E41,'Development Costs'!E43:E44),0) -> 0 | G82: =B84*'Development Costs'!$E$42 -> 0 | H82: =$B84*'Development Costs'!$E$46 -> 0
A83: User Inputs | B83: Total Detailed | C83: User Overide
A84: Fee Waivers Total | B84: =IF(C84>0.01,C84,SUM(B85:B87)) -> 0 | C84: 0
A85: Fee Waivers (FW)
A86: Utility Fee Reductions (UFR)
A87: Impact Fee Reductions (IFR)
A90: Grants
A91: Grants | B91: Residential (Owner) | C91: Residential (Rental) | D91: Hotel/Motel | E91: Retail | F91: Office | G91: Industrial | H91: Commercial Parking
A92: Grant Distribution | B92: =IF('Physical Inputs'!$B$38="Owner",'Gap Financing Options'!$B$94*'Development Costs'!$E$39,0) -> 0 | C92: =IF('Physical Inputs'!$B$38="Renter",'Gap Financing Options'!$B$94*'Development Costs'!$E$39,0) -> 0 | D92: =B94*'Development Costs'!$E$45 -> 0 | E92: =$B94*'Development Costs'!$E$40 -> 0 | F92: =B94*IFERROR(SUM('Development Costs'!E41,'Development Costs'!E43:E44),0) -> 0 | G92: =B94*'Development Costs'!$E$42 -> 0 | H92: =$B94*'Development Costs'!$E$46 -> 0
A93: User Inputs | B93: Total Detailed | C93: User Overide
A94: Grants Total | B94: =IF(C94>0.01,C94,SUM(B95:B111)) -> 0 | C94: 0
A95: CDBG
A96: CMAQ
A97: STP
A98: EDA
A99: LID
A100: Business Improvement Districts (BID)
A101: Revenue Bonds (RB)
A102: Parking Districts (PD)
A103: General Obligation Bonds (GOB)
A104: TIF
A105: GARVEE
A106: COPs
A107: TIFIA
A108: RRIF
A109: Urbanized Area Formula (UAF) Program
A110: Foundation Grants (FG)
A111: Other
A114: Tax Credits
A115: Tax Credits | B115: Residential (Owner) | C115: Residential (Rental) | D115: Hotel/Motel | E115: Retail | F115: Office | G115: Industrial | H115: Commercial Parking
A116: Tax Credits net to project Distribution | B116: =IF(SUM(B118:H118)=0,IF('Physical Inputs'!$B$38="Owner",'Gap Financing Options'!B120*B117,0),IF('Physical Inputs'!$B$38="Owner",'Gap Financing Options'!B120*B118,0)) -> 0 | C116: =IF(SUM(B118:H118)=0,IF('Physical Inputs'!$B$38="Renter",'Gap Financing Options'!B120*C117,0),IF('Physical Inputs'!$B$38="Renter",'Gap Financing Options'!B120*C118,0)) -> 0 | D116: =IF(SUM(B118:H118)=0,B120*D117,B120*D118) -> 0 | E116: =IF(SUM(B118:H118)=0,$B120*E117,B120*E118) -> 0 | F116: =IF(SUM(B118:H118)=0,B120*F117,B120*F118) -> 0 | G116: =IF(SUM(B118:H118)=0,B120*G117,B120*G118) -> 0 | H116: =IF(SUM(B118:H118)=0,$B120*H117,B120*H118) -> 0
A117: Development Costs by Land Use (%) | B117: =IF('Physical Inputs'!$B$38="Owner",'Development Costs'!$E$39,0) -> 0 | C117: =IF('Physical Inputs'!$B$38="Renter",'Development Costs'!$E$39,0) -> 0.7932036873 | D117: ='Development Costs'!$E$45 -> 0 | E117: ='Development Costs'!$E$40 -> 0.2067963127 | F117: ='Development Costs'!$E$41 -> 0 | G117: ='Development Costs'!$E$42 -> 0 | H117: ='Development Costs'!$E$46 -> 0
A118: Tax Credit Allocation (%) Overide - User Defined
A119: User Inputs | B119: Total Detailed | C119: User Overide
A120: Tax Credits Total | B120: =IF(C120>0.01,C120,SUM(B121:B123)) -> 0
A121: Low/Moderate Income Housing Tax Credits (L/MIHTC)
A122: New Market Tax Credits (NMTC)
A123: Historic Preservation Tax Credits (HPTC)

Sheet Gap Financing Definitions
A1: PUBLIC LEVERAGING TOOLS
A3: Cash Flow Support -- Improves annual project cash flow
A5: Property Tax Abatement (PTA)
B6: Many local communities may eliminate or reduce real and personal property taxes over a scheduled period of time as an incentive to new and expanding businesses. Usually, property tax abatement allows a property owner to phase in payment of property taxes over a designated period. Depending on state enabling legislation, this period may be any number of years between one and 20 or longer with abatements usually ranging from 100 percent down to 10 percent for any given year. Sometimes property tax abatement is used to offset capital investments made by the investor (see Tax Increment Finance and Infrastructure Reimbursement Agreements).
B7: Application – Reduced property tax assessments over the applicable years.
A9: Sales Tax Abatement (STA)
B10: Some states allow local communities to eliminate or reduce sales taxes over a scheduled period of time as an incentive to new and expanding businesses. Usually, sales tax abatement allows a retail operation to phase in payment of sales taxes over a designated period. Depending on state enabling legislation, this period may be any number of years between one and usually no more than 10 but it could be longer, with abatements usually ranging from 100 percent down to 10 percent for any given year. Sometimes sales tax abatement is used to offset capital investments made by the investor (see Tax Increment Finance and Infrastructure Reimbursement Agreements).
B11: Application – Reduced sales tax assessments over the applicable years.
A13: Tax Increment Financing (TIF)
B14: TIF uses future gains in taxes to finance improvements which in theory create the very value recaptured for this purpose – it is a form of value recapture. When a development or public project is carried out, there is often an increase in the value of surrounding real estate and perhaps new investment such as new or rehabilitated buildings. This increased site value and investment sometimes generates increased tax revenues. The increased tax revenues are the "tax increment." Tax Increment Financing dedicates tax increments within a certain defined district to finance debt issued to pay for the project. TIF is designed to channel funding toward improvements in distressed or underdeveloped areas where development might not otherwise occur. TIF creates funding for "public" projects that may otherwise be unaffordable to localities, by borrowing against future property tax revenues. TIF can also be applied to increased sales taxes generated by new development. TIF revenues may be used to retire bonds issued to finance qualifying public purpose investments, or used to reimburse the investor directly from property and/or sales taxes (see Infrastructure Reimbursement Agreements).
B15: Application – Where TIF bonds are used, the tool is considered a grant. Where property and/or sales tax abatement is used, abatement would be the application.
A17: Infrastructure Reimbursement Agreements (IRA)
B18: Sometimes local government cannot finance facility improvements needed to attract investment. In these situations, the investor may be willing to finance the improvements provided the investor is reimbursed through property and/or sales tax abatements. Another alternative is to have local government assess subsequent new development a proportionate share of its cost of facility improvements though a “late-comer” fee.
B19: Application – Reduced property and/or sales tax assessments over the applicable years.
A21: Fee Waivers -- Effect is to buy down total project cost
A23: Fee Waivers (FW)
B24: Local governments assess a wide range of fees to process new development. Collectively, they can account for up to 5 percent or more of the total construction costs. Waiver of fees, or their payment through such alternatives as CDBG funds, can reduce the cost.
B25: Application – Grant for qualifying capital improvements.
A27: Utility Fee Reductions (UFR)
B28: Many local governments charge connection fees to link new development to water and sewer services. They can account for up to 5 percent or more of the total construction costs. Some local governments reduce or waive these fees for economic development, redevelopment, affordable housing, or other public policy purpose.
B29: Application – Grant for qualifying capital improvements.
A31: Impact Fee Reductions (IFR)
B32: Many local governments charge impact fees so that the impacts of new development on public facilities can be mitigated. They can account for up to 5 percent or more of the total construction costs. Normally impact fees must be paid to assure legal defensibility but they may be paid from such alternatives as CDBG funds, local housing or economic development funds, or paid over time through a loan arrangement.
B33: Application – Fee waiver/reduction.
A35: Grants -- Proceeds used to buy down land and/or building costs
A37: Community Development Block Grants (CDBG)
B38: The Community Development Block Grant (CDBG) program is one of the longest-running programs of the U.S. Department of Housing and Urban Development. It funds local community development activities such as affordable housing, anti-poverty programs, and infrastructure development. CDBG are subject to less federal oversight and are largely used at the discretion of the state and local governments and their sub grantees.
B39: Application – Grant for qualifying capital improvements.
A41: Congestion Mitigation and Air Quality Improvement (CMAQ) Funds
B42: The CMAQ program was created under the Intermodal Surface Transportation Efficiency Act (ISTEA) of 1991, continued under the Transportation Equity Act for the 21st Century (TEA-21), and reauthorized by the Safe, Accountable, Flexible, Efficient Transportation Equity Act: A Legacy for Users (SAFETEA-LU). The purpose of the CMAQ program is to fund transportation projects or programs that will contribute to attainment or maintenance of the national ambient air quality standards (NAAQS) for ozone, carbon monoxide (CO), and particulate matter (PM). CMAQ funds may be used to establish new or expanded transportation projects or programs that reduce emissions, including capital investments in transportation infrastructure, congestion relief efforts, diesel engine retrofits, or other capital projects.
B43: Application – Grant for qualifying capital improvements.
A45: Surface Transportation Program (STP)
B46: The STP provides flexible funding that may be used by States and localities for projects on any Federal-aid highway, including the NHS, bridge projects on any public road, transit capital projects, and intracity and intercity bus terminals and facilities. A portion of funds reserved for rural areas may be spent on rural minor collectors. http://www.fhwa.dot.gov/tea21/factsheets/stp.htm
B47: Application – Grant for qualifying capital improvements.
A49: Economic Development Administration (EDA) Grants
B50: The EDA is an agency in the U.S. Department of Commerce that provides grants to economically distressed communities to generate new employment, help retain existing jobs and stimulate industrial and commercial growth.
B51: Application – Grant for qualifying capital improvements.
A53: Local Improvement District; Community Improvement District; Special Assessment District; Benefit Assessment District; Related (LID)
B54: These are mechanisms for property owners with common concerns to band together and assess themselves for purely local improvements such as sidewalk repair, neighborhood park rehabilitation, streets, and so forth. They must be authorized by state law and follow specific state procedures for formation, governance, and the issuance of bonds to finance the projects. They are funded through such sources as general taxes, special assessments, or fees based on formulas (such as street front-foot). Although property owners pay the benefits to new investment could be considered a grant. (See also Business Improvement Districts.)
B55: Application – Grant for qualifying capital improvements.
A57: Business Improvement Districts (BID)
B58: A business improvement district (BID) is a defined area within which businesses pay an additional tax or fee in order to fund improvements within the district's boundaries. Grant funds acquired by the city for special programs and/or incentives such as tax abatements can be made available to assist businesses or to recruit new business. BIDs may go by other names, such as business improvement area (BIA), business revitalization zone (BRZ), community improvement district (CID), special services area (SSA), or special improvement district (SID). BIDs provide services, such as cleaning streets, providing security, making capital improvements, construction of pedestrian and streetscape enhancements, and marketing the area. The services provided by BIDs are supplemental to those already provided by the municipality. BIDs may generate revenue used to underwrite investments in new development.
B59: Application – Grant for qualifying capital improvements.
A61: Revenue Bonds (RB)
B62: A revenue bond is a special type of municipal bond distinguished by its guarantee of repayment solely from revenues generated by a specified revenue-generating entity associated with the purpose of the bonds, rather than from a tax. Unlike general obligation bonds, only the revenues specified in the legal contract between the bond holder and bond issuer are required to be used for repayment of the principal and interest of the bonds; other revenues (notably tax revenues) and the general credit of the issuing agency are not so encumbered. Because the pledge of security is not as great as that of general obligation bonds, revenue bonds may carry a slightly higher interest rate than G.O. bonds; however, they are usually considered the second-most secure type of municipal bonds.
B63: Application – Grant for qualifying capital improvements.
A65: Parking Districts (PD)
B66: These are a variant of the Local Improvement District but focusing on providing parking usually for downtowns and suburban centers. A Revenue Bond is used finance the capital construction while parking fees retire the debt and help with maintenance. Sometimes a BID will underwrite the revenue bond and use parking revenues for O&M. Parking districts can shift the cost of providing expensive decked or underground parking from an investment project to a larger pool of properties.
B67: Application – Grant for qualifying capital improvements, usually the parking structures costs otherwise incurred by new investment.
A69: General Obligation Bonds (GOB)
B70: A general obligation bond is a common type of municipal bond in the nation that is secured by a state or local government's pledge to use legally available resources, including tax revenues, to repay bond holders. Most general obligation pledges at the local government level include a pledge to levy a property tax to meet debt service requirements, in which case holders of general obligation bonds have a right to compel the borrowing government to levy that tax to satisfy the local government's obligation. Because property owners are usually reluctant to risk losing their holding due to unpaid property tax bills, credit rating agencies often consider a general obligation pledge to have very strong credit quality and frequently assign them investment grade ratings. If local property owners do not pay their property taxes on time in any given year, a government entity is required to increase its property tax rate by as much as is legally allowable in a following year to make up for any delinquencies. In the interim between the taxpayer delinquency and the higher property tax rate in the following year, the general obligation pledge requires the local government to pay debt service coming due with its available resources. GO Bonds can be used for a wide range of purposes that benefit investment property.
B71: Application – Grant for qualifying capital improvements.
A73: Tax Increment Financing (TIF)
B74: TIF uses future gains in taxes to finance improvements which in theory create the very value recaptured for this purpose – it is a form of value recapture. When a development or public project is carried out, there is often an increase in the value of surrounding real estate and perhaps new investment such as new or rehabilitated buildings. This increased site value and investment sometimes generates increased tax revenues. The increased tax revenues are the "tax increment." Tax Increment Financing dedicates tax increments within a certain defined district to finance debt issued to pay for the project. TIF is designed to channel funding toward improvements in distressed or underdeveloped areas where development might not otherwise occur. TIF creates funding for "public" projects that may otherwise be unaffordable to localities, by borrowing against future property tax revenues. TIF can also be applied to increased sales taxes generated by new development. TIF revenues may be used to retire bonds issued to finance qualifying public purpose investments, or used to reimburse the investor directly from property and/or sales taxes (see Infrastructure Reimbursement Agreements).
B75: Application – Where TIF bonds are used, the tool is considered a grant. Where property and/or sales tax abatement is used, abatement would be the application.
A77: Grant Anticipation Revenue (GARVEE) Bonds
B78: Grant Anticipation Revenue Vehicle, or GARVEE, is a type of bond issued by a state or state infrastructure bank under federal guidelines. States must repay the bonds using federal funds expected to be received in the future. Federal guidelines state "an eligible debt financing instrument is a bond, note, certificate, mortgage, lease, or other debt financing instrument issued by a State or political subdivision of a State or a public authority, the proceeds of which are used to fund a project eligible for assistance under Title 23.” GARVEE bonds may be used for major projects receiving federal funding. They do not guarantee that the federal government will provide the expected financing, and they are not guaranteed by the federal government. Eligible costs for projects may include interest, retirement of principal, costs for issuing bonds, and other incidental costs which must be approved.
B79: Application – Grant for qualifying capital improvements.
A81: Lease Revenue Bonds/Certificates of Participation (COPs)
B82: Lease-revenue bonds are a variant of revenue bonds. The revenue stream backing the bond is created from lease payments made by the occupying department to the governmental financing entity which constructs the facility. The financing authority constructs the facility, issues financing bonds, and retains title to the facility until the debt is retired. Lease-revenue bonds do not require voter approval because the transaction is set up to mirror a typical financing lease, i.e., lease payments are due on a year-to-year basis and required only if the facility can be occupied.
B83: A further variant are Certificates of Participation (COPs) in which an investor buys a share in the improvements or infrastructure the government entity intends to fund. This contrasts with a bond, in which the investor loans the government or municipality money in order to make these improvements. This is used primarily when the government or municipality has a charter-mandated debt ceiling.
B84: Application – Where the tool generates revenue to finance improvements, they may be considered a form of long-term financing. Where they generate funds to build a facility for a public purpose and the tenant such as a government entity retires the debt through lease payments, they may be considered a grant for construction but rent revenue pledged to the lease must be reduced from cash flow available to the investor.
A86: Transportation Infrastructure Finance and Innovation Act (TIFIA)
B87: The TIFIA program provides Federal credit assistance to nationally or regionally significant surface transportation projects, including highway, transit and rail. The program is designed to fill market gaps and leverage substantial private co-investment by providing projects with supplemental or subordinate debt.
B88: Application – Grant for qualifying capital improvements.
A90: Railroad Rehabilitation & Improvement Financing (RRIF) Program
B91: The RRIF program was established by the Transportation Equity Act for the 21st Century (TEA-21) and amended by the Safe Accountable, Flexible and Efficient Transportation Equity Act: a Legacy for Users (SAFETEA-LU). The RRIF Program provides direct federal loans and loan guarantees to finance development of railroad infrastructure.
B92: Application – Grant for qualifying capital improvements.
A94: Urbanized Area Formula (UAF) Program
B95: The UAF makes Federal resources available to urbanized areas and to Governors for transit capital and operating assistance in urbanized areas and for transportation related planning. Activities include planning, engineering design and evaluation of transit projects and other technical transportation-related studies.
B96: Application – Grant for qualifying capital improvements.
A98: Foundation Grants (FG)
B99: Foundations, especially those whose purpose is to advance the well being of local communities, may be interested in providing grants or lower interest loans.
B100: Application – Grant for qualifying capital improvements and or debt service usually with below-market interest.
A102: Loan Support -- Effect is to reduce equity requirements and if below-market rates also reduce debt service obligations
A104: Private Activity Bonds (PAB)
B105: This is a form of a tax-exempt municipal bond in which a local government entity is seeking to raise money for a private company. A municipality issues a private activity bond when it wishes to attract a business and the jobs it brings to the area, especially when the business may be otherwise unable to obtain financing for the project. The municipality issuing the bond must be able to prove that a public benefit derives from the private activity bond in order to qualify for tax-exempt status. Private activity bonds generally are not guaranteed by the revenue of the municipality.
B106: Application – Debt service usually with below-market interest.
A108: Revolving Loan Funds (RLF)
B109: A Revolving Loan Funds (RLF) is a source of money from which loans are made for multiple business development projects. The fund gets its name from the revolving aspect of loan repayment, where the central fund is replenished as individual projects pay back their loans, creating the opportunity to issue other loans to new projects.
B110: Application – Debt service usually with below-market interest.
A112: Low-Interest Loans (LIL)
B113: Local governments may have access to funds that can be used to provide below-market loans for all or part of an investment. If it is just for part, it is often used for “mezzanine” financing.
B114: Application – Debt service usually with below-market interest.
A116: State Infrastructure Banks (SIB)
B117: The SIB program gives states the capacity to increase the efficiency of their transportation investment and significantly leverage Federal resources by attracting non-Federal public and private investment. A SIB, much like a private bank, can offer a range of loans and credit assistance enhancement products to public and private sponsors of Title 23 highway construction projects or Title 49 transit capital projects. By offering SIB support for a project, the sponsor may be able to attract private, local, and additional state financial resources, leveraging a small amount of SIB assistance into a larger dollar investment. Alternatively, SIB capital can be used as collateral to borrow in the bond market or to establish a guaranteed reserve fund. (May not be available in all areas)
B118: Application – establish infrastructure revolving funds eligible to be capitalized with Federal transportation funds
A120: Tax Credits -- Net proceeds used to buy down construction costs
A122: Low/Moderate Income Housing Tax Credits (L/MIHTC)
B123: The federal Low/Moderate Income Housing Tax Credit (LIHTC - often pronounced "lie-tech" or MIHTC – “my-tech” housing credit) program is a dollar-for-dollar tax credit in the for affordable housing investments. It was created under the Tax Reform Act of 1986 (TRA86) that gives incentives for the utilization of private equity in the development of affordable housing aimed at low- or moderate-income households. L/MIHTC accounts for the majority - approximately 90 percent - of all affordable rental housing created in the United States today. The credits are also commonly called Section 42 credits in reference to the applicable section of the Internal Revenue Service. The tax credits are more attractive than tax deductions as they provide a dollar-for-dollar reduction in a taxpayer's federal income tax, whereas a tax deduction only provides a reduction in taxable income. The "passive loss rules" and similar tax changes made by TRA86 greatly reduced the value of tax credits and deductions to individual taxpayers. As a result, almost all investors in L/MIHTC projects are corporations.
B124: Application – The tax credit is considered a grant against a share of the construction cost of the project for each year in which the credit is applicable, up to 10 years. The credit is 9-percent per year for qualifying low-income housing for a total of 90 percent over 10 years, and 4-percent per year for qualifying moderate income housing for a total of 40 percent also over 10 years. The credits apply only to individually qualifying units, and may include a mix of low-income (9-percent/year credit), moderate-income (4-percent/year credit), and market rate (no credit) units.
A126: New Market Tax Credits (NMTC)
B127: The New Markets Tax Credit (NMTC) Program was established in 2000 as part of the Community Renewal Tax Relief Act of 2000. The goal of the program is to induce revitalization efforts of low-income and impoverished communities. The NMTC Program provides tax credit incentives to investors for equity investments in certified Community Development Entities, which invest in low-income communities. The credit equals 39-percent of the investment paid out as 5-percent in each of the first three years and then 6-percent in the final four years (actually six years and plus one day of the seventh year) . A Community Development Entity must have a primary mission of investing in low-income communities and persons.
B128: Application – Grant for qualifying capital improvements.
A130: Historic Preservation Tax Credits (HPTC)
B131: An owner of rental/income-producing property listed by the National Park Service’s Register of National Historic Places (or properties that are contributing resources within a National Register Historic District) may be eligible for a 20 percent investment tax credit for the rehabilitation of the historic structure. The rehabilitation may include commercial, industrial, or residential rental property. In addition, the tax incentive program allows for a 10 percent tax credit for rehabilitation of non-historic, nonresidential buildings built before 1936.
B132: Application – Grant for qualifying capital improvements.

Sheet Residential Owner
A1: ROI Template - Residential Owner
A2: Investment Targets and Performance | B2: Target | C2: Actual | D2: Leveraging Tools
A3: Project Rate of Return Target | B3: ='Advanced Financial'!C71 -> 0.25 | C3: =B25 -> 0 | D3: =B43 -> 0
A4: Equity Return Target | B4: ='Advanced Financial'!C72 -> 0.75 | C4: =B29 -> 0 | D4: =B48 -> 0
A6: Public Leveraging Tools | C6: TOTAL
A7: Tax Credits net to project | B7: ='Gap Financing Options'!B116 -> 0 | C7: =IF('Basic Financial'!B33=0,B7,0) -> 0
A8: Fee Reductions | B8: ='Gap Financing Options'!B82 -> 0 | C8: =IF('Basic Financial'!B33=0,B8,0) -> 0
A9: Grants | B9: ='Gap Financing Options'!B92 -> 0 | C9: =IF('Physical Inputs'!B38="Renter",0,IF('Basic Financial'!B33=0,B9,'Development Costs'!E39*'Basic Financial'!B33)) -> 0
A10: Total | B10: =SUM(B7:B9) -> 0 | C10: =SUM(C7:C9) -> 0
A13: Project Baseline | B13: Baseline Figures
A14: Total Project Cost | B14: =IF('Physical Inputs'!B38="Owner",-'Development Costs'!D39,0) -> 0
A15: Interim Financing Amount | B15: =(1-'Advanced Financial'!B87)*B14 -> 0
A16: Developer Equity | B16: =B14-B15 -> 0
A17: Residential Units | B17: =IF('Physical Inputs'!B38="Owner",'Physical Inputs'!B2,0) -> 0
A18: Average Market Price | B18: ='Basic Financial'!D52 -> 230000
A19: Net Sales Proceeds | B19: =B17*B18 -> 0
A20: Net Project Return | B20: =B19-B14 -> 0
A22: Performance Assessment
A23: Total Project Cost | B23: =B14 -> 0
A24: Project Return | B24: =B19-B23 -> 0
A25: Project Profit (Loss) - based on target return | B25: =IF(B23=0,0,B24/B23) -> 0
A26: Net Project Return | B26: =B24-(B14*B3) -> 0
A27: Net Sales Proceeds | B27: =B24 -> 0
A28: Equity | B28: =B16 -> 0
A29: Return to Equity | B29: =IF(B28=0,0,B27/B28) -> 0
A30: Project Profit (Loss) - based on target return | B30: =B27-(B4*B28) -> 0
A32: Leveraged Performance Analysis
A33: Adjusted Financial Features
A34: Project Cost | B34: =B14 -> 0
A35: Public Leveraging | B35: =IF('Physical Inputs'!B38="Renter",0,IF('Basic Financial'!B33=0,C10,'Basic Financial'!B33*'Development Costs'!E39)) -> 0
A36: Adjusted Project Cost | B36: =B34-B35 -> 0
A37: Interim Financing Amount | B37: =B15 -> 0
A38: Developer Equity | B38: =IF((B36-B37)<0,1,B36-B37) -> 0
A39: Project Rate of Return
A40: Adjusted Project Cost | B40: =B36 -> 0
A41: Net Sales Proceeds | B41: =B19 -> 0
A42: Net Project Return | B42: =B41-B40 -> 0
A43: Project Rate of Return | B43: =IF(B40=0,0,B42/B40) -> 0
A44: Project Profit (Loss) | B44: =B42-(B40*B3) -> 0
A45: Equity Rate of Return
A46: Developer Equity | B46: =B38 -> 0
A47: Net Project Return | B47: =B42 -> 0
A48: Return to Equity | B48: =IFERROR(B47/B46,0) -> 0
A49: Equity Profit (Loss) | B49: =B47-(B46*B4) -> 0

Sheet Residential Rental
A1: ROI Template - Residential Rental
A3: Leveraging Tools | D3: Summary | E3: User override | F3: TOTAL | H3: Investment Targets and Performance
A4: Tax Credits net to project | D4: ='Gap Financing Options'!C116 -> 0 | F4: =IF('Basic Financial'!$B$33=0,D4,0) -> 0 | H4: Performance Indicator | L4: Target | M4: Actual | N4: NPV
A5: Fee Reductions | D5: ='Gap Financing Options'!C82 -> 0 | F5: =IF('Basic Financial'!$B$33=0,D5,0) -> 0 | H5: Cash-on-Cash After Year 3 | L5: ='Advanced Financial'!C64 -> 0.1 | M5: =G131 -> 0.0430533423
A6: Grants | D6: ='Gap Financing Options'!C92 -> 0 | F6: =IF('Basic Financial'!$B$33=0,D6,IF('Physical Inputs'!B38="Renter",'Basic Financial'!$B$33*'Development Costs'!E39,0)) -> 0 | H6: IRR on Project Cost (Unleveraged Return) | L6: ='Advanced Financial'!C65 -> 0.12 | M6: =N145 -> 0.06011283034 | N6: =N146 -> -2814623.994
A7: Total Development Offsets (Contributions to Equity) | F7: =SUM(F4:F6) -> 0 | H7: IRR on Investor Equity (Leveraged Return Before Tax) | L7: ='Advanced Financial'!C66 -> 0.25 | M7: =N153 -> 0.06083929084 | N7: =N154 -> -2165007.904
A8: Net Development Costs | F8: =(C56-F7) -> 9224579.448 | H8: Debt Service Coverage Ratio (Year 3) | L8: ='Advanced Financial'!C67 -> 1.25 | M8: =IFERROR(G125/G127,0) -> 1.398940915
H9: IRR on Public Participation | L9: =E110 -> 0.05 | M9: =N163 -> 0 | N9: =N164 -> 0
A13: Local Property Tax Rate Available for abatement | D13: ='Gap Financing Options'!C15 -> 0
A15: Net Operating Income Analysis
A16: Total Development Costs | D16: =IF('Physical Inputs'!B38="Renter",-'Development Costs'!D39,0) -> 9224579.448
A17: Project Feature | C17: Project | D17: Rent
A18: Number of units | C18: =IF('Physical Inputs'!B38="Renter",'Physical Outputs'!D28,0) -> 42.96619442
A19: Total project size, square feet | C19: =IF('Physical Inputs'!B38="Renter",'Physical Outputs'!C28,0) -> 39528.89886 | D19: =IF('Physical Inputs'!B38="Renter",'Basic Financial'!E49,0) -> 1425
A20: Other Income (vending, fines) | C20: =IF('Physical Inputs'!B38="Renter",'Advanced Financial'!C77,0) -> 0.1
A21: Less: Vacancy | C21: =IF('Physical Inputs'!B38="Renter",1-'Advanced Financial'!C30,0) -> 0.05
A22: Less: Concessions, Bad Debt | C22: =IF('Physical Inputs'!B38="Renter",'Advanced Financial'!C78,0) -> 0.02
A23: Less: Operating Costs (per unit) | C23: =IF('Physical Inputs'!B38="Renter",IFERROR((('Advanced Financial'!C79*E61)/'Physical Outputs'!D28),0),0) -> 2052
A25: Initial Project Value Analysis
A26: Property Value (Year 1)
A27: Going in Cap Rate | D27: =IF('Physical Inputs'!B38="Renter",'Advanced Financial'!C80,0) -> 0.06
A29: Debt Financing | D29: .
A30: Primary Debt
A31: Maximum LTV | D31: ='Advanced Financial'!C87 -> 0.6
A32: Rate | D32: ='Advanced Financial'!C88 -> 0.06
A33: Amortization Period, Years | D33: ='Advanced Financial'!C89 -> 30
A34: Public Leveraging Loan
A35: Maximum LTV | D35: =IF(D42=1,'Gap Financing Options'!C63,0) -> 0
A36: Rate | D36: =IF(D42=1,'Gap Financing Options'!C64,0) -> 0
A37: Amortization Period, Years | D37: =IF(D42=1,'Gap Financing Options'!C65,0) -> 0
A38: Public Participation
A39: Capital Recovery (from grants) | D39: =IF(D42=0,0,'Gap Financing Options'!C69) -> 0
A40: Annual Cash Throw Off | D40: =IF(D42=0,0,'Gap Financing Options'!C70) -> 0
A41: Share of Net Sales Price | D41: =IF(D42=0,0,'Gap Financing Options'!C71) -> 0
A42: Public Leveraging Loan Included in Analysis?(1=Yes; 0=No). | D42: ='Gap Financing Options'!C62 -> 0
A43: Target IRR | D43: ='Advanced Financial'!C68 -> 0.05
A45: Operating Statement
A46: GPI | C46: Escalation | D46: ='Advanced Financial'!C81 -> 0.03
A47: EGI
A48: Less: Operating Costs | C48: Escalation | D48: ='Advanced Financial'!C82 -> 0.03
A50: Project Value | D50: Year 1
A51: Terminal Cap Rate, Gross Sales Price | D51: ='Advanced Financial'!C83 -> 0.073
A52: Net Sales = Price Less Sales Cost | D52: ='Advanced Financial'!C84 -> 0.05
A55: Net Operating Income Analysis | C55: Project
A56: Total Development Costs | C56: =D16 -> 9224579.448
A57: Development Costs Per Unit | C57: =IFERROR(C56/C59,0) -> 214693.8907
A58: Project Feature | C58: Project | D58: Rent | E58: Total Rent | F58: Rent PSF
A59: Number of units | C59: =C18 -> 42.96619442
A60: Total project size, square feet | C60: =C19 -> 39528.89886 | D60: =D19 -> 1425 | E60: =C59*D60 -> 61226.82704 | F60: =IFERROR(E60/C60,0) -> 1.548913043
A61: Gross Potential Rent (GPI) | E61: =E60*12 -> 734721.9245
A62: Other Income (vending, fines) | C62: =C20 -> 0.1 | E62: =C62*E61 -> 73472.19245
A63: Total Income | E63: =E61+E62 -> 808194.117
A64: Less: Vacancy | C64: =C21 -> 0.05 | E64: =E63*C64 -> 40409.70585
A65: Less: Concessions, Bad Debt | C65: =C22 -> 0.02 | E65: =E63*C65 -> 16163.88234
A66: Effective Gross Income (EGI) | E66: =E63-E64-E65 -> 751620.5288
A67: Less: Operating Costs (per unit) | C67: =C23 -> 2052 | E67: =C67*C59 -> 88166.63094
A68: Net Operating Income | E68: =E66-E67 -> 663453.8979
A70: Initial Project Value Analysis
A71: CAP RATE (Yield to Costs) | C71: =IFERROR(E68/F8,0) -> 0.07192240054
A72: Debt Service | C72: =IFERROR(-E97,0) -> 398203.3046
A73: Cash Flow | C73: =E68-C72 -> 265250.5933
A74: Return on Equity (Year 1) | C74: =IFERROR(C73/E102,0) -> 0.07188690681
A75: Property Value (Year 1)
A76: NOI | C76: =E68 -> 663453.8979
A77: Going in Cap Rate | C77: =D27 -> 0.06
A78: Project Market Value | C78: =IFERROR(C76/C77,0) -> 11057564.96
A79: Net Project Value | C79: =C78-C56 -> 1832985.516
A81: Debt Financing
A82: Primary Debt
A83: Total Value | E83: =IF(C78>C56,C56,C78) -> 9224579.448
A84: Maximum LTV | D84: =D31 -> 0.6 | E84: =E83*D84 -> 5534747.669
A85: Imputed Loan Amount | E85: =E84 -> 5534747.669
A86: Rate | E86: =D32 -> 0.06
A87: Amortization Period, Years | E87: =D33 -> 30
A88: Annual Debt Service (Amortized) | E88: =IFERROR(PMT(E86/12,E87*12,E85)*12,0) -> -398203.3046
A89: Public Leveraging Loan
A90: Maximum LTV | D90: =IF(D42=1,D35,0) -> 0 | E90: =IF(AND('Physical Inputs'!B38="Renter",E83*D90>'Development Costs'!E39*'Gap Financing Options'!B73),'Development Costs'!E39*'Gap Financing Options'!B73,E83*D90) -> 0
A91: Imputed Loan Amount | E91: =IF(AND(D42=1,'Basic Financial'!B33=0),E90+'Gap Financing Options'!C68,0) -> 0
A92: Rate | E92: =IF(D42=1,D36,0) -> 0
A93: Amortization Period, Years | E93: =IF(D42=1,D37,0) -> 0
A94: Annual Debt Service (Amortized) | E94: =IFERROR(PMT(E92/12,E93*12,E91)*12,0) -> 0
A96: Total Debt | E96: =E85+E91 -> 5534747.669
A97: Total Debt Service | E97: =E88+E94 -> -398203.3046
A98: Summary
A99: Total Development Costs | E99: =C56 -> 9224579.448
A100: Equity Required | E100: =IF(E99-E96<0,1,E99-E96) -> 3689831.779
A101: Total Development Offsets (Contributions to Equity) | E101: =F7 -> 0
A102: Net Equity Required | E102: =E100-E101 -> 3689831.779
A103: Total Project Cost | E103: =E99 -> 9224579.448
A104: Total Project Cost After Development Offsets | E104: =E103-E101 -> 9224579.448
A105: Public Participation
A106: Capital Recovery (from grants) | E106: =D39 -> 0
A107: Annual Cash Throw Off | E107: =D40 -> 0
A108: Share of Net Sales Price | E108: =D41 -> 0
A109: Public Leveraging Loan Included in Analysis? | D109: (1=Yes; 0=No) | E109: =D42 -> 0
A110: Target IRR | E110: =D43 -> 0.05
A113: Operating Statement | E113: Year 1 | F113: Year 2 | G113: Year 3 | H113: Year 4 | I113: Year 5 | J113: Year 6 | K113: Year 7 | L113: Year 8 | M113: Year 9 | N113: Year 10
A114: GPI | C114: Escalation | D114: =D46 -> 0.03 | E114: =E61 -> 734721.9245 | F114: =E114*(1+$D$114) -> 756763.5823 | G114: 779466.4897 | H114: 802850.4844 | I114: 826935.999 | J114: 851744.0789 | K114: 877296.4013 | L114: 903615.2933 | M114: 930723.7521 | N114: 958645.4647
A115: Other Income | E115: =E62 -> 73472.19245 | F115: 75676.35823 | G115: 77946.64897 | H115: 80285.04844 | I115: 82693.5999 | J115: 85174.40789 | K115: 87729.64013 | L115: 90361.52933 | M115: 93072.37521 | N115: 95864.54647
A116: Total Income | E116: =E114+E115 -> 808194.117 | F116: 832439.9405 | G116: 857413.1387 | H116: 883135.5329 | I116: 909629.5989 | J116: 936918.4868 | K116: 965026.0414 | L116: 993976.8227 | M116: 1023796.127 | N116: 1054510.011
A117: Less: Vacancy | D117: =C64 -> 0.05 | E117: =IF('Advanced Financial'!B30>0,(1-'Advanced Financial'!B30)*E116,$D$117*E116) -> 161638.8234 | F117: =$D$117*F116 -> 41621.99702 | G117: 42870.65694 | H117: 44156.77664 | I117: 45481.47994 | J117: 46845.92434 | K117: 48251.30207 | L117: 49698.84113 | M117: 51189.80637 | N117: 52725.50056
A118: Less: Concessions, Market Loss | D118: =C65 -> 0.02 | E118: =$D$118*E116 -> 16163.88234 | F118: 16648.79881 | G118: 17148.26277 | H118: 17662.71066 | I118: 18192.59198 | J118: 18738.36974 | K118: 19300.52083 | L118: 19879.53645 | M118: 20475.92255 | N118: 21090.20022
A119: EGI | E119: =E116-E117-E118 -> 630391.4112 | F119: 774169.1447 | G119: 797394.219 | H119: 821316.0456 | I119: 845955.5269 | J119: 871334.1927 | K119: 897474.2185 | L119: 924398.4451 | M119: 952130.3984 | N119: 980694.3104
A120: Less: Operating Costs | C120: Escalation | D120: =D48 -> 0.03 | E120: =E67 -> 88166.63094 | F120: =E120*(1+$D$120) -> 90811.62987 | G120: 93535.97877 | H120: 96342.05813 | I120: 99232.31988 | J120: 102209.2895 | K120: 105275.5682 | L120: 108433.8352 | M120: 111686.8503 | N120: 115037.4558
A121: Less: Property Taxes | C121: Millage Rate | D121: ='Advanced Financial'!C60 -> 0.02 | E121: =$F8*$D121*'Advanced Financial'!$C61 -> 138368.6917 | F121: =$F8*$D121*'Advanced Financial'!$C61*(1+$D$114) -> 142519.7525 | G121: =$F8*$D121*'Advanced Financial'!$C61*(1+$D$114)^2 -> 146795.345 | H121: =$F8*$D121*'Advanced Financial'!$C61*(1+$D$114)^3 -> 151199.2054 | I121: =$F8*$D121*'Advanced Financial'!$C61*(1+$D$114)^4 -> 155735.1816 | J121: =$F8*$D121*'Advanced Financial'!$C61*(1+$D$114)^5 -> 160407.237 | K121: =$F8*$D121*'Advanced Financial'!$C61*(1+$D$114)^6 -> 165219.4541 | L121: =$F8*$D121*'Advanced Financial'!$C61*(1+$D$114)^7 -> 170176.0377 | M121: =$F8*$D121*'Advanced Financial'!$C61*(1+$D$114)^8 -> 175281.3189 | N121: =$F8*$D121*'Advanced Financial'!$C61*(1+$D$114)^9 -> 180539.7584
A122: Plus: Property Tax Abatement | E122: =$D$13*'Advanced Financial'!$C61*$F8*'Gap Financing Options'!C17 -> 0 | F122: =$D$13*'Advanced Financial'!$C61*$F8*(1+$D$114)*'Gap Financing Options'!C18 -> 0 | G122: =$D$13*'Advanced Financial'!$C61*$F8*(1+$D$114)^2*'Gap Financing Options'!C19 -> 0 | H122: =$D$13*'Advanced Financial'!$C61*$F8*(1+$D$114)^3*'Gap Financing Options'!C20 -> 0 | I122: =$D$13*'Advanced Financial'!$C61*$F8*(1+$D$114)^4*'Gap Financing Options'!C21 -> 0 | J122: =$D$13*'Advanced Financial'!$C61*$F8*(1+$D$114)^5*'Gap Financing Options'!C22 -> 0 | K122: =$D$13*'Advanced Financial'!$C61*$F8*(1+$D$114)^6*'Gap Financing Options'!C23 -> 0 | L122: =$D$13*'Advanced Financial'!$C61*$F8*(1+$D$114)^7*'Gap Financing Options'!C24 -> 0 | M122: =$D$13*'Advanced Financial'!$C61*$F8*(1+$D$114)^8*'Gap Financing Options'!C25 -> 0 | N122: =$D$13*'Advanced Financial'!$C61*$F8*(1+$D$114)^9*'Gap Financing Options'!C26 -> 0
A123: Cash Throw Off to Public Partner | E123: =-$E$107 -> 0 | F123: 0 | G123: 0 | H123: 0 | I123: 0 | J123: 0 | K123: 0 | L123: 0 | M123: 0 | N123: 0
A124: TIF + IRA Retainage of Taxes | E124: ='Gap Financing Options'!C48 -> 0 | F124: ='Gap Financing Options'!C49 -> 0 | G124: ='Gap Financing Options'!C50 -> 0 | H124: ='Gap Financing Options'!C51 -> 0 | I124: ='Gap Financing Options'!C52 -> 0 | J124: ='Gap Financing Options'!C53 -> 0 | K124: ='Gap Financing Options'!C54 -> 0 | L124: ='Gap Financing Options'!C55 -> 0 | M124: ='Gap Financing Options'!C56 -> 0 | N124: ='Gap Financing Options'!C57 -> 0
A125: NOI | E125: =E119-E121-E120+E122+E123+E124 -> 403856.0886 | F125: =F119-F121-F120+F122+F123+F124 -> 540837.7623 | G125: 557062.8952 | H125: 573774.782 | I125: 590988.0255 | J125: 608717.6663 | K125: 626979.1963 | L125: 645788.5721 | M125: 665162.2293 | N125: 685117.0962
A127: Less: Debt Service | E127: =-$E$97 -> 398203.3046 | F127: 398203.3046 | G127: 398203.3046 | H127: 398203.3046 | I127: 398203.3046 | J127: 398203.3046 | K127: 398203.3046 | L127: 398203.3046 | M127: 398203.3046 | N127: 398203.3046
A128: Net Cash Flow | E128: =E125-E127 -> 5652.784005 | F128: 142634.4577 | G128: 158859.5906 | H128: 175571.4775 | I128: 192784.7209 | J128: 210514.3617 | K128: 228775.8917 | L128: 247585.2676 | M128: 266958.9247 | N128: 286913.7916
A130: Cap Rate | E130: =IFERROR(E125/$E$99,0) -> 0.04378043366 | F130: 0.05863007255 | G130: 0.06038897473 | H130: 0.06220064397 | I130: 0.06406666329 | J130: 0.06598866319 | K130: 0.06796832308 | L130: 0.07000737278 | M130: 0.07210759396 | N130: 0.07427082178
A131: Cash on Cash Return (Equity Dividend Rate) | E131: =IFERROR(E128/$E$102,0) -> 0.001531989625 | F131: =IFERROR(F128/$E$102,0) -> 0.03865608685 | G131: 0.0430533423 | H131: 0.0475825154 | I131: 0.0522475637 | J131: 0.05705256345 | K131: 0.06200171318 | L131: 0.06709933742 | M131: 0.07234989037 | N131: =IFERROR(N128/$E$102,0) -> 0.07775795992
A133: Project Value | D133: Year 0 | E133: Year 1 | F133: Year 2 | G133: Year 3 | H133: Year 4 | I133: Year 5 | J133: Year 6 | K133: Year 7 | L133: Year 8 | M133: Year 9 | N133: Year 10
A134: Terminal Cap Rate, Gross Sales Price | E134: =D51 -> 0.073 | N134: =IFERROR(N125/E134,0) -> 9385165.701
A135: Net Sales = Price Less Sales Cost | E135: =D52 -> 0.05 | N135: =N134*(1-E135) -> 8915907.416
A136: Less Mortgage Balance | N136: =AA181 -> 4631793.712
A137: Net Sales Proceeds | N137: =N135-N136 -> 4284113.704
A140: IRR - Unleveraged (Project Cost) | D140: Year 0 | E140: Year 1 | F140: Year 2 | G140: Year 3 | H140: Year 4 | I140: Year 5 | J140: Year 6 | K140: Year 7 | L140: Year 8 | M140: Year 9 | N140: Year 10
A141: Total Investment | D141: =-E104 -> -9224579.448
A142: Project NOI | E142: =E125 -> 403856.0886 | F142: =F125 -> 540837.7623 | G142: 557062.8952 | H142: 573774.782 | I142: 590988.0255 | J142: 608717.6663 | K142: 626979.1963 | L142: 645788.5721 | M142: 665162.2293 | N142: 685117.0962
A143: Net Sales Price | N143: =N135 -> 8915907.416
A144: Total | D144: =SUM(D141:D143) -> -9224579.448 | E144: =SUM(E141:E143) -> 403856.0886 | F144: =SUM(F141:F143) -> 540837.7623 | G144: 557062.8952 | H144: 573774.782 | I144: 590988.0255 | J144: 608717.6663 | K144: 626979.1963 | L144: 645788.5721 | M144: 665162.2293 | N144: 9601024.512
A145: IRR - Project Cost | N145: =IFERROR(IRR(D144:N144),0) -> 0.06011283034
A146: NPV - Project Cost | N146: =NPV(L6,D144:N144) -> -2814623.994
A148: IRR - Leveraged (Before Tax) | D148: Year 0 | E148: Year 1 | F148: Year 2 | G148: Year 3 | H148: Year 4 | I148: Year 5 | J148: Year 6 | K148: Year 7 | L148: Year 8 | M148: Year 9 | N148: Year 10
A149: Original Investment (Equity) | D149: =-E102 -> -3689831.779
A150: Project Cash Flow | E150: =E128 -> 5652.784005 | F150: 142634.4577 | G150: 158859.5906 | H150: 175571.4775 | I150: 192784.7209 | J150: 210514.3617 | K150: 228775.8917 | L150: 247585.2676 | M150: 266958.9247 | N150: 286913.7916
A151: Net Sales Proceeds | N151: =N137 -> 4284113.704
A152: Total | D152: =SUM(D149:D151) -> -3689831.779 | E152: 5652.784005 | F152: 142634.4577 | G152: 158859.5906 | H152: 175571.4775 | I152: 192784.7209 | J152: =SUM(J149:J151) -> 210514.3617 | K152: =SUM(K149:K151) -> 228775.8917 | L152: =SUM(L149:L151) -> 247585.2676 | M152: =SUM(M149:M151) -> 266958.9247 | N152: =SUM(N149:N151) -> 4571027.496
A153: IRR - Equity | N153: =IFERROR(IRR(D152:N152),0) -> 0.06083929084
A154: NPV - Equity | N154: =NPV(L7,D152:N152) -> -2165007.904
A156: IRR - Public Participation | D156: Year 0 | E156: Year 1 | F156: Year 2 | G156: Year 3 | H156: Year 4 | I156: Year 5 | J156: Year 6 | K156: Year 7 | L156: Year 8 | M156: Year 9 | N156: Year 10
A157: Original Investment (Equity) | D157: =-(E106+(E91*E109)) -> 0
A158: Mezzanine Financing | E158: =-$E$94 -> 0 | F158: 0 | G158: 0 | H158: 0 | I158: 0 | J158: 0 | K158: 0 | L158: 0 | M158: 0 | N158: 0
A159: Cash Throw Off | E159: =$E$107 -> 0 | F159: 0 | G159: 0 | H159: 0 | I159: 0 | J159: 0 | K159: 0 | L159: 0 | M159: 0 | N159: 0
A160: Sale Proceeds | N160: =N151*E108 -> 0
A161: Loan Balance | N161: =V181*E109 -> 0
A162: Total | D162: =SUM(D157:D161) -> 0 | E162: =SUM(E157:E161) -> 0 | F162: 0 | G162: 0 | H162: 0 | I162: 0 | J162: 0 | K162: 0 | L162: 0 | M162: 0 | N162: 0
A163: IRR - Equity | N163: =IFERROR(IRR(D162:N162),0) -> 0
A164: NPV - Equity | N164: =NPV(E110,D162:N162) -> 0
A168: DEBT SERVICE MORTIZATION TABLES
A169: Primary Debt Amortization | F169: Low Interest Loan | K169: Total Debt Amortization | P169: Annual Debt Service Summary - Primary Debt | U169: Annual Debt Service Summary - Secondary Debt | Z169: Annual Debt Service Summary - Total Debt
A171: Period | B171: Balance | C171: Payment | D171: Interest | E171: Principal | F171: Period | G171: Balance | H171: Payment | I171: Interest | J171: Principal | K171: Period | L171: Balance | M171: Payment | N171: Interest | O171: Principal | P171: Year | Q171: Balance | R171: Payment | S171: Interest | T171: Principal | U171: Year | V171: Balance | W171: Payment | X171: Interest | Y171: Principal | Z171: Year | AA171: Balance | AB171: Payment | AC171: Interest | AD171: Principal
A172: 0 | B172: ='Residential Rental'!E85 -> 5534747.669 | F172: 0 | G172: ='Residential Rental'!E91 -> 0 | K172: 0 | L172: =B172+G172 -> 5534747.669 | P172: 1 | Q172: =B184 -> 5466780.319 | R172: =SUM(C173:C184) -> 398203.3046 | S172: =SUM(D173:D184) -> 330235.955 | T172: =SUM(E173:E184) -> 67967.34962 | U172: 1 | V172: =G184 -> 0 | W172: =SUM(H173:H184) -> 0 | X172: =SUM(I173:I184) -> 0 | Y172: =SUM(J173:J184) -> 0 | Z172: 1 | AA172: =Q172+V172 -> 5466780.319 | AB172: =R172+W172 -> 398203.3046 | AC172: =S172+X172 -> 330235.955 | AD172: =T172+Y172 -> 67967.34962
A173: 1 | B173: =B172-E173 -> 5529237.799 | C173: =-'Residential Rental'!$E$88/12 -> 33183.60871 | D173: ='Residential Rental'!$E$86/12*B172 -> 27673.73834 | E173: =C173-D173 -> 5509.87037 | F173: 1 | G173: =G172-J173 -> 0 | H173: =-'Residential Rental'!$E$94/12 -> 0 | I173: ='Residential Rental'!$E$92/12*G172 -> 0 | J173: =H173-I173 -> 0 | K173: 1 | L173: =G173+B173 -> 5529237.799 | M173: 33183.60871 | N173: 27673.73834 | O173: 5509.87037 | P173: 2 | Q173: =B196 -> 5394620.892 | R173: =SUM(C185:C196) -> 398203.3046 | S173: =SUM(D185:D196) -> 326043.8776 | T173: =SUM(E185:E196) -> 72159.42702 | U173: 2 | V173: =G196 -> 0 | W173: =SUM(H185:H196) -> 0 | X173: =SUM(I185:I196) -> 0 | Y173: =SUM(J185:J196) -> 0 | Z173: 2 | AA173: =Q173+V173 -> 5394620.892 | AB173: =R173+W173 -> 398203.3046 | AC173: =S173+X173 -> 326043.8776 | AD173: =T173+Y173 -> 72159.42702
A174: =A173+1 -> 2 | B174: 5523700.379 | C174: =-'Residential Rental'!$E$88/12 -> 33183.60871 | D174: ='Residential Rental'!$E$86/12*B173 -> 27646.18899 | E174: 5537.419722 | F174: =F173+1 -> 2 | G174: 0 | H174: =-'Residential Rental'!$E$94/12 -> 0 | I174: ='Residential Rental'!$E$92/12*G173 -> 0 | J174: 0 | K174: =K173+1 -> 2 | L174: 5523700.379 | M174: 33183.60871 | N174: 27646.18899 | O174: 5537.419722 | P174: 3 | Q174: =B208 -> 5318010.83 | R174: =SUM(C197:C208) -> 398203.3046 | S174: =SUM(D197:D208) -> 321593.242 | T174: =SUM(E197:E208) -> 76610.06259 | U174: 3 | V174: =G208 -> 0 | W174: =SUM(H197:H208) -> 0 | X174: =SUM(I197:I208) -> 0 | Y174: =SUM(J197:J208) -> 0 | Z174: 3 | AA174: 5318010.83 | AB174: 398203.3046 | AC174: 321593.242 | AD174: 76610.06259
A175: 3 | B175: 5518135.272 | C175: =-'Residential Rental'!$E$88/12 -> 33183.60871 | D175: ='Residential Rental'!$E$86/12*B174 -> 27618.50189 | E175: 5565.106821 | F175: 3 | G175: 0 | H175: =-'Residential Rental'!$E$94/12 -> 0 | I175: ='Residential Rental'!$E$92/12*G174 -> 0 | J175: 0 | K175: 3 | L175: 5518135.272 | M175: 33183.60871 | N175: 27618.50189 | O175: 5565.106821 | P175: 4 | Q175: =B220 -> 5236675.626 | R175: =SUM(C209:C220) -> 398203.3046 | S175: =SUM(D209:D220) -> 316868.101 | T175: =SUM(E209:E220) -> 81335.20361 | U175: 4 | V175: =G220 -> 0 | W175: =SUM(H209:H220) -> 0 | X175: =SUM(I209:I220) -> 0 | Y175: =SUM(J209:J220) -> 0 | Z175: 4 | AA175: 5236675.626 | AB175: 398203.3046 | AC175: 316868.101 | AD175: 81335.20361
A176: 4 | B176: 5512542.34 | C176: =-'Residential Rental'!$E$88/12 -> 33183.60871 | D176: ='Residential Rental'!$E$86/12*B175 -> 27590.67636 | E176: 5592.932355 | F176: 4 | G176: 0 | H176: =-'Residential Rental'!$E$94/12 -> 0 | I176: ='Residential Rental'!$E$92/12*G175 -> 0 | J176: 0 | K176: 4 | L176: 5512542.34 | M176: 33183.60871 | N176: 27590.67636 | O176: 5592.932355 | P176: 5 | Q176: =B232 -> 5150323.845 | R176: =SUM(C221:C232) -> 398203.3046 | S176: =SUM(D221:D232) -> 311851.5236 | T176: =SUM(E221:E232) -> 86351.781 | U176: 5 | V176: =G232 -> 0 | W176: =SUM(H221:H232) -> 0 | X176: =SUM(I221:I232) -> 0 | Y176: =SUM(J221:J232) -> 0 | Z176: 5 | AA176: 5150323.845 | AB176: 398203.3046 | AC176: 311851.5236 | AD176: 86351.781
A177: 5 | B177: 5506921.443 | C177: =-'Residential Rental'!$E$88/12 -> 33183.60871 | D177: ='Residential Rental'!$E$86/12*B176 -> 27562.7117 | E177: 5620.897017 | F177: 5 | G177: 0 | H177: =-'Residential Rental'!$E$94/12 -> 0 | I177: ='Residential Rental'!$E$92/12*G176 -> 0 | J177: 0 | K177: 5 | L177: 5506921.443 | M177: 33183.60871 | N177: 27562.7117 | O177: 5620.897017 | P177: 6 | Q177: =B244 -> 5058646.075 | R177: =SUM(C233:C244) -> 398203.3046 | S177: =SUM(D233:D244) -> 306525.5347 | T177: =SUM(E233:E244) -> 91677.7699 | U177: 6 | V177: =G244 -> 0 | W177: =SUM(H233:H244) -> 0 | X177: =SUM(I233:I244) -> 0 | Y177: =SUM(J233:J244) -> 0 | Z177: 6 | AA177: 5058646.075 | AB177: 398203.3046 | AC177: 306525.5347 | AD177: 91677.7699
A178: 6 | B178: 5501272.441 | C178: =-'Residential Rental'!$E$88/12 -> 33183.60871 | D178: ='Residential Rental'!$E$86/12*B177 -> 27534.60721 | E178: 5649.001502 | F178: 6 | G178: 0 | H178: =-'Residential Rental'!$E$94/12 -> 0 | I178: ='Residential Rental'!$E$92/12*G177 -> 0 | J178: 0 | K178: 6 | L178: 5501272.441 | M178: 33183.60871 | N178: 27534.60721 | O178: 5649.001502 | P178: 7 | Q178: =B256 -> 4961313.821 | R178: =SUM(C245:C256) -> 398203.3046 | S178: =SUM(D245:D256) -> 300871.0504 | T178: =SUM(E245:E256) -> 97332.25415 | U178: 7 | V178: =G256 -> 0 | W178: =SUM(H245:H256) -> 0 | X178: =SUM(I245:I256) -> 0 | Y178: =SUM(J245:J256) -> 0 | Z178: 7 | AA178: 4961313.821 | AB178: 398203.3046 | AC178: 300871.0504 | AD178: 97332.25415
A179: 7 | B179: 5495595.195 | C179: =-'Residential Rental'!$E$88/12 -> 33183.60871 | D179: ='Residential Rental'!$E$86/12*B178 -> 27506.36221 | E179: 5677.246509 | F179: 7 | G179: 0 | H179: =-'Residential Rental'!$E$94/12 -> 0 | I179: ='Residential Rental'!$E$92/12*G178 -> 0 | J179: 0 | K179: 7 | L179: 5495595.195 | M179: 33183.60871 | N179: 27506.36221 | O179: 5677.246509 | P179: 8 | Q179: =B268 -> 4857978.326 | R179: =SUM(C257:C268) -> 398203.3046 | S179: =SUM(D257:D268) -> 294867.81 | T179: =SUM(E257:E268) -> 103335.4946 | U179: 8 | V179: =G268 -> 0 | W179: =SUM(H257:H268) -> 0 | X179: =SUM(I257:I268) -> 0 | Y179: =SUM(J257:J268) -> 0 | Z179: 8 | AA179: 4857978.326 | AB179: 398203.3046 | AC179: 294867.81 | AD179: 103335.4946
A180: 8 | B180: 5489889.562 | C180: =-'Residential Rental'!$E$88/12 -> 33183.60871 | D180: ='Residential Rental'!$E$86/12*B179 -> 27477.97597 | E180: 5705.632742 | F180: 8 | G180: 0 | H180: =-'Residential Rental'!$E$94/12 -> 0 | I180: ='Residential Rental'!$E$92/12*G179 -> 0 | J180: 0 | K180: 8 | L180: 5489889.562 | M180: 33183.60871 | N180: 27477.97597 | O180: 5705.632742 | P180: 9 | Q180: =B280 -> 4748269.325 | R180: =SUM(C269:C280) -> 398203.3046 | S180: =SUM(D269:D280) -> 288494.3028 | T180: =SUM(E269:E280) -> 109709.0018 | U180: 9 | V180: =G280 -> 0 | W180: =SUM(H269:H280) -> 0 | X180: =SUM(I269:I280) -> 0 | Y180: =SUM(J269:J280) -> 0 | Z180: 9 | AA180: 4748269.325 | AB180: 398203.3046 | AC180: 288494.3028 | AD180: 109709.0018
A181: 9 | B181: 5484155.401 | C181: =-'Residential Rental'!$E$88/12 -> 33183.60871 | D181: ='Residential Rental'!$E$86/12*B180 -> 27449.44781 | E181: 5734.160905 | F181: 9 | G181: 0 | H181: =-'Residential Rental'!$E$94/12 -> 0 | I181: ='Residential Rental'!$E$92/12*G180 -> 0 | J181: 0 | K181: 9 | L181: 5484155.401 | M181: 33183.60871 | N181: 27449.44781 | O181: 5734.160905 | P181: 10 | Q181: =B292 -> 4631793.712 | R181: =SUM(C281:C292) -> 398203.3046 | S181: =SUM(D281:D292) -> 281727.6916 | T181: =SUM(E281:E292) -> 116475.613 | U181: 10 | V181: =G292 -> 0 | W181: =SUM(H281:H292) -> 0 | X181: =SUM(I281:I292) -> 0 | Y181: =SUM(J281:J292) -> 0 | Z181: 10 | AA181: =Q181+V181 -> 4631793.712 | AB181: 398203.3046 | AC181: 281727.6916 | AD181: =T181+Y181 -> 116475.613
A182: 10 | B182: 5478392.569 | C182: =-'Residential Rental'!$E$88/12 -> 33183.60871 | D182: ='Residential Rental'!$E$86/12*B181 -> 27420.777 | E182: 5762.83171 | F182: 10 | G182: 0 | H182: =-'Residential Rental'!$E$94/12 -> 0 | I182: ='Residential Rental'!$E$92/12*G181 -> 0 | J182: 0 | K182: 10 | L182: 5478392.569 | M182: 33183.60871 | N182: 27420.777 | O182: 5762.83171
A183: 11 | B183: 5472600.923 | C183: =-'Residential Rental'!$E$88/12 -> 33183.60871 | D183: ='Residential Rental'!$E$86/12*B182 -> 27391.96285 | E183: 5791.645869 | F183: 11 | G183: 0 | H183: =-'Residential Rental'!$E$94/12 -> 0 | I183: ='Residential Rental'!$E$92/12*G182 -> 0 | J183: 0 | K183: 11 | L183: 5472600.923 | M183: 33183.60871 | N183: 27391.96285 | O183: 5791.645869
A184: 12 | B184: 5466780.319 | C184: =-'Residential Rental'!$E$88/12 -> 33183.60871 | D184: ='Residential Rental'!$E$86/12*B183 -> 27363.00462 | E184: 5820.604098 | F184: 12 | G184: 0 | H184: =-'Residential Rental'!$E$94/12 -> 0 | I184: ='Residential Rental'!$E$92/12*G183 -> 0 | J184: 0 | K184: 12 | L184: 5466780.319 | M184: 33183.60871 | N184: 27363.00462 | O184: 5820.604098
A185: 13 | B185: 5460930.612 | C185: =-'Residential Rental'!$E$88/12 -> 33183.60871 | D185: ='Residential Rental'!$E$86/12*B184 -> 27333.9016 | E185: 5849.707118 | F185: 13 | G185: 0 | H185: =-'Residential Rental'!$E$94/12 -> 0 | I185: ='Residential Rental'!$E$92/12*G184 -> 0 | J185: 0 | K185: 13 | L185: 5460930.612 | M185: 33183.60871 | N185: 27333.9016 | O185: 5849.707118
A186: 14 | B186: 5455051.657 | C186: =-'Residential Rental'!$E$88/12 -> 33183.60871 | D186: ='Residential Rental'!$E$86/12*B185 -> 27304.65306 | E186: 5878.955654 | F186: 14 | G186: 0 | H186: =-'Residential Rental'!$E$94/12 -> 0 | I186: ='Residential Rental'!$E$92/12*G185 -> 0 | J186: 0 | K186: 14 | L186: 5455051.657 | M186: 33183.60871 | N186: 27304.65306 | O186: 5878.955654
A187: 15 | B187: 5449143.306 | C187: =-'Residential Rental'!$E$88/12 -> 33183.60871 | D187: ='Residential Rental'!$E$86/12*B186 -> 27275.25828 | E187: 5908.350432 | F187: 15 | G187: 0 | H187: =-'Residential Rental'!$E$94/12 -> 0 | I187: ='Residential Rental'!$E$92/12*G186 -> 0 | J187: 0 | K187: 15 | L187: 5449143.306 | M187: 33183.60871 | N187: 27275.25828 | O187: 5908.350432
A188: 16 | B188: 5443205.414 | C188: =-'Residential Rental'!$E$88/12 -> 33183.60871 | D188: ='Residential Rental'!$E$86/12*B187 -> 27245.71653 | E188: 5937.892184 | F188: 16 | G188: 0 | H188: =-'Residential Rental'!$E$94/12 -> 0 | I188: ='Residential Rental'!$E$92/12*G187 -> 0 | J188: 0 | K188: 16 | L188: 5443205.414 | M188: 33183.60871 | N188: 27245.71653 | O188: 5937.892184
A189: 17 | B189: 5437237.832 | C189: =-'Residential Rental'!$E$88/12 -> 33183.60871 | D189: ='Residential Rental'!$E$86/12*B188 -> 27216.02707 | E189: 5967.581645 | F189: 17 | G189: 0 | H189: =-'Residential Rental'!$E$94/12 -> 0 | I189: ='Residential Rental'!$E$92/12*G188 -> 0 | J189: 0 | K189: 17 | L189: 5437237.832 | M189: 33183.60871 | N189: 27216.02707 | O189: 5967.581645
A190: 18 | B190: 5431240.413 | C190: =-'Residential Rental'!$E$88/12 -> 33183.60871 | D190: ='Residential Rental'!$E$86/12*B189 -> 27186.18916 | E190: 5997.419554 | F190: 18 | G190: 0 | H190: =-'Residential Rental'!$E$94/12 -> 0 | I190: ='Residential Rental'!$E$92/12*G189 -> 0 | J190: 0 | K190: 18 | L190: 5431240.413 | M190: 33183.60871 | N190: 27186.18916 | O190: 5997.419554
A191: 19 | B191: 5425213.006 | C191: =-'Residential Rental'!$E$88/12 -> 33183.60871 | D191: ='Residential Rental'!$E$86/12*B190 -> 27156.20206 | E191: 6027.406651 | F191: 19 | G191: 0 | H191: =-'Residential Rental'!$E$94/12 -> 0 | I191: ='Residential Rental'!$E$92/12*G190 -> 0 | J191: 0 | K191: 19 | L191: 5425213.006 | M191: 33183.60871 | N191: 27156.20206 | O191: 6027.406651
A192: 20 | B192: 5419155.462 | C192: =-'Residential Rental'!$E$88/12 -> 33183.60871 | D192: ='Residential Rental'!$E$86/12*B191 -> 27126.06503 | E192: 6057.543685 | F192: 20 | G192: 0 | H192: =-'Residential Rental'!$E$94/12 -> 0 | I192: ='Residential Rental'!$E$92/12*G191 -> 0 | J192: 0 | K192: 20 | L192: 5419155.462 | M192: 33183.60871 | N192: 27126.06503 | O192: 6057.543685
A193: 21 | B193: 5413067.631 | C193: =-'Residential Rental'!$E$88/12 -> 33183.60871 | D193: ='Residential Rental'!$E$86/12*B192 -> 27095.77731 | E193: 6087.831403 | F193: 21 | G193: 0 | H193: =-'Residential Rental'!$E$94/12 -> 0 | I193: ='Residential Rental'!$E$92/12*G192 -> 0 | J193: 0 | K193: 21 | L193: 5413067.631 | M193: 33183.60871 | N193: 27095.77731 | O193: 6087.831403
A194: 22 | B194: 5406949.36 | C194: =-'Residential Rental'!$E$88/12 -> 33183.60871 | D194: ='Residential Rental'!$E$86/12*B193 -> 27065.33815 | E194: 6118.27056 | F194: 22 | G194: 0 | H194: =-'Residential Rental'!$E$94/12 -> 0 | I194: ='Residential Rental'!$E$92/12*G193 -> 0 | J194: 0 | K194: 22 | L194: 5406949.36 | M194: 33183.60871 | N194: 27065.33815 | O194: 6118.27056
A195: 23 | B195: 5400800.498 | C195: =-'Residential Rental'!$E$88/12 -> 33183.60871 | D195: ='Residential Rental'!$E$86/12*B194 -> 27034.7468 | E195: 6148.861913 | F195: 23 | G195: 0 | H195: =-'Residential Rental'!$E$94/12 -> 0 | I195: ='Residential Rental'!$E$92/12*G194 -> 0 | J195: 0 | K195: 23 | L195: 5400800.498 | M195: 33183.60871 | N195: 27034.7468 | O195: 6148.861913
A196: 24 | B196: 5394620.892 | C196: =-'Residential Rental'!$E$88/12 -> 33183.60871 | D196: ='Residential Rental'!$E$86/12*B195 -> 27004.00249 | E196: 6179.606222 | F196: 24 | G196: 0 | H196: =-'Residential Rental'!$E$94/12 -> 0 | I196: ='Residential Rental'!$E$92/12*G195 -> 0 | J196: 0 | K196: 24 | L196: 5394620.892 | M196: 33183.60871 | N196: 27004.00249 | O196: 6179.606222
A197: 25 | B197: 5388410.388 | C197: =-'Residential Rental'!$E$88/12 -> 33183.60871 | D197: ='Residential Rental'!$E$86/12*B196 -> 26973.10446 | E197: 6210.504253 | F197: 25 | G197: 0 | H197: =-'Residential Rental'!$E$94/12 -> 0 | I197: ='Residential Rental'!$E$92/12*G196 -> 0 | J197: 0 | K197: 25 | L197: 5388410.388 | M197: 33183.60871 | N197: 26973.10446 | O197: 6210.504253
A198: 26 | B198: 5382168.831 | C198: =-'Residential Rental'!$E$88/12 -> 33183.60871 | D198: ='Residential Rental'!$E$86/12*B197 -> 26942.05194 | E198: 6241.556775 | F198: 26 | G198: 0 | H198: =-'Residential Rental'!$E$94/12 -> 0 | I198: ='Residential Rental'!$E$92/12*G197 -> 0 | J198: 0 | K198: 26 | L198: 5382168.831 | M198: 33183.60871 | N198: 26942.05194 | O198: 6241.556775
A199: 27 | B199: 5375896.067 | C199: =-'Residential Rental'!$E$88/12 -> 33183.60871 | D199: ='Residential Rental'!$E$86/12*B198 -> 26910.84416 | E199: 6272.764559 | F199: 27 | G199: 0 | H199: =-'Residential Rental'!$E$94/12 -> 0 | I199: ='Residential Rental'!$E$92/12*G198 -> 0 | J199: 0 | K199: 27 | L199: 5375896.067 | M199: 33183.60871 | N199: 26910.84416 | O199: 6272.764559
A200: 28 | B200: 5369591.938 | C200: =-'Residential Rental'!$E$88/12 -> 33183.60871 | D200: ='Residential Rental'!$E$86/12*B199 -> 26879.48033 | E200: 6304.128381 | F200: 28 | G200: 0 | H200: =-'Residential Rental'!$E$94/12 -> 0 | I200: ='Residential Rental'!$E$92/12*G199 -> 0 | J200: 0 | K200: 28 | L200: 5369591.938 | M200: 33183.60871 | N200: 26879.48033 | O200: 6304.128381
A201: 29 | B201: 5363256.289 | C201: =-'Residential Rental'!$E$88/12 -> 33183.60871 | D201: ='Residential Rental'!$E$86/12*B200 -> 26847.95969 | E201: 6335.649023 | F201: 29 | G201: 0 | H201: =-'Residential Rental'!$E$94/12 -> 0 | I201: ='Residential Rental'!$E$92/12*G200 -> 0 | J201: 0 | K201: 29 | L201: 5363256.289 | M201: 33183.60871 | N201: 26847.95969 | O201: 6335.649023
A202: 30 | B202: 5356888.962 | C202: =-'Residential Rental'!$E$88/12 -> 33183.60871 | D202: ='Residential Rental'!$E$86/12*B201 -> 26816.28145 | E202: 6367.327268 | F202: 30 | G202: 0 | H202: =-'Residential Rental'!$E$94/12 -> 0 | I202: ='Residential Rental'!$E$92/12*G201 -> 0 | J202: 0 | K202: 30 | L202: 5356888.962 | M202: 33183.60871 | N202: 26816.28145 | O202: 6367.327268
A203: 31 | B203: 5350489.798 | C203: =-'Residential Rental'!$E$88/12 -> 33183.60871 | D203: ='Residential Rental'!$E$86/12*B202 -> 26784.44481 | E203: 6399.163905 | F203: 31 | G203: 0 | H203: =-'Residential Rental'!$E$94/12 -> 0 | I203: ='Residential Rental'!$E$92/12*G202 -> 0 | J203: 0 | K203: 31 | L203: 5350489.798 | M203: 33183.60871 | N203: 26784.44481 | O203: 6399.163905
A204: 32 | B204: 5344058.638 | C204: =-'Residential Rental'!$E$88/12 -> 33183.60871 | D204: ='Residential Rental'!$E$86/12*B203 -> 26752.44899 | E204: 6431.159724 | F204: 32 | G204: 0 | H204: =-'Residential Rental'!$E$94/12 -> 0 | I204: ='Residential Rental'!$E$92/12*G203 -> 0 | J204: 0 | K204: 32 | L204: 5344058.638 | M204: 33183.60871 | N204: 26752.44899 | O204: 6431.159724
A205: 33 | B205: 5337595.323 | C205: =-'Residential Rental'!$E$88/12 -> 33183.60871 | D205: ='Residential Rental'!$E$86/12*B204 -> 26720.29319 | E205: 6463.315523 | F205: 33 | G205: 0 | H205: =-'Residential Rental'!$E$94/12 -> 0 | I205: ='Residential Rental'!$E$92/12*G204 -> 0 | J205: 0 | K205: 33 | L205: 5337595.323 | M205: 33183.60871 | N205: 26720.29319 | O205: 6463.315523
A206: 34 | B206: 5331099.691 | C206: =-'Residential Rental'!$E$88/12 -> 33183.60871 | D206: ='Residential Rental'!$E$86/12*B205 -> 26687.97661 | E206: 6495.632101 | F206: 34 | G206: 0 | H206: =-'Residential Rental'!$E$94/12 -> 0 | I206: ='Residential Rental'!$E$92/12*G205 -> 0 | J206: 0 | K206: 34 | L206: 5331099.691 | M206: 33183.60871 | N206: 26687.97661 | O206: 6495.632101
A207: 35 | B207: 5324571.58 | C207: =-'Residential Rental'!$E$88/12 -> 33183.60871 | D207: ='Residential Rental'!$E$86/12*B206 -> 26655.49845 | E207: 6528.110261 | F207: 35 | G207: 0 | H207: =-'Residential Rental'!$E$94/12 -> 0 | I207: ='Residential Rental'!$E$92/12*G206 -> 0 | J207: 0 | K207: 35 | L207: 5324571.58 | M207: 33183.60871 | N207: 26655.49845 | O207: 6528.110261
A208: 36 | B208: 5318010.83 | C208: =-'Residential Rental'!$E$88/12 -> 33183.60871 | D208: ='Residential Rental'!$E$86/12*B207 -> 26622.8579 | E208: 6560.750812 | F208: 36 | G208: 0 | H208: =-'Residential Rental'!$E$94/12 -> 0 | I208: ='Residential Rental'!$E$92/12*G207 -> 0 | J208: 0 | K208: 36 | L208: 5318010.83 | M208: 33183.60871 | N208: 26622.8579 | O208: 6560.750812
A209: 37 | B209: 5311417.275 | C209: =-'Residential Rental'!$E$88/12 -> 33183.60871 | D209: ='Residential Rental'!$E$86/12*B208 -> 26590.05415 | E209: 6593.554566 | F209: 37 | G209: 0 | H209: =-'Residential Rental'!$E$94/12 -> 0 | I209: ='Residential Rental'!$E$92/12*G208 -> 0 | J209: 0 | K209: 37 | L209: 5311417.275 | M209: 33183.60871 | N209: 26590.05415 | O209: 6593.554566
A210: 38 | B210: 5304790.753 | C210: =-'Residential Rental'!$E$88/12 -> 33183.60871 | D210: ='Residential Rental'!$E$86/12*B209 -> 26557.08638 | E210: 6626.522339 | F210: 38 | G210: 0 | H210: =-'Residential Rental'!$E$94/12 -> 0 | I210: ='Residential Rental'!$E$92/12*G209 -> 0 | J210: 0 | K210: 38 | L210: 5304790.753 | M210: 33183.60871 | N210: 26557.08638 | O210: 6626.522339
A211: 39 | B211: 5298131.098 | C211: =-'Residential Rental'!$E$88/12 -> 33183.60871 | D211: ='Residential Rental'!$E$86/12*B210 -> 26523.95376 | E211: 6659.654951 | F211: 39 | G211: 0 | H211: =-'Residential Rental'!$E$94/12 -> 0 | I211: ='Residential Rental'!$E$92/12*G210 -> 0 | J211: 0 | K211: 39 | L211: 5298131.098 | M211: 33183.60871 | N211: 26523.95376 | O211: 6659.654951
A212: 40 | B212: 5291438.145 | C212: =-'Residential Rental'!$E$88/12 -> 33183.60871 | D212: ='Residential Rental'!$E$86/12*B211 -> 26490.65549 | E212: 6692.953226 | F212: 40 | G212: 0 | H212: =-'Residential Rental'!$E$94/12 -> 0 | I212: ='Residential Rental'!$E$92/12*G211 -> 0 | J212: 0 | K212: 40 | L212: 5291438.145 | M212: 33183.60871 | N212: 26490.65549 | O212: 6692.953226
A213: 41 | B213: 5284711.727 | C213: =-'Residential Rental'!$E$88/12 -> 33183.60871 | D213: ='Residential Rental'!$E$86/12*B212 -> 26457.19072 | E213: 6726.417992 | F213: 41 | G213: 0 | H213: =-'Residential Rental'!$E$94/12 -> 0 | I213: ='Residential Rental'!$E$92/12*G212 -> 0 | J213: 0 | K213: 41 | L213: 5284711.727 | M213: 33183.60871 | N213: 26457.19072 | O213: 6726.417992
A214: 42 | B214: 5277951.677 | C214: =-'Residential Rental'!$E$88/12 -> 33183.60871 | D214: ='Residential Rental'!$E$86/12*B213 -> 26423.55863 | E214: 6760.050082 | F214: 42 | G214: 0 | H214: =-'Residential Rental'!$E$94/12 -> 0 | I214: ='Residential Rental'!$E$92/12*G213 -> 0 | J214: 0 | K214: 42 | L214: 5277951.677 | M214: 33183.60871 | N214: 26423.55863 | O214: 6760.050082
A215: 43 | B215: 5271157.826 | C215: =-'Residential Rental'!$E$88/12 -> 33183.60871 | D215: ='Residential Rental'!$E$86/12*B214 -> 26389.75838 | E215: 6793.850332 | F215: 43 | G215: 0 | H215: =-'Residential Rental'!$E$94/12 -> 0 | I215: ='Residential Rental'!$E$92/12*G214 -> 0 | J215: 0 | K215: 43 | L215: 5271157.826 | M215: 33183.60871 | N215: 26389.75838 | O215: 6793.850332
A216: 44 | B216: 5264330.007 | C216: =-'Residential Rental'!$E$88/12 -> 33183.60871 | D216: ='Residential Rental'!$E$86/12*B215 -> 26355.78913 | E216: 6827.819584 | F216: 44 | G216: 0 | H216: =-'Residential Rental'!$E$94/12 -> 0 | I216: ='Residential Rental'!$E$92/12*G215 -> 0 | J216: 0 | K216: 44 | L216: 5264330.007 | M216: 33183.60871 | N216: 26355.78913 | O216: 6827.819584
A217: 45 | B217: 5257468.048 | C217: =-'Residential Rental'!$E$88/12 -> 33183.60871 | D217: ='Residential Rental'!$E$86/12*B216 -> 26321.65003 | E217: 6861.958682 | F217: 45 | G217: 0 | H217: =-'Residential Rental'!$E$94/12 -> 0 | I217: ='Residential Rental'!$E$92/12*G216 -> 0 | J217: 0 | K217: 45 | L217: 5257468.048 | M217: 33183.60871 | N217: 26321.65003 | O217: 6861.958682
A218: 46 | B218: 5250571.779 | C218: =-'Residential Rental'!$E$88/12 -> 33183.60871 | D218: ='Residential Rental'!$E$86/12*B217 -> 26287.34024 | E218: 6896.268475 | F218: 46 | G218: 0 | H218: =-'Residential Rental'!$E$94/12 -> 0 | I218: ='Residential Rental'!$E$92/12*G217 -> 0 | J218: 0 | K218: 46 | L218: 5250571.779 | M218: 33183.60871 | N218: 26287.34024 | O218: 6896.268475
A219: 47 | B219: 5243641.03 | C219: =-'Residential Rental'!$E$88/12 -> 33183.60871 | D219: ='Residential Rental'!$E$86/12*B218 -> 26252.8589 | E219: 6930.749818 | F219: 47 | G219: 0 | H219: =-'Residential Rental'!$E$94/12 -> 0 | I219: ='Residential Rental'!$E$92/12*G218 -> 0 | J219: 0 | K219: 47 | L219: 5243641.03 | M219: 33183.60871 | N219: 26252.8589 | O219: 6930.749818
A220: 48 | B220: 5236675.626 | C220: =-'Residential Rental'!$E$88/12 -> 33183.60871 | D220: ='Residential Rental'!$E$86/12*B219 -> 26218.20515 | E220: 6965.403567 | F220: 48 | G220: 0 | H220: =-'Residential Rental'!$E$94/12 -> 0 | I220: ='Residential Rental'!$E$92/12*G219 -> 0 | J220: 0 | K220: 48 | L220: 5236675.626 | M220: 33183.60871 | N220: 26218.20515 | O220: 6965.403567
A221: 49 | B221: 5229675.395 | C221: =-'Residential Rental'!$E$88/12 -> 33183.60871 | D221: ='Residential Rental'!$E$86/12*B220 -> 26183.37813 | E221: 7000.230584 | F221: 49 | G221: 0 | H221: =-'Residential Rental'!$E$94/12 -> 0 | I221: ='Residential Rental'!$E$92/12*G220 -> 0 | J221: 0 | K221: 49 | L221: 5229675.395 | M221: 33183.60871 | N221: 26183.37813 | O221: 7000.230584
A222: 50 | B222: 5222640.164 | C222: =-'Residential Rental'!$E$88/12 -> 33183.60871 | D222: ='Residential Rental'!$E$86/12*B221 -> 26148.37698 | E222: 7035.231737 | F222: 50 | G222: 0 | H222: =-'Residential Rental'!$E$94/12 -> 0 | I222: ='Residential Rental'!$E$92/12*G221 -> 0 | J222: 0 | K222: 50 | L222: 5222640.164 | M222: 33183.60871 | N222: 26148.37698 | O222: 7035.231737
A223: 51 | B223: 5215569.756 | C223: =-'Residential Rental'!$E$88/12 -> 33183.60871 | D223: ='Residential Rental'!$E$86/12*B222 -> 26113.20082 | E223: 7070.407896 | F223: 51 | G223: 0 | H223: =-'Residential Rental'!$E$94/12 -> 0 | I223: ='Residential Rental'!$E$92/12*G222 -> 0 | J223: 0 | K223: 51 | L223: 5215569.756 | M223: 33183.60871 | N223: 26113.20082 | O223: 7070.407896
A224: 52 | B224: 5208463.996 | C224: =-'Residential Rental'!$E$88/12 -> 33183.60871 | D224: ='Residential Rental'!$E$86/12*B223 -> 26077.84878 | E224: 7105.759936 | F224: 52 | G224: 0 | H224: =-'Residential Rental'!$E$94/12 -> 0 | I224: ='Residential Rental'!$E$92/12*G223 -> 0 | J224: 0 | K224: 52 | L224: 5208463.996 | M224: 33183.60871 | N224: 26077.84878 | O224: 7105.759936
A225: 53 | B225: 5201322.707 | C225: =-'Residential Rental'!$E$88/12 -> 33183.60871 | D225: ='Residential Rental'!$E$86/12*B224 -> 26042.31998 | E225: 7141.288735 | F225: 53 | G225: 0 | H225: =-'Residential Rental'!$E$94/12 -> 0 | I225: ='Residential Rental'!$E$92/12*G224 -> 0 | J225: 0 | K225: 53 | L225: 5201322.707 | M225: 33183.60871 | N225: 26042.31998 | O225: 7141.288735
A226: 54 | B226: 5194145.712 | C226: =-'Residential Rental'!$E$88/12 -> 33183.60871 | D226: ='Residential Rental'!$E$86/12*B225 -> 26006.61354 | E226: 7176.995179 | F226: 54 | G226: 0 | H226: =-'Residential Rental'!$E$94/12 -> 0 | I226: ='Residential Rental'!$E$92/12*G225 -> 0 | J226: 0 | K226: 54 | L226: 5194145.712 | M226: 33183.60871 | N226: 26006.61354 | O226: 7176.995179
A227: 55 | B227: 5186932.832 | C227: =-'Residential Rental'!$E$88/12 -> 33183.60871 | D227: ='Residential Rental'!$E$86/12*B226 -> 25970.72856 | E227: 7212.880155 | F227: 55 | G227: 0 | H227: =-'Residential Rental'!$E$94/12 -> 0 | I227: ='Residential Rental'!$E$92/12*G226 -> 0 | J227: 0 | K227: 55 | L227: 5186932.832 | M227: 33183.60871 | N227: 25970.72856 | O227: 7212.880155
... 305 more rows

Sheet Retail
A1: ROI Template - Retail
A3: Leveraging Tools | D3: Summary | E3: User override | F3: TOTAL | H3: Investment Targets and Performance
A4: Tax Credits net to project | D4: ='Gap Financing Options'!E116 -> 0 | E4: 0 | F4: =IF('Basic Financial'!$B$33=0,D4,0) -> 0 | H4: Performance Indicator | L4: Target | M4: Actual | N4: NPV
A5: Fee Reductions | D5: ='Gap Financing Options'!E82 -> 0 | E5: 0 | F5: =IF('Basic Financial'!$B$33=0,D5,0) -> 0 | H5: Cash-on-Cash After Year 3 | L5: ='Advanced Financial'!E64 -> 0.1 | M5: =G135 -> 0.1704816199
A6: Grants | D6: ='Gap Financing Options'!E92 -> 0 | E6: 0 | F6: =IF('Basic Financial'!$B$33=0,D6,('Basic Financial'!$B$33*'Development Costs'!E40)) -> 0 | H6: IRR on Project Cost (Unleveraged Return) | L6: ='Advanced Financial'!E65 -> 0.12 | M6: =N149 -> 0.1540730184 | N6: =N150 -> 505699.2073
A7: Total Development Offsets (Contributions to Equity) | F7: =SUM(F4:F6) -> 0 | H7: IRR on Investor Equity (Leveraged Return Before Tax) | L7: ='Advanced Financial'!E66 -> 0.25 | M7: =N157 -> 0.2457349404 | N7: =N158 -> -16143.14061
A8: Net Development Costs | F8: =(D57-F7) -> 2404942.194 | H8: Debt Service Coverage Ratio (Year 3) | L8: ='Advanced Financial'!E67 -> 1.25 | M8: =IFERROR(G129/G131,0) -> 2.579716923
H9: IRR on Public Participation | L9: =E112 -> 0.05 | M9: =N167 -> 0 | N9: =N168 -> 0
A13: Local Property Tax Rate Available for abatement | D13: ='Gap Financing Options'!E15 -> 0
A14: Local Sales Tax Rate Available for abatement | D14: ='Gap Financing Options'!E31 -> 0
A16: Net Operating Income Analysis
A17: Total Development Costs | D17: =-'Development Costs'!D40 -> 2404942.194
A18: Project Feature | D18: Project | E18: Rent
A19: Total project size, square feet | D19: ='Physical Outputs'!C29 -> 9882.224716 | E19: ='Basic Financial'!B55 -> 25 | F19: per square foot/year
A20: Projected Sales per Square Foot | E20: ='Advanced Financial'!E75 -> 350
A21: Other Income | D21: ='Advanced Financial'!E77 -> 0.02
A22: Less: Vacancy | D22: =1-'Advanced Financial'!C32 -> 0.05
A23: Less: Concessions, Bad Debt | D23: ='Advanced Financial'!E78 -> 0.02
A24: Less: Operating Costs/sq.ft. | D24: =IFERROR((('Advanced Financial'!E79*E63)/'Physical Outputs'!C29),0) -> 7.8
A26: Initial Project Value Analysis
A27: Property Value (Year 1)
A28: Going in Cap Rate | D28: ='Advanced Financial'!E80 -> 0.06
A30: Debt Financing
A31: Primary Debt
A32: Maximum LTV | D32: ='Advanced Financial'!E87 -> 0.6
A33: Rate | D33: ='Advanced Financial'!E88 -> 0.06
A34: Amortization Period, Years | D34: ='Advanced Financial'!E89 -> 30
A35: Public Leveraging Loan
A36: Maximum LTV | D36: =IF(D43=1,'Gap Financing Options'!E63,0) -> 0
A37: Rate | D37: =IF(D43=1,'Gap Financing Options'!E64,0) -> 0
A38: Amortization Period, Years | D38: =IF(D43=1,'Gap Financing Options'!E65,0) -> 0
A39: Public Participation
A40: Capital Investment | D40: =IF(D43=1,'Gap Financing Options'!E69,0) -> 0
A41: Annual Cash Throw Off | D41: =IF(D43=1,'Gap Financing Options'!E70,0) -> 0
A42: Share of Net Sales Price | D42: =IF(D43=1,'Gap Financing Options'!E71,0) -> 0
A43: Public Leveraging Loan Included in Analysis?(1=Yes; 0=No) | D43: ='Gap Financing Options'!E62 -> 0
A44: Target IRR | D44: ='Advanced Financial'!E68 -> 0.05
A46: Operating Statement
A47: GPI | C47: Escalation | D47: ='Advanced Financial'!E81 -> 0.03
A48: EGI
A49: Less: Operating Costs | C49: Escalation | D49: ='Advanced Financial'!E82 -> 0.03
A51: Project Value | D51: Year 1
A52: Terminal Cap Rate, Gross Sales Price | D52: ='Advanced Financial'!E83 -> 0.073
A53: Net Sales = Price Less Sales Cost | D53: ='Advanced Financial'!E84 -> 0.05
A56: Net Operating Income Analysis
A57: Total Development Costs | D57: =D17 -> 2404942.194
A58: Development Costs Per Sq Ft | D58: =IFERROR(D57/D60,0) -> 243.3604035
A59: Project Feature | D59: Project | E59: Rent
A60: Total project size, square feet | D60: =D19 -> 9882.224716 | E60: =E19 -> 25 | F60: per square foot/year
A61: Projected Sales per Square Foot | E61: =E20 -> 350
A62: Rental Income from Sales Assessment | E62: =(D60*E61)*'Advanced Financial'!E76 -> 138351.146
A63: Gross Potential Rent (GPI) | E63: =(D60*E60)+E62 -> 385406.7639
A64: Other Income | D64: =D21 -> 0.02 | E64: =D64*E63 -> 7708.135278
A65: Total Income | E65: =E63+E64 -> 393114.8992
A66: Less: Vacancy | D66: =D22 -> 0.05 | E66: =E65*D66 -> 19655.74496
A67: Less: Concessions, Bad Debt | D67: =D23 -> 0.02 | E67: =E65*D67 -> 7862.297984
A68: Effective Gross Income (EGI) | E68: =E65-E66-E67 -> 365596.8563
A69: Less: Operating Costs/sq.ft. | D69: =D24 -> 7.8 | E69: =D69*D60 -> 77081.35278
A70: Net Operating Income | E70: =E68-E69 -> 288515.5035
A72: Initial Project Value Analysis
A73: CAP RATE (Yield to Costs) | D73: =IFERROR(E70/F8,0) -> 0.1199677498
A74: Debt Service | D74: =IFERROR(-E99,0) -> 103815.6736
A75: Cash Flow | D75: =E70-D74 -> 184699.8299
A76: Return on Equity (Year 1) | D76: =IFERROR(D75/E104,0) -> 0.19200028
A77: Property Value (Year 1)
A78: NOI | D78: =E70 -> 288515.5035
A79: Going in Cap Rate | D79: =D28 -> 0.06
A80: Project Market Value | D80: =IFERROR(D78/D79,0) -> 4808591.725
A81: Net Project Value | D81: =D80-D57 -> 2403649.53
A83: Debt Financing
A84: Primary Debt
A85: Total Value | E85: =IF(D80>D57,D57,D80) -> 2404942.194
A86: Maximum LTV | D86: =D32 -> 0.6 | E86: =E85*D86 -> 1442965.317
A87: Imputed Loan Amount | E87: =E86 -> 1442965.317
A88: Rate | E88: =D33 -> 0.06
A89: Amortization Period, Years | E89: =D34 -> 30
A90: Annual Debt Service (Amortized) | E90: =IFERROR(PMT(E88/12,E89*12,E87)*12,0) -> -103815.6736
A91: Public Leveraging Loan
A92: Maximum LTV | D92: =IF(D43=1,D36,0) -> 0 | E92: =IF(E85*D92>'Gap Financing Options'!B73*'Development Costs'!E40,'Gap Financing Options'!B73*'Development Costs'!E40,E85*D92) -> 0
A93: Imputed Loan Amount | E93: =IF(AND(D43=1,'Basic Financial'!B33=0),E92+'Gap Financing Options'!E68,0) -> 0
A94: Rate | E94: =IF(D43=1,D37,0) -> 0
A95: Amortization Period, Years | E95: =IF(D43=1,D38,0) -> 0
A96: Annual Debt Service (Amortized) | E96: =IFERROR(PMT(E94/12,E95*12,E93)*12,0) -> 0
A98: Total Debt | E98: =E87+E93 -> 1442965.317
A99: Total Debt Service | E99: =E90+E96 -> -103815.6736
A100: Summary
A101: Total Development Costs | E101: =D57 -> 2404942.194
A102: Equity Required | E102: =IF(E101-E98<0,1,E101-E98) -> 961976.8777
A103: Total Development Offsets (Contributions to Equity) | E103: =F7 -> 0
A104: Net Equity Required | E104: =E102-E103 -> 961976.8777
A105: Total Project Cost | E105: =E101 -> 2404942.194
A106: Total Project Cost After Development Offsets | E106: =E105-E103 -> 2404942.194
A107: Public Participation
A108: Capital Investment | E108: =D40 -> 0
A109: Annual Cash Throw Off | E109: =D41 -> 0
A110: Share of Net Sales Price | E110: =D42 -> 0
A111: Public Leveraging Loan Included in Analysis? | D111: (1=Yes; 0=No) | E111: =D43 -> 0
A112: Target IRR | E112: =D44 -> 0.05
A116: Operating Statement | E116: Year 1 | F116: Year 2 | G116: Year 3 | H116: Year 4 | I116: Year 5 | J116: Year 6 | K116: Year 7 | L116: Year 8 | M116: Year 9 | N116: Year 10
A117: GPI | C117: Escalation | D117: =D47 -> 0.03 | E117: =E63 -> 385406.7639 | F117: =E117*(1+$D$117) -> 396968.9668 | G117: 408878.0358 | H117: 421144.3769 | I117: 433778.7082 | J117: 446792.0695 | K117: 460195.8316 | L117: 474001.7065 | M117: 488221.7577 | N117: 502868.4104
A118: Other Income | E118: =E64 -> 7708.135278 | F118: 7939.379337 | G118: 8177.560717 | H118: 8422.887538 | I118: 8675.574165 | J118: 8935.841389 | K118: 9203.916631 | L118: 9480.03413 | M118: 9764.435154 | N118: 10057.36821
A119: Total Income | E119: =E117+E118 -> 393114.8992 | F119: 404908.3462 | G119: 417055.5966 | H119: 429567.2645 | I119: 442454.2824 | J119: 455727.9109 | K119: 469399.7482 | L119: 483481.7406 | M119: 497986.1929 | N119: 512925.7786
A120: Less: Vacancy | D120: =D66 -> 0.05 | E120: =IF('Advanced Financial'!B32>0,(1-'Advanced Financial'!B32)*E119,$D$120*E119) -> 19655.74496 | F120: =$D$120*F119 -> 20245.41731 | G120: 20852.77983 | H120: 21478.36322 | I120: 22122.71412 | J120: 22786.39554 | K120: 23469.98741 | L120: 24174.08703 | M120: 24899.30964 | N120: 25646.28893
A121: Less: Concessions, Market Loss | D121: =D67 -> 0.02 | E121: =$D$121*E119 -> 7862.297984 | F121: 8098.166924 | G121: 8341.111931 | H121: 8591.345289 | I121: 8849.085648 | J121: 9114.558217 | K121: 9387.994964 | L121: 9669.634813 | M121: 9959.723857 | N121: 10258.51557
A122: EGI | E122: =E119-E120-E121 -> 365596.8563 | F122: 376564.7619 | G122: 387861.7048 | H122: 399497.5559 | I122: 411482.4826 | J122: 423826.9571 | K122: 436541.7658 | L122: 449638.0188 | M122: 463127.1594 | N122: 477020.9741
A123: Less: Operating Costs | C123: Escalation | D123: =D49 -> 0.03 | E123: =E69 -> 77081.35278 | F123: =E123*(1+$D$123) -> 79393.79337 | G123: 81775.60717 | H123: 84228.87538 | I123: 86755.74165 | J123: 89358.41389 | K123: 92039.16631 | L123: 94800.3413 | M123: 97644.35154 | N123: 100573.6821
A124: Less: Property Taxes | C124: Millage Rate | D124: ='Advanced Financial'!E60 -> 0.02 | E124: =$F8*$D124*'Advanced Financial'!$E61 -> 36074.13291 | F124: =$F8*$D124*'Advanced Financial'!$E61*(1+$D117) -> 37156.3569 | G124: =$F8*$D124*'Advanced Financial'!$E61*(1+$D117)^2 -> 38271.04761 | H124: =$F8*$D124*'Advanced Financial'!$E61*(1+$D117)^3 -> 39419.17904 | I124: =$F8*$D124*'Advanced Financial'!$E61*(1+$D117)^4 -> 40601.75441 | J124: =$F8*$D124*'Advanced Financial'!$E61*(1+$D117)^5 -> 41819.80704 | K124: =$F8*$D124*'Advanced Financial'!$E61*(1+$D117)^6 -> 43074.40125 | L124: =$F8*$D124*'Advanced Financial'!$E61*(1+$D117)^7 -> 44366.63329 | M124: =$F8*$D124*'Advanced Financial'!$E61*(1+$D117)^8 -> 45697.63229 | N124: =$F8*$D124*'Advanced Financial'!$E61*(1+$D117)^9 -> 47068.56126
A125: Plus: Property Tax Abatement | E125: =$D$13*'Advanced Financial'!$E61*$F8*'Gap Financing Options'!E17 -> 0 | F125: =$D$13*'Advanced Financial'!$E61*$F8*(1+$D$117)*'Gap Financing Options'!E18 -> 0 | G125: =$D$13*'Advanced Financial'!$E61*$F8*(1+$D$117)^2*'Gap Financing Options'!E19 -> 0 | H125: =$D$13*'Advanced Financial'!$E61*$F8*(1+$D$117)^3*'Gap Financing Options'!E20 -> 0 | I125: =$D$13*'Advanced Financial'!$E61*$F8*(1+$D$117)^4*'Gap Financing Options'!E21 -> 0 | J125: =$D$13*'Advanced Financial'!$E61*$F8*(1+$D$117)^5*'Gap Financing Options'!E22 -> 0 | K125: =$D$13*'Advanced Financial'!$E61*$F8*(1+$D$117)^6*'Gap Financing Options'!E23 -> 0 | L125: =$D$13*'Advanced Financial'!$E61*$F8*(1+$D$117)^7*'Gap Financing Options'!E24 -> 0 | M125: =$D$13*'Advanced Financial'!$E61*$F8*(1+$D$117)^8*'Gap Financing Options'!E25 -> 0 | N125: =$D$13*'Advanced Financial'!$E61*$F8*(1+$D$117)^9*'Gap Financing Options'!E26 -> 0
A126: Plus: Sales Tax Abatement | E126: =$D$14*$E$61*$D$60*'Gap Financing Options'!E33 -> 0 | F126: =$D$14*$E$61*$D$60*(1+$D$117)*'Gap Financing Options'!E34 -> 0 | G126: =$D$14*$E$61*$D$60*(1+$D$117)^2*'Gap Financing Options'!E35 -> 0 | H126: =$D$14*$E$61*$D$60*(1+$D$117)^3*'Gap Financing Options'!E36 -> 0 | I126: =$D$14*$E$61*$D$60*(1+$D$117)^4*'Gap Financing Options'!E37 -> 0 | J126: =$D$14*$E$61*$D$60*(1+$D$117)^5*'Gap Financing Options'!E38 -> 0 | K126: =$D$14*$E$61*$D$60*(1+$D$117)^6*'Gap Financing Options'!E39 -> 0 | L126: =$D$14*$E$61*$D$60*(1+$D$117)^7*'Gap Financing Options'!E40 -> 0 | M126: =$D$14*$E$61*$D$60*(1+$D$117)^8*'Gap Financing Options'!E41 -> 0 | N126: =$D$14*$E$61*$D$60*(1+$D$117)^9*'Gap Financing Options'!E42 -> 0
A127: Plus: Retainage of Property & Sales Taxes | E127: ='Gap Financing Options'!E48 -> 0 | F127: =('Gap Financing Options'!E49) -> 0 | G127: =('Gap Financing Options'!E50) -> 0 | H127: ='Gap Financing Options'!E51 -> 0 | I127: ='Gap Financing Options'!E52 -> 0 | J127: ='Gap Financing Options'!E53 -> 0 | K127: ='Gap Financing Options'!E54 -> 0 | L127: ='Gap Financing Options'!E55 -> 0 | M127: ='Gap Financing Options'!E56 -> 0 | N127: ='Gap Financing Options'!E57 -> 0
A128: Cash Throw Off to Public Partner | E128: =-$E$109 -> 0 | F128: 0 | G128: 0 | H128: 0 | I128: 0 | J128: 0 | K128: 0 | L128: 0 | M128: 0 | N128: 0
A129: NOI | E129: =E122-E124-E123+E125+E126+E127+E128 -> 252441.3706 | F129: =F122-F124-F123+F125+F126+F127+F128 -> 260014.6117 | G129: 267815.05 | H129: 275849.5015 | I129: 284124.9866 | J129: 292648.7362 | K129: 301428.1983 | L129: 310471.0442 | M129: 319785.1755 | N129: 329378.7308
A131: Less: Debt Service | E131: =-$E$99 -> 103815.6736 | F131: 103815.6736 | G131: 103815.6736 | H131: 103815.6736 | I131: 103815.6736 | J131: 103815.6736 | K131: 103815.6736 | L131: 103815.6736 | M131: 103815.6736 | N131: 103815.6736
A132: Net Cash Flow | E132: =E129-E131 -> 148625.697 | F132: 156198.9381 | G132: 163999.3764 | H132: 172033.8279 | I132: 180309.313 | J132: 188833.0626 | K132: 197612.5247 | L132: 206655.3706 | M132: 215969.5019 | N132: 225563.0572
A134: Cap Rate | E134: =IFERROR(E129/$E$101,0) -> 0.1049677498 | F134: 0.1081167823 | G134: 0.1113602858 | H134: 0.1147010943 | I134: 0.1181421272 | J134: 0.121686391 | K134: 0.1253369827 | L134: 0.1290970922 | M134: 0.132970005 | N134: 0.1369591051
A135: Cash on Cash Return (Equity Dividend Rate) | E135: =IFERROR(E132/$E$104,0) -> 0.15450028 | F135: =IFERROR(F132/$E$104,0) -> 0.1623728612 | G135: 0.1704816199 | H135: 0.1788336413 | I135: 0.1874362234 | J135: 0.196296883 | K135: 0.2054233623 | L135: 0.214823636 | M135: 0.2245059179 | N135: 0.2344786683
A137: Project Value | D137: Year 0 | E137: Year 1 | F137: Year 2 | G137: Year 3 | H137: Year 4 | I137: Year 5 | J137: Year 6 | K137: Year 7 | L137: Year 8 | M137: Year 9 | N137: Year 10
A138: Terminal Cap Rate, Gross Sales Price | E138: =D52 -> 0.073 | N138: =IFERROR(N129/E138,0) -> 4512037.408
A139: Net Sales = Price Less Sales Cost | E139: =D53 -> 0.05 | N139: =N138*(1-E139) -> 4286435.538
A140: Less Mortgage Balance | N140: =AA185 -> 1207555.986
A141: Net Sales Proceeds | N141: =N139-N140 -> 3078879.552
A144: IRR - Unleveraged (Project Cost) | D144: Year 0 | E144: Year 1 | F144: Year 2 | G144: Year 3 | H144: Year 4 | I144: Year 5 | J144: Year 6 | K144: Year 7 | L144: Year 8 | M144: Year 9 | N144: Year 10
A145: Total Investment | D145: =-E106 -> -2404942.194
A146: Project NOI | E146: =E129 -> 252441.3706 | F146: =F129 -> 260014.6117 | G146: 267815.05 | H146: 275849.5015 | I146: 284124.9866 | J146: 292648.7362 | K146: 301428.1983 | L146: 310471.0442 | M146: 319785.1755 | N146: 329378.7308
A147: Net Sales Price | N147: =N139 -> 4286435.538
A148: Total | D148: =SUM(D145:D147) -> -2404942.194 | E148: =SUM(E145:E147) -> 252441.3706 | F148: =SUM(F145:F147) -> 260014.6117 | G148: 267815.05 | H148: 275849.5015 | I148: 284124.9866 | J148: 292648.7362 | K148: 301428.1983 | L148: 310471.0442 | M148: 319785.1755 | N148: 4615814.269
A149: IRR - Project Cost | N149: =IFERROR(IRR(D148:N148),0) -> 0.1540730184
A150: NPV - Project Cost | N150: =NPV(L6,D148:N148) -> 505699.2073
A152: IRR - Leveraged (Before Tax) | D152: Year 0 | E152: Year 1 | F152: Year 2 | G152: Year 3 | H152: Year 4 | I152: Year 5 | J152: Year 6 | K152: Year 7 | L152: Year 8 | M152: Year 9 | N152: Year 10
A153: Original Investment (Equity) | D153: =-E104 -> -961976.8777
A154: Project Cash Flow | E154: =E132 -> 148625.697 | F154: 156198.9381 | G154: 163999.3764 | H154: 172033.8279 | I154: 180309.313 | J154: 188833.0626 | K154: 197612.5247 | L154: 206655.3706 | M154: 215969.5019 | N154: 225563.0572
A155: Net Sales Proceeds | N155: =N141 -> 3078879.552
A156: Total | D156: =SUM(D153:D155) -> -961976.8777 | E156: 148625.697 | F156: 156198.9381 | G156: 163999.3764 | H156: 172033.8279 | I156: 180309.313 | J156: 188833.0626 | K156: 197612.5247 | L156: 206655.3706 | M156: 215969.5019 | N156: 3304442.609
A157: IRR - Equity | N157: =IFERROR(IRR(D156:N156),0) -> 0.2457349404
A158: NPV - Equity | N158: =NPV(L7,D156:N156) -> -16143.14061
A160: IRR - Public Participation | D160: Year 0 | E160: Year 1 | F160: Year 2 | G160: Year 3 | H160: Year 4 | I160: Year 5 | J160: Year 6 | K160: Year 7 | L160: Year 8 | M160: Year 9 | N160: Year 10
A161: Original Investment (Equity) | D161: =-(E108+(E93*E111)) -> 0
A162: Mezzanine Financing | E162: =-$E$96 -> 0 | F162: 0 | G162: 0 | H162: 0 | I162: 0 | J162: 0 | K162: 0 | L162: 0 | M162: 0 | N162: 0
A163: Cash Throw Off | E163: =$E$109 -> 0 | F163: 0 | G163: 0 | H163: 0 | I163: 0 | J163: 0 | K163: 0 | L163: 0 | M163: 0 | N163: 0
A164: Sale Proceeds | N164: =N155*E110 -> 0
A165: Loan Balance | N165: =V185*E111 -> 0
A166: Total | D166: =SUM(D161:D165) -> 0 | E166: =SUM(E161:E165) -> 0 | F166: 0 | G166: 0 | H166: 0 | I166: 0 | J166: 0 | K166: 0 | L166: 0 | M166: 0 | N166: 0
A167: IRR - Equity | N167: =IFERROR(IRR(D166:N166),0) -> 0
A168: NPV - Equity | N168: =NPV(E112,D166:N166) -> 0
A172: DEBT SERVICE MORTIZATION TABLES
A173: Primary Debt Amortization | F173: Low Interest Loan | K173: Total Debt Amortization | P173: Annual Debt Service Summary - Primary Debt | U173: Annual Debt Service Summary - Secondary Debt | Z173: Annual Debt Service Summary - Total Debt
A175: Period | B175: Balance | C175: Payment | D175: Interest | E175: Principal | F175: Period | G175: Balance | H175: Payment | I175: Interest | J175: Principal | K175: Period | L175: Balance | M175: Payment | N175: Interest | O175: Principal | P175: Year | Q175: Balance | R175: Payment | S175: Interest | T175: Principal | U175: Year | V175: Balance | W175: Payment | X175: Interest | Y175: Principal | Z175: Year | AA175: Balance | AB175: Payment | AC175: Interest | AD175: Principal
A176: 0 | B176: =E87 -> 1442965.317 | F176: 0 | G176: =E93 -> 0 | K176: 0 | L176: =B176+G176 -> 1442965.317 | P176: 1 | Q176: =B188 -> 1425245.533 | R176: =SUM(C177:C188) -> 103815.6736 | S176: =SUM(D177:D188) -> 86095.89051 | T176: =SUM(E177:E188) -> 17719.78309 | U176: 1 | V176: =G188 -> 0 | W176: =SUM(H177:H188) -> 0 | X176: =SUM(I177:I188) -> 0 | Y176: =SUM(J177:J188) -> 0 | Z176: 1 | AA176: =Q176+V176 -> 1425245.533 | AB176: =R176+W176 -> 103815.6736 | AC176: =S176+X176 -> 86095.89051 | AD176: =T176+Y176 -> 17719.78309
A177: 1 | B177: =B176-E177 -> 1441528.837 | C177: =-$E$90/12 -> 8651.306133 | D177: =B176*$E$88/12 -> 7214.826583 | E177: =C177-D177 -> 1436.47955 | F177: 1 | G177: =G176-J177 -> 0 | H177: =-$E$96/12 -> 0 | I177: =G176*$E$94/12 -> 0 | J177: =H177-I177 -> 0 | K177: 1 | L177: =G177+B177 -> 1441528.837 | M177: 8651.306133 | N177: 7214.826583 | O177: 1436.47955 | P177: 2 | Q177: =B200 -> 1406432.833 | R177: =SUM(C189:C200) -> 103815.6736 | S177: =SUM(D189:D200) -> 85002.97306 | T177: =SUM(E189:E200) -> 18812.70054 | U177: 2 | V177: =G200 -> 0 | W177: =SUM(H189:H200) -> 0 | X177: =SUM(I189:I200) -> 0 | Y177: =SUM(J189:J200) -> 0 | Z177: 2 | AA177: =Q177+V177 -> 1406432.833 | AB177: =R177+W177 -> 103815.6736 | AC177: =S177+X177 -> 85002.97306 | AD177: =T177+Y177 -> 18812.70054
A178: =A177+1 -> 2 | B178: 1440085.175 | C178: 8651.306133 | D178: =B177*$E$88/12 -> 7207.644185 | E178: 1443.661948 | F178: =F177+1 -> 2 | G178: 0 | H178: 0 | I178: 0 | J178: 0 | K178: =K177+1 -> 2 | L178: 1440085.175 | M178: 8651.306133 | N178: 7207.644185 | O178: 1443.661948 | P178: 3 | Q178: =B212 -> 1386459.806 | R178: =SUM(C201:C212) -> 103815.6736 | S178: =SUM(D201:D212) -> 83842.64685 | T178: =SUM(E201:E212) -> 19973.02674 | U178: 3 | V178: =G212 -> 0 | W178: =SUM(H201:H212) -> 0 | X178: =SUM(I201:I212) -> 0 | Y178: =SUM(J201:J212) -> 0 | Z178: 3 | AA178: 1386459.806 | AB178: 103815.6736 | AC178: 83842.64685 | AD178: 19973.02674
A179: 3 | B179: 1438634.295 | C179: 8651.306133 | D179: =B178*$E$88/12 -> 7200.425875 | E179: 1450.880258 | F179: 3 | G179: 0 | H179: 0 | I179: 0 | J179: 0 | K179: 3 | L179: 1438634.295 | M179: 8651.306133 | N179: 7200.425875 | O179: 1450.880258 | P179: 4 | Q179: =B224 -> 1365254.887 | R179: =SUM(C213:C224) -> 103815.6736 | S179: =SUM(D213:D224) -> 82610.75427 | T179: =SUM(E213:E224) -> 21204.91933 | U179: 4 | V179: =G224 -> 0 | W179: =SUM(H213:H224) -> 0 | X179: =SUM(I213:I224) -> 0 | Y179: =SUM(J213:J224) -> 0 | Z179: 4 | AA179: 1365254.887 | AB179: 103815.6736 | AC179: 82610.75427 | AD179: 21204.91933
A180: 4 | B180: 1437176.16 | C180: 8651.306133 | D180: =B179*$E$88/12 -> 7193.171474 | E180: 1458.134659 | F180: 4 | G180: 0 | H180: 0 | I180: 0 | J180: 0 | K180: 4 | L180: 1437176.16 | M180: 8651.306133 | N180: 7193.171474 | O180: 1458.134659 | P180: 5 | Q180: =B236 -> 1342742.094 | R180: =SUM(C225:C236) -> 103815.6736 | S180: =SUM(D225:D236) -> 81302.88124 | T180: =SUM(E225:E236) -> 22512.79235 | U180: 5 | V180: =G236 -> 0 | W180: =SUM(H225:H236) -> 0 | X180: =SUM(I225:I236) -> 0 | Y180: =SUM(J225:J236) -> 0 | Z180: 5 | AA180: 1342742.094 | AB180: 103815.6736 | AC180: 81302.88124 | AD180: 22512.79235
A181: 5 | B181: 1435710.735 | C181: 8651.306133 | D181: 7185.880801 | E181: 1465.425332 | F181: 5 | G181: 0 | H181: 0 | I181: 0 | J181: 0 | K181: 5 | L181: 1435710.735 | M181: 8651.306133 | N181: 7185.880801 | O181: 1465.425332 | P181: 6 | Q181: =B248 -> 1318840.762 | R181: =SUM(C237:C248) -> 103815.6736 | S181: =SUM(D237:D248) -> 79914.34147 | T181: =SUM(E237:E248) -> 23901.33213 | U181: 6 | V181: =G248 -> 0 | W181: =SUM(H237:H248) -> 0 | X181: =SUM(I237:I248) -> 0 | Y181: =SUM(J237:J248) -> 0 | Z181: 6 | AA181: 1318840.762 | AB181: 103815.6736 | AC181: 79914.34147 | AD181: 23901.33213
A182: 6 | B182: 1434237.982 | C182: 8651.306133 | D182: 7178.553674 | E182: 1472.752459 | F182: 6 | G182: 0 | H182: 0 | I182: 0 | J182: 0 | K182: 6 | L182: 1434237.982 | M182: 8651.306133 | N182: 7178.553674 | O182: 1472.752459 | P182: 7 | Q182: =B260 -> 1293465.248 | R182: =SUM(C249:C260) -> 103815.6736 | S182: =SUM(D249:D260) -> 78440.15961 | T182: =SUM(E249:E260) -> 25375.51399 | U182: 7 | V182: =G260 -> 0 | W182: =SUM(H249:H260) -> 0 | X182: =SUM(I249:I260) -> 0 | Y182: =SUM(J249:J260) -> 0 | Z182: 7 | AA182: 1293465.248 | AB182: 103815.6736 | AC182: 78440.15961 | AD182: 25375.51399
A183: 7 | B183: 1432757.866 | C183: 8651.306133 | D183: 7171.189912 | E183: 1480.116221 | F183: 7 | G183: 0 | H183: 0 | I183: 0 | J183: 0 | K183: 7 | L183: 1432757.866 | M183: 8651.306133 | N183: 7171.189912 | O183: 1480.116221 | P183: 8 | Q183: =B272 -> 1266524.628 | R183: =SUM(C261:C272) -> 103815.6736 | S183: =SUM(D261:D272) -> 76875.05343 | T183: =SUM(E261:E272) -> 26940.62017 | U183: 8 | V183: =G272 -> 0 | W183: =SUM(H261:H272) -> 0 | X183: =SUM(I261:I272) -> 0 | Y183: =SUM(J261:J272) -> 0 | Z183: 8 | AA183: 1266524.628 | AB183: 103815.6736 | AC183: 76875.05343 | AD183: 26940.62017
A184: 8 | B184: 1431270.349 | C184: 8651.306133 | D184: 7163.789331 | E184: 1487.516803 | F184: 8 | G184: 0 | H184: 0 | I184: 0 | J184: 0 | K184: 8 | L184: 1431270.349 | M184: 8651.306133 | N184: 7163.789331 | O184: 1487.516803 | P184: 9 | Q184: =B284 -> 1237922.37 | R184: =SUM(C273:C284) -> 103815.6736 | S184: =SUM(D273:D284) -> 75213.41492 | T184: =SUM(E273:E284) -> 28602.25867 | U184: 9 | V184: =G284 -> 0 | W184: =SUM(H273:H284) -> 0 | X184: =SUM(I273:I284) -> 0 | Y184: =SUM(J273:J284) -> 0 | Z184: 9 | AA184: 1237922.37 | AB184: 103815.6736 | AC184: 75213.41492 | AD184: 28602.25867
A185: 9 | B185: 1429775.395 | C185: 8651.306133 | D185: 7156.351747 | E185: 1494.954387 | F185: 9 | G185: 0 | H185: 0 | I185: 0 | J185: 0 | K185: 9 | L185: 1429775.395 | M185: 8651.306133 | N185: 7156.351747 | O185: 1494.954387 | P185: 10 | Q185: =B296 -> 1207555.986 | R185: =SUM(C285:C296) -> 103815.6736 | S185: =SUM(D285:D296) -> 73449.2902 | T185: =SUM(E285:E296) -> 30366.3834 | U185: 10 | V185: =G296 -> 0 | W185: =SUM(H285:H296) -> 0 | X185: =SUM(I285:I296) -> 0 | Y185: =SUM(J285:J296) -> 0 | Z185: 10 | AA185: =Q185+V185 -> 1207555.986 | AB185: =R185+W185 -> 103815.6736 | AC185: =S185+X185 -> 73449.2902 | AD185: =T185+Y185 -> 30366.3834
A186: 10 | B186: 1428272.966 | C186: 8651.306133 | D186: 7148.876975 | E186: 1502.429158 | F186: 10 | G186: 0 | H186: 0 | I186: 0 | J186: 0 | K186: 10 | L186: 1428272.966 | M186: 8651.306133 | N186: 7148.876975 | O186: 1502.429158
A187: 11 | B187: 1426763.024 | C187: 8651.306133 | D187: 7141.364829 | E187: 1509.941304 | F187: 11 | G187: 0 | H187: 0 | I187: 0 | J187: 0 | K187: 11 | L187: 1426763.024 | M187: 8651.306133 | N187: 7141.364829 | O187: 1509.941304
A188: 12 | B188: 1425245.533 | C188: 8651.306133 | D188: 7133.815122 | E188: 1517.491011 | F188: 12 | G188: 0 | H188: 0 | I188: 0 | J188: 0 | K188: 12 | L188: 1425245.533 | M188: 8651.306133 | N188: 7133.815122 | O188: 1517.491011
A189: 13 | B189: 1423720.455 | C189: 8651.306133 | D189: 7126.227667 | E189: 1525.078466 | F189: 13 | G189: 0 | H189: 0 | I189: 0 | J189: 0 | K189: 13 | L189: 1423720.455 | M189: 8651.306133 | N189: 7126.227667 | O189: 1525.078466
A190: 14 | B190: 1422187.751 | C190: 8651.306133 | D190: 7118.602275 | E190: 1532.703858 | F190: 14 | G190: 0 | H190: 0 | I190: 0 | J190: 0 | K190: 14 | L190: 1422187.751 | M190: 8651.306133 | N190: 7118.602275 | O190: 1532.703858
A191: 15 | B191: 1420647.384 | C191: 8651.306133 | D191: 7110.938756 | E191: 1540.367377 | F191: 15 | G191: 0 | H191: 0 | I191: 0 | J191: 0 | K191: 15 | L191: 1420647.384 | M191: 8651.306133 | N191: 7110.938756 | O191: 1540.367377
A192: 16 | B192: 1419099.315 | C192: 8651.306133 | D192: 7103.236919 | E192: 1548.069214 | F192: 16 | G192: 0 | H192: 0 | I192: 0 | J192: 0 | K192: 16 | L192: 1419099.315 | M192: 8651.306133 | N192: 7103.236919 | O192: 1548.069214
A193: 17 | B193: 1417543.505 | C193: 8651.306133 | D193: 7095.496573 | E193: 1555.80956 | F193: 17 | G193: 0 | H193: 0 | I193: 0 | J193: 0 | K193: 17 | L193: 1417543.505 | M193: 8651.306133 | N193: 7095.496573 | O193: 1555.80956
A194: 18 | B194: 1415979.916 | C194: 8651.306133 | D194: 7087.717525 | E194: 1563.588608 | F194: 18 | G194: 0 | H194: 0 | I194: 0 | J194: 0 | K194: 18 | L194: 1415979.916 | M194: 8651.306133 | N194: 7087.717525 | O194: 1563.588608
A195: 19 | B195: 1414408.51 | C195: 8651.306133 | D195: 7079.899582 | E195: 1571.406551 | F195: 19 | G195: 0 | H195: 0 | I195: 0 | J195: 0 | K195: 19 | L195: 1414408.51 | M195: 8651.306133 | N195: 7079.899582 | O195: 1571.406551
A196: 20 | B196: 1412829.246 | C196: 8651.306133 | D196: 7072.042549 | E196: 1579.263584 | F196: 20 | G196: 0 | H196: 0 | I196: 0 | J196: 0 | K196: 20 | L196: 1412829.246 | M196: 8651.306133 | N196: 7072.042549 | O196: 1579.263584
A197: 21 | B197: 1411242.086 | C197: 8651.306133 | D197: 7064.146231 | E197: 1587.159902 | F197: 21 | G197: 0 | H197: 0 | I197: 0 | J197: 0 | K197: 21 | L197: 1411242.086 | M197: 8651.306133 | N197: 7064.146231 | O197: 1587.159902
A198: 22 | B198: 1409646.991 | C198: 8651.306133 | D198: 7056.210432 | E198: 1595.095701 | F198: 22 | G198: 0 | H198: 0 | I198: 0 | J198: 0 | K198: 22 | L198: 1409646.991 | M198: 8651.306133 | N198: 7056.210432 | O198: 1595.095701
A199: 23 | B199: 1408043.919 | C199: 8651.306133 | D199: 7048.234953 | E199: 1603.07118 | F199: 23 | G199: 0 | H199: 0 | I199: 0 | J199: 0 | K199: 23 | L199: 1408043.919 | M199: 8651.306133 | N199: 7048.234953 | O199: 1603.07118
A200: 24 | B200: 1406432.833 | C200: 8651.306133 | D200: 7040.219597 | E200: 1611.086536 | F200: 24 | G200: 0 | H200: 0 | I200: 0 | J200: 0 | K200: 24 | L200: 1406432.833 | M200: 8651.306133 | N200: 7040.219597 | O200: 1611.086536
A201: 25 | B201: 1404813.691 | C201: 8651.306133 | D201: 7032.164165 | E201: 1619.141969 | F201: 25 | G201: 0 | H201: 0 | I201: 0 | J201: 0 | K201: 25 | L201: 1404813.691 | M201: 8651.306133 | N201: 7032.164165 | O201: 1619.141969
A202: 26 | B202: 1403186.453 | C202: 8651.306133 | D202: 7024.068455 | E202: 1627.237678 | F202: 26 | G202: 0 | H202: 0 | I202: 0 | J202: 0 | K202: 26 | L202: 1403186.453 | M202: 8651.306133 | N202: 7024.068455 | O202: 1627.237678
A203: 27 | B203: 1401551.079 | C203: 8651.306133 | D203: 7015.932266 | E203: 1635.373867 | F203: 27 | G203: 0 | H203: 0 | I203: 0 | J203: 0 | K203: 27 | L203: 1401551.079 | M203: 8651.306133 | N203: 7015.932266 | O203: 1635.373867
A204: 28 | B204: 1399907.529 | C204: 8651.306133 | D204: 7007.755397 | E204: 1643.550736 | F204: 28 | G204: 0 | H204: 0 | I204: 0 | J204: 0 | K204: 28 | L204: 1399907.529 | M204: 8651.306133 | N204: 7007.755397 | O204: 1643.550736
A205: 29 | B205: 1398255.76 | C205: 8651.306133 | D205: 6999.537643 | E205: 1651.76849 | F205: 29 | G205: 0 | H205: 0 | I205: 0 | J205: 0 | K205: 29 | L205: 1398255.76 | M205: 8651.306133 | N205: 6999.537643 | O205: 1651.76849
A206: 30 | B206: 1396595.733 | C206: 8651.306133 | D206: 6991.278801 | E206: 1660.027332 | F206: 30 | G206: 0 | H206: 0 | I206: 0 | J206: 0 | K206: 30 | L206: 1396595.733 | M206: 8651.306133 | N206: 6991.278801 | O206: 1660.027332
A207: 31 | B207: 1394927.405 | C207: 8651.306133 | D207: 6982.978664 | E207: 1668.327469 | F207: 31 | G207: 0 | H207: 0 | I207: 0 | J207: 0 | K207: 31 | L207: 1394927.405 | M207: 8651.306133 | N207: 6982.978664 | O207: 1668.327469
A208: 32 | B208: 1393250.736 | C208: 8651.306133 | D208: 6974.637027 | E208: 1676.669106 | F208: 32 | G208: 0 | H208: 0 | I208: 0 | J208: 0 | K208: 32 | L208: 1393250.736 | M208: 8651.306133 | N208: 6974.637027 | O208: 1676.669106
A209: 33 | B209: 1391565.684 | C209: 8651.306133 | D209: 6966.253681 | E209: 1685.052452 | F209: 33 | G209: 0 | H209: 0 | I209: 0 | J209: 0 | K209: 33 | L209: 1391565.684 | M209: 8651.306133 | N209: 6966.253681 | O209: 1685.052452
A210: 34 | B210: 1389872.206 | C210: 8651.306133 | D210: 6957.828419 | E210: 1693.477714 | F210: 34 | G210: 0 | H210: 0 | I210: 0 | J210: 0 | K210: 34 | L210: 1389872.206 | M210: 8651.306133 | N210: 6957.828419 | O210: 1693.477714
A211: 35 | B211: 1388170.261 | C211: 8651.306133 | D211: 6949.36103 | E211: 1701.945103 | F211: 35 | G211: 0 | H211: 0 | I211: 0 | J211: 0 | K211: 35 | L211: 1388170.261 | M211: 8651.306133 | N211: 6949.36103 | O211: 1701.945103
A212: 36 | B212: 1386459.806 | C212: 8651.306133 | D212: 6940.851305 | E212: 1710.454828 | F212: 36 | G212: 0 | H212: 0 | I212: 0 | J212: 0 | K212: 36 | L212: 1386459.806 | M212: 8651.306133 | N212: 6940.851305 | O212: 1710.454828
A213: 37 | B213: 1384740.799 | C213: 8651.306133 | D213: 6932.299031 | E213: 1719.007102 | F213: 37 | G213: 0 | H213: 0 | I213: 0 | J213: 0 | K213: 37 | L213: 1384740.799 | M213: 8651.306133 | N213: 6932.299031 | O213: 1719.007102
A214: 38 | B214: 1383013.197 | C214: 8651.306133 | D214: 6923.703995 | E214: 1727.602138 | F214: 38 | G214: 0 | H214: 0 | I214: 0 | J214: 0 | K214: 38 | L214: 1383013.197 | M214: 8651.306133 | N214: 6923.703995 | O214: 1727.602138
A215: 39 | B215: 1381276.957 | C215: 8651.306133 | D215: 6915.065985 | E215: 1736.240148 | F215: 39 | G215: 0 | H215: 0 | I215: 0 | J215: 0 | K215: 39 | L215: 1381276.957 | M215: 8651.306133 | N215: 6915.065985 | O215: 1736.240148
A216: 40 | B216: 1379532.035 | C216: 8651.306133 | D216: 6906.384784 | E216: 1744.921349 | F216: 40 | G216: 0 | H216: 0 | I216: 0 | J216: 0 | K216: 40 | L216: 1379532.035 | M216: 8651.306133 | N216: 6906.384784 | O216: 1744.921349
A217: 41 | B217: 1377778.389 | C217: 8651.306133 | D217: 6897.660177 | E217: 1753.645956 | F217: 41 | G217: 0 | H217: 0 | I217: 0 | J217: 0 | K217: 41 | L217: 1377778.389 | M217: 8651.306133 | N217: 6897.660177 | O217: 1753.645956
A218: 42 | B218: 1376015.975 | C218: 8651.306133 | D218: 6888.891947 | E218: 1762.414186 | F218: 42 | G218: 0 | H218: 0 | I218: 0 | J218: 0 | K218: 42 | L218: 1376015.975 | M218: 8651.306133 | N218: 6888.891947 | O218: 1762.414186
A219: 43 | B219: 1374244.749 | C219: 8651.306133 | D219: 6880.079876 | E219: 1771.226257 | F219: 43 | G219: 0 | H219: 0 | I219: 0 | J219: 0 | K219: 43 | L219: 1374244.749 | M219: 8651.306133 | N219: 6880.079876 | O219: 1771.226257
A220: 44 | B220: 1372464.667 | C220: 8651.306133 | D220: 6871.223745 | E220: 1780.082388 | F220: 44 | G220: 0 | H220: 0 | I220: 0 | J220: 0 | K220: 44 | L220: 1372464.667 | M220: 8651.306133 | N220: 6871.223745 | O220: 1780.082388
A221: 45 | B221: 1370675.684 | C221: 8651.306133 | D221: 6862.323333 | E221: 1788.9828 | F221: 45 | G221: 0 | H221: 0 | I221: 0 | J221: 0 | K221: 45 | L221: 1370675.684 | M221: 8651.306133 | N221: 6862.323333 | O221: 1788.9828
A222: 46 | B222: 1368877.756 | C222: 8651.306133 | D222: 6853.378419 | E222: 1797.927714 | F222: 46 | G222: 0 | H222: 0 | I222: 0 | J222: 0 | K222: 46 | L222: 1368877.756 | M222: 8651.306133 | N222: 6853.378419 | O222: 1797.927714
A223: 47 | B223: 1367070.839 | C223: 8651.306133 | D223: 6844.388781 | E223: 1806.917352 | F223: 47 | G223: 0 | H223: 0 | I223: 0 | J223: 0 | K223: 47 | L223: 1367070.839 | M223: 8651.306133 | N223: 6844.388781 | O223: 1806.917352
A224: 48 | B224: 1365254.887 | C224: 8651.306133 | D224: 6835.354194 | E224: 1815.951939 | F224: 48 | G224: 0 | H224: 0 | I224: 0 | J224: 0 | K224: 48 | L224: 1365254.887 | M224: 8651.306133 | N224: 6835.354194 | O224: 1815.951939
A225: 49 | B225: 1363429.855 | C225: 8651.306133 | D225: 6826.274434 | E225: 1825.031699 | F225: 49 | G225: 0 | H225: 0 | I225: 0 | J225: 0 | K225: 49 | L225: 1363429.855 | M225: 8651.306133 | N225: 6826.274434 | O225: 1825.031699
A226: 50 | B226: 1361595.698 | C226: 8651.306133 | D226: 6817.149276 | E226: 1834.156857 | F226: 50 | G226: 0 | H226: 0 | I226: 0 | J226: 0 | K226: 50 | L226: 1361595.698 | M226: 8651.306133 | N226: 6817.149276 | O226: 1834.156857
A227: 51 | B227: 1359752.371 | C227: 8651.306133 | D227: 6807.978491 | E227: 1843.327642 | F227: 51 | G227: 0 | H227: 0 | I227: 0 | J227: 0 | K227: 51 | L227: 1359752.371 | M227: 8651.306133 | N227: 6807.978491 | O227: 1843.327642
A228: 52 | B228: 1357899.826 | C228: 8651.306133 | D228: 6798.761853 | E228: 1852.54428 | F228: 52 | G228: 0 | H228: 0 | I228: 0 | J228: 0 | K228: 52 | L228: 1357899.826 | M228: 8651.306133 | N228: 6798.761853 | O228: 1852.54428
... 308 more rows

Sheet Office
A1: ROI Template - Office
A3: Leveraging Tools | D3: Summary | E3: User override | F3: TOTAL | H3: Investment Targets and Performance
A4: Tax Credits net to project | D4: ='Gap Financing Options'!F116 -> 0 | E4: 0 | F4: =IF('Basic Financial'!$B$33=0,D4,0) -> 0 | H4: Performance Indicator | L4: Target | M4: Actual | N4: NPV
A5: Fee Reductions | D5: ='Gap Financing Options'!F82 -> 0 | E5: 0 | F5: =IF('Basic Financial'!$B$33=0,D5,0) -> 0 | H5: Cash-on-Cash After Year 3 | L5: ='Advanced Financial'!F64 -> 0.1 | M5: =G132 -> 0
A6: Grants | D6: ='Gap Financing Options'!F92 -> 0 | E6: 0 | F6: =IF('Basic Financial'!$B$33=0,D6,('Basic Financial'!$B$33*SUM('Development Costs'!E41,'Development Costs'!E43,'Development Costs'!E44))) -> 0 | H6: IRR on Project Cost (Unleveraged Return) | L6: ='Advanced Financial'!F65 -> 0.12 | M6: =N146 -> 0 | N6: =N147 -> 0
A7: Total Development Offsets (Contributions to Equity) | F7: =SUM(F4:F6) -> 0 | H7: IRR on Investor Equity (Leveraged Return Before Tax) | L7: ='Advanced Financial'!F66 -> 0.25 | M7: =N154 -> 0 | N7: =N155 -> 0
A8: Net Development Costs | F8: =(D56-F7) -> 0 | H8: Debt Service Coverage Ratio (Year 3) | L8: ='Advanced Financial'!F67 -> 1.25 | M8: =IFERROR(G126/G128,0) -> 0
H9: IRR on Public Participation | L9: =E110 -> 0.05 | M9: =N164 -> 0 | N9: =N165 -> 0
A13: Local Property Tax Rate Available for abatement | D13: ='Gap Financing Options'!F15 -> 0
A14: Local Sales Tax Rate Available for abatement | D14: ='Gap Financing Options'!F31 -> 0
A16: Net Operating Income Analysis
A17: Total Development Costs | D17: =-SUM('Development Costs'!D41,'Development Costs'!D43:D44) -> 0
A18: Project Feature | D18: Project | E18: Rent
A19: Total project size, square feet | D19: =SUM('Physical Outputs'!B30,'Physical Outputs'!B32:B33) -> 0 | E19: =IFERROR((('Basic Financial'!B56*'Physical Outputs'!B30)+('Basic Financial'!B58*'Physical Outputs'!B32)+('Basic Financial'!B59*'Physical Outputs'!B33))/SUM('Physical Outputs'!B30,'Physical Outputs'!B32:B33),0) -> 0 | F19: per square foot/year | G19: summed sq ft from off, pub and edu; took weighted average rent for all 3 as well
A20: Other Income (vending, fines) | D20: ='Advanced Financial'!F77 -> 0.1
A21: Less: Vacancy | D21: =1-'Advanced Financial'!C33 -> 0.05
A22: Less: Concessions, Bad Debt | D22: ='Advanced Financial'!F78 -> 0.02
A23: Less: Operating Costs/sq.ft. | D23: =IFERROR((('Advanced Financial'!F79*E60)/'Physical Outputs'!C30),0) -> 0
A25: Initial Project Value Analysis
A26: Property Value (Year 1)
A27: Going in Cap Rate | D27: ='Advanced Financial'!F80 -> 0.073
A29: Debt Financing
A30: Primary Debt
A31: Maximum LTV | D31: ='Advanced Financial'!F87 -> 0.6
A32: Rate | D32: ='Advanced Financial'!F88 -> 0.04
A33: Amortization Period, Years | D33: ='Advanced Financial'!F89 -> 30
A34: Public Leveraging Loan
A35: Maximum LTV | D35: =IF(D42=1,'Gap Financing Options'!F63,0) -> 0
A36: Rate | D36: =IF(D42=1,'Gap Financing Options'!F64,0) -> 0
A37: Amortization Period, Years | D37: =IF(D42=1,'Gap Financing Options'!F65,0) -> 0
A38: Public Participation
A39: Capital Investment | D39: =IF(D42=1,'Gap Financing Options'!F69,0) -> 0
A40: Annual Cash Throw Off | D40: =IF(D42=1,'Gap Financing Options'!F70,0) -> 0
A41: Share of Net Sales Price | D41: =IF(D42=1,'Gap Financing Options'!F71,0) -> 0
A42: Public Leveraging Loan Included in Analysis?(1=Yes; 0=No) | D42: ='Gap Financing Options'!F62 -> 0
A43: Target IRR | D43: ='Advanced Financial'!F68 -> 0.05
A45: Operating Statement
A46: GPI | C46: Escalation | D46: ='Advanced Financial'!F81 -> 0.03
A47: EGI
A48: Less: Operating Costs | C48: Escalation | D48: ='Advanced Financial'!F82 -> 0.03
A50: Project Value | D50: Year 1
A51: Terminal Cap Rate, Gross Sales Price | D51: ='Advanced Financial'!F83 -> 0.073
A52: Net Sales = Price Less Sales Cost | D52: ='Advanced Financial'!F84 -> 0.05
A55: Net Operating Income Analysis
A56: Total Development Costs | D56: =D17 -> 0
A57: Development Costs Per Sq Ft | D57: =IFERROR(D56/D59,0) -> 0
A58: Project Feature | D58: Project | E58: Rent
A59: Total project size, square feet | D59: =D19 -> 0 | E59: =E19 -> 0 | F59: per square foot/year
A60: Gross Potential Rent (GPI) | E60: =D59*E59 -> 0
A61: Other Income (vending, fines) | D61: =D20 -> 0.1 | E61: =D61*E60 -> 0
A62: Total Income | E62: =E60+E61 -> 0
A63: Less: Vacancy | D63: =D21 -> 0.05 | E63: =E62*D63 -> 0
A64: Less: Concessions, Bad Debt | D64: =D22 -> 0.02 | E64: =E62*D64 -> 0
A65: Effective Gross Income (EGI) | E65: =E62-E63-E64 -> 0
A66: Less: Operating Costs/sq.ft. | D66: =D23 -> 0 | E66: =D66*D59 -> 0
A67: Net Operating Income | E67: =E65-E66 -> 0
A69: Initial Project Value Analysis
A70: CAP RATE (Yield to Costs) | D70: =IF(F8=0,0,E67/F8) -> 0
A71: Debt Service | D71: =IFERROR(-E97,0) -> 0
A72: Cash Flow | D72: =E67-D71 -> 0
A73: Return on Equity (Year 1) | D73: =IF(E102=0,0,D72/E102) -> 0
A74: Property Value (Year 1)
A75: NOI | D75: =E67 -> 0
A76: Going in Cap Rate | D76: =D27 -> 0.073
A77: Project Market Value | D77: =IF(D76=0,0,D75/D76) -> 0
A78: Net Project Value | D78: =D77-D56 -> 0
A81: Debt Financing
A82: Primary Debt
A83: Total Value | E83: =IF(D77>D56,D56,D77) -> 0
A84: Maximum LTV | D84: =D31 -> 0.6 | E84: =E83*D84 -> 0
A85: Imputed Loan Amount | E85: =E84 -> 0
A86: Rate | E86: =D32 -> 0.04
A87: Amortization Period, Years | E87: =D33 -> 30
A88: Annual Debt Service (Amortized) | E88: =IFERROR((PMT(E86/12,E87*12,E85)*12),0) -> 0
A89: Public Leveraging Loan
A90: Maximum LTV | D90: =IF(D42=1,D35,0) -> 0 | E90: =IF(E83*D90>'Development Costs'!E41*'Gap Financing Options'!B73,'Development Costs'!E41*'Gap Financing Options'!B73,E83*D90) -> 0
A91: Imputed Loan Amount | E91: =IF(AND(D42=1,'Basic Financial'!B33=0),E90+'Gap Financing Options'!F68,0) -> 0
A92: Rate | E92: =IF(D42=1,D36,0) -> 0
A93: Amortization Period, Years | E93: =IF(D42=1,D37,0) -> 0
A94: Annual Debt Service (Amortized) | E94: =IFERROR((PMT(E92/12,E93*12,E91)*12),0) -> 0
A96: Total Debt | E96: =E85+E91 -> 0
A97: Total Debt Service | E97: =E88+E94 -> 0
A98: Summary
A99: Total Development Costs | E99: =D56 -> 0
A100: Equity Required | E100: =IF(E99-E96<0,1,E99-E96) -> 0
A101: Total Development Offsets (Contributions to Equity) | E101: =F7 -> 0
A102: Net Equity Required | E102: =E100-E101 -> 0
A103: Total Project Cost | E103: =E99 -> 0
A104: Total Project Cost After Development Offsets | E104: =E103-E101 -> 0
A105: Public Participation
A106: Capital Investment | E106: =D39 -> 0
A107: Annual Cash Throw Off | E107: =D40 -> 0
A108: Share of Net Sales Price | E108: =D41 -> 0
A109: Public Leveraging Loan Included in Analysis? | D109: (1=Yes; 0=No) | E109: =D42 -> 0
A110: Target IRR | E110: =D43 -> 0.05
A113: Operating Statement | E113: Year 1 | F113: Year 2 | G113: Year 3 | H113: Year 4 | I113: Year 5 | J113: Year 6 | K113: Year 7 | L113: Year 8 | M113: Year 9 | N113: Year 10
A114: GPI | C114: Escalation | D114: =D46 -> 0.03 | E114: =E60 -> 0 | F114: =E114*(1+$D$114) -> 0 | G114: 0 | H114: 0 | I114: 0 | J114: 0 | K114: 0 | L114: 0 | M114: 0 | N114: 0
A115: Other Income | E115: =E61 -> 0 | F115: 0 | G115: 0 | H115: 0 | I115: 0 | J115: 0 | K115: 0 | L115: 0 | M115: 0 | N115: 0
A116: Total Income | E116: =E114+E115 -> 0 | F116: 0 | G116: 0 | H116: 0 | I116: 0 | J116: 0 | K116: 0 | L116: 0 | M116: 0 | N116: 0
A117: Less: Vacancy | D117: =D63 -> 0.05 | E117: =IF('Advanced Financial'!B33>0,(1-'Advanced Financial'!B33)*E116,$D$117*E116) -> 0 | F117: =$D$117*F116 -> 0 | G117: 0 | H117: 0 | I117: 0 | J117: 0 | K117: 0 | L117: 0 | M117: 0 | N117: 0
A118: Less: Concessions, Market Loss | D118: =D64 -> 0.02 | E118: =$D$118*E116 -> 0 | F118: 0 | G118: 0 | H118: 0 | I118: 0 | J118: 0 | K118: 0 | L118: 0 | M118: 0 | N118: 0
A119: EGI | E119: =E116-E117-E118 -> 0 | F119: 0 | G119: 0 | H119: 0 | I119: 0 | J119: 0 | K119: 0 | L119: 0 | M119: 0 | N119: 0
A120: Less: Operating Costs | C120: Escalation | D120: =D48 -> 0.03 | E120: =E66 -> 0 | F120: =E120*(1+$D$120) -> 0 | G120: 0 | H120: 0 | I120: 0 | J120: 0 | K120: 0 | L120: 0 | M120: 0 | N120: 0
A121: Less: Property Taxes | C121: Millage Rate | D121: ='Advanced Financial'!F60 -> 0.01 | E121: =$F8*$D121*'Advanced Financial'!$F60 -> 0 | F121: =$F8*$D121*'Advanced Financial'!$F60*(1+$D$114) -> 0 | G121: =$F8*$D121*'Advanced Financial'!$F60*(1+$D$114)^2 -> 0 | H121: =$F8*$D121*'Advanced Financial'!$F60*(1+$D$114)^3 -> 0 | I121: =$F8*$D121*'Advanced Financial'!$F60*(1+$D$114)^4 -> 0 | J121: =$F8*$D121*'Advanced Financial'!$F60*(1+$D$114)^5 -> 0 | K121: =$F8*$D121*'Advanced Financial'!$F60*(1+$D$114)^6 -> 0 | L121: =$F8*$D121*'Advanced Financial'!$F60*(1+$D$114)^7 -> 0 | M121: =$F8*$D121*'Advanced Financial'!$F60*(1+$D$114)^8 -> 0 | N121: =$F8*$D121*'Advanced Financial'!$F60*(1+$D$114)^9 -> 0
A122: Plus: Property Tax Abatement | E122: =$D$13*'Advanced Financial'!$F61*$F8*'Gap Financing Options'!F17 -> 0 | F122: =$D$13*'Advanced Financial'!$F61*$F8*(1+$D$114)*'Gap Financing Options'!F18 -> 0 | G122: =$D$13*'Advanced Financial'!$F61*$F8*(1+$D$114)^2*'Gap Financing Options'!F19 -> 0 | H122: =$D$13*'Advanced Financial'!$F61*$F8*(1+$D$114)^3*'Gap Financing Options'!F20 -> 0 | I122: =$D$13*'Advanced Financial'!$F61*$F8*(1+$D$114)^4*'Gap Financing Options'!F21 -> 0 | J122: =$D$13*'Advanced Financial'!$F61*$F8*(1+$D$114)^5*'Gap Financing Options'!F22 -> 0 | K122: =$D$13*'Advanced Financial'!$F61*$F8*(1+$D$114)^6*'Gap Financing Options'!F23 -> 0 | L122: =$D$13*'Advanced Financial'!$F61*$F8*(1+$D$114)^7*'Gap Financing Options'!F24 -> 0 | M122: =$D$13*'Advanced Financial'!$F61*$F8*(1+$D$114)^8*'Gap Financing Options'!F25 -> 0 | N122: =$D$13*'Advanced Financial'!$F61*$F8*(1+$D$114)^9*'Gap Financing Options'!F26 -> 0
A123: Plus Sales Tax Abatement | E123: ='Gap Financing Options'!F33*$D$14*E116 -> 0 | F123: ='Gap Financing Options'!F34*$D$14*F116 -> 0 | G123: ='Gap Financing Options'!F35*$D$14*G116 -> 0 | H123: ='Gap Financing Options'!F36*$D$14*H116 -> 0 | I123: ='Gap Financing Options'!F37*$D$14*I116 -> 0 | J123: ='Gap Financing Options'!F38*$D$14*J116 -> 0 | K123: ='Gap Financing Options'!F39*$D$14*K116 -> 0 | L123: ='Gap Financing Options'!F40*$D$14*L116 -> 0 | M123: ='Gap Financing Options'!F41*$D$14*M116 -> 0 | N123: ='Gap Financing Options'!F42*$D$14*N116 -> 0
A124: Plus TIF + IRA Retainage of Taxes | E124: ='Gap Financing Options'!F48 -> 0 | F124: ='Gap Financing Options'!F49 -> 0 | G124: ='Gap Financing Options'!F50 -> 0 | H124: ='Gap Financing Options'!F51 -> 0 | I124: ='Gap Financing Options'!F52 -> 0 | J124: ='Gap Financing Options'!F53 -> 0 | K124: ='Gap Financing Options'!F54 -> 0 | L124: ='Gap Financing Options'!F55 -> 0 | M124: ='Gap Financing Options'!F56 -> 0 | N124: ='Gap Financing Options'!F57 -> 0
A125: Cash Throw Off to Public Partner | E125: =-$E$107 -> 0 | F125: 0 | G125: 0 | H125: 0 | I125: 0 | J125: 0 | K125: 0 | L125: 0 | M125: 0 | N125: 0
A126: NOI | E126: =E119-Industrial!E121-E120+Industrial!E122+E123+E124+E125 -> 0 | F126: =F119-Industrial!F121-F120+Industrial!F122+F123+F124+F125 -> 0 | G126: =G119-Industrial!G121-G120+Industrial!G122+G123+G124+G125 -> 0 | H126: =H119-Industrial!H121-H120+Industrial!H122+H123+H124+H125 -> 0 | I126: =I119-Industrial!I121-I120+Industrial!I122+I123+I124+I125 -> 0 | J126: =J119-Industrial!J121-J120+Industrial!J122+J123+J124+J125 -> 0 | K126: =K119-Industrial!K121-K120+Industrial!K122+K123+K124+K125 -> 0 | L126: =L119-Industrial!L121-L120+Industrial!L122+L123+L124+L125 -> 0 | M126: =M119-Industrial!M121-M120+Industrial!M122+M123+M124+M125 -> 0 | N126: =N119-Industrial!N121-N120+Industrial!N122+N123+N124+N125 -> 0
A128: Less: Debt Service | E128: =-$E$97 -> 0 | F128: 0 | G128: 0 | H128: 0 | I128: 0 | J128: 0 | K128: 0 | L128: 0 | M128: 0 | N128: 0
A129: Net Cash Flow | E129: =E126-E128 -> 0 | F129: 0 | G129: 0 | H129: 0 | I129: 0 | J129: 0 | K129: 0 | L129: 0 | M129: 0 | N129: 0
A131: Cap Rate | E131: =IFERROR(E126/$E$99,0) -> 0 | F131: 0 | G131: 0 | H131: 0 | I131: 0 | J131: 0 | K131: 0 | L131: 0 | M131: 0 | N131: 0
A132: Cash on Cash Return (Equity Dividend Rate) | E132: =IFERROR(E129/$E$102,0) -> 0 | F132: =IFERROR(F129/$E$102,0) -> 0 | G132: 0 | H132: 0 | I132: 0 | J132: 0 | K132: 0 | L132: 0 | M132: 0 | N132: 0
A134: Project Value | D134: Year 0 | E134: Year 1 | F134: Year 2 | G134: Year 3 | H134: Year 4 | I134: Year 5 | J134: Year 6 | K134: Year 7 | L134: Year 8 | M134: Year 9 | N134: Year 10
A135: Terminal Cap Rate, Gross Sales Price | E135: =D51 -> 0.073 | N135: =IFERROR(N126/E135,0) -> 0
A136: Net Sales = Price Less Sales Cost | E136: =D52 -> 0.05 | N136: =N135*(1-E136) -> 0
A137: Less Mortgage Balance | N137: =AA182 -> 0
A138: Net Sales Proceeds | N138: =N136-N137 -> 0
A141: IRR - Unleveraged (Project Cost) | D141: Year 0 | E141: Year 1 | F141: Year 2 | G141: Year 3 | H141: Year 4 | I141: Year 5 | J141: Year 6 | K141: Year 7 | L141: Year 8 | M141: Year 9 | N141: Year 10
A142: Total Investment | D142: =-E104 -> 0
A143: Project NOI | E143: =E126 -> 0 | F143: =F126 -> 0 | G143: 0 | H143: 0 | I143: 0 | J143: 0 | K143: 0 | L143: 0 | M143: 0 | N143: 0
A144: Net Sales Price | N144: =N136 -> 0
A145: Total | D145: =SUM(D142:D144) -> 0 | E145: =SUM(E142:E144) -> 0 | F145: =SUM(F142:F144) -> 0 | G145: 0 | H145: 0 | I145: 0 | J145: 0 | K145: 0 | L145: 0 | M145: 0 | N145: 0
A146: IRR - Project Cost | N146: =IFERROR(IRR(D145:N145),0) -> 0
A147: NPV - Project Cost | N147: =NPV(L6,D145:N145) -> 0
A149: IRR - Leveraged (Before Tax) | D149: Year 0 | E149: Year 1 | F149: Year 2 | G149: Year 3 | H149: Year 4 | I149: Year 5 | J149: Year 6 | K149: Year 7 | L149: Year 8 | M149: Year 9 | N149: Year 10
A150: Original Investment (Equity) | D150: =-E102 -> 0
A151: Project Cash Flow | E151: =E129 -> 0 | F151: 0 | G151: 0 | H151: 0 | I151: 0 | J151: 0 | K151: 0 | L151: 0 | M151: 0 | N151: 0
A152: Net Sales Proceeds | N152: =N138 -> 0
A153: Total | D153: =SUM(D150:D152) -> 0 | E153: 0 | F153: 0 | G153: 0 | H153: 0 | I153: 0 | J153: 0 | K153: 0 | L153: 0 | M153: 0 | N153: 0
A154: IRR - Equity | N154: =IFERROR(IRR(D153:N153),0) -> 0
A155: NPV - Equity | N155: =NPV(L7,D153:N153) -> 0
A157: IRR - Public Participation | D157: Year 0 | E157: Year 1 | F157: Year 2 | G157: Year 3 | H157: Year 4 | I157: Year 5 | J157: Year 6 | K157: Year 7 | L157: Year 8 | M157: Year 9 | N157: Year 10
A158: Original Investment (Equity) | D158: =-(E106+(E91*E109)) -> 0
A159: Mezzanine Financing | E159: =-$E$94 -> 0 | F159: 0 | G159: 0 | H159: 0 | I159: 0 | J159: 0 | K159: 0 | L159: 0 | M159: 0 | N159: 0
A160: Cash Throw Off | E160: =$E$107 -> 0 | F160: 0 | G160: 0 | H160: 0 | I160: 0 | J160: 0 | K160: 0 | L160: 0 | M160: 0 | N160: 0
A161: Sale Proceeds | N161: =N152*E108 -> 0
A162: Loan Balance | N162: =V182*E109 -> 0
A163: Total | D163: =SUM(D158:D162) -> 0 | E163: =SUM(E158:E162) -> 0 | F163: 0 | G163: 0 | H163: 0 | I163: 0 | J163: 0 | K163: 0 | L163: 0 | M163: 0 | N163: 0
A164: IRR - Equity | N164: =IFERROR(IRR(D163:N163),0) -> 0
A165: NPV - Equity | N165: =NPV(E110,D163:N163) -> 0
A169: DEBT SERVICE MORTIZATION TABLES
A170: Primary Debt Amortization | F170: Low Interest Loan | K170: Total Debt Amortization | P170: Annual Debt Service Summary - Primary Debt | U170: Annual Debt Service Summary - Secondary Debt | Z170: Annual Debt Service Summary - Total Debt
A172: Period | B172: Balance | C172: Payment | D172: Interest | E172: Principal | F172: Period | G172: Balance | H172: Payment | I172: Interest | J172: Principal | K172: Period | L172: Balance | M172: Payment | N172: Interest | O172: Principal | P172: Year | Q172: Balance | R172: Payment | S172: Interest | T172: Principal | U172: Year | V172: Balance | W172: Payment | X172: Interest | Y172: Principal | Z172: Year | AA172: Balance | AB172: Payment | AC172: Interest | AD172: Principal
A173: 0 | B173: =E85 -> 0 | F173: 0 | G173: =E91 -> 0 | K173: 0 | L173: =B173+G173 -> 0 | P173: 1 | Q173: =B185 -> 0 | R173: =SUM(C174:C185) -> 0 | S173: =SUM(D174:D185) -> 0 | T173: =SUM(E174:E185) -> 0 | U173: 1 | V173: =G185 -> 0 | W173: =SUM(H174:H185) -> 0 | X173: =SUM(I174:I185) -> 0 | Y173: =SUM(J174:J185) -> 0 | Z173: 1 | AA173: =Q173+V173 -> 0 | AB173: =R173+W173 -> 0 | AC173: 0 | AD173: =T173+Y173 -> 0
A174: 1 | B174: =B173-E174 -> 0 | C174: =-$E$88/12 -> 0 | D174: =B173*$E$86/12 -> 0 | E174: =C174-D174 -> 0 | F174: 1 | G174: =G173-J174 -> 0 | H174: =-$E$94/12 -> 0 | I174: =G173*$E$92/12 -> 0 | J174: =H174-I174 -> 0 | K174: 1 | L174: =G174+B174 -> 0 | M174: 0 | N174: 0 | O174: 0 | P174: 2 | Q174: =B197 -> 0 | R174: =SUM(C186:C197) -> 0 | S174: =SUM(D186:D197) -> 0 | T174: =SUM(E186:E197) -> 0 | U174: 2 | V174: =G197 -> 0 | W174: =SUM(H186:H197) -> 0 | X174: =SUM(I186:I197) -> 0 | Y174: =SUM(J186:J197) -> 0 | Z174: 2 | AA174: =Q174+V174 -> 0 | AB174: 0 | AC174: 0 | AD174: =T174+Y174 -> 0
A175: =A174+1 -> 2 | B175: 0 | C175: 0 | D175: =B174*$E$86/12 -> 0 | E175: 0 | F175: =F174+1 -> 2 | G175: 0 | H175: 0 | I175: 0 | J175: 0 | K175: =K174+1 -> 2 | L175: 0 | M175: 0 | N175: 0 | O175: 0 | P175: 3 | Q175: =B209 -> 0 | R175: =SUM(C198:C209) -> 0 | S175: =SUM(D198:D209) -> 0 | T175: =SUM(E198:E209) -> 0 | U175: 3 | V175: =G209 -> 0 | W175: =SUM(H198:H209) -> 0 | X175: =SUM(I198:I209) -> 0 | Y175: =SUM(J198:J209) -> 0 | Z175: 3 | AA175: 0 | AB175: 0 | AC175: 0 | AD175: 0
A176: 3 | B176: 0 | C176: 0 | D176: 0 | E176: 0 | F176: 3 | G176: 0 | H176: 0 | I176: 0 | J176: 0 | K176: 3 | L176: 0 | M176: 0 | N176: 0 | O176: 0 | P176: 4 | Q176: =B221 -> 0 | R176: =SUM(C210:C221) -> 0 | S176: =SUM(D210:D221) -> 0 | T176: =SUM(E210:E221) -> 0 | U176: 4 | V176: =G221 -> 0 | W176: =SUM(H210:H221) -> 0 | X176: =SUM(I210:I221) -> 0 | Y176: =SUM(J210:J221) -> 0 | Z176: 4 | AA176: 0 | AB176: 0 | AC176: 0 | AD176: 0
A177: 4 | B177: 0 | C177: 0 | D177: 0 | E177: 0 | F177: 4 | G177: 0 | H177: 0 | I177: 0 | J177: 0 | K177: 4 | L177: 0 | M177: 0 | N177: 0 | O177: 0 | P177: 5 | Q177: =B233 -> 0 | R177: =SUM(C222:C233) -> 0 | S177: =SUM(D222:D233) -> 0 | T177: =SUM(E222:E233) -> 0 | U177: 5 | V177: =G233 -> 0 | W177: =SUM(H222:H233) -> 0 | X177: =SUM(I222:I233) -> 0 | Y177: =SUM(J222:J233) -> 0 | Z177: 5 | AA177: 0 | AB177: 0 | AC177: 0 | AD177: 0
A178: 5 | B178: 0 | C178: 0 | D178: 0 | E178: 0 | F178: 5 | G178: 0 | H178: 0 | I178: 0 | J178: 0 | K178: 5 | L178: 0 | M178: 0 | N178: 0 | O178: 0 | P178: 6 | Q178: =B245 -> 0 | R178: =SUM(C234:C245) -> 0 | S178: =SUM(D234:D245) -> 0 | T178: =SUM(E234:E245) -> 0 | U178: 6 | V178: =G245 -> 0 | W178: =SUM(H234:H245) -> 0 | X178: =SUM(I234:I245) -> 0 | Y178: =SUM(J234:J245) -> 0 | Z178: 6 | AA178: 0 | AB178: 0 | AC178: 0 | AD178: 0
A179: 6 | B179: 0 | C179: 0 | D179: 0 | E179: 0 | F179: 6 | G179: 0 | H179: 0 | I179: 0 | J179: 0 | K179: 6 | L179: 0 | M179: 0 | N179: 0 | O179: 0 | P179: 7 | Q179: =B257 -> 0 | R179: =SUM(C246:C257) -> 0 | S179: =SUM(D246:D257) -> 0 | T179: =SUM(E246:E257) -> 0 | U179: 7 | V179: =G257 -> 0 | W179: =SUM(H246:H257) -> 0 | X179: =SUM(I246:I257) -> 0 | Y179: =SUM(J246:J257) -> 0 | Z179: 7 | AA179: 0 | AB179: 0 | AC179: 0 | AD179: 0
A180: 7 | B180: 0 | C180: 0 | D180: 0 | E180: 0 | F180: 7 | G180: 0 | H180: 0 | I180: 0 | J180: 0 | K180: 7 | L180: 0 | M180: 0 | N180: 0 | O180: 0 | P180: 8 | Q180: =B269 -> 0 | R180: =SUM(C258:C269) -> 0 | S180: =SUM(D258:D269) -> 0 | T180: =SUM(E258:E269) -> 0 | U180: 8 | V180: =G269 -> 0 | W180: =SUM(H258:H269) -> 0 | X180: =SUM(I258:I269) -> 0 | Y180: =SUM(J258:J269) -> 0 | Z180: 8 | AA180: 0 | AB180: 0 | AC180: 0 | AD180: 0
A181: 8 | B181: 0 | C181: 0 | D181: 0 | E181: 0 | F181: 8 | G181: 0 | H181: 0 | I181: 0 | J181: 0 | K181: 8 | L181: 0 | M181: 0 | N181: 0 | O181: 0 | P181: 9 | Q181: =B281 -> 0 | R181: =SUM(C270:C281) -> 0 | S181: =SUM(D270:D281) -> 0 | T181: =SUM(E270:E281) -> 0 | U181: 9 | V181: =G281 -> 0 | W181: =SUM(H270:H281) -> 0 | X181: =SUM(I270:I281) -> 0 | Y181: =SUM(J270:J281) -> 0 | Z181: 9 | AA181: 0 | AB181: 0 | AC181: 0 | AD181: 0
A182: 9 | B182: 0 | C182: 0 | D182: 0 | E182: 0 | F182: 9 | G182: 0 | H182: 0 | I182: 0 | J182: 0 | K182: 9 | L182: 0 | M182: 0 | N182: 0 | O182: 0 | P182: 10 | Q182: =B293 -> 0 | R182: =SUM(C282:C293) -> 0 | S182: =SUM(D282:D293) -> 0 | T182: =SUM(E282:E293) -> 0 | U182: 10 | V182: =G293 -> 0 | W182: =SUM(H282:H293) -> 0 | X182: =SUM(I282:I293) -> 0 | Y182: =SUM(J282:J293) -> 0 | Z182: 10 | AA182: =Q182+V182 -> 0 | AB182: 0 | AC182: 0 | AD182: =T182+Y182 -> 0
A183: 10 | B183: 0 | C183: 0 | D183: 0 | E183: 0 | F183: 10 | G183: 0 | H183: 0 | I183: 0 | J183: 0 | K183: 10 | L183: 0 | M183: 0 | N183: 0 | O183: 0
A184: 11 | B184: 0 | C184: 0 | D184: 0 | E184: 0 | F184: 11 | G184: 0 | H184: 0 | I184: 0 | J184: 0 | K184: 11 | L184: 0 | M184: 0 | N184: 0 | O184: 0
A185: 12 | B185: 0 | C185: 0 | D185: 0 | E185: 0 | F185: 12 | G185: 0 | H185: 0 | I185: 0 | J185: 0 | K185: 12 | L185: 0 | M185: 0 | N185: 0 | O185: 0
A186: 13 | B186: 0 | C186: 0 | D186: 0 | E186: 0 | F186: 13 | G186: 0 | H186: 0 | I186: 0 | J186: 0 | K186: 13 | L186: 0 | M186: 0 | N186: 0 | O186: 0
A187: 14 | B187: 0 | C187: 0 | D187: 0 | E187: 0 | F187: 14 | G187: 0 | H187: 0 | I187: 0 | J187: 0 | K187: 14 | L187: 0 | M187: 0 | N187: 0 | O187: 0
A188: 15 | B188: 0 | C188: 0 | D188: 0 | E188: 0 | F188: 15 | G188: 0 | H188: 0 | I188: 0 | J188: 0 | K188: 15 | L188: 0 | M188: 0 | N188: 0 | O188: 0
A189: 16 | B189: 0 | C189: 0 | D189: 0 | E189: 0 | F189: 16 | G189: 0 | H189: 0 | I189: 0 | J189: 0 | K189: 16 | L189: 0 | M189: 0 | N189: 0 | O189: 0
A190: 17 | B190: 0 | C190: 0 | D190: 0 | E190: 0 | F190: 17 | G190: 0 | H190: 0 | I190: 0 | J190: 0 | K190: 17 | L190: 0 | M190: 0 | N190: 0 | O190: 0
A191: 18 | B191: 0 | C191: 0 | D191: 0 | E191: 0 | F191: 18 | G191: 0 | H191: 0 | I191: 0 | J191: 0 | K191: 18 | L191: 0 | M191: 0 | N191: 0 | O191: 0
A192: 19 | B192: 0 | C192: 0 | D192: 0 | E192: 0 | F192: 19 | G192: 0 | H192: 0 | I192: 0 | J192: 0 | K192: 19 | L192: 0 | M192: 0 | N192: 0 | O192: 0
A193: 20 | B193: 0 | C193: 0 | D193: 0 | E193: 0 | F193: 20 | G193: 0 | H193: 0 | I193: 0 | J193: 0 | K193: 20 | L193: 0 | M193: 0 | N193: 0 | O193: 0
A194: 21 | B194: 0 | C194: 0 | D194: 0 | E194: 0 | F194: 21 | G194: 0 | H194: 0 | I194: 0 | J194: 0 | K194: 21 | L194: 0 | M194: 0 | N194: 0 | O194: 0
A195: 22 | B195: 0 | C195: 0 | D195: 0 | E195: 0 | F195: 22 | G195: 0 | H195: 0 | I195: 0 | J195: 0 | K195: 22 | L195: 0 | M195: 0 | N195: 0 | O195: 0
A196: 23 | B196: 0 | C196: 0 | D196: 0 | E196: 0 | F196: 23 | G196: 0 | H196: 0 | I196: 0 | J196: 0 | K196: 23 | L196: 0 | M196: 0 | N196: 0 | O196: 0
A197: 24 | B197: 0 | C197: 0 | D197: 0 | E197: 0 | F197: 24 | G197: 0 | H197: 0 | I197: 0 | J197: 0 | K197: 24 | L197: 0 | M197: 0 | N197: 0 | O197: 0
A198: 25 | B198: 0 | C198: 0 | D198: 0 | E198: 0 | F198: 25 | G198: 0 | H198: 0 | I198: 0 | J198: 0 | K198: 25 | L198: 0 | M198: 0 | N198: 0 | O198: 0
A199: 26 | B199: 0 | C199: 0 | D199: 0 | E199: 0 | F199: 26 | G199: 0 | H199: 0 | I199: 0 | J199: 0 | K199: 26 | L199: 0 | M199: 0 | N199: 0 | O199: 0
A200: 27 | B200: 0 | C200: 0 | D200: 0 | E200: 0 | F200: 27 | G200: 0 | H200: 0 | I200: 0 | J200: 0 | K200: 27 | L200: 0 | M200: 0 | N200: 0 | O200: 0
A201: 28 | B201: 0 | C201: 0 | D201: 0 | E201: 0 | F201: 28 | G201: 0 | H201: 0 | I201: 0 | J201: 0 | K201: 28 | L201: 0 | M201: 0 | N201: 0 | O201: 0
A202: 29 | B202: 0 | C202: 0 | D202: 0 | E202: 0 | F202: 29 | G202: 0 | H202: 0 | I202: 0 | J202: 0 | K202: 29 | L202: 0 | M202: 0 | N202: 0 | O202: 0
A203: 30 | B203: 0 | C203: 0 | D203: 0 | E203: 0 | F203: 30 | G203: 0 | H203: 0 | I203: 0 | J203: 0 | K203: 30 | L203: 0 | M203: 0 | N203: 0 | O203: 0
A204: 31 | B204: 0 | C204: 0 | D204: 0 | E204: 0 | F204: 31 | G204: 0 | H204: 0 | I204: 0 | J204: 0 | K204: 31 | L204: 0 | M204: 0 | N204: 0 | O204: 0
A205: 32 | B205: 0 | C205: 0 | D205: 0 | E205: 0 | F205: 32 | G205: 0 | H205: 0 | I205: 0 | J205: 0 | K205: 32 | L205: 0 | M205: 0 | N205: 0 | O205: 0
A206: 33 | B206: 0 | C206: 0 | D206: 0 | E206: 0 | F206: 33 | G206: 0 | H206: 0 | I206: 0 | J206: 0 | K206: 33 | L206: 0 | M206: 0 | N206: 0 | O206: 0
A207: 34 | B207: 0 | C207: 0 | D207: 0 | E207: 0 | F207: 34 | G207: 0 | H207: 0 | I207: 0 | J207: 0 | K207: 34 | L207: 0 | M207: 0 | N207: 0 | O207: 0
A208: 35 | B208: 0 | C208: 0 | D208: 0 | E208: 0 | F208: 35 | G208: 0 | H208: 0 | I208: 0 | J208: 0 | K208: 35 | L208: 0 | M208: 0 | N208: 0 | O208: 0
A209: 36 | B209: 0 | C209: 0 | D209: 0 | E209: 0 | F209: 36 | G209: 0 | H209: 0 | I209: 0 | J209: 0 | K209: 36 | L209: 0 | M209: 0 | N209: 0 | O209: 0
A210: 37 | B210: 0 | C210: 0 | D210: 0 | E210: 0 | F210: 37 | G210: 0 | H210: 0 | I210: 0 | J210: 0 | K210: 37 | L210: 0 | M210: 0 | N210: 0 | O210: 0
A211: 38 | B211: 0 | C211: 0 | D211: 0 | E211: 0 | F211: 38 | G211: 0 | H211: 0 | I211: 0 | J211: 0 | K211: 38 | L211: 0 | M211: 0 | N211: 0 | O211: 0
A212: 39 | B212: 0 | C212: 0 | D212: 0 | E212: 0 | F212: 39 | G212: 0 | H212: 0 | I212: 0 | J212: 0 | K212: 39 | L212: 0 | M212: 0 | N212: 0 | O212: 0
A213: 40 | B213: 0 | C213: 0 | D213: 0 | E213: 0 | F213: 40 | G213: 0 | H213: 0 | I213: 0 | J213: 0 | K213: 40 | L213: 0 | M213: 0 | N213: 0 | O213: 0
A214: 41 | B214: 0 | C214: 0 | D214: 0 | E214: 0 | F214: 41 | G214: 0 | H214: 0 | I214: 0 | J214: 0 | K214: 41 | L214: 0 | M214: 0 | N214: 0 | O214: 0
A215: 42 | B215: 0 | C215: 0 | D215: 0 | E215: 0 | F215: 42 | G215: 0 | H215: 0 | I215: 0 | J215: 0 | K215: 42 | L215: 0 | M215: 0 | N215: 0 | O215: 0
A216: 43 | B216: 0 | C216: 0 | D216: 0 | E216: 0 | F216: 43 | G216: 0 | H216: 0 | I216: 0 | J216: 0 | K216: 43 | L216: 0 | M216: 0 | N216: 0 | O216: 0
A217: 44 | B217: 0 | C217: 0 | D217: 0 | E217: 0 | F217: 44 | G217: 0 | H217: 0 | I217: 0 | J217: 0 | K217: 44 | L217: 0 | M217: 0 | N217: 0 | O217: 0
A218: 45 | B218: 0 | C218: 0 | D218: 0 | E218: 0 | F218: 45 | G218: 0 | H218: 0 | I218: 0 | J218: 0 | K218: 45 | L218: 0 | M218: 0 | N218: 0 | O218: 0
A219: 46 | B219: 0 | C219: 0 | D219: 0 | E219: 0 | F219: 46 | G219: 0 | H219: 0 | I219: 0 | J219: 0 | K219: 46 | L219: 0 | M219: 0 | N219: 0 | O219: 0
A220: 47 | B220: 0 | C220: 0 | D220: 0 | E220: 0 | F220: 47 | G220: 0 | H220: 0 | I220: 0 | J220: 0 | K220: 47 | L220: 0 | M220: 0 | N220: 0 | O220: 0
A221: 48 | B221: 0 | C221: 0 | D221: 0 | E221: 0 | F221: 48 | G221: 0 | H221: 0 | I221: 0 | J221: 0 | K221: 48 | L221: 0 | M221: 0 | N221: 0 | O221: 0
A222: 49 | B222: 0 | C222: 0 | D222: 0 | E222: 0 | F222: 49 | G222: 0 | H222: 0 | I222: 0 | J222: 0 | K222: 49 | L222: 0 | M222: 0 | N222: 0 | O222: 0
A223: 50 | B223: 0 | C223: 0 | D223: 0 | E223: 0 | F223: 50 | G223: 0 | H223: 0 | I223: 0 | J223: 0 | K223: 50 | L223: 0 | M223: 0 | N223: 0 | O223: 0
A224: 51 | B224: 0 | C224: 0 | D224: 0 | E224: 0 | F224: 51 | G224: 0 | H224: 0 | I224: 0 | J224: 0 | K224: 51 | L224: 0 | M224: 0 | N224: 0 | O224: 0
A225: 52 | B225: 0 | C225: 0 | D225: 0 | E225: 0 | F225: 52 | G225: 0 | H225: 0 | I225: 0 | J225: 0 | K225: 52 | L225: 0 | M225: 0 | N225: 0 | O225: 0
A226: 53 | B226: 0 | C226: 0 | D226: 0 | E226: 0 | F226: 53 | G226: 0 | H226: 0 | I226: 0 | J226: 0 | K226: 53 | L226: 0 | M226: 0 | N226: 0 | O226: 0
A227: 54 | B227: 0 | C227: 0 | D227: 0 | E227: 0 | F227: 54 | G227: 0 | H227: 0 | I227: 0 | J227: 0 | K227: 54 | L227: 0 | M227: 0 | N227: 0 | O227: 0
A228: 55 | B228: 0 | C228: 0 | D228: 0 | E228: 0 | F228: 55 | G228: 0 | H228: 0 | I228: 0 | J228: 0 | K228: 55 | L228: 0 | M228: 0 | N228: 0 | O228: 0
... 305 more rows

Sheet Industrial
A1: ROI Template - Industrial
A3: Leveraging Tools | D3: Summary | E3: User override | H3: Investment Targets and Performance
A4: Tax Credits net to project | D4: ='Gap Financing Options'!G116 -> 0 | E4: 0 | F4: =IF('Basic Financial'!$B$33=0,D4,0) -> 0 | H4: Performance Indicator | L4: Target | M4: Actual | N4: NPV
A5: Fee Reductions | D5: ='Gap Financing Options'!G82 -> 0 | E5: 0 | F5: =IF('Basic Financial'!$B$33=0,D5,0) -> 0 | H5: Cash-on-Cash After Year 3 | L5: ='Advanced Financial'!G64 -> 0.1 | M5: =G132 -> 0
A6: Grants | D6: ='Gap Financing Options'!G92 -> 0 | E6: 0 | F6: =IF('Basic Financial'!$B$33=0,D6,('Basic Financial'!$B$33*'Development Costs'!E42)) -> 0 | H6: IRR on Project Cost (Unleveraged Return) | L6: ='Advanced Financial'!G65 -> 0.12 | M6: =N146 -> 0 | N6: =N147 -> 0
A7: Total Development Offsets (Contributions to Equity) | F7: =SUM(F4:F6) -> 0 | H7: IRR on Investor Equity (Leveraged Return Before Tax) | L7: ='Advanced Financial'!G66 -> 0.25 | M7: =N154 -> 0 | N7: =N155 -> 0
A8: Net Development Costs | F8: =(C56-F7) -> 0 | H8: Debt Service Coverage Ratio (Year 3) | L8: ='Advanced Financial'!G67 -> 1.25 | M8: =IFERROR(G126/G128,0) -> 0
H9: IRR on Public Participation | L9: =E109 -> 0.05 | M9: =N164 -> 0 | N9: =N165 -> 0
A13: Local Property Tax Rate Available for abatement | D13: ='Gap Financing Options'!G15 -> 0
A14: Local Sales Tax Rate Available for abatement | D14: ='Gap Financing Options'!G31 -> 0
A16: Net Operating Income Analysis
A17: Total Development Costs | C17: =-'Development Costs'!D42 -> 0
A18: Project Feature | C18: Project | D18: Rent
A19: Total project size, square feet | C19: ='Physical Outputs'!C31 -> 0 | D19: ='Basic Financial'!B57 -> 15 | E19: per square foot/year
A20: Other Income (vending, fines) | C20: ='Advanced Financial'!G77 -> 0.1
A21: Less: Vacancy | C21: =1-'Advanced Financial'!C34 -> 0.05
A22: Less: Concessions, Bad Debt | C22: ='Advanced Financial'!G78 -> 0.02
A23: Less: Operating Costs/sq.ft. | C23: =IFERROR((('Advanced Financial'!G79*D60)/'Physical Outputs'!C31),0) -> 0
A25: Initial Project Value Analysis
A26: Property Value (Year 1)
A27: Going in Cap Rate | C27: ='Advanced Financial'!G80 -> 0.073
A29: Debt Financing
A30: Primary Debt
A31: Maximum LTV | D31: ='Advanced Financial'!G87 -> 0.6
A32: Rate | D32: ='Advanced Financial'!G88 -> 0.06
A33: Amortization Period, Years | D33: ='Advanced Financial'!G89 -> 30
A34: Public Leveraging Loan
A35: Maximum LTV | D35: =IF(D42=1,'Gap Financing Options'!G63,0) -> 0
A36: Rate | D36: =IF(D42=1,'Gap Financing Options'!G64,0) -> 0
A37: Amortization Period, Years | D37: =IF(D42=1,'Gap Financing Options'!G65,0) -> 0
A38: Public Participation
A39: Capital Investment | D39: =IF(D42=1,'Gap Financing Options'!G69,0) -> 0
A40: Annual Cash Throw Off | D40: =IF(D42=1,'Gap Financing Options'!G70,0) -> 0
A41: Share of Net Sales Price | D41: =IF(D42=1,'Gap Financing Options'!G71,0) -> 0
A42: Public Leveraging Loan Included in Analysis?(1=Yes; 0=No) | D42: ='Gap Financing Options'!G62 -> 0
A43: Target IRR | D43: ='Advanced Financial'!G68 -> 0.05
A45: Operating Statement
A46: GPI | C46: Escalation | D46: ='Advanced Financial'!G81 -> 0.03
A47: EGI
A48: Less: Operating Costs | C48: Escalation | D48: ='Advanced Financial'!G82 -> 0.03
A50: Project Value | D50: Year 1
A51: Terminal Cap Rate, Gross Sales Price | D51: ='Advanced Financial'!G83 -> 0.08
A52: Net Sales = Price Less Sales Cost | D52: ='Advanced Financial'!G84 -> 0.05
A55: Net Operating Income Analysis
A56: Total Development Costs | C56: =C17 -> 0
A57: Development Costs Per Sq Ft | C57: =IFERROR(C56/C59,0) -> 0
A58: Project Feature | C58: Project | D58: Rent
A59: Total project size, square feet | C59: =C19 -> 0 | D59: =D19 -> 15 | E59: per square foot/year
A60: Gross Potential Rent (GPI) | D60: =C59*D59 -> 0
A61: Other Income (vending, fines) | C61: =C20 -> 0.1 | D61: =C61*D60 -> 0
A62: Total Income | D62: =D60+D61 -> 0
A63: Less: Vacancy | C63: =C21 -> 0.05 | D63: =D62*C63 -> 0
A64: Less: Concessions, Bad Debt | C64: =C22 -> 0.02 | D64: =D62*C64 -> 0
A65: Effective Gross Income (EGI) | D65: =D62-D63-D64 -> 0
A66: Less: Operating Costs/sq.ft. | C66: =C23 -> 0 | D66: =C66*C59 -> 0
A67: Net Operating Income | D67: =D65-D66 -> 0
A69: Initial Project Value Analysis
A70: CAP RATE (Yield to Costs) | C70: =IFERROR(D67/F8,0) -> 0
A71: Debt Service | C71: =IFERROR(-E96,0) -> 0
A72: Cash Flow | C72: =D67-C71 -> 0
A73: Return on Equity (Year 1) | C73: =IFERROR(C72/E101,0) -> 0
A74: Property Value (Year 1)
A75: NOI | C75: =D67 -> 0
A76: Going in Cap Rate | C76: =C27 -> 0.073
A77: Project Market Value | C77: =IFERROR(C75/C76,0) -> 0
A78: Net Project Value | C78: =C77-C56 -> 0
A80: Debt Financing
A81: Primary Debt
A82: Total Value | E82: =IF(C77>C56,C56,C77) -> 0
A83: Maximum LTV | D83: =D31 -> 0.6 | E83: =E82*D83 -> 0
A84: Imputed Loan Amount | E84: =E83 -> 0
A85: Rate | E85: =D32 -> 0.06
A86: Amortization Period, Years | E86: =D33 -> 30
A87: Annual Debt Service (Amortized) | E87: =IFERROR(PMT(E85/12,E86*12,E84)*12,0) -> 0
A88: Public Leveraging Loan
A89: Maximum LTV | D89: =IF(D42=1,D35,0) -> 0 | E89: =IF(E82*D89>'Development Costs'!E42*'Gap Financing Options'!B73,'Development Costs'!E42*'Gap Financing Options'!B73,E82*D89) -> 0
A90: Imputed Loan Amount | E90: =IF(AND(D42=1,'Basic Financial'!B33=0),E89+'Gap Financing Options'!G68,0) -> 0
A91: Rate | E91: =D36 -> 0
A92: Amortization Period, Years | E92: =D37 -> 0
A93: Annual Debt Service (Amortized) | E93: =IFERROR(PMT(E91/12,E92*12,E90)*12,0) -> 0
A95: Total Debt | E95: =E84+E90 -> 0
A96: Total Debt Service | E96: =E87+E93 -> 0
A97: Summary
A98: Total Development Costs | E98: =C56 -> 0
A99: Equity Required | E99: =IF(E98-E95<0,1,E98-E95) -> 0
A100: Total Development Offsets (Contributions to Equity) | E100: =F7 -> 0
A101: Net Equity Required | E101: =E99-E100 -> 0
A102: Total Project Cost | E102: =E98 -> 0
A103: Total Project Cost After Development Offsets | E103: =E102-E100 -> 0
A104: Public Participation
A105: Capital Investment | E105: =D39 -> 0
A106: Annual Cash Throw Off | E106: =D40 -> 0
A107: Share of Net Sales Price | E107: =D41 -> 0
A108: Public Leveraging Loan Included in Analysis? | D108: (1=Yes; 0=No) | E108: =D42 -> 0
A109: Target IRR | E109: =D43 -> 0.05
A113: Operating Statement | E113: Year 1 | F113: Year 2 | G113: Year 3 | H113: Year 4 | I113: Year 5 | J113: Year 6 | K113: Year 7 | L113: Year 8 | M113: Year 9 | N113: Year 10
A114: GPI | C114: Escalation | D114: =D46 -> 0.03 | E114: =D60 -> 0 | F114: =E114*(1+$D$114) -> 0 | G114: 0 | H114: 0 | I114: 0 | J114: 0 | K114: 0 | L114: 0 | M114: 0 | N114: 0
A115: Other Income | E115: =D61 -> 0 | F115: 0 | G115: 0 | H115: 0 | I115: 0 | J115: 0 | K115: 0 | L115: 0 | M115: 0 | N115: 0
A116: Total Income | E116: =E114+E115 -> 0 | F116: 0 | G116: 0 | H116: 0 | I116: 0 | J116: 0 | K116: 0 | L116: 0 | M116: 0 | N116: 0
A117: Less: Vacancy | D117: =C63 -> 0.05 | E117: =IF('Advanced Financial'!B34>0,(1-'Advanced Financial'!B34)*E116,$D$117*E116) -> 0 | F117: =$D$117*F116 -> 0 | G117: 0 | H117: 0 | I117: 0 | J117: 0 | K117: 0 | L117: 0 | M117: 0 | N117: 0
A118: Less: Concessions, Market Loss | D118: =C64 -> 0.02 | E118: =$D$118*E116 -> 0 | F118: 0 | G118: 0 | H118: 0 | I118: 0 | J118: 0 | K118: 0 | L118: 0 | M118: 0 | N118: 0
A119: EGI | E119: =E116-E117-E118 -> 0 | F119: 0 | G119: 0 | H119: 0 | I119: 0 | J119: 0 | K119: 0 | L119: 0 | M119: 0 | N119: 0
A120: Less: Operating Costs | C120: Escalation | D120: =D48 -> 0.03 | E120: =D66 -> 0 | F120: =E120*(1+$D$120) -> 0 | G120: 0 | H120: 0 | I120: 0 | J120: 0 | K120: 0 | L120: 0 | M120: 0 | N120: 0
A121: Less: Property Taxes | C121: Millage Rate | D121: ='Advanced Financial'!G60 -> 0.01 | E121: =$F8*$D121*'Advanced Financial'!$G60 -> 0 | F121: =$F8*$D121*'Advanced Financial'!$G60*(1+$D$114) -> 0 | G121: =$F8*$D121*'Advanced Financial'!$G60*(1+$D$114)^2 -> 0 | H121: =$F8*$D121*'Advanced Financial'!$G60*(1+$D$114)^3 -> 0 | I121: =$F8*$D121*'Advanced Financial'!$G60*(1+$D$114)^4 -> 0 | J121: =$F8*$D121*'Advanced Financial'!$G60*(1+$D$114)^5 -> 0 | K121: =$F8*$D121*'Advanced Financial'!$G60*(1+$D$114)^6 -> 0 | L121: =$F8*$D121*'Advanced Financial'!$G60*(1+$D$114)^7 -> 0 | M121: =$F8*$D121*'Advanced Financial'!$G60*(1+$D$114)^8 -> 0 | N121: =$F8*$D121*'Advanced Financial'!$G60*(1+$D$114)^9 -> 0
A122: Plus: Property Tax Abatement | E122: =$D$13*'Advanced Financial'!$G61*$F8*'Gap Financing Options'!G17 -> 0 | F122: =$D$13*'Advanced Financial'!$G61*$F8*(1+$D$114)*'Gap Financing Options'!G18 -> 0 | G122: =$D$13*'Advanced Financial'!$G61*$F8*(1+$D$114)^2*'Gap Financing Options'!G19 -> 0 | H122: =$D$13*'Advanced Financial'!$G61*$F8*(1+$D$114)^3*'Gap Financing Options'!G20 -> 0 | I122: =$D$13*'Advanced Financial'!$G61*$F8*(1+$D$114)^4*'Gap Financing Options'!G21 -> 0 | J122: =$D$13*'Advanced Financial'!$G61*$F8*(1+$D$114)^5*'Gap Financing Options'!G22 -> 0 | K122: =$D$13*'Advanced Financial'!$G61*$F8*(1+$D$114)^6*'Gap Financing Options'!G23 -> 0 | L122: =$D$13*'Advanced Financial'!$G61*$F8*(1+$D$114)^7*'Gap Financing Options'!G24 -> 0 | M122: =$D$13*'Advanced Financial'!$G61*$F8*(1+$D$114)^8*'Gap Financing Options'!G25 -> 0 | N122: =$D$13*'Advanced Financial'!$G61*$F8*(1+$D$114)^9*'Gap Financing Options'!G26 -> 0
A123: Plus Sales Tax Abatement | E123: ='Gap Financing Options'!G33*$D$14*E116 -> 0 | F123: ='Gap Financing Options'!G33*$D$14*F116 -> 0 | G123: ='Gap Financing Options'!G35*$D$14*G116 -> 0 | H123: ='Gap Financing Options'!G36*$D$14*H116 -> 0 | I123: ='Gap Financing Options'!G37*$D$14*I116 -> 0 | J123: ='Gap Financing Options'!G38*$D$14*J116 -> 0 | K123: ='Gap Financing Options'!G39*$D$14*K116 -> 0 | L123: ='Gap Financing Options'!G40*$D$14*L116 -> 0 | M123: ='Gap Financing Options'!G41*$D$14*M116 -> 0 | N123: ='Gap Financing Options'!G42*$D$14*N116 -> 0
A124: Plus TIF + IRA Retainage of Taxes | E124: ='Gap Financing Options'!G48 -> 0 | F124: ='Gap Financing Options'!G49 -> 0 | G124: ='Gap Financing Options'!G50 -> 0 | H124: ='Gap Financing Options'!G51 -> 0 | I124: ='Gap Financing Options'!G52 -> 0 | J124: ='Gap Financing Options'!G53 -> 0 | K124: ='Gap Financing Options'!G54 -> 0 | L124: ='Gap Financing Options'!G55 -> 0 | M124: ='Gap Financing Options'!G56 -> 0 | N124: ='Gap Financing Options'!G57 -> 0
A125: Cash Throw Off to Public Partner | E125: =-$E$106 -> 0 | F125: 0 | G125: 0 | H125: 0 | I125: 0 | J125: 0 | K125: 0 | L125: 0 | M125: 0 | N125: 0
A126: NOI | E126: =E119-E121-E120+E122+E123+E124+E125 -> 0 | F126: =F119-F121-F120+F122+F123+F124+F125 -> 0 | G126: 0 | H126: 0 | I126: 0 | J126: 0 | K126: 0 | L126: 0 | M126: 0 | N126: 0
A128: Less: Debt Service | E128: =-$E$96 -> 0 | F128: 0 | G128: 0 | H128: 0 | I128: 0 | J128: 0 | K128: 0 | L128: 0 | M128: 0 | N128: 0
A129: Net Cash Flow | E129: =E126-E128 -> 0 | F129: 0 | G129: 0 | H129: 0 | I129: 0 | J129: 0 | K129: 0 | L129: 0 | M129: 0 | N129: 0
A131: Cap Rate | E131: =IFERROR(E126/$E$98,0) -> 0 | F131: 0 | G131: 0 | H131: 0 | I131: 0 | J131: 0 | K131: 0 | L131: 0 | M131: 0 | N131: 0
A132: Cash on Cash Return (Equity Dividend Rate) | E132: =IFERROR(E129/$E$101,0) -> 0 | F132: =IFERROR(F129/$E$101,0) -> 0 | G132: 0 | H132: 0 | I132: 0 | J132: 0 | K132: 0 | L132: 0 | M132: 0 | N132: 0
A134: Project Value | D134: Year 0 | E134: Year 1 | F134: Year 2 | G134: Year 3 | H134: Year 4 | I134: Year 5 | J134: Year 6 | K134: Year 7 | L134: Year 8 | M134: Year 9 | N134: Year 10
A135: Terminal Cap Rate, Gross Sales Price | E135: =D51 -> 0.08 | N135: =IFERROR(N126/E135,0) -> 0
A136: Net Sales = Price Less Sales Cost | E136: =D52 -> 0.05 | N136: =N135*(1-E136) -> 0
A137: Less Mortgage Balance | N137: =AA181 -> 0
A138: Net Sales Proceeds | N138: =N136-N137 -> 0
A141: IRR - Unleveraged (Project Cost) | D141: Year 0 | E141: Year 1 | F141: Year 2 | G141: Year 3 | H141: Year 4 | I141: Year 5 | J141: Year 6 | K141: Year 7 | L141: Year 8 | M141: Year 9 | N141: Year 10
A142: Total Investment | D142: =-E103 -> 0
A143: Project NOI | E143: =E126 -> 0 | F143: =F126 -> 0 | G143: 0 | H143: 0 | I143: 0 | J143: 0 | K143: 0 | L143: 0 | M143: 0 | N143: 0
A144: Net Sales Price | N144: =N136 -> 0
A145: Total | D145: =SUM(D142:D144) -> 0 | E145: =SUM(E142:E144) -> 0 | F145: =SUM(F142:F144) -> 0 | G145: 0 | H145: 0 | I145: 0 | J145: 0 | K145: 0 | L145: 0 | M145: 0 | N145: 0
A146: IRR - Project Cost | N146: =IFERROR(IRR(D145:N145),0) -> 0
A147: NPV - Project Cost | N147: =NPV(L6,D145:N145) -> 0
A149: IRR - Leveraged (Before Tax) | D149: Year 0 | E149: Year 1 | F149: Year 2 | G149: Year 3 | H149: Year 4 | I149: Year 5 | J149: Year 6 | K149: Year 7 | L149: Year 8 | M149: Year 9 | N149: Year 10
A150: Original Investment (Equity) | D150: =-E101 -> 0
A151: Project Cash Flow | E151: =E129 -> 0 | F151: 0 | G151: 0 | H151: 0 | I151: 0 | J151: 0 | K151: 0 | L151: 0 | M151: 0 | N151: 0
A152: Net Sales Proceeds | N152: =N138 -> 0
A153: Total | D153: =SUM(D150:D152) -> 0 | E153: 0 | F153: 0 | G153: 0 | H153: 0 | I153: 0 | J153: 0 | K153: 0 | L153: 0 | M153: 0 | N153: 0
A154: IRR - Equity | N154: =IFERROR(IRR(D153:N153),0) -> 0
A155: NPV - Equity | N155: =NPV(L7,D153:N153) -> 0
A157: IRR - Public Participation | D157: Year 0 | E157: Year 1 | F157: Year 2 | G157: Year 3 | H157: Year 4 | I157: Year 5 | J157: Year 6 | K157: Year 7 | L157: Year 8 | M157: Year 9 | N157: Year 10
A158: Original Investment (Equity) | D158: =-(E105+(E90*E108)) -> 0
A159: Mezzanine Financing | E159: =-$E$93 -> 0 | F159: 0 | G159: 0 | H159: 0 | I159: 0 | J159: 0 | K159: 0 | L159: 0 | M159: 0 | N159: 0
A160: Cash Throw Off | E160: =$E$106 -> 0 | F160: 0 | G160: 0 | H160: 0 | I160: 0 | J160: 0 | K160: 0 | L160: 0 | M160: 0 | N160: 0
A161: Sale Proceeds | N161: =N152*E107 -> 0
A162: Loan Balance | N162: =V181*E108 -> 0
A163: Total | D163: =SUM(D158:D162) -> 0 | E163: =SUM(E158:E162) -> 0 | F163: 0 | G163: 0 | H163: 0 | I163: 0 | J163: 0 | K163: 0 | L163: 0 | M163: 0 | N163: 0
A164: IRR - Equity | N164: =IFERROR(IRR(D163:N163),0) -> 0
A165: NPV - Equity | N165: =NPV(E109,D163:N163) -> 0
A168: DEBT SERVICE MORTIZATION TABLES
A169: Primary Debt Amortization | F169: Low Interest Loan | K169: Total Debt Amortization | P169: Annual Debt Service Summary - Primary Debt | U169: Annual Debt Service Summary - Secondary Debt | Z169: Annual Debt Service Summary - Total Debt
A171: Period | B171: Balance | C171: Payment | D171: Interest | E171: Principal | F171: Period | G171: Balance | H171: Payment | I171: Interest | J171: Principal | K171: Period | L171: Balance | M171: Payment | N171: Interest | O171: Principal | P171: Year | Q171: Balance | R171: Payment | S171: Interest | T171: Principal | U171: Year | V171: Balance | W171: Payment | X171: Interest | Y171: Principal | Z171: Year | AA171: Balance | AB171: Payment | AC171: Interest | AD171: Principal
A172: 0 | B172: =E84 -> 0 | F172: 0 | G172: =E90 -> 0 | K172: 0 | L172: =B172+G172 -> 0 | P172: 1 | Q172: =B184 -> 0 | R172: =SUM(C173:C184) -> 0 | S172: =SUM(D173:D184) -> 0 | T172: =SUM(E173:E184) -> 0 | U172: 1 | V172: =G184 -> 0 | W172: =SUM(H173:H184) -> 0 | X172: =SUM(I173:I184) -> 0 | Y172: =SUM(J173:J184) -> 0 | Z172: 1 | AA172: =Q172+V172 -> 0 | AB172: =R172+W172 -> 0 | AC172: =S172+X172 -> 0 | AD172: =T172+Y172 -> 0
A173: 1 | B173: =B172-E173 -> 0 | C173: =-$E$87/12 -> 0 | D173: =B172*$E$85/12 -> 0 | E173: =C173-D173 -> 0 | F173: 1 | G173: =G172-J173 -> 0 | H173: =-$E$93/12 -> 0 | I173: =G172*$E$91/12 -> 0 | J173: =H173-I173 -> 0 | K173: 1 | L173: =G173+B173 -> 0 | M173: 0 | N173: 0 | O173: 0 | P173: 2 | Q173: =B196 -> 0 | R173: =SUM(C185:C196) -> 0 | S173: =SUM(D185:D196) -> 0 | T173: =SUM(E185:E196) -> 0 | U173: 2 | V173: =G196 -> 0 | W173: =SUM(H185:H196) -> 0 | X173: =SUM(I185:I196) -> 0 | Y173: =SUM(J185:J196) -> 0 | Z173: 2 | AA173: =Q173+V173 -> 0 | AB173: =R173+W173 -> 0 | AC173: =S173+X173 -> 0 | AD173: =T173+Y173 -> 0
A174: =A173+1 -> 2 | B174: 0 | C174: 0 | D174: =B173*$E$85/12 -> 0 | E174: 0 | F174: =F173+1 -> 2 | G174: 0 | H174: 0 | I174: 0 | J174: 0 | K174: =K173+1 -> 2 | L174: 0 | M174: 0 | N174: 0 | O174: 0 | P174: 3 | Q174: =B208 -> 0 | R174: =SUM(C197:C208) -> 0 | S174: =SUM(D197:D208) -> 0 | T174: =SUM(E197:E208) -> 0 | U174: 3 | V174: =G208 -> 0 | W174: =SUM(H197:H208) -> 0 | X174: =SUM(I197:I208) -> 0 | Y174: =SUM(J197:J208) -> 0 | Z174: 3 | AA174: 0 | AB174: 0 | AC174: 0 | AD174: 0
A175: 3 | B175: 0 | C175: 0 | D175: 0 | E175: 0 | F175: 3 | G175: 0 | H175: 0 | I175: 0 | J175: 0 | K175: 3 | L175: 0 | M175: 0 | N175: 0 | O175: 0 | P175: 4 | Q175: =B220 -> 0 | R175: =SUM(C209:C220) -> 0 | S175: =SUM(D209:D220) -> 0 | T175: =SUM(E209:E220) -> 0 | U175: 4 | V175: =G220 -> 0 | W175: =SUM(H209:H220) -> 0 | X175: =SUM(I209:I220) -> 0 | Y175: =SUM(J209:J220) -> 0 | Z175: 4 | AA175: 0 | AB175: 0 | AC175: 0 | AD175: 0
A176: 4 | B176: 0 | C176: 0 | D176: 0 | E176: 0 | F176: 4 | G176: 0 | H176: 0 | I176: 0 | J176: 0 | K176: 4 | L176: 0 | M176: 0 | N176: 0 | O176: 0 | P176: 5 | Q176: =B232 -> 0 | R176: =SUM(C221:C232) -> 0 | S176: =SUM(D221:D232) -> 0 | T176: =SUM(E221:E232) -> 0 | U176: 5 | V176: =G232 -> 0 | W176: =SUM(H221:H232) -> 0 | X176: =SUM(I221:I232) -> 0 | Y176: =SUM(J221:J232) -> 0 | Z176: 5 | AA176: 0 | AB176: 0 | AC176: 0 | AD176: 0
A177: 5 | B177: 0 | C177: 0 | D177: 0 | E177: 0 | F177: 5 | G177: 0 | H177: 0 | I177: 0 | J177: 0 | K177: 5 | L177: 0 | M177: 0 | N177: 0 | O177: 0 | P177: 6 | Q177: =B244 -> 0 | R177: =SUM(C233:C244) -> 0 | S177: =SUM(D233:D244) -> 0 | T177: =SUM(E233:E244) -> 0 | U177: 6 | V177: =G244 -> 0 | W177: =SUM(H233:H244) -> 0 | X177: =SUM(I233:I244) -> 0 | Y177: =SUM(J233:J244) -> 0 | Z177: 6 | AA177: 0 | AB177: 0 | AC177: 0 | AD177: 0
A178: 6 | B178: 0 | C178: 0 | D178: 0 | E178: 0 | F178: 6 | G178: 0 | H178: 0 | I178: 0 | J178: 0 | K178: 6 | L178: 0 | M178: 0 | N178: 0 | O178: 0 | P178: 7 | Q178: =B256 -> 0 | R178: =SUM(C245:C256) -> 0 | S178: =SUM(D245:D256) -> 0 | T178: =SUM(E245:E256) -> 0 | U178: 7 | V178: =G256 -> 0 | W178: =SUM(H245:H256) -> 0 | X178: =SUM(I245:I256) -> 0 | Y178: =SUM(J245:J256) -> 0 | Z178: 7 | AA178: 0 | AB178: 0 | AC178: 0 | AD178: 0
A179: 7 | B179: 0 | C179: 0 | D179: 0 | E179: 0 | F179: 7 | G179: 0 | H179: 0 | I179: 0 | J179: 0 | K179: 7 | L179: 0 | M179: 0 | N179: 0 | O179: 0 | P179: 8 | Q179: =B268 -> 0 | R179: =SUM(C257:C268) -> 0 | S179: =SUM(D257:D268) -> 0 | T179: =SUM(E257:E268) -> 0 | U179: 8 | V179: =G268 -> 0 | W179: =SUM(H257:H268) -> 0 | X179: =SUM(I257:I268) -> 0 | Y179: =SUM(J257:J268) -> 0 | Z179: 8 | AA179: 0 | AB179: 0 | AC179: 0 | AD179: 0
A180: 8 | B180: 0 | C180: 0 | D180: 0 | E180: 0 | F180: 8 | G180: 0 | H180: 0 | I180: 0 | J180: 0 | K180: 8 | L180: 0 | M180: 0 | N180: 0 | O180: 0 | P180: 9 | Q180: =B280 -> 0 | R180: =SUM(C269:C280) -> 0 | S180: =SUM(D269:D280) -> 0 | T180: =SUM(E269:E280) -> 0 | U180: 9 | V180: =G280 -> 0 | W180: =SUM(H269:H280) -> 0 | X180: =SUM(I269:I280) -> 0 | Y180: =SUM(J269:J280) -> 0 | Z180: 9 | AA180: 0 | AB180: 0 | AC180: 0 | AD180: 0
A181: 9 | B181: 0 | C181: 0 | D181: 0 | E181: 0 | F181: 9 | G181: 0 | H181: 0 | I181: 0 | J181: 0 | K181: 9 | L181: 0 | M181: 0 | N181: 0 | O181: 0 | P181: 10 | Q181: =B292 -> 0 | R181: =SUM(C281:C292) -> 0 | S181: =SUM(D281:D292) -> 0 | T181: =SUM(E281:E292) -> 0 | U181: 10 | V181: =G292 -> 0 | W181: =SUM(H281:H292) -> 0 | X181: =SUM(I281:I292) -> 0 | Y181: =SUM(J281:J292) -> 0 | Z181: 10 | AA181: =Q181+V181 -> 0 | AB181: 0 | AC181: 0 | AD181: =T181+Y181 -> 0
A182: 10 | B182: 0 | C182: 0 | D182: 0 | E182: 0 | F182: 10 | G182: 0 | H182: 0 | I182: 0 | J182: 0 | K182: 10 | L182: 0 | M182: 0 | N182: 0 | O182: 0
A183: 11 | B183: 0 | C183: 0 | D183: 0 | E183: 0 | F183: 11 | G183: 0 | H183: 0 | I183: 0 | J183: 0 | K183: 11 | L183: 0 | M183: 0 | N183: 0 | O183: 0
A184: 12 | B184: 0 | C184: 0 | D184: 0 | E184: 0 | F184: 12 | G184: 0 | H184: 0 | I184: 0 | J184: 0 | K184: 12 | L184: 0 | M184: 0 | N184: 0 | O184: 0
A185: 13 | B185: 0 | C185: 0 | D185: 0 | E185: 0 | F185: 13 | G185: 0 | H185: 0 | I185: 0 | J185: 0 | K185: 13 | L185: 0 | M185: 0 | N185: 0 | O185: 0
A186: 14 | B186: 0 | C186: 0 | D186: 0 | E186: 0 | F186: 14 | G186: 0 | H186: 0 | I186: 0 | J186: 0 | K186: 14 | L186: 0 | M186: 0 | N186: 0 | O186: 0
A187: 15 | B187: 0 | C187: 0 | D187: 0 | E187: 0 | F187: 15 | G187: 0 | H187: 0 | I187: 0 | J187: 0 | K187: 15 | L187: 0 | M187: 0 | N187: 0 | O187: 0
A188: 16 | B188: 0 | C188: 0 | D188: 0 | E188: 0 | F188: 16 | G188: 0 | H188: 0 | I188: 0 | J188: 0 | K188: 16 | L188: 0 | M188: 0 | N188: 0 | O188: 0
A189: 17 | B189: 0 | C189: 0 | D189: 0 | E189: 0 | F189: 17 | G189: 0 | H189: 0 | I189: 0 | J189: 0 | K189: 17 | L189: 0 | M189: 0 | N189: 0 | O189: 0
A190: 18 | B190: 0 | C190: 0 | D190: 0 | E190: 0 | F190: 18 | G190: 0 | H190: 0 | I190: 0 | J190: 0 | K190: 18 | L190: 0 | M190: 0 | N190: 0 | O190: 0
A191: 19 | B191: 0 | C191: 0 | D191: 0 | E191: 0 | F191: 19 | G191: 0 | H191: 0 | I191: 0 | J191: 0 | K191: 19 | L191: 0 | M191: 0 | N191: 0 | O191: 0
A192: 20 | B192: 0 | C192: 0 | D192: 0 | E192: 0 | F192: 20 | G192: 0 | H192: 0 | I192: 0 | J192: 0 | K192: 20 | L192: 0 | M192: 0 | N192: 0 | O192: 0
A193: 21 | B193: 0 | C193: 0 | D193: 0 | E193: 0 | F193: 21 | G193: 0 | H193: 0 | I193: 0 | J193: 0 | K193: 21 | L193: 0 | M193: 0 | N193: 0 | O193: 0
A194: 22 | B194: 0 | C194: 0 | D194: 0 | E194: 0 | F194: 22 | G194: 0 | H194: 0 | I194: 0 | J194: 0 | K194: 22 | L194: 0 | M194: 0 | N194: 0 | O194: 0
A195: 23 | B195: 0 | C195: 0 | D195: 0 | E195: 0 | F195: 23 | G195: 0 | H195: 0 | I195: 0 | J195: 0 | K195: 23 | L195: 0 | M195: 0 | N195: 0 | O195: 0
A196: 24 | B196: 0 | C196: 0 | D196: 0 | E196: 0 | F196: 24 | G196: 0 | H196: 0 | I196: 0 | J196: 0 | K196: 24 | L196: 0 | M196: 0 | N196: 0 | O196: 0
A197: 25 | B197: 0 | C197: 0 | D197: 0 | E197: 0 | F197: 25 | G197: 0 | H197: 0 | I197: 0 | J197: 0 | K197: 25 | L197: 0 | M197: 0 | N197: 0 | O197: 0
A198: 26 | B198: 0 | C198: 0 | D198: 0 | E198: 0 | F198: 26 | G198: 0 | H198: 0 | I198: 0 | J198: 0 | K198: 26 | L198: 0 | M198: 0 | N198: 0 | O198: 0
A199: 27 | B199: 0 | C199: 0 | D199: 0 | E199: 0 | F199: 27 | G199: 0 | H199: 0 | I199: 0 | J199: 0 | K199: 27 | L199: 0 | M199: 0 | N199: 0 | O199: 0
A200: 28 | B200: 0 | C200: 0 | D200: 0 | E200: 0 | F200: 28 | G200: 0 | H200: 0 | I200: 0 | J200: 0 | K200: 28 | L200: 0 | M200: 0 | N200: 0 | O200: 0
A201: 29 | B201: 0 | C201: 0 | D201: 0 | E201: 0 | F201: 29 | G201: 0 | H201: 0 | I201: 0 | J201: 0 | K201: 29 | L201: 0 | M201: 0 | N201: 0 | O201: 0
A202: 30 | B202: 0 | C202: 0 | D202: 0 | E202: 0 | F202: 30 | G202: 0 | H202: 0 | I202: 0 | J202: 0 | K202: 30 | L202: 0 | M202: 0 | N202: 0 | O202: 0
A203: 31 | B203: 0 | C203: 0 | D203: 0 | E203: 0 | F203: 31 | G203: 0 | H203: 0 | I203: 0 | J203: 0 | K203: 31 | L203: 0 | M203: 0 | N203: 0 | O203: 0
A204: 32 | B204: 0 | C204: 0 | D204: 0 | E204: 0 | F204: 32 | G204: 0 | H204: 0 | I204: 0 | J204: 0 | K204: 32 | L204: 0 | M204: 0 | N204: 0 | O204: 0
A205: 33 | B205: 0 | C205: 0 | D205: 0 | E205: 0 | F205: 33 | G205: 0 | H205: 0 | I205: 0 | J205: 0 | K205: 33 | L205: 0 | M205: 0 | N205: 0 | O205: 0
A206: 34 | B206: 0 | C206: 0 | D206: 0 | E206: 0 | F206: 34 | G206: 0 | H206: 0 | I206: 0 | J206: 0 | K206: 34 | L206: 0 | M206: 0 | N206: 0 | O206: 0
A207: 35 | B207: 0 | C207: 0 | D207: 0 | E207: 0 | F207: 35 | G207: 0 | H207: 0 | I207: 0 | J207: 0 | K207: 35 | L207: 0 | M207: 0 | N207: 0 | O207: 0
A208: 36 | B208: 0 | C208: 0 | D208: 0 | E208: 0 | F208: 36 | G208: 0 | H208: 0 | I208: 0 | J208: 0 | K208: 36 | L208: 0 | M208: 0 | N208: 0 | O208: 0
A209: 37 | B209: 0 | C209: 0 | D209: 0 | E209: 0 | F209: 37 | G209: 0 | H209: 0 | I209: 0 | J209: 0 | K209: 37 | L209: 0 | M209: 0 | N209: 0 | O209: 0
A210: 38 | B210: 0 | C210: 0 | D210: 0 | E210: 0 | F210: 38 | G210: 0 | H210: 0 | I210: 0 | J210: 0 | K210: 38 | L210: 0 | M210: 0 | N210: 0 | O210: 0
A211: 39 | B211: 0 | C211: 0 | D211: 0 | E211: 0 | F211: 39 | G211: 0 | H211: 0 | I211: 0 | J211: 0 | K211: 39 | L211: 0 | M211: 0 | N211: 0 | O211: 0
A212: 40 | B212: 0 | C212: 0 | D212: 0 | E212: 0 | F212: 40 | G212: 0 | H212: 0 | I212: 0 | J212: 0 | K212: 40 | L212: 0 | M212: 0 | N212: 0 | O212: 0
A213: 41 | B213: 0 | C213: 0 | D213: 0 | E213: 0 | F213: 41 | G213: 0 | H213: 0 | I213: 0 | J213: 0 | K213: 41 | L213: 0 | M213: 0 | N213: 0 | O213: 0
A214: 42 | B214: 0 | C214: 0 | D214: 0 | E214: 0 | F214: 42 | G214: 0 | H214: 0 | I214: 0 | J214: 0 | K214: 42 | L214: 0 | M214: 0 | N214: 0 | O214: 0
A215: 43 | B215: 0 | C215: 0 | D215: 0 | E215: 0 | F215: 43 | G215: 0 | H215: 0 | I215: 0 | J215: 0 | K215: 43 | L215: 0 | M215: 0 | N215: 0 | O215: 0
A216: 44 | B216: 0 | C216: 0 | D216: 0 | E216: 0 | F216: 44 | G216: 0 | H216: 0 | I216: 0 | J216: 0 | K216: 44 | L216: 0 | M216: 0 | N216: 0 | O216: 0
A217: 45 | B217: 0 | C217: 0 | D217: 0 | E217: 0 | F217: 45 | G217: 0 | H217: 0 | I217: 0 | J217: 0 | K217: 45 | L217: 0 | M217: 0 | N217: 0 | O217: 0
A218: 46 | B218: 0 | C218: 0 | D218: 0 | E218: 0 | F218: 46 | G218: 0 | H218: 0 | I218: 0 | J218: 0 | K218: 46 | L218: 0 | M218: 0 | N218: 0 | O218: 0
A219: 47 | B219: 0 | C219: 0 | D219: 0 | E219: 0 | F219: 47 | G219: 0 | H219: 0 | I219: 0 | J219: 0 | K219: 47 | L219: 0 | M219: 0 | N219: 0 | O219: 0
A220: 48 | B220: 0 | C220: 0 | D220: 0 | E220: 0 | F220: 48 | G220: 0 | H220: 0 | I220: 0 | J220: 0 | K220: 48 | L220: 0 | M220: 0 | N220: 0 | O220: 0
A221: 49 | B221: 0 | C221: 0 | D221: 0 | E221: 0 | F221: 49 | G221: 0 | H221: 0 | I221: 0 | J221: 0 | K221: 49 | L221: 0 | M221: 0 | N221: 0 | O221: 0
A222: 50 | B222: 0 | C222: 0 | D222: 0 | E222: 0 | F222: 50 | G222: 0 | H222: 0 | I222: 0 | J222: 0 | K222: 50 | L222: 0 | M222: 0 | N222: 0 | O222: 0
A223: 51 | B223: 0 | C223: 0 | D223: 0 | E223: 0 | F223: 51 | G223: 0 | H223: 0 | I223: 0 | J223: 0 | K223: 51 | L223: 0 | M223: 0 | N223: 0 | O223: 0
A224: 52 | B224: 0 | C224: 0 | D224: 0 | E224: 0 | F224: 52 | G224: 0 | H224: 0 | I224: 0 | J224: 0 | K224: 52 | L224: 0 | M224: 0 | N224: 0 | O224: 0
A225: 53 | B225: 0 | C225: 0 | D225: 0 | E225: 0 | F225: 53 | G225: 0 | H225: 0 | I225: 0 | J225: 0 | K225: 53 | L225: 0 | M225: 0 | N225: 0 | O225: 0
A226: 54 | B226: 0 | C226: 0 | D226: 0 | E226: 0 | F226: 54 | G226: 0 | H226: 0 | I226: 0 | J226: 0 | K226: 54 | L226: 0 | M226: 0 | N226: 0 | O226: 0
A227: 55 | B227: 0 | C227: 0 | D227: 0 | E227: 0 | F227: 55 | G227: 0 | H227: 0 | I227: 0 | J227: 0 | K227: 55 | L227: 0 | M227: 0 | N227: 0 | O227: 0
... 305 more rows

Sheet Hotel
A1: ROI Template - Accommodation
A3: Leveraging Tools | D3: Summary | E3: User override | F3: TOTAL | H3: Investment Targets and Performance
A4: Tax Credits net to project | D4: ='Gap Financing Options'!D116 -> 0 | E4: 0 | F4: =IF('Basic Financial'!$B$33=0,D4,0) -> 0 | H4: Performance Indicator | L4: Target | M4: Actual | N4: NPV
A5: Fee Reductions | D5: ='Gap Financing Options'!D82 -> 0 | E5: 0 | F5: =IF('Basic Financial'!$B$33=0,D5,0) -> 0 | H5: Cash-on-Cash After Year 3 | L5: ='Advanced Financial'!D64 -> 0.1 | M5: =G135 -> 0
A6: Grants | D6: ='Gap Financing Options'!D92 -> 0 | E6: 0 | F6: =IF('Basic Financial'!$B$33=0,D6,('Basic Financial'!$B$33*'Development Costs'!E45)) -> 0 | H6: IRR on Project Cost (Unleveraged Return) | L6: ='Advanced Financial'!D65 -> 0.12 | M6: =N149 -> 0 | N6: =N150 -> 0 | O6: =IF(N149=0, "Check NPV for target","") -> Check NPV for target
A7: Total Development Offsets (Contributions to Equity) | F7: =SUM(F4:F6) -> 0 | H7: IRR on Investor Equity (Leveraged Return Before Tax) | L7: ='Advanced Financial'!D66 -> 0.25 | M7: =N157 -> 0 | N7: =N158 -> 0 | O7: =IF(N157=0, "Check NPV for target","") -> Check NPV for target
A8: Net Development Costs | F8: =(C58-F7) -> 0 | H8: Debt Service Coverage Ratio (Year 3) | L8: ='Advanced Financial'!D67 -> 1.25 | M8: =IFERROR(G130/G131,0) -> 0
H9: IRR on Public Participation | L9: =E112 -> 0.05 | M9: =N167 -> 0 | N9: =N168 -> 0
A13: Local Property Tax Rate Available for abatement | D13: ='Gap Financing Options'!D15 -> 0
A14: Local Sales Tax Rate Available for abatement | D14: ='Gap Financing Options'!D31 -> 0
A16: Net Operating Income Analysis
A17: Total Development Costs | C17: =-'Development Costs'!D45 -> 0
A18: Project Feature | C18: Project | D18: Average Daily Rent
A19: Number of units | C19: ='Physical Outputs'!D34 -> 0 | D19: ='Basic Financial'!B60 -> 50
A20: Total project size, square feet | C20: ='Physical Outputs'!C34 -> 0
A21: Other Income | C21: ='Advanced Financial'!D77 -> 0.1
A22: Less: Vacancy | C22: =1-'Advanced Financial'!C31 -> 0.25
A23: Less: Concessions, Bad Debt | C23: ='Advanced Financial'!D78 -> 0.02
A24: Less: Operating Costs (%of GPI) | C24: ='Advanced Financial'!D79 -> 0.3
A26: Initial Project Value Analysis
A27: Property Value (Year 1)
A28: Going in Cap Rate | D28: ='Advanced Financial'!D80 -> 0.06
A30: Debt Financing
A31: Primary Debt
A32: Maximum LTV | D32: ='Advanced Financial'!D87 -> 0.6
A33: Rate | D33: ='Advanced Financial'!D88 -> 0.06
A34: Amortization Period, Years | D34: ='Advanced Financial'!D89 -> 30
A35: Public Leveraging Loan
A36: Maximum LTV | D36: =IF(D43=1,'Gap Financing Options'!D63,0) -> 0
A37: Rate | D37: =IF(D43=1,'Gap Financing Options'!D64,0) -> 0
A38: Amortization Period, Years | D38: =IF(D43=1,'Gap Financing Options'!D65,0) -> 0
A39: Public Participation
A40: Capital Recovery (from grants) | D40: =IF(D43=1,'Gap Financing Options'!D69,0) -> 0
A41: Annual Cash Throw Off | D41: =IF(D43=1,'Gap Financing Options'!D70,0) -> 0
A42: Share of Net Sales Price | D42: =IF(D43=1,'Gap Financing Options'!D71,0) -> 0
A43: Public Leveraging Loan Included in Analysis?(1=Yes; 0=No) | D43: ='Gap Financing Options'!D62 -> 0
A44: Target IRR | D44: ='Advanced Financial'!D68 -> 0.05
A46: Operating Statement
A47: GPI | C47: Escalation | D47: ='Advanced Financial'!D81 -> 0.03
A48: EGI
A49: Less: Operating Costs | C49: Escalation | D49: ='Advanced Financial'!D82 -> 0.03
A51: Project Value | D51: Year 1
A52: Terminal Cap Rate, Gross Sales Price | D52: ='Advanced Financial'!D83 -> 0.073
A53: Net Sales = Price Less Sales Cost | D53: ='Advanced Financial'!D84 -> 0.05
A57: Net Operating Income Analysis
A58: Total Development Costs | C58: =C17 -> 0
A59: Development Costs Per Unit | C59: =IFERROR(C58/C61,0) -> 0
A60: Project Feature | C60: Project | D60: Average Daily Rent | E60: Total Rent @ 365 Days | F60: Occupied Rooms
A61: Number of units | C61: =C19 -> 0 | D61: =D19 -> 50
A62: Total project size, square feet | C62: =C20 -> 0
A63: Gross Potential Rent (GPI) | E63: =D61*C61*365 -> 0
A64: Other Income | C64: =C21 -> 0.1 | E64: =C64*E63 -> 0
A65: Total Income | E65: =E63+E64 -> 0
A66: Less: Vacancy | C66: =C22 -> 0.25 | E66: =E65*C66 -> 0 | F66: =C61*(1-C66)*365 -> 0
A67: Less: Concessions, Bad Debt | C67: =C23 -> 0.02 | E67: =E65*C67 -> 0
A68: Effective Gross Income (EGI) | E68: =E65-E66-E67 -> 0
A69: Less: Operating Costs (%of GPI) | C69: =C24 -> 0.3 | E69: =C69*E63 -> 0
A70: Net Operating Income | E70: =E68-E69 -> 0
A72: Initial Project Value Analysis
A73: CAP RATE (Yield to Costs) | D73: =IFERROR(E70/F8,0) -> 0
A74: Debt Service | D74: =IFERROR(-E99,0) -> 0
A75: Cash Flow | D75: =E70-D74 -> 0
A76: Return on Equity (Year 1) | D76: =IFERROR(D75/E104,0) -> 0
A77: Property Value (Year 1)
A78: NOI | D78: =E70 -> 0
A79: Going in Cap Rate | D79: =D28 -> 0.06
A80: Project Market Value | D80: =IFERROR(D78/D79,0) -> 0
A81: Net Project Value | D81: =D80-C58 -> 0
A83: Debt Financing
A84: Primary Debt
A85: Total Value | E85: =IF(D80>C58,C58,D80) -> 0
A86: Maximum LTV | D86: =D32 -> 0.6 | E86: =E85*D86 -> 0
A87: Imputed Loan Amount | E87: =E86 -> 0
A88: Rate | E88: =D33 -> 0.06
A89: Amortization Period, Years | E89: =D34 -> 30
A90: Annual Debt Service (Amortized) | E90: =IFERROR(PMT(E88/12,E89*12,E87)*12,0) -> 0
A91: Public Leveraging Loan
A92: Maximum LTV | D92: =IF(D43=1,D36,0) -> 0 | E92: =IF(E85*D92>'Development Costs'!E45*'Gap Financing Options'!B73,'Development Costs'!E45*'Gap Financing Options'!B73,E85*D92) -> 0
A93: Imputed Loan Amount | E93: =IF(AND(D43=1,'Basic Financial'!B33=0),E92+'Gap Financing Options'!D68,0) -> 0
A94: Rate | E94: =IF(D43=1,D37,0) -> 0
A95: Amortization Period, Years | E95: =D38 -> 0
A96: Annual Debt Service (Amortized) | E96: =IFERROR(PMT(E94/12,E95*12,E93)*12,0) -> 0
A98: Total Debt | E98: =E87+E93 -> 0
A99: Total Debt Service | E99: =E90+E96 -> 0
A100: Summary
A101: Total Development Costs | E101: =C58 -> 0
A102: Equity Required | E102: =IF(E101-E98<0,1,E101-E98) -> 0
A103: Total Development Offsets (Contributions to Equity) | E103: =F7 -> 0
A104: Net Equity Required | E104: =E102-E103 -> 0
A105: Total Project Cost | E105: =E101 -> 0
A106: Total Project Cost After Development Offsets | E106: =E105-E103 -> 0
A107: Public Participation
A108: Capital Recovery (from grants) | E108: =D40 -> 0
A109: Annual Cash Throw Off | E109: =D41 -> 0
A110: Share of Net Sales Price | E110: =D42 -> 0
A111: Public Leveraging Loan Included in Analysis? | D111: (1=Yes; 0=No) | E111: =D43 -> 0
A112: Target IRR | E112: =D44 -> 0.05
A116: Operating Statement | E116: Year 1 | F116: Year 2 | G116: Year 3 | H116: Year 4 | I116: Year 5 | J116: Year 6 | K116: Year 7 | L116: Year 8 | M116: Year 9 | N116: Year 10
A117: GPI | C117: Escalation | D117: =D47 -> 0.03 | E117: =E63 -> 0 | F117: =E117*(1+$D$117) -> 0 | G117: 0 | H117: 0 | I117: 0 | J117: 0 | K117: 0 | L117: 0 | M117: 0 | N117: 0
A118: Other Income | E118: =E64 -> 0 | F118: 0 | G118: 0 | H118: 0 | I118: 0 | J118: 0 | K118: 0 | L118: 0 | M118: 0 | N118: 0
A119: Total Income | E119: =E117+E118 -> 0 | F119: 0 | G119: 0 | H119: 0 | I119: 0 | J119: 0 | K119: 0 | L119: 0 | M119: 0 | N119: 0
A120: Less: Vacancy | D120: =C66 -> 0.25 | E120: =$D$120*E119 -> 0 | F120: 0 | G120: 0 | H120: 0 | I120: 0 | J120: 0 | K120: 0 | L120: 0 | M120: 0 | N120: 0
A121: Less: Concessions, Market Loss | D121: =C67 -> 0.02 | E121: =$D$121*E119 -> 0 | F121: 0 | G121: 0 | H121: 0 | I121: 0 | J121: 0 | K121: 0 | L121: 0 | M121: 0 | N121: 0
A122: EGI | E122: =E119-E120-E121 -> 0 | F122: 0 | G122: 0 | H122: 0 | I122: 0 | J122: 0 | K122: 0 | L122: 0 | M122: 0 | N122: 0
A123: Less: Operating Costs | C123: Escalation | D123: =D49 -> 0.03 | E123: =E69 -> 0 | F123: =E123*(1+$D$123) -> 0 | G123: 0 | H123: 0 | I123: 0 | J123: 0 | K123: 0 | L123: 0 | M123: 0 | N123: 0
A124: Less: Property Taxes | C124: Millage Rate | D124: ='Advanced Financial'!D60 -> 0.01 | E124: =$F8*$D124*'Advanced Financial'!$D60 -> 0 | F124: =$F8*$D124*'Advanced Financial'!$D60*(1+$D117) -> 0 | G124: =$F8*$D124*'Advanced Financial'!$D60*(1+$D117)^2 -> 0 | H124: =$F8*$D124*'Advanced Financial'!$D60*(1+$D117)^3 -> 0 | I124: =$F8*$D124*'Advanced Financial'!$D60*(1+$D117)^4 -> 0 | J124: =$F8*$D124*'Advanced Financial'!$D60*(1+$D117)^5 -> 0 | K124: =$F8*$D124*'Advanced Financial'!$D60*(1+$D117)^6 -> 0 | L124: =$F8*$D124*'Advanced Financial'!$D60*(1+$D117)^7 -> 0 | M124: =$F8*$D124*'Advanced Financial'!$D60*(1+$D117)^8 -> 0 | N124: =$F8*$D124*'Advanced Financial'!$D60*(1+$D117)^9 -> 0
A125: Plus Property Tax Abatement | E125: =$D$13*'Advanced Financial'!$D61*$F8*'Gap Financing Options'!D17 -> 0 | F125: =$D$13*'Advanced Financial'!$D61*$F8*(1+$D$117)*'Gap Financing Options'!D18 -> 0 | G125: =$D$13*'Advanced Financial'!$D61*$F8*(1+$D$117)^2*'Gap Financing Options'!D19 -> 0 | H125: =$D$13*'Advanced Financial'!$D61*$F8*(1+$D$117)^3*'Gap Financing Options'!D20 -> 0 | I125: =$D$13*'Advanced Financial'!$D61*$F8*(1+$D$117)^4*'Gap Financing Options'!D21 -> 0 | J125: =$D$13*'Advanced Financial'!$D61*$F8*(1+$D$117)^5*'Gap Financing Options'!D22 -> 0 | K125: =$D$13*'Advanced Financial'!$D61*$F8*(1+$D$117)^6*'Gap Financing Options'!D23 -> 0 | L125: =$D$13*'Advanced Financial'!$D61*$F8*(1+$D$117)^7*'Gap Financing Options'!D24 -> 0 | M125: =$D$13*'Advanced Financial'!$D61*$F8*(1+$D$117)^8*'Gap Financing Options'!D25 -> 0 | N125: =$D$13*'Advanced Financial'!$D61*$F8*(1+$D$117)^9*'Gap Financing Options'!D26 -> 0
A126: Plus Sales Tax Abatement | E126: ='Gap Financing Options'!D33*$D$14*E119 -> 0 | F126: ='Gap Financing Options'!D34*$D$14*F119 -> 0 | G126: ='Gap Financing Options'!D35*$D$14*G119 -> 0 | H126: ='Gap Financing Options'!D36*$D$14*H119 -> 0 | I126: ='Gap Financing Options'!D37*$D$14*I119 -> 0 | J126: ='Gap Financing Options'!D38*$D$14*J119 -> 0 | K126: ='Gap Financing Options'!D39*$D$14*K119 -> 0 | L126: ='Gap Financing Options'!D40*$D$14*L119 -> 0 | M126: ='Gap Financing Options'!D41*$D$14*M119 -> 0 | N126: ='Gap Financing Options'!D42*$D$14*N119 -> 0
A127: Plus TIF + IRA Retainage of Taxes | E127: ='Gap Financing Options'!D48 -> 0 | F127: ='Gap Financing Options'!D49 -> 0 | G127: ='Gap Financing Options'!D50 -> 0 | H127: ='Gap Financing Options'!D51 -> 0 | I127: ='Gap Financing Options'!D52 -> 0 | J127: ='Gap Financing Options'!D53 -> 0 | K127: ='Gap Financing Options'!D54 -> 0 | L127: ='Gap Financing Options'!D55 -> 0 | M127: ='Gap Financing Options'!D56 -> 0 | N127: ='Gap Financing Options'!D57 -> 0
A128: Less Cash Throw Off to Public Partner | E128: =-$E$109 -> 0 | F128: 0 | G128: 0 | H128: 0 | I128: 0 | J128: 0 | K128: 0 | L128: 0 | M128: 0 | N128: 0
A130: NOI | E130: =E122-E124-E123+E125+E126+E128+E127 -> 0 | F130: =F122-F124-F123+F125+F126+F128+F127 -> 0 | G130: 0 | H130: 0 | I130: 0 | J130: 0 | K130: 0 | L130: 0 | M130: 0 | N130: 0
A131: Less: Debt Service | E131: =-$E$99 -> 0 | F131: 0 | G131: 0 | H131: 0 | I131: 0 | J131: 0 | K131: 0 | L131: 0 | M131: 0 | N131: 0
A132: Net Cash Flow | E132: =E130-E131 -> 0 | F132: 0 | G132: 0 | H132: 0 | I132: 0 | J132: 0 | K132: 0 | L132: 0 | M132: 0 | N132: 0
A134: Cap Rate | E134: =IFERROR(E130/$E$101,0) -> 0 | F134: 0 | G134: 0 | H134: 0 | I134: 0 | J134: 0 | K134: 0 | L134: 0 | M134: 0 | N134: 0
A135: Cash on Cash Return (Equity Dividend Rate) | E135: =IFERROR(E132/$E$104,0) -> 0 | F135: =IFERROR(F132/$E$104,0) -> 0 | G135: 0 | H135: 0 | I135: 0 | J135: 0 | K135: 0 | L135: 0 | M135: 0 | N135: 0
A137: Project Value | D137: Year 0 | E137: Year 1 | F137: Year 2 | G137: Year 3 | H137: Year 4 | I137: Year 5 | J137: Year 6 | K137: Year 7 | L137: Year 8 | M137: Year 9 | N137: Year 10
A138: Terminal Cap Rate, Gross Sales Price | E138: =D52 -> 0.073 | N138: =IFERROR(N130/E138,0) -> 0
A139: Net Sales = Price Less Sales Cost | E139: =D53 -> 0.05 | N139: =N138*(1-E139) -> 0
A140: Less Mortgage Balance | N140: =AA184 -> 0
A141: Net Sales Proceeds | N141: =N139-N140 -> 0
A144: IRR - Unleveraged (Project Cost) | D144: Year 0 | E144: Year 1 | F144: Year 2 | G144: Year 3 | H144: Year 4 | I144: Year 5 | J144: Year 6 | K144: Year 7 | L144: Year 8 | M144: Year 9 | N144: Year 10
A145: Total Investment | D145: =-E106 -> 0
A146: Project NOI | E146: =E130 -> 0 | F146: 0 | G146: 0 | H146: 0 | I146: 0 | J146: 0 | K146: 0 | L146: 0 | M146: 0 | N146: 0
A147: Net Sales Price | N147: =N139 -> 0
A148: Total | D148: =SUM(D145:D147) -> 0 | E148: =SUM(E145:E147) -> 0 | F148: =SUM(F145:F147) -> 0 | G148: 0 | H148: 0 | I148: 0 | J148: 0 | K148: 0 | L148: 0 | M148: 0 | N148: 0
A149: IRR - Project Cost | N149: =IFERROR(IRR(D148:N148),0) -> 0
A150: NPV - Project Cost | N150: =NPV($L$6,D148:N148) -> 0
A152: IRR - Leveraged (Before Tax) | D152: Year 0 | E152: Year 1 | F152: Year 2 | G152: Year 3 | H152: Year 4 | I152: Year 5 | J152: Year 6 | K152: Year 7 | L152: Year 8 | M152: Year 9 | N152: Year 10
A153: Original Investment (Equity) | D153: =-E104 -> 0
A154: Project Cash Flow | E154: =E132 -> 0 | F154: 0 | G154: 0 | H154: 0 | I154: 0 | J154: 0 | K154: 0 | L154: 0 | M154: 0 | N154: 0
A155: Net Sales Proceeds | N155: =N141 -> 0
A156: Total | D156: =SUM(D153:D155) -> 0 | E156: =SUM(E153:E155) -> 0 | F156: 0 | G156: 0 | H156: 0 | I156: 0 | J156: 0 | K156: 0 | L156: 0 | M156: 0 | N156: 0
A157: IRR - Equity | N157: =IFERROR(IRR(D156:N156),0) -> 0
A158: NPV - Equity | N158: =NPV($L$7,D156:N156) -> 0
A160: IRR - Public Participation | D160: Year 0 | E160: Year 1 | F160: Year 2 | G160: Year 3 | H160: Year 4 | I160: Year 5 | J160: Year 6 | K160: Year 7 | L160: Year 8 | M160: Year 9 | N160: Year 10
A161: Original Investment (Equity) | D161: =-(E108+(E93*E111)) -> 0
A162: Mezzanine Financing | E162: =-$E$96 -> 0 | F162: 0 | G162: 0 | H162: 0 | I162: 0 | J162: 0 | K162: 0 | L162: 0 | M162: 0 | N162: 0
A163: Cash Throw Off | E163: =$E$109 -> 0 | F163: 0 | G163: 0 | H163: 0 | I163: 0 | J163: 0 | K163: 0 | L163: 0 | M163: 0 | N163: 0
A164: Sale Proceeds | N164: =N155*E110 -> 0
A165: Loan Balance | N165: =V184*E111 -> 0
A166: Total | D166: =SUM(D161:D165) -> 0 | E166: =SUM(E161:E165) -> 0 | F166: 0 | G166: 0 | H166: 0 | I166: 0 | J166: 0 | K166: 0 | L166: 0 | M166: 0 | N166: 0
A167: IRR - Equity | N167: =IFERROR(IRR(D166:N166),0) -> 0
A168: NPV - Equity | N168: =NPV($E$112,D166:N166) -> 0
A171: DEBT SERVICE MORTIZATION TABLES
A172: Primary Debt Amortization | F172: Low Interest Loan | K172: Total Debt Amortization | P172: Annual Debt Service Summary - Primary Debt | U172: Annual Debt Service Summary - Secondary Debt | Z172: Annual Debt Service Summary - Total Debt
A174: Period | B174: Balance | C174: Payment | D174: Interest | E174: Principal | F174: Period | G174: Balance | H174: Payment | I174: Interest | J174: Principal | K174: Period | L174: Balance | M174: Payment | N174: Interest | O174: Principal | P174: Year | Q174: Balance | R174: Payment | S174: Interest | T174: Principal | U174: Year | V174: Balance | W174: Payment | X174: Interest | Y174: Principal | Z174: Year | AA174: Balance | AB174: Payment | AC174: Interest | AD174: Principal
A175: 0 | B175: =E87 -> 0 | F175: 0 | G175: =E93 -> 0 | K175: 0 | L175: =B175+G175 -> 0 | P175: 1 | Q175: =B187 -> 0 | R175: =SUM(C176:C187) -> 0 | S175: =SUM(D176:D187) -> 0 | T175: 0 | U175: 1 | V175: =G187 -> 0 | W175: =SUM(H176:H187) -> 0 | X175: =SUM(I176:I187) -> 0 | Y175: =SUM(J176:J187) -> 0 | Z175: 1 | AA175: =Q175+V175 -> 0 | AB175: =R175+W175 -> 0 | AC175: 0 | AD175: =T175+Y175 -> 0
A176: 1 | B176: =B175-E176 -> 0 | C176: =-$E$90/12 -> 0 | D176: =$E$88/12*B175 -> 0 | E176: =C176-D176 -> 0 | F176: 1 | G176: =G175-J176 -> 0 | H176: =-$E$96/12 -> 0 | I176: =$E$94/12*G175 -> 0 | J176: =H176-I176 -> 0 | K176: 1 | L176: =G176+B176 -> 0 | M176: 0 | N176: 0 | O176: 0 | P176: 2 | Q176: =B199 -> 0 | R176: =SUM(C188:C199) -> 0 | S176: =SUM(D188:D199) -> 0 | T176: 0 | U176: 2 | V176: =G199 -> 0 | W176: =SUM(H188:H199) -> 0 | X176: =SUM(I188:I199) -> 0 | Y176: =SUM(J188:J199) -> 0 | Z176: 2 | AA176: =Q176+V176 -> 0 | AB176: =R176+W176 -> 0 | AC176: =S176+X176 -> 0 | AD176: =T176+Y176 -> 0
A177: =A176+1 -> 2 | B177: 0 | C177: 0 | D177: 0 | E177: 0 | F177: =F176+1 -> 2 | G177: 0 | H177: 0 | I177: 0 | J177: 0 | K177: =K176+1 -> 2 | L177: 0 | M177: 0 | N177: 0 | O177: 0 | P177: 3 | Q177: =B211 -> 0 | R177: =SUM(C200:C211) -> 0 | S177: =SUM(D200:D211) -> 0 | T177: 0 | U177: 3 | V177: =G211 -> 0 | W177: =SUM(H200:H211) -> 0 | X177: =SUM(I200:I211) -> 0 | Y177: =SUM(J200:J211) -> 0 | Z177: 3 | AA177: 0 | AB177: 0 | AC177: 0 | AD177: 0
A178: 3 | B178: 0 | C178: 0 | D178: 0 | E178: 0 | F178: 3 | G178: 0 | H178: 0 | I178: 0 | J178: 0 | K178: 3 | L178: 0 | M178: 0 | N178: 0 | O178: 0 | P178: 4 | Q178: =B223 -> 0 | R178: =SUM(C212:C223) -> 0 | S178: =SUM(D212:D223) -> 0 | T178: 0 | U178: 4 | V178: =G223 -> 0 | W178: =SUM(H212:H223) -> 0 | X178: =SUM(I212:I223) -> 0 | Y178: =SUM(J212:J223) -> 0 | Z178: 4 | AA178: 0 | AB178: 0 | AC178: 0 | AD178: 0
A179: 4 | B179: 0 | C179: 0 | D179: 0 | E179: 0 | F179: 4 | G179: 0 | H179: 0 | I179: 0 | J179: 0 | K179: 4 | L179: 0 | M179: 0 | N179: 0 | O179: 0 | P179: 5 | Q179: =B235 -> 0 | R179: =SUM(C224:C235) -> 0 | S179: =SUM(D224:D235) -> 0 | T179: 0 | U179: 5 | V179: =G235 -> 0 | W179: =SUM(H224:H235) -> 0 | X179: =SUM(I224:I235) -> 0 | Y179: =SUM(J224:J235) -> 0 | Z179: 5 | AA179: 0 | AB179: 0 | AC179: 0 | AD179: 0
A180: 5 | B180: 0 | C180: 0 | D180: 0 | E180: 0 | F180: 5 | G180: 0 | H180: 0 | I180: 0 | J180: 0 | K180: 5 | L180: 0 | M180: 0 | N180: 0 | O180: 0 | P180: 6 | Q180: =B247 -> 0 | R180: =SUM(C236:C247) -> 0 | S180: =SUM(D236:D247) -> 0 | T180: 0 | U180: 6 | V180: =G247 -> 0 | W180: =SUM(H236:H247) -> 0 | X180: =SUM(I236:I247) -> 0 | Y180: =SUM(J236:J247) -> 0 | Z180: 6 | AA180: 0 | AB180: 0 | AC180: 0 | AD180: 0
A181: 6 | B181: 0 | C181: 0 | D181: 0 | E181: 0 | F181: 6 | G181: 0 | H181: 0 | I181: 0 | J181: 0 | K181: 6 | L181: 0 | M181: 0 | N181: 0 | O181: 0 | P181: 7 | Q181: =B259 -> 0 | R181: =SUM(C248:C259) -> 0 | S181: =SUM(D248:D259) -> 0 | T181: 0 | U181: 7 | V181: =G259 -> 0 | W181: =SUM(H248:H259) -> 0 | X181: =SUM(I248:I259) -> 0 | Y181: =SUM(J248:J259) -> 0 | Z181: 7 | AA181: 0 | AB181: 0 | AC181: 0 | AD181: 0
A182: 7 | B182: 0 | C182: 0 | D182: 0 | E182: 0 | F182: 7 | G182: 0 | H182: 0 | I182: 0 | J182: 0 | K182: 7 | L182: 0 | M182: 0 | N182: 0 | O182: 0 | P182: 8 | Q182: =B271 -> 0 | R182: =SUM(C260:C271) -> 0 | S182: =SUM(D260:D271) -> 0 | T182: 0 | U182: 8 | V182: =G271 -> 0 | W182: =SUM(H260:H271) -> 0 | X182: =SUM(I260:I271) -> 0 | Y182: =SUM(J260:J271) -> 0 | Z182: 8 | AA182: 0 | AB182: 0 | AC182: 0 | AD182: 0
A183: 8 | B183: 0 | C183: 0 | D183: 0 | E183: 0 | F183: 8 | G183: 0 | H183: 0 | I183: 0 | J183: 0 | K183: 8 | L183: 0 | M183: 0 | N183: 0 | O183: 0 | P183: 9 | Q183: =B283 -> 0 | R183: =SUM(C272:C283) -> 0 | S183: =SUM(D272:D283) -> 0 | T183: 0 | U183: 9 | V183: =G283 -> 0 | W183: =SUM(H272:H283) -> 0 | X183: =SUM(I272:I283) -> 0 | Y183: =SUM(J272:J283) -> 0 | Z183: 9 | AA183: 0 | AB183: 0 | AC183: 0 | AD183: 0
A184: 9 | B184: 0 | C184: 0 | D184: 0 | E184: 0 | F184: 9 | G184: 0 | H184: 0 | I184: 0 | J184: 0 | K184: 9 | L184: 0 | M184: 0 | N184: 0 | O184: 0 | P184: 10 | Q184: =B295 -> 0 | R184: =SUM(C284:C295) -> 0 | S184: =SUM(D284:D295) -> 0 | T184: 0 | U184: 10 | V184: =G295 -> 0 | W184: =SUM(H284:H295) -> 0 | X184: =SUM(I284:I295) -> 0 | Y184: =SUM(J284:J295) -> 0 | Z184: 10 | AA184: =Q184+V184 -> 0 | AB184: =R184+W184 -> 0 | AC184: 0 | AD184: =T184+Y184 -> 0
A185: 10 | B185: 0 | C185: 0 | D185: 0 | E185: 0 | F185: 10 | G185: 0 | H185: 0 | I185: 0 | J185: 0 | K185: 10 | L185: 0 | M185: 0 | N185: 0 | O185: 0
A186: 11 | B186: 0 | C186: 0 | D186: 0 | E186: 0 | F186: 11 | G186: 0 | H186: 0 | I186: 0 | J186: 0 | K186: 11 | L186: 0 | M186: 0 | N186: 0 | O186: 0
A187: 12 | B187: 0 | C187: 0 | D187: 0 | E187: 0 | F187: 12 | G187: 0 | H187: 0 | I187: 0 | J187: 0 | K187: 12 | L187: 0 | M187: 0 | N187: 0 | O187: 0
A188: 13 | B188: 0 | C188: 0 | D188: 0 | E188: 0 | F188: 13 | G188: 0 | H188: 0 | I188: 0 | J188: 0 | K188: 13 | L188: 0 | M188: 0 | N188: 0 | O188: 0
A189: 14 | B189: 0 | C189: 0 | D189: 0 | E189: 0 | F189: 14 | G189: 0 | H189: 0 | I189: 0 | J189: 0 | K189: 14 | L189: 0 | M189: 0 | N189: 0 | O189: 0
A190: 15 | B190: 0 | C190: 0 | D190: 0 | E190: 0 | F190: 15 | G190: 0 | H190: 0 | I190: 0 | J190: 0 | K190: 15 | L190: 0 | M190: 0 | N190: 0 | O190: 0
A191: 16 | B191: 0 | C191: 0 | D191: 0 | E191: 0 | F191: 16 | G191: 0 | H191: 0 | I191: 0 | J191: 0 | K191: 16 | L191: 0 | M191: 0 | N191: 0 | O191: 0
A192: 17 | B192: 0 | C192: 0 | D192: 0 | E192: 0 | F192: 17 | G192: 0 | H192: 0 | I192: 0 | J192: 0 | K192: 17 | L192: 0 | M192: 0 | N192: 0 | O192: 0
A193: 18 | B193: 0 | C193: 0 | D193: 0 | E193: 0 | F193: 18 | G193: 0 | H193: 0 | I193: 0 | J193: 0 | K193: 18 | L193: 0 | M193: 0 | N193: 0 | O193: 0
A194: 19 | B194: 0 | C194: 0 | D194: 0 | E194: 0 | F194: 19 | G194: 0 | H194: 0 | I194: 0 | J194: 0 | K194: 19 | L194: 0 | M194: 0 | N194: 0 | O194: 0
A195: 20 | B195: 0 | C195: 0 | D195: 0 | E195: 0 | F195: 20 | G195: 0 | H195: 0 | I195: 0 | J195: 0 | K195: 20 | L195: 0 | M195: 0 | N195: 0 | O195: 0
A196: 21 | B196: 0 | C196: 0 | D196: 0 | E196: 0 | F196: 21 | G196: 0 | H196: 0 | I196: 0 | J196: 0 | K196: 21 | L196: 0 | M196: 0 | N196: 0 | O196: 0
A197: 22 | B197: 0 | C197: 0 | D197: 0 | E197: 0 | F197: 22 | G197: 0 | H197: 0 | I197: 0 | J197: 0 | K197: 22 | L197: 0 | M197: 0 | N197: 0 | O197: 0
A198: 23 | B198: 0 | C198: 0 | D198: 0 | E198: 0 | F198: 23 | G198: 0 | H198: 0 | I198: 0 | J198: 0 | K198: 23 | L198: 0 | M198: 0 | N198: 0 | O198: 0
A199: 24 | B199: 0 | C199: 0 | D199: 0 | E199: 0 | F199: 24 | G199: 0 | H199: 0 | I199: 0 | J199: 0 | K199: 24 | L199: 0 | M199: 0 | N199: 0 | O199: 0
A200: 25 | B200: 0 | C200: 0 | D200: 0 | E200: 0 | F200: 25 | G200: 0 | H200: 0 | I200: 0 | J200: 0 | K200: 25 | L200: 0 | M200: 0 | N200: 0 | O200: 0
A201: 26 | B201: 0 | C201: 0 | D201: 0 | E201: 0 | F201: 26 | G201: 0 | H201: 0 | I201: 0 | J201: 0 | K201: 26 | L201: 0 | M201: 0 | N201: 0 | O201: 0
A202: 27 | B202: 0 | C202: 0 | D202: 0 | E202: 0 | F202: 27 | G202: 0 | H202: 0 | I202: 0 | J202: 0 | K202: 27 | L202: 0 | M202: 0 | N202: 0 | O202: 0
A203: 28 | B203: 0 | C203: 0 | D203: 0 | E203: 0 | F203: 28 | G203: 0 | H203: 0 | I203: 0 | J203: 0 | K203: 28 | L203: 0 | M203: 0 | N203: 0 | O203: 0
A204: 29 | B204: 0 | C204: 0 | D204: 0 | E204: 0 | F204: 29 | G204: 0 | H204: 0 | I204: 0 | J204: 0 | K204: 29 | L204: 0 | M204: 0 | N204: 0 | O204: 0
A205: 30 | B205: 0 | C205: 0 | D205: 0 | E205: 0 | F205: 30 | G205: 0 | H205: 0 | I205: 0 | J205: 0 | K205: 30 | L205: 0 | M205: 0 | N205: 0 | O205: 0
A206: 31 | B206: 0 | C206: 0 | D206: 0 | E206: 0 | F206: 31 | G206: 0 | H206: 0 | I206: 0 | J206: 0 | K206: 31 | L206: 0 | M206: 0 | N206: 0 | O206: 0
A207: 32 | B207: 0 | C207: 0 | D207: 0 | E207: 0 | F207: 32 | G207: 0 | H207: 0 | I207: 0 | J207: 0 | K207: 32 | L207: 0 | M207: 0 | N207: 0 | O207: 0
A208: 33 | B208: 0 | C208: 0 | D208: 0 | E208: 0 | F208: 33 | G208: 0 | H208: 0 | I208: 0 | J208: 0 | K208: 33 | L208: 0 | M208: 0 | N208: 0 | O208: 0
A209: 34 | B209: 0 | C209: 0 | D209: 0 | E209: 0 | F209: 34 | G209: 0 | H209: 0 | I209: 0 | J209: 0 | K209: 34 | L209: 0 | M209: 0 | N209: 0 | O209: 0
A210: 35 | B210: 0 | C210: 0 | D210: 0 | E210: 0 | F210: 35 | G210: 0 | H210: 0 | I210: 0 | J210: 0 | K210: 35 | L210: 0 | M210: 0 | N210: 0 | O210: 0
A211: 36 | B211: 0 | C211: 0 | D211: 0 | E211: 0 | F211: 36 | G211: 0 | H211: 0 | I211: 0 | J211: 0 | K211: 36 | L211: 0 | M211: 0 | N211: 0 | O211: 0
A212: 37 | B212: 0 | C212: 0 | D212: 0 | E212: 0 | F212: 37 | G212: 0 | H212: 0 | I212: 0 | J212: 0 | K212: 37 | L212: 0 | M212: 0 | N212: 0 | O212: 0
A213: 38 | B213: 0 | C213: 0 | D213: 0 | E213: 0 | F213: 38 | G213: 0 | H213: 0 | I213: 0 | J213: 0 | K213: 38 | L213: 0 | M213: 0 | N213: 0 | O213: 0
A214: 39 | B214: 0 | C214: 0 | D214: 0 | E214: 0 | F214: 39 | G214: 0 | H214: 0 | I214: 0 | J214: 0 | K214: 39 | L214: 0 | M214: 0 | N214: 0 | O214: 0
A215: 40 | B215: 0 | C215: 0 | D215: 0 | E215: 0 | F215: 40 | G215: 0 | H215: 0 | I215: 0 | J215: 0 | K215: 40 | L215: 0 | M215: 0 | N215: 0 | O215: 0
A216: 41 | B216: 0 | C216: 0 | D216: 0 | E216: 0 | F216: 41 | G216: 0 | H216: 0 | I216: 0 | J216: 0 | K216: 41 | L216: 0 | M216: 0 | N216: 0 | O216: 0
A217: 42 | B217: 0 | C217: 0 | D217: 0 | E217: 0 | F217: 42 | G217: 0 | H217: 0 | I217: 0 | J217: 0 | K217: 42 | L217: 0 | M217: 0 | N217: 0 | O217: 0
A218: 43 | B218: 0 | C218: 0 | D218: 0 | E218: 0 | F218: 43 | G218: 0 | H218: 0 | I218: 0 | J218: 0 | K218: 43 | L218: 0 | M218: 0 | N218: 0 | O218: 0
A219: 44 | B219: 0 | C219: 0 | D219: 0 | E219: 0 | F219: 44 | G219: 0 | H219: 0 | I219: 0 | J219: 0 | K219: 44 | L219: 0 | M219: 0 | N219: 0 | O219: 0
A220: 45 | B220: 0 | C220: 0 | D220: 0 | E220: 0 | F220: 45 | G220: 0 | H220: 0 | I220: 0 | J220: 0 | K220: 45 | L220: 0 | M220: 0 | N220: 0 | O220: 0
A221: 46 | B221: 0 | C221: 0 | D221: 0 | E221: 0 | F221: 46 | G221: 0 | H221: 0 | I221: 0 | J221: 0 | K221: 46 | L221: 0 | M221: 0 | N221: 0 | O221: 0
A222: 47 | B222: 0 | C222: 0 | D222: 0 | E222: 0 | F222: 47 | G222: 0 | H222: 0 | I222: 0 | J222: 0 | K222: 47 | L222: 0 | M222: 0 | N222: 0 | O222: 0
A223: 48 | B223: 0 | C223: 0 | D223: 0 | E223: 0 | F223: 48 | G223: 0 | H223: 0 | I223: 0 | J223: 0 | K223: 48 | L223: 0 | M223: 0 | N223: 0 | O223: 0
A224: 49 | B224: 0 | C224: 0 | D224: 0 | E224: 0 | F224: 49 | G224: 0 | H224: 0 | I224: 0 | J224: 0 | K224: 49 | L224: 0 | M224: 0 | N224: 0 | O224: 0
A225: 50 | B225: 0 | C225: 0 | D225: 0 | E225: 0 | F225: 50 | G225: 0 | H225: 0 | I225: 0 | J225: 0 | K225: 50 | L225: 0 | M225: 0 | N225: 0 | O225: 0
A226: 51 | B226: 0 | C226: 0 | D226: 0 | E226: 0 | F226: 51 | G226: 0 | H226: 0 | I226: 0 | J226: 0 | K226: 51 | L226: 0 | M226: 0 | N226: 0 | O226: 0
A227: 52 | B227: 0 | C227: 0 | D227: 0 | E227: 0 | F227: 52 | G227: 0 | H227: 0 | I227: 0 | J227: 0 | K227: 52 | L227: 0 | M227: 0 | N227: 0 | O227: 0
A228: 53 | B228: 0 | C228: 0 | D228: 0 | E228: 0 | F228: 53 | G228: 0 | H228: 0 | I228: 0 | J228: 0 | K228: 53 | L228: 0 | M228: 0 | N228: 0 | O228: 0
... 307 more rows

Sheet Commercial Parking
A1: ROI Template - Commercial Parking
A3: Leveraging Tools | D3: Summary | E3: User override | F3: TOTAL | H3: Investment Targets and Performance
A4: Tax Credits net to project | D4: ='Gap Financing Options'!H116 -> 0 | E4: 0 | F4: =IF('Basic Financial'!$B$33=0,D4,0) -> 0 | H4: Performance Indicator | L4: Target | M4: Actual | N4: NPV
A5: Fee Reductions | D5: ='Gap Financing Options'!H82 -> 0 | E5: 0 | F5: =IF('Basic Financial'!$B$33=0,D5,0) -> 0 | H5: Cash-on-Cash After Year 3 | L5: ='Advanced Financial'!H64 -> 0.1 | M5: =G135 -> 0
A6: Grants | D6: ='Gap Financing Options'!H92 -> 0 | E6: 0 | F6: =IF('Basic Financial'!$B$33=0,D6,('Basic Financial'!$B$33*'Development Costs'!E46)) -> 0 | H6: IRR on Project Cost (Unleveraged Return) | L6: ='Advanced Financial'!H65 -> 0.12 | M6: =N149 -> 0 | N6: =N150 -> 0
A7: Total Development Offsets (Contributions to Equity) | F7: =SUM(F4:F6) -> 0 | H7: IRR on Investor Equity (Leveraged Return Before Tax) | L7: ='Advanced Financial'!H66 -> 0.25 | M7: =N157 -> 0 | N7: =N158 -> 0
A8: Net Development Costs | F8: =(D57-F7) -> 0 | H8: Debt Service Coverage Ratio (Year 3) | L8: ='Advanced Financial'!H67 -> 1.25 | M8: =IFERROR(G129/G131,0) -> 0
H9: IRR on Public Participation | L9: =E112 -> 0.05 | M9: =N167 -> 0 | N9: =N168 -> 0
A13: Local Property Tax Rate Available for abatement | D13: ='Gap Financing Options'!H15 -> 0
A14: Local Sales Tax Rate Available for abatement | D14: ='Gap Financing Options'!H31 -> 0
A16: Net Operating Income Analysis
A17: Total Development Costs | D17: =-'Development Costs'!D46 -> 0
A18: Project Feature | D18: Project | E18: Rent
A19: Total project size, square feet | D19: ='Physical Outputs'!C35 -> 0 | E19: =('Basic Financial'!B61/'Physical Inputs'!C98)*'Advanced Financial'!B23*12*365 -> 16.00384615 | F19: per square foot/year
A21: Other Income | D21: ='Advanced Financial'!H77 -> 0
A22: Less: Vacancy | D22: =1-'Advanced Financial'!C35 -> 0.3
A23: Less: Concessions, Bad Debt | D23: ='Advanced Financial'!H78 -> 0
A24: Less: Operating Costs/sq.ft. | D24: ='Advanced Financial'!H79/'Physical Inputs'!C98 -> 3.076923077
A26: Initial Project Value Analysis
A27: Property Value (Year 1)
A28: Going in Cap Rate | D28: ='Advanced Financial'!H80 -> 0
A30: Debt Financing
A31: Primary Debt
A32: Maximum LTV | D32: ='Advanced Financial'!H87 -> 0.6
A33: Rate | D33: ='Advanced Financial'!H88 -> 0.06
A34: Amortization Period, Years | D34: ='Advanced Financial'!H89 -> 30
A35: Public Leveraging Loan
A36: Maximum LTV | D36: =IF(D43=1,'Gap Financing Options'!I63,0) -> 0
A37: Rate | D37: =IF(D43=1,'Gap Financing Options'!I64,0) -> 0
A38: Amortization Period, Years | D38: =IF(D43=1,'Gap Financing Options'!I65,0) -> 0
A39: Public Participation
A40: Capital Investment | D40: =IF(D43=1,'Gap Financing Options'!I69,0) -> 0
A41: Annual Cash Throw Off | D41: =IF(D43=1,'Gap Financing Options'!I70,0) -> 0
A42: Share of Net Sales Price | D42: =IF(D43=1,'Gap Financing Options'!I71,0) -> 0
A43: Public Leveraging Loan Included in Analysis?(1=Yes; 0=No) | D43: ='Gap Financing Options'!I62 -> 0
A44: Target IRR | D44: ='Advanced Financial'!H68 -> 0.05
A46: Operating Statement
A47: GPI | C47: Escalation | D47: ='Advanced Financial'!H81 -> 0
A48: EGI
A49: Less: Operating Costs | C49: Escalation | D49: ='Advanced Financial'!H82 -> 0
A51: Project Value | D51: Year 1
A52: Terminal Cap Rate, Gross Sales Price | D52: ='Advanced Financial'!H83 -> 0
A53: Net Sales = Price Less Sales Cost | D53: ='Advanced Financial'!H84 -> 0
A56: Net Operating Income Analysis
A57: Total Development Costs | D57: =D17 -> 0
A58: Development Costs Per Sq Ft | D58: =IFERROR(D57/D60,0) -> 0
A59: Project Feature | D59: Project | E59: Rent
A60: Total project size, square feet | D60: =D19 -> 0 | E60: =E19 -> 16.00384615 | F60: per square foot/year
A61: Projected Sales per Square Foot | E61: =E20 -> 0
A62: Rental Income from Sales Assessment | E62: =(D60*E61)*'Advanced Financial'!H76 -> 0
A63: Gross Potential Rent (GPI) | E63: =(D60*E60)+E62 -> 0
A64: Other Income | D64: =D21 -> 0 | E64: =D64*E63 -> 0
A65: Total Income | E65: =E63+E64 -> 0
A66: Less: Vacancy | D66: =D22 -> 0.3 | E66: =E65*D66 -> 0
A67: Less: Concessions, Bad Debt | D67: =D23 -> 0 | E67: =E65*D67 -> 0
A68: Effective Gross Income (EGI) | E68: =E65-E66-E67 -> 0
A69: Less: Operating Costs/sq.ft. | D69: =D24 -> 3.076923077 | E69: =D69*D60 -> 0
A70: Net Operating Income | E70: =E68-E69 -> 0
A72: Initial Project Value Analysis
A73: CAP RATE (Yield to Costs) | D73: =IFERROR(E70/F8,0) -> 0
A74: Debt Service | D74: =IFERROR(-E99,0) -> 0
A75: Cash Flow | D75: =E70-D74 -> 0
A76: Return on Equity (Year 1) | D76: =IFERROR(D75/E104,0) -> 0
A77: Property Value (Year 1)
A78: NOI | D78: =E70 -> 0
A79: Going in Cap Rate | D79: =D28 -> 0
A80: Project Market Value | D80: =IFERROR(D78/D79,0) -> 0
A81: Net Project Value | D81: =D80-D57 -> 0
A83: Debt Financing
A84: Primary Debt
A85: Total Value | E85: =IF(D80>D57,D57,D80) -> 0
A86: Maximum LTV | D86: =D32 -> 0.6 | E86: =E85*D86 -> 0
A87: Imputed Loan Amount | E87: =E86 -> 0
A88: Rate | E88: =D33 -> 0.06
A89: Amortization Period, Years | E89: =D34 -> 30
A90: Annual Debt Service (Amortized) | E90: =IFERROR(PMT(E88/12,E89*12,E87)*12,0) -> 0
A91: Public Leveraging Loan
A92: Maximum LTV | D92: =IF(D43=1,D36,0) -> 0 | E92: =IF(E85*D92>'Gap Financing Options'!B73*'Development Costs'!E46,'Gap Financing Options'!B73*'Development Costs'!E46,E85*D92) -> 0
A93: Imputed Loan Amount | E93: =IF(AND(D43=1,'Basic Financial'!B33=0),E92+'Gap Financing Options'!I68,0) -> 0
A94: Rate | E94: =IF(D43=1,D37,0) -> 0
A95: Amortization Period, Years | E95: =IF(D43=1,D38,0) -> 0
A96: Annual Debt Service (Amortized) | E96: =IFERROR(PMT(E94/12,E95*12,E93)*12,0) -> 0
A98: Total Debt | E98: =E87+E93 -> 0
A99: Total Debt Service | E99: =E90+E96 -> 0
A100: Summary
A101: Total Development Costs | E101: =D57 -> 0
A102: Equity Required | E102: =IF(E101-E98<0,1,E101-E98) -> 0
A103: Total Development Offsets (Contributions to Equity) | E103: =F7 -> 0
A104: Net Equity Required | E104: =E102-E103 -> 0
A105: Total Project Cost | E105: =E101 -> 0
A106: Total Project Cost After Development Offsets | E106: =E105-E103 -> 0
A107: Public Participation
A108: Capital Investment | E108: =D40 -> 0
A109: Annual Cash Throw Off | E109: =D41 -> 0
A110: Share of Net Sales Price | E110: =D42 -> 0
A111: Public Leveraging Loan Included in Analysis? | D111: (1=Yes; 0=No) | E111: =D43 -> 0
A112: Target IRR | E112: =D44 -> 0.05
A116: Operating Statement | E116: Year 1 | F116: Year 2 | G116: Year 3 | H116: Year 4 | I116: Year 5 | J116: Year 6 | K116: Year 7 | L116: Year 8 | M116: Year 9 | N116: Year 10
A117: GPI | C117: Escalation | D117: =D47 -> 0 | E117: =E63 -> 0 | F117: =E117*(1+$D$117) -> 0 | G117: 0 | H117: 0 | I117: 0 | J117: 0 | K117: 0 | L117: 0 | M117: 0 | N117: 0
A118: Other Income | E118: =E64 -> 0 | F118: 0 | G118: 0 | H118: 0 | I118: 0 | J118: 0 | K118: 0 | L118: 0 | M118: 0 | N118: 0
A119: Total Income | E119: =E117+E118 -> 0 | F119: 0 | G119: 0 | H119: 0 | I119: 0 | J119: 0 | K119: 0 | L119: 0 | M119: 0 | N119: 0
A120: Less: Vacancy | D120: =D66 -> 0.3 | E120: =$D$120*E119 -> 0 | F120: 0 | G120: 0 | H120: 0 | I120: 0 | J120: 0 | K120: 0 | L120: 0 | M120: 0 | N120: 0
A121: Less: Concessions, Market Loss | D121: =D67 -> 0 | E121: =$D$121*E119 -> 0 | F121: 0 | G121: 0 | H121: 0 | I121: 0 | J121: 0 | K121: 0 | L121: 0 | M121: 0 | N121: 0
A122: EGI | E122: =E119-E120-E121 -> 0 | F122: 0 | G122: 0 | H122: 0 | I122: 0 | J122: 0 | K122: 0 | L122: 0 | M122: 0 | N122: 0
A123: Less: Operating Costs | C123: Escalation | D123: =D49 -> 0 | E123: =E69 -> 0 | F123: =E123*(1+$D$123) -> 0 | G123: 0 | H123: 0 | I123: 0 | J123: 0 | K123: 0 | L123: 0 | M123: 0 | N123: 0
A124: Less: Property Taxes | C124: Millage Rate | D124: ='Advanced Financial'!H60 -> 0.015 | E124: =$F8*$D124*'Advanced Financial'!$H61 -> 0 | F124: =$F8*$D124*'Advanced Financial'!$H61*(1+$D117) -> 0 | G124: =$F8*$D124*'Advanced Financial'!$H61*(1+$D117)^2 -> 0 | H124: =$F8*$D124*'Advanced Financial'!$H61*(1+$D117)^3 -> 0 | I124: =$F8*$D124*'Advanced Financial'!$H61*(1+$D117)^4 -> 0 | J124: =$F8*$D124*'Advanced Financial'!$H61*(1+$D117)^5 -> 0 | K124: =$F8*$D124*'Advanced Financial'!$H61*(1+$D117)^6 -> 0 | L124: =$F8*$D124*'Advanced Financial'!$H61*(1+$D117)^7 -> 0 | M124: =$F8*$D124*'Advanced Financial'!$H61*(1+$D117)^8 -> 0 | N124: =$F8*$D124*'Advanced Financial'!$H61*(1+$D117)^9 -> 0
A125: Plus: Property Tax Abatement | E125: =$D$13*'Advanced Financial'!$H61*$F8*'Gap Financing Options'!H17 -> 0 | F125: =$D$13*'Advanced Financial'!$H61*$F8*(1+$D$117)*'Gap Financing Options'!H18 -> 0 | G125: =$D$13*'Advanced Financial'!$H61*$F8*(1+$D$117)^2*'Gap Financing Options'!H19 -> 0 | H125: =$D$13*'Advanced Financial'!$H61*$F8*(1+$D$117)^3*'Gap Financing Options'!H20 -> 0 | I125: =$D$13*'Advanced Financial'!$H61*$F8*(1+$D$117)^4*'Gap Financing Options'!H21 -> 0 | J125: =$D$13*'Advanced Financial'!$H61*$F8*(1+$D$117)^5*'Gap Financing Options'!H22 -> 0 | K125: =$D$13*'Advanced Financial'!$H61*$F8*(1+$D$117)^6*'Gap Financing Options'!H23 -> 0 | L125: =$D$13*'Advanced Financial'!$H61*$F8*(1+$D$117)^7*'Gap Financing Options'!H24 -> 0 | M125: =$D$13*'Advanced Financial'!$H61*$F8*(1+$D$117)^8*'Gap Financing Options'!H25 -> 0 | N125: =$D$13*'Advanced Financial'!$H61*$F8*(1+$D$117)^9*'Gap Financing Options'!H26 -> 0
A128: Cash Throw Off to Public Partner | E128: =-$E$109 -> 0 | F128: 0 | G128: 0 | H128: 0 | I128: 0 | J128: 0 | K128: 0 | L128: 0 | M128: 0 | N128: 0
A129: NOI | E129: =E122-E124-E123+E125+E126+E127+E128 -> 0 | F129: =F122-F124-F123+F125+F126+F127+F128 -> 0 | G129: 0 | H129: 0 | I129: 0 | J129: 0 | K129: 0 | L129: 0 | M129: 0 | N129: 0
A131: Less: Debt Service | E131: =-$E$99 -> 0 | F131: 0 | G131: 0 | H131: 0 | I131: 0 | J131: 0 | K131: 0 | L131: 0 | M131: 0 | N131: 0
A132: Net Cash Flow | E132: =E129-E131 -> 0 | F132: 0 | G132: 0 | H132: 0 | I132: 0 | J132: 0 | K132: 0 | L132: 0 | M132: 0 | N132: 0
A134: Cap Rate | E134: =IFERROR(E129/$E$101,0) -> 0 | F134: 0 | G134: 0 | H134: 0 | I134: 0 | J134: 0 | K134: 0 | L134: 0 | M134: 0 | N134: 0
A135: Cash on Cash Return (Equity Dividend Rate) | E135: =IFERROR(E132/$E$104,0) -> 0 | F135: =IFERROR(F132/$E$104,0) -> 0 | G135: 0 | H135: 0 | I135: 0 | J135: 0 | K135: 0 | L135: 0 | M135: 0 | N135: 0
A137: Project Value | D137: Year 0 | E137: Year 1 | F137: Year 2 | G137: Year 3 | H137: Year 4 | I137: Year 5 | J137: Year 6 | K137: Year 7 | L137: Year 8 | M137: Year 9 | N137: Year 10
A138: Terminal Cap Rate, Gross Sales Price | E138: =D52 -> 0 | N138: =IFERROR(N129/E138,0) -> 0
A139: Net Sales = Price Less Sales Cost | E139: =D53 -> 0 | N139: =N138*(1-E139) -> 0
A140: Less Mortgage Balance | N140: =AA185 -> 0
A141: Net Sales Proceeds | N141: =N139-N140 -> 0
A144: IRR - Unleveraged (Project Cost) | D144: Year 0 | E144: Year 1 | F144: Year 2 | G144: Year 3 | H144: Year 4 | I144: Year 5 | J144: Year 6 | K144: Year 7 | L144: Year 8 | M144: Year 9 | N144: Year 10
A145: Total Investment | D145: =-E106 -> 0
A146: Project NOI | E146: =E129 -> 0 | F146: =F129 -> 0 | G146: 0 | H146: 0 | I146: 0 | J146: 0 | K146: 0 | L146: 0 | M146: 0 | N146: 0
A147: Net Sales Price | N147: =N139 -> 0
A148: Total | D148: =SUM(D145:D147) -> 0 | E148: =SUM(E145:E147) -> 0 | F148: =SUM(F145:F147) -> 0 | G148: 0 | H148: 0 | I148: 0 | J148: 0 | K148: 0 | L148: 0 | M148: 0 | N148: 0
A149: IRR - Project Cost | N149: =IFERROR(IRR(D148:N148),0) -> 0
A150: NPV - Project Cost | N150: =NPV(L6,D148:N148) -> 0
A152: IRR - Leveraged (Before Tax) | D152: Year 0 | E152: Year 1 | F152: Year 2 | G152: Year 3 | H152: Year 4 | I152: Year 5 | J152: Year 6 | K152: Year 7 | L152: Year 8 | M152: Year 9 | N152: Year 10
A153: Original Investment (Equity) | D153: =-E104 -> 0
A154: Project Cash Flow | E154: =E132 -> 0 | F154: 0 | G154: 0 | H154: 0 | I154: 0 | J154: 0 | K154: 0 | L154: 0 | M154: 0 | N154: 0
A155: Net Sales Proceeds | N155: =N141 -> 0
A156: Total | D156: =SUM(D153:D155) -> 0 | E156: 0 | F156: 0 | G156: 0 | H156: 0 | I156: 0 | J156: 0 | K156: 0 | L156: 0 | M156: 0 | N156: 0
A157: IRR - Equity | N157: =IFERROR(IRR(D156:N156),0) -> 0
A158: NPV - Equity | N158: =NPV(L7,D156:N156) -> 0
A160: IRR - Public Participation | D160: Year 0 | E160: Year 1 | F160: Year 2 | G160: Year 3 | H160: Year 4 | I160: Year 5 | J160: Year 6 | K160: Year 7 | L160: Year 8 | M160: Year 9 | N160: Year 10
A161: Original Investment (Equity) | D161: =-(E108+(E93*E111)) -> 0
A162: Mezzanine Financing | E162: =-$E$96 -> 0 | F162: 0 | G162: 0 | H162: 0 | I162: 0 | J162: 0 | K162: 0 | L162: 0 | M162: 0 | N162: 0
A163: Cash Throw Off | E163: =$E$109 -> 0 | F163: 0 | G163: 0 | H163: 0 | I163: 0 | J163: 0 | K163: 0 | L163: 0 | M163: 0 | N163: 0
A164: Sale Proceeds | N164: =N155*E110 -> 0
A165: Loan Balance | N165: =V185*E111 -> 0
A166: Total | D166: =SUM(D161:D165) -> 0 | E166: =SUM(E161:E165) -> 0 | F166: 0 | G166: 0 | H166: 0 | I166: 0 | J166: 0 | K166: 0 | L166: 0 | M166: 0 | N166: 0
A167: IRR - Equity | N167: =IFERROR(IRR(D166:N166),0) -> 0
A168: NPV - Equity | N168: =NPV(E112,D166:N166) -> 0
A172: DEBT SERVICE MORTIZATION TABLES
A173: Primary Debt Amortization | F173: Low Interest Loan | K173: Total Debt Amortization | P173: Annual Debt Service Summary - Primary Debt | U173: Annual Debt Service Summary - Secondary Debt | Z173: Annual Debt Service Summary - Total Debt
A175: Period | B175: Balance | C175: Payment | D175: Interest | E175: Principal | F175: Period | G175: Balance | H175: Payment | I175: Interest | J175: Principal | K175: Period | L175: Balance | M175: Payment | N175: Interest | O175: Principal | P175: Year | Q175: Balance | R175: Payment | S175: Interest | T175: Principal | U175: Year | V175: Balance | W175: Payment | X175: Interest | Y175: Principal | Z175: Year | AA175: Balance | AB175: Payment | AC175: Interest | AD175: Principal
A176: 0 | B176: =E87 -> 0 | F176: 0 | G176: =E93 -> 0 | K176: 0 | L176: =B176+G176 -> 0 | P176: 1 | Q176: =B188 -> 0 | R176: =SUM(C177:C188) -> 0 | S176: =SUM(D177:D188) -> 0 | T176: =SUM(E177:E188) -> 0 | U176: 1 | V176: =G188 -> 0 | W176: =SUM(H177:H188) -> 0 | X176: =SUM(I177:I188) -> 0 | Y176: =SUM(J177:J188) -> 0 | Z176: 1 | AA176: =Q176+V176 -> 0 | AB176: =R176+W176 -> 0 | AC176: =S176+X176 -> 0 | AD176: =T176+Y176 -> 0
A177: 1 | B177: =B176-E177 -> 0 | C177: =-$E$90/12 -> 0 | D177: =B176*$E$88/12 -> 0 | E177: =C177-D177 -> 0 | F177: 1 | G177: =G176-J177 -> 0 | H177: =-$E$96/12 -> 0 | I177: =G176*$E$94/12 -> 0 | J177: =H177-I177 -> 0 | K177: 1 | L177: =G177+B177 -> 0 | M177: 0 | N177: 0 | O177: 0 | P177: 2 | Q177: =B200 -> 0 | R177: =SUM(C189:C200) -> 0 | S177: =SUM(D189:D200) -> 0 | T177: =SUM(E189:E200) -> 0 | U177: 2 | V177: =G200 -> 0 | W177: =SUM(H189:H200) -> 0 | X177: =SUM(I189:I200) -> 0 | Y177: =SUM(J189:J200) -> 0 | Z177: 2 | AA177: =Q177+V177 -> 0 | AB177: 0 | AC177: 0 | AD177: 0
A178: =A177+1 -> 2 | B178: 0 | C178: 0 | D178: =B177*$E$88/12 -> 0 | E178: 0 | F178: =F177+1 -> 2 | G178: 0 | H178: 0 | I178: 0 | J178: 0 | K178: =K177+1 -> 2 | L178: 0 | M178: 0 | N178: 0 | O178: 0 | P178: 3 | Q178: =B212 -> 0 | R178: =SUM(C201:C212) -> 0 | S178: =SUM(D201:D212) -> 0 | T178: =SUM(E201:E212) -> 0 | U178: 3 | V178: =G212 -> 0 | W178: =SUM(H201:H212) -> 0 | X178: =SUM(I201:I212) -> 0 | Y178: =SUM(J201:J212) -> 0 | Z178: 3 | AA178: 0 | AB178: 0 | AC178: 0 | AD178: 0
A179: 3 | B179: 0 | C179: 0 | D179: =B178*$E$88/12 -> 0 | E179: 0 | F179: 3 | G179: 0 | H179: 0 | I179: 0 | J179: 0 | K179: 3 | L179: 0 | M179: 0 | N179: 0 | O179: 0 | P179: 4 | Q179: =B224 -> 0 | R179: =SUM(C213:C224) -> 0 | S179: =SUM(D213:D224) -> 0 | T179: =SUM(E213:E224) -> 0 | U179: 4 | V179: =G224 -> 0 | W179: =SUM(H213:H224) -> 0 | X179: =SUM(I213:I224) -> 0 | Y179: =SUM(J213:J224) -> 0 | Z179: 4 | AA179: 0 | AB179: 0 | AC179: 0 | AD179: 0
A180: 4 | B180: 0 | C180: 0 | D180: =B179*$E$88/12 -> 0 | E180: 0 | F180: 4 | G180: 0 | H180: 0 | I180: 0 | J180: 0 | K180: 4 | L180: 0 | M180: 0 | N180: 0 | O180: 0 | P180: 5 | Q180: =B236 -> 0 | R180: =SUM(C225:C236) -> 0 | S180: =SUM(D225:D236) -> 0 | T180: =SUM(E225:E236) -> 0 | U180: 5 | V180: =G236 -> 0 | W180: =SUM(H225:H236) -> 0 | X180: =SUM(I225:I236) -> 0 | Y180: =SUM(J225:J236) -> 0 | Z180: 5 | AA180: 0 | AB180: 0 | AC180: 0 | AD180: 0
A181: 5 | B181: 0 | C181: 0 | D181: 0 | E181: 0 | F181: 5 | G181: 0 | H181: 0 | I181: 0 | J181: 0 | K181: 5 | L181: 0 | M181: 0 | N181: 0 | O181: 0 | P181: 6 | Q181: =B248 -> 0 | R181: =SUM(C237:C248) -> 0 | S181: =SUM(D237:D248) -> 0 | T181: =SUM(E237:E248) -> 0 | U181: 6 | V181: =G248 -> 0 | W181: =SUM(H237:H248) -> 0 | X181: =SUM(I237:I248) -> 0 | Y181: =SUM(J237:J248) -> 0 | Z181: 6 | AA181: 0 | AB181: 0 | AC181: 0 | AD181: 0
A182: 6 | B182: 0 | C182: 0 | D182: 0 | E182: 0 | F182: 6 | G182: 0 | H182: 0 | I182: 0 | J182: 0 | K182: 6 | L182: 0 | M182: 0 | N182: 0 | O182: 0 | P182: 7 | Q182: =B260 -> 0 | R182: =SUM(C249:C260) -> 0 | S182: =SUM(D249:D260) -> 0 | T182: =SUM(E249:E260) -> 0 | U182: 7 | V182: =G260 -> 0 | W182: =SUM(H249:H260) -> 0 | X182: =SUM(I249:I260) -> 0 | Y182: =SUM(J249:J260) -> 0 | Z182: 7 | AA182: 0 | AB182: 0 | AC182: 0 | AD182: 0
A183: 7 | B183: 0 | C183: 0 | D183: 0 | E183: 0 | F183: 7 | G183: 0 | H183: 0 | I183: 0 | J183: 0 | K183: 7 | L183: 0 | M183: 0 | N183: 0 | O183: 0 | P183: 8 | Q183: =B272 -> 0 | R183: =SUM(C261:C272) -> 0 | S183: =SUM(D261:D272) -> 0 | T183: =SUM(E261:E272) -> 0 | U183: 8 | V183: =G272 -> 0 | W183: =SUM(H261:H272) -> 0 | X183: =SUM(I261:I272) -> 0 | Y183: =SUM(J261:J272) -> 0 | Z183: 8 | AA183: 0 | AB183: 0 | AC183: 0 | AD183: 0
A184: 8 | B184: 0 | C184: 0 | D184: 0 | E184: 0 | F184: 8 | G184: 0 | H184: 0 | I184: 0 | J184: 0 | K184: 8 | L184: 0 | M184: 0 | N184: 0 | O184: 0 | P184: 9 | Q184: =B284 -> 0 | R184: =SUM(C273:C284) -> 0 | S184: =SUM(D273:D284) -> 0 | T184: =SUM(E273:E284) -> 0 | U184: 9 | V184: =G284 -> 0 | W184: =SUM(H273:H284) -> 0 | X184: =SUM(I273:I284) -> 0 | Y184: =SUM(J273:J284) -> 0 | Z184: 9 | AA184: 0 | AB184: 0 | AC184: 0 | AD184: 0
A185: 9 | B185: 0 | C185: 0 | D185: 0 | E185: 0 | F185: 9 | G185: 0 | H185: 0 | I185: 0 | J185: 0 | K185: 9 | L185: 0 | M185: 0 | N185: 0 | O185: 0 | P185: 10 | Q185: =B296 -> 0 | R185: =SUM(C285:C296) -> 0 | S185: =SUM(D285:D296) -> 0 | T185: =SUM(E285:E296) -> 0 | U185: 10 | V185: =G296 -> 0 | W185: =SUM(H285:H296) -> 0 | X185: =SUM(I285:I296) -> 0 | Y185: =SUM(J285:J296) -> 0 | Z185: 10 | AA185: =Q185+V185 -> 0 | AB185: =R185+W185 -> 0 | AC185: =S185+X185 -> 0 | AD185: =T185+Y185 -> 0
A186: 10 | B186: 0 | C186: 0 | D186: 0 | E186: 0 | F186: 10 | G186: 0 | H186: 0 | I186: 0 | J186: 0 | K186: 10 | L186: 0 | M186: 0 | N186: 0 | O186: 0
A187: 11 | B187: 0 | C187: 0 | D187: 0 | E187: 0 | F187: 11 | G187: 0 | H187: 0 | I187: 0 | J187: 0 | K187: 11 | L187: 0 | M187: 0 | N187: 0 | O187: 0
A188: 12 | B188: 0 | C188: 0 | D188: 0 | E188: 0 | F188: 12 | G188: 0 | H188: 0 | I188: 0 | J188: 0 | K188: 12 | L188: 0 | M188: 0 | N188: 0 | O188: 0
A189: 13 | B189: 0 | C189: 0 | D189: 0 | E189: 0 | F189: 13 | G189: 0 | H189: 0 | I189: 0 | J189: 0 | K189: 13 | L189: 0 | M189: 0 | N189: 0 | O189: 0
A190: 14 | B190: 0 | C190: 0 | D190: 0 | E190: 0 | F190: 14 | G190: 0 | H190: 0 | I190: 0 | J190: 0 | K190: 14 | L190: 0 | M190: 0 | N190: 0 | O190: 0
A191: 15 | B191: 0 | C191: 0 | D191: 0 | E191: 0 | F191: 15 | G191: 0 | H191: 0 | I191: 0 | J191: 0 | K191: 15 | L191: 0 | M191: 0 | N191: 0 | O191: 0
A192: 16 | B192: 0 | C192: 0 | D192: 0 | E192: 0 | F192: 16 | G192: 0 | H192: 0 | I192: 0 | J192: 0 | K192: 16 | L192: 0 | M192: 0 | N192: 0 | O192: 0
A193: 17 | B193: 0 | C193: 0 | D193: 0 | E193: 0 | F193: 17 | G193: 0 | H193: 0 | I193: 0 | J193: 0 | K193: 17 | L193: 0 | M193: 0 | N193: 0 | O193: 0
A194: 18 | B194: 0 | C194: 0 | D194: 0 | E194: 0 | F194: 18 | G194: 0 | H194: 0 | I194: 0 | J194: 0 | K194: 18 | L194: 0 | M194: 0 | N194: 0 | O194: 0
A195: 19 | B195: 0 | C195: 0 | D195: 0 | E195: 0 | F195: 19 | G195: 0 | H195: 0 | I195: 0 | J195: 0 | K195: 19 | L195: 0 | M195: 0 | N195: 0 | O195: 0
A196: 20 | B196: 0 | C196: 0 | D196: 0 | E196: 0 | F196: 20 | G196: 0 | H196: 0 | I196: 0 | J196: 0 | K196: 20 | L196: 0 | M196: 0 | N196: 0 | O196: 0
A197: 21 | B197: 0 | C197: 0 | D197: 0 | E197: 0 | F197: 21 | G197: 0 | H197: 0 | I197: 0 | J197: 0 | K197: 21 | L197: 0 | M197: 0 | N197: 0 | O197: 0
A198: 22 | B198: 0 | C198: 0 | D198: 0 | E198: 0 | F198: 22 | G198: 0 | H198: 0 | I198: 0 | J198: 0 | K198: 22 | L198: 0 | M198: 0 | N198: 0 | O198: 0
A199: 23 | B199: 0 | C199: 0 | D199: 0 | E199: 0 | F199: 23 | G199: 0 | H199: 0 | I199: 0 | J199: 0 | K199: 23 | L199: 0 | M199: 0 | N199: 0 | O199: 0
A200: 24 | B200: 0 | C200: 0 | D200: 0 | E200: 0 | F200: 24 | G200: 0 | H200: 0 | I200: 0 | J200: 0 | K200: 24 | L200: 0 | M200: 0 | N200: 0 | O200: 0
A201: 25 | B201: 0 | C201: 0 | D201: 0 | E201: 0 | F201: 25 | G201: 0 | H201: 0 | I201: 0 | J201: 0 | K201: 25 | L201: 0 | M201: 0 | N201: 0 | O201: 0
A202: 26 | B202: 0 | C202: 0 | D202: 0 | E202: 0 | F202: 26 | G202: 0 | H202: 0 | I202: 0 | J202: 0 | K202: 26 | L202: 0 | M202: 0 | N202: 0 | O202: 0
A203: 27 | B203: 0 | C203: 0 | D203: 0 | E203: 0 | F203: 27 | G203: 0 | H203: 0 | I203: 0 | J203: 0 | K203: 27 | L203: 0 | M203: 0 | N203: 0 | O203: 0
A204: 28 | B204: 0 | C204: 0 | D204: 0 | E204: 0 | F204: 28 | G204: 0 | H204: 0 | I204: 0 | J204: 0 | K204: 28 | L204: 0 | M204: 0 | N204: 0 | O204: 0
A205: 29 | B205: 0 | C205: 0 | D205: 0 | E205: 0 | F205: 29 | G205: 0 | H205: 0 | I205: 0 | J205: 0 | K205: 29 | L205: 0 | M205: 0 | N205: 0 | O205: 0
A206: 30 | B206: 0 | C206: 0 | D206: 0 | E206: 0 | F206: 30 | G206: 0 | H206: 0 | I206: 0 | J206: 0 | K206: 30 | L206: 0 | M206: 0 | N206: 0 | O206: 0
A207: 31 | B207: 0 | C207: 0 | D207: 0 | E207: 0 | F207: 31 | G207: 0 | H207: 0 | I207: 0 | J207: 0 | K207: 31 | L207: 0 | M207: 0 | N207: 0 | O207: 0
A208: 32 | B208: 0 | C208: 0 | D208: 0 | E208: 0 | F208: 32 | G208: 0 | H208: 0 | I208: 0 | J208: 0 | K208: 32 | L208: 0 | M208: 0 | N208: 0 | O208: 0
A209: 33 | B209: 0 | C209: 0 | D209: 0 | E209: 0 | F209: 33 | G209: 0 | H209: 0 | I209: 0 | J209: 0 | K209: 33 | L209: 0 | M209: 0 | N209: 0 | O209: 0
A210: 34 | B210: 0 | C210: 0 | D210: 0 | E210: 0 | F210: 34 | G210: 0 | H210: 0 | I210: 0 | J210: 0 | K210: 34 | L210: 0 | M210: 0 | N210: 0 | O210: 0
A211: 35 | B211: 0 | C211: 0 | D211: 0 | E211: 0 | F211: 35 | G211: 0 | H211: 0 | I211: 0 | J211: 0 | K211: 35 | L211: 0 | M211: 0 | N211: 0 | O211: 0
A212: 36 | B212: 0 | C212: 0 | D212: 0 | E212: 0 | F212: 36 | G212: 0 | H212: 0 | I212: 0 | J212: 0 | K212: 36 | L212: 0 | M212: 0 | N212: 0 | O212: 0
A213: 37 | B213: 0 | C213: 0 | D213: 0 | E213: 0 | F213: 37 | G213: 0 | H213: 0 | I213: 0 | J213: 0 | K213: 37 | L213: 0 | M213: 0 | N213: 0 | O213: 0
A214: 38 | B214: 0 | C214: 0 | D214: 0 | E214: 0 | F214: 38 | G214: 0 | H214: 0 | I214: 0 | J214: 0 | K214: 38 | L214: 0 | M214: 0 | N214: 0 | O214: 0
A215: 39 | B215: 0 | C215: 0 | D215: 0 | E215: 0 | F215: 39 | G215: 0 | H215: 0 | I215: 0 | J215: 0 | K215: 39 | L215: 0 | M215: 0 | N215: 0 | O215: 0
A216: 40 | B216: 0 | C216: 0 | D216: 0 | E216: 0 | F216: 40 | G216: 0 | H216: 0 | I216: 0 | J216: 0 | K216: 40 | L216: 0 | M216: 0 | N216: 0 | O216: 0
A217: 41 | B217: 0 | C217: 0 | D217: 0 | E217: 0 | F217: 41 | G217: 0 | H217: 0 | I217: 0 | J217: 0 | K217: 41 | L217: 0 | M217: 0 | N217: 0 | O217: 0
A218: 42 | B218: 0 | C218: 0 | D218: 0 | E218: 0 | F218: 42 | G218: 0 | H218: 0 | I218: 0 | J218: 0 | K218: 42 | L218: 0 | M218: 0 | N218: 0 | O218: 0
A219: 43 | B219: 0 | C219: 0 | D219: 0 | E219: 0 | F219: 43 | G219: 0 | H219: 0 | I219: 0 | J219: 0 | K219: 43 | L219: 0 | M219: 0 | N219: 0 | O219: 0
A220: 44 | B220: 0 | C220: 0 | D220: 0 | E220: 0 | F220: 44 | G220: 0 | H220: 0 | I220: 0 | J220: 0 | K220: 44 | L220: 0 | M220: 0 | N220: 0 | O220: 0
A221: 45 | B221: 0 | C221: 0 | D221: 0 | E221: 0 | F221: 45 | G221: 0 | H221: 0 | I221: 0 | J221: 0 | K221: 45 | L221: 0 | M221: 0 | N221: 0 | O221: 0
A222: 46 | B222: 0 | C222: 0 | D222: 0 | E222: 0 | F222: 46 | G222: 0 | H222: 0 | I222: 0 | J222: 0 | K222: 46 | L222: 0 | M222: 0 | N222: 0 | O222: 0
A223: 47 | B223: 0 | C223: 0 | D223: 0 | E223: 0 | F223: 47 | G223: 0 | H223: 0 | I223: 0 | J223: 0 | K223: 47 | L223: 0 | M223: 0 | N223: 0 | O223: 0
A224: 48 | B224: 0 | C224: 0 | D224: 0 | E224: 0 | F224: 48 | G224: 0 | H224: 0 | I224: 0 | J224: 0 | K224: 48 | L224: 0 | M224: 0 | N224: 0 | O224: 0
A225: 49 | B225: 0 | C225: 0 | D225: 0 | E225: 0 | F225: 49 | G225: 0 | H225: 0 | I225: 0 | J225: 0 | K225: 49 | L225: 0 | M225: 0 | N225: 0 | O225: 0
A226: 50 | B226: 0 | C226: 0 | D226: 0 | E226: 0 | F226: 50 | G226: 0 | H226: 0 | I226: 0 | J226: 0 | K226: 50 | L226: 0 | M226: 0 | N226: 0 | O226: 0
A227: 51 | B227: 0 | C227: 0 | D227: 0 | E227: 0 | F227: 51 | G227: 0 | H227: 0 | I227: 0 | J227: 0 | K227: 51 | L227: 0 | M227: 0 | N227: 0 | O227: 0
A228: 52 | B228: 0 | C228: 0 | D228: 0 | E228: 0 | F228: 52 | G228: 0 | H228: 0 | I228: 0 | J228: 0 | K228: 52 | L228: 0 | M228: 0 | N228: 0 | O228: 0
A229: 53 | B229: 0 | C229: 0 | D229: 0 | E229: 0 | F229: 53 | G229: 0 | H229: 0 | I229: 0 | J229: 0 | K229: 53 | L229: 0 | M229: 0 | N229: 0 | O229: 0
A230: 54 | B230: 0 | C230: 0 | D230: 0 | E230: 0 | F230: 54 | G230: 0 | H230: 0 | I230: 0 | J230: 0 | K230: 54 | L230: 0 | M230: 0 | N230: 0 | O230: 0
A231: 55 | B231: 0 | C231: 0 | D231: 0 | E231: 0 | F231: 55 | G231: 0 | H231: 0 | I231: 0 | J231: 0 | K231: 55 | L231: 0 | M231: 0 | N231: 0 | O231: 0
... 305 more rows

Sheet Mixed-Use Summary
A2: Mixed-Use Performance Indicator
B3: Residential (Rental) | D3: Office | F3: Retail | H3: Accommodation | J3: Industrial | L3: Commercial Parking | N3: RENTAL SUMMARY | S3: Residential (Owner)
B4: Target | C4: Actual | D4: Target | E4: Actual | F4: Target | G4: Actual | H4: Target | I4: Actual | J4: Target | K4: Actual | N4: Target | O4: Actual | P4: NPV | S4: Target | T4: Actual | U4: With Leveraging Tools
A5: Cash-on-Cash (After Year 3) | B5: ='Residential Rental'!L5 -> 0.1 | C5: ='Residential Rental'!M5 -> 0.0430533423 | D5: =Office!L5 -> 0.1 | E5: =Office!M5 -> 0 | F5: =Retail!L5 -> 0.1 | G5: =Retail!M5 -> 0.1704816199 | H5: =Hotel!L5 -> 0.1 | I5: =Hotel!M5 -> 0 | J5: =Industrial!L5 -> 0.1 | K5: =Industrial!M5 -> 0 | L5: ='Commercial Parking'!L5 -> 0.1 | M5: ='Commercial Parking'!M5 -> 0 | N5: =(B5*'Development Costs'!$E$39)+(D5*('Development Costs'!$E$41+'Development Costs'!$E$43+'Development Costs'!$E$44))+(F5*'Development Costs'!$E$40)+(H5*'Development Costs'!$E$45)+(J5*'Development Costs'!$E$42)+(L5*'Development Costs'!$E$46) -> 0.1 | O5: =IFERROR(E106,0) -> 0.06940504024 | Q5: Project Rate of Return | S5: ='Residential Owner'!B3 -> 0.25 | T5: ='Residential Owner'!B25 -> 0 | U5: ='Residential Owner'!B43 -> 0
A6: IRR on Project Cost (Unleveraged Return) | B6: ='Residential Rental'!L6 -> 0.12 | C6: ='Residential Rental'!M6 -> 0.06011283034 | D6: =Office!L6 -> 0.12 | E6: =Office!M6 -> 0 | F6: =Retail!L6 -> 0.12 | G6: =Retail!M6 -> 0.1540730184 | H6: =Hotel!L6 -> 0.12 | I6: =Hotel!M6 -> 0 | J6: =Industrial!L6 -> 0.12 | K6: =Industrial!M6 -> 0 | L6: ='Commercial Parking'!L6 -> 0.12 | M6: ='Commercial Parking'!M6 -> 0 | N6: =(B6*'Development Costs'!$E$39)+(D6*('Development Costs'!$E$41+'Development Costs'!$E$43+'Development Costs'!$E$44))+(F6*'Development Costs'!$E$40)+(H6*'Development Costs'!$E$45)+(J6*'Development Costs'!$E$42)+(L6*'Development Costs'!$E$46) -> 0.12 | O6: =IFERROR(L121,0) -> 0.08430347663 | P6: =IFERROR(L122,0) -> -2212281.676 | Q6: Return to Equity | S6: ='Residential Owner'!B4 -> 0.75 | T6: ='Residential Owner'!B29 -> 0 | U6: ='Residential Owner'!B48 -> 0
A7: IRR on Investor Equity (Leveraged Return Before Tax) | B7: ='Residential Rental'!L7 -> 0.25 | C7: ='Residential Rental'!M7 -> 0.06083929084 | D7: =Office!L7 -> 0.25 | E7: =Office!M7 -> 0 | F7: =Retail!L7 -> 0.25 | G7: =Retail!M7 -> 0.2457349404 | H7: =Hotel!L7 -> 0.25 | I7: =Hotel!M7 -> 0 | J7: =Industrial!L7 -> 0.25 | K7: =Industrial!M7 -> 0 | L7: ='Commercial Parking'!L7 -> 0.25 | M7: ='Commercial Parking'!M7 -> 0 | N7: =(B7*'Development Costs'!$E$39)+(D7*('Development Costs'!$E$41+'Development Costs'!$E$43+'Development Costs'!$E$44))+(F7*'Development Costs'!$E$40)+(H7*'Development Costs'!$E$45)+(J7*'Development Costs'!$E$42)+(L7*'Development Costs'!$E$46) -> 0.25 | O7: =IFERROR(L129,0) -> 0.1131415662 | P7: =IFERROR(L130,0) -> -2103564.409
A8: Debt Service Coverage Ratio (Year 3) | B8: ='Residential Rental'!L8 -> 1.25 | C8: ='Residential Rental'!M8 -> 1.398940915 | D8: =Office!L8 -> 1.25 | E8: =Office!M8 -> 0 | F8: =Retail!L8 -> 1.25 | G8: =Retail!M8 -> 2.579716923 | H8: =Hotel!L8 -> 1.25 | I8: =Hotel!M8 -> 0 | J8: =Industrial!L8 -> 1.25 | K8: =Industrial!M8 -> 0 | L8: ='Commercial Parking'!L8 -> 1.25 | M8: ='Commercial Parking'!M8 -> 0 | N8: =(B8*'Development Costs'!$E$39)+(D8*('Development Costs'!$E$41+'Development Costs'!$E$43+'Development Costs'!$E$44))+(F8*'Development Costs'!$E$40)+(H8*'Development Costs'!$E$45)+(J8*'Development Costs'!$E$42)+(L8*'Development Costs'!$E$46) -> 1.25 | O8: =IFERROR(E100/E102,0) -> 1.643121039
A9: IRR on Public Participation | B9: ='Residential Rental'!L9 -> 0.05 | C9: ='Residential Rental'!M9 -> 0 | D9: =Office!L9 -> 0.05 | E9: =Office!M9 -> 0 | F9: =Retail!L9 -> 0.05 | G9: =Retail!M9 -> 0 | H9: =Hotel!L9 -> 0.05 | I9: =Hotel!M9 -> 0 | J9: =Industrial!L9 -> 0.05 | K9: =Industrial!M9 -> 0 | L9: ='Commercial Parking'!L9 -> 0.05 | M9: ='Commercial Parking'!M9 -> 0 | N9: =(B9*'Development Costs'!$E$39)+(D9*('Development Costs'!$E$41+'Development Costs'!$E$43+'Development Costs'!$E$44))+(F9*'Development Costs'!$E$40)+(H9*'Development Costs'!$E$45)+(J9*'Development Costs'!$E$42)+(L9*'Development Costs'!$E$46) -> 0.05 | O9: =IFERROR(L139,0) -> 0 | P9: =IFERROR(L140,0) -> 0
A13: Public Leveraging Tools | B13: Res. (Rental) | C13: Office | D13: Retail | E13: Accommodation | F13: Industrial | G13: Commercial Parking | H13: Rental Summary | I13: Res. (Owner)
A14: Tax Credits net to project | B14: ='Residential Rental'!F4 -> 0 | C14: =Office!F4 -> 0 | D14: =Retail!F4 -> 0 | E14: =Hotel!F4 -> 0 | F14: =Industrial!F4 -> 0 | G14: ='Commercial Parking'!F4 -> 0 | H14: =SUM(B14:G14) -> 0 | I14: ='Residential Owner'!C7 -> 0
A15: Fee Reductions | B15: ='Residential Rental'!F5 -> 0 | C15: =Office!F5 -> 0 | D15: =Retail!F5 -> 0 | E15: =Hotel!F5 -> 0 | F15: =Industrial!F5 -> 0 | G15: ='Commercial Parking'!F5 -> 0 | H15: =SUM(B15:G15) -> 0 | I15: ='Residential Owner'!C8 -> 0
A16: Grants | B16: ='Residential Rental'!F6 -> 0 | C16: =Office!F6 -> 0 | D16: =Retail!F6 -> 0 | E16: =Hotel!F6 -> 0 | F16: =Industrial!F6 -> 0 | G16: ='Commercial Parking'!F6 -> 0 | H16: =SUM(B16:G16) -> 0 | I16: ='Residential Owner'!C9 -> 0 | J16: TOTAL
A17: Total Development Offsets (Contributions to Equity) | B17: ='Residential Rental'!F7 -> 0 | C17: =Office!F7 -> 0 | D17: =Retail!F7 -> 0 | E17: =Hotel!F7 -> 0 | F17: =Industrial!F7 -> 0 | G17: ='Commercial Parking'!F7 -> 0 | H17: =SUM(H14:H16) -> 0 | I17: =SUM(I14:I16) -> 0 | J17: =SUM(H17:I17) -> 0
A18: Net Development Costs | B18: ='Residential Rental'!F8 -> 9224579.448 | C18: =Office!F8 -> 0 | D18: =Retail!F8 -> 2404942.194 | E18: =Hotel!F8 -> 0 | F18: =Industrial!F8 -> 0 | G18: ='Commercial Parking'!F8 -> 0 | H18: =SUM(B18:G18) -> 11629521.64 | I18: ='Residential Owner'!B40 -> 0 | J18: =SUM(H18:I18) -> 11629521.64
B21: Residential (Rental) | D21: Office | F21: Retail | H21: Accommodation | J21: Industrial | L21: Commercial Parking | N21: Rental Summary | O21: Residential (Owner)
A22: Total Development Costs | C22: ='Residential Rental'!C56 -> 9224579.448 | E22: =Office!D56 -> 0 | G22: =Retail!D57 -> 2404942.194 | I22: =Hotel!C58 -> 0 | K22: =Industrial!C56 -> 0 | M22: ='Commercial Parking'!D57 -> 0 | N22: =SUM(C22,E22,G22,I22,K22,M22) -> 11629521.64 | O22: Total Development Costs | P22: ='Residential Owner'!B14 -> 0
A23: Development Costs ( Per Unit or Per Sq.Ft) | C23: ='Residential Rental'!C57 -> 214693.8907 | E23: =Office!D57 -> 0 | G23: =Retail!D58 -> 243.3604035 | I23: =Hotel!C59 -> 0 | K23: =Industrial!C57 -> 0 | M23: ='Commercial Parking'!D58 -> 0
A24: Net Operating Income Analysis | O24: Project Baseline
A25: Project Feature | B25: Project | C25: Total | D25: Project | E25: Total | F25: Project | G25: Total | H25: Project | I25: Total | J25: Project | K25: Total | L25: Project | M25: Total | N25: Project | P25: Project
A26: Number of units | B26: ='Residential Rental'!C18 -> 42.96619442 | H26: =Hotel!C19 -> 0 | N26: =SUM(B26,H26) -> 42.96619442 | O26: Residential Units | P26: ='Residential Owner'!B17 -> 0
A27: Total project size, square feet | B27: ='Residential Rental'!C19 -> 39528.89886 | D27: =Office!D19 -> 0 | F27: =Retail!D19 -> 9882.224716 | H27: =Hotel!C20 -> 0 | J27: =Industrial!C19 -> 0 | L27: ='Commercial Parking'!D19 -> 0 | N27: =SUM(B27,D27,F27,H27,J27,L27) -> 49411.12358 | O27: Average Unit Market Price | P27: ='Residential Owner'!B18 -> 230000
A28: Total Rent (annual or $/sq.ft. per year) | B28: ='Residential Rental'!E60 -> 61226.82704 | D28: =Office!E19 -> 0 | F28: =Retail!E19 -> 25 | H28: =Hotel!D19 -> 50 | J28: =Industrial!D59 -> 15 | L28: ='Commercial Parking'!E19 -> 16.00384615
A29: Projected Sales per Square Foot | F29: =Retail!E20 -> 350 | L29: ='Commercial Parking'!E20 -> 0 | N29: =IF(F27>0,F29,0) -> 350
A30: Rental Income from Sales Assessment | G30: =Retail!E62 -> 138351.146 | M30: ='Commercial Parking'!E62 -> 0 | N30: =G30 -> 138351.146
A31: Gross Potential Rent (GPI) | C31: ='Residential Rental'!E61 -> 734721.9245 | E31: =Office!E60 -> 0 | G31: =Retail!E63 -> 385406.7639 | I31: =Hotel!E63 -> 0 | K31: =Industrial!D60 -> 0 | M31: ='Commercial Parking'!E63 -> 0 | N31: =SUM(C31,E31,G31,I31,K31,M31) -> 1120128.688
A32: Other Income (vending, fines) | B32: ='Residential Rental'!C20 -> 0.1 | C32: ='Residential Rental'!E62 -> 73472.19245 | D32: =Office!D20 -> 0.1 | E32: =Office!E61 -> 0 | F32: =Retail!D21 -> 0.02 | G32: =Retail!E64 -> 7708.135278 | H32: =Hotel!C21 -> 0.1 | I32: =Hotel!E64 -> 0 | J32: =Industrial!C61 -> 0.1 | K32: =Industrial!D61 -> 0 | L32: ='Commercial Parking'!D21 -> 0 | M32: ='Commercial Parking'!E64 -> 0 | N32: 81180.32773
A33: Total Income | C33: ='Residential Rental'!E63 -> 808194.117 | E33: =Office!E62 -> 0 | G33: =Retail!E65 -> 393114.8992 | I33: =Hotel!E65 -> 0 | K33: =Industrial!D62 -> 0 | M33: ='Commercial Parking'!E65 -> 0 | N33: 1201309.016
A34: Less: Vacancy | B34: ='Residential Rental'!C21 -> 0.05 | C34: ='Residential Rental'!E64 -> 40409.70585 | D34: =Office!D21 -> 0.05 | E34: =Office!E63 -> 0 | F34: =Retail!D22 -> 0.05 | G34: =Retail!E66 -> 19655.74496 | H34: =Hotel!C22 -> 0.25 | I34: =Hotel!E66 -> 0 | J34: =Industrial!C63 -> 0.05 | K34: =Industrial!D63 -> 0 | L34: ='Commercial Parking'!D22 -> 0.3 | M34: ='Commercial Parking'!E66 -> 0 | N34: 60065.45081
A35: Less: Concessions, Bad Debt | B35: ='Residential Rental'!C22 -> 0.02 | C35: ='Residential Rental'!E65 -> 16163.88234 | D35: =Office!D22 -> 0.02 | E35: =Office!E64 -> 0 | F35: =Retail!D23 -> 0.02 | G35: =Retail!E67 -> 7862.297984 | H35: =Hotel!C23 -> 0.02 | I35: =Hotel!E67 -> 0 | J35: =Industrial!C64 -> 0.02 | K35: =Industrial!D64 -> 0 | L35: ='Commercial Parking'!D23 -> 0 | M35: ='Commercial Parking'!E67 -> 0 | N35: 24026.18032
A36: Effective Gross Income (EGI) | C36: ='Residential Rental'!E66 -> 751620.5288 | E36: =Office!E65 -> 0 | G36: =Retail!E68 -> 365596.8563 | I36: =Hotel!E68 -> 0 | K36: =Industrial!D65 -> 0 | M36: ='Commercial Parking'!E68 -> 0 | N36: 1117217.385
A37: Less: Operating Costs ($/unit: $/sq.ft: %ofGPI) | B37: ='Residential Rental'!C23 -> 2052 | C37: ='Residential Rental'!E67 -> 88166.63094 | D37: =Office!D23 -> 0 | E37: =Office!E66 -> 0 | F37: =Retail!D24 -> 7.8 | G37: =Retail!E69 -> 77081.35278 | H37: =Hotel!C24 -> 0.3 | I37: =Hotel!E69 -> 0 | J37: =Industrial!C66 -> 0 | K37: =Industrial!D66 -> 0 | L37: ='Commercial Parking'!D24 -> 3.076923077 | M37: ='Commercial Parking'!E69 -> 0 | N37: 165247.9837
A38: Net Operating Income | C38: ='Residential Rental'!E68 -> 663453.8979 | E38: =Office!E67 -> 0 | G38: =Retail!E70 -> 288515.5035 | I38: =Hotel!E70 -> 0 | K38: =Industrial!D67 -> 0 | M38: ='Commercial Parking'!E70 -> 0 | N38: 951969.4013
A41: Initial Project Value Analysis | B41: Res. (Rental) | C41: Office | D41: Retail | E41: Accommodation | F41: Industrial | G41: Commercial Parking | H41: Rental Summary
A42: CAP RATE (Yield to Costs) | B42: ='Residential Rental'!C71 -> 0.07192240054 | C42: =Office!D70 -> 0 | D42: =Retail!D73 -> 0.1199677498 | E42: =Hotel!D73 -> 0 | F42: =Industrial!C70 -> 0 | G42: ='Commercial Parking'!D73 -> 0 | H42: =N38/H18 -> 0.08185800161
A43: Debt Service | B43: ='Residential Rental'!C72 -> 398203.3046 | C43: =Office!D71 -> 0 | D43: =Retail!D74 -> 103815.6736 | E43: =Hotel!D74 -> 0 | F43: =Industrial!C71 -> 0 | G43: ='Commercial Parking'!D74 -> 0 | H43: =SUM(B43:G43) -> 502018.9782
A44: Cash Flow | B44: ='Residential Rental'!C73 -> 265250.5933 | C44: =Office!D72 -> 0 | D44: =Retail!D75 -> 184699.8299 | E44: =Hotel!D75 -> 0 | F44: =Industrial!C72 -> 0 | G44: ='Commercial Parking'!D75 -> 0 | H44: =SUM(B44:G44) -> 449950.4232
A45: Return on Equity (Year 1) | B45: ='Residential Rental'!C74 -> 0.07188690681 | C45: =Office!D73 -> 0 | D45: =Retail!D76 -> 0.19200028 | E45: =Hotel!D76 -> 0 | F45: =Industrial!C73 -> 0 | G45: ='Commercial Parking'!D76 -> 0 | H45: =H44/H75 -> 0.0967259095
A46: Property Value (Year 1)
A47: NOI | B47: ='Residential Rental'!C76 -> 663453.8979 | C47: =Office!D75 -> 0 | D47: =Retail!D78 -> 288515.5035 | E47: =Hotel!D78 -> 0 | F47: =Industrial!C75 -> 0 | G47: ='Commercial Parking'!D78 -> 0 | H47: =SUM(B47:G47) -> 951969.4013
A48: Going in Cap Rate | B48: ='Residential Rental'!C77 -> 0.06 | C48: =Office!D76 -> 0.073 | D48: =Retail!D79 -> 0.06 | E48: =Hotel!D79 -> 0.06 | F48: =Industrial!C76 -> 0.073 | G48: ='Commercial Parking'!D79 -> 0 | H48: =IFERROR(SUMPRODUCT(B18:G18,B48:G48)/H18,0) -> 0.06
A49: Project Market Value | B49: ='Residential Rental'!C78 -> 11057564.96 | C49: =Office!D77 -> 0 | D49: =Retail!D80 -> 4808591.725 | E49: =Hotel!D80 -> 0 | F49: =Industrial!C77 -> 0 | G49: ='Commercial Parking'!D80 -> 0 | H49: =SUM(B49:G49) -> 15866156.69
A50: Net Project Value | B50: ='Residential Rental'!C79 -> 1832985.516 | C50: =Office!D78 -> 0 | D50: =Retail!D81 -> 2403649.53 | E50: =Hotel!D81 -> 0 | F50: =Industrial!C78 -> 0 | G50: ='Commercial Parking'!D81 -> 0 | H50: =SUM(B50:G50) -> 4236635.046
A53: Debt Financing | B53: Res. (Rental) | C53: Office | D53: Retail | E53: Accommodation | F53: Industrial | G53: Commercial Parking | H53: Rental Summary
A54: Primary Debt
A55: Total Value | B55: ='Residential Rental'!E83 -> 9224579.448 | C55: =Office!E83 -> 0 | D55: =Retail!E85 -> 2404942.194 | E55: =Hotel!E85 -> 0 | F55: =Industrial!E82 -> 0 | G55: ='Commercial Parking'!E85 -> 0 | H55: =IF(H49>N22,N22,H49) -> 11629521.64
A56: LTV Ratio | B56: ='Advanced Financial'!C87 -> 0.6 | C56: ='Advanced Financial'!F87 -> 0.6 | D56: ='Advanced Financial'!E87 -> 0.6 | E56: ='Advanced Financial'!D87 -> 0.6 | F56: ='Advanced Financial'!G87 -> 0.6 | G56: ='Advanced Financial'!E87 -> 0.6 | H56: =IFERROR(SUMPRODUCT(B18:G18,B56:G56)/H18,0) -> 0.6
A57: Maximum LTV | B57: ='Residential Rental'!E84 -> 5534747.669 | C57: =Office!E84 -> 0 | D57: =Retail!E86 -> 1442965.317 | E57: =Hotel!E86 -> 0 | F57: =Industrial!E83 -> 0 | G57: ='Commercial Parking'!E86 -> 0 | H57: =SUM(B57:G57) -> 6977712.985
A58: Imputed Loan Amount | B58: ='Residential Rental'!E85 -> 5534747.669 | C58: =Office!E85 -> 0 | D58: =Retail!E87 -> 1442965.317 | E58: =Hotel!E87 -> 0 | F58: =Industrial!E84 -> 0 | G58: ='Commercial Parking'!E87 -> 0 | H58: =SUM(B58:G58) -> 6977712.985
A59: Rate | B59: ='Residential Rental'!E86 -> 0.06 | C59: =Office!E86 -> 0.04 | D59: =Retail!E88 -> 0.06 | E59: =Hotel!E88 -> 0.06 | F59: ='Advanced Financial'!G88 -> 0.06 | G59: ='Commercial Parking'!E88 -> 0.06 | H59: =IFERROR(SUMPRODUCT(B18:G18,B59:G59)/H18,0) -> 0.06
A60: Amortization Period, Years | B60: ='Residential Rental'!E87 -> 30 | C60: =Office!E87 -> 30 | D60: =Retail!E89 -> 30 | E60: =Hotel!E89 -> 30 | F60: ='Advanced Financial'!G89 -> 30 | G60: ='Commercial Parking'!E89 -> 30 | H60: =IFERROR(SUMPRODUCT(B18:G18,B60:G60)/H18,0) -> 30
A61: Annual Debt Service (Amortized) | B61: ='Residential Rental'!E88 -> -398203.3046 | C61: =Office!E88 -> 0 | D61: =Retail!E90 -> -103815.6736 | E61: =Hotel!E90 -> 0 | F61: =Industrial!E87 -> 0 | G61: ='Commercial Parking'!E90 -> 0 | H61: =PMT(H59/12,H60*12,H58)*12 -> -502018.9782
A62: Public Leveraging Loan
A63: LTV Ratio | B63: =IF(B82=1,'Gap Financing Options'!C63,0) -> 0 | C63: =IF(C82=1,'Gap Financing Options'!D63,0) -> 0 | D63: =IF(D82=1,'Gap Financing Options'!E63,0) -> 0 | E63: =IF(E82=1,'Gap Financing Options'!F63,0) -> 0 | F63: =IF(F82=1,'Gap Financing Options'!G63,0) -> 0 | G63: =IF(D82=1,'Gap Financing Options'!E63,0) -> 0 | H63: =IFERROR(SUMPRODUCT(B18:G18,B63:G63)/H18,0) -> 0
A64: Maximum LTV | B64: ='Residential Rental'!E90 -> 0 | C64: =Office!E90 -> 0 | D64: =Retail!E92 -> 0 | E64: =Hotel!E92 -> 0 | F64: =Industrial!E89 -> 0 | G64: ='Commercial Parking'!E92 -> 0 | H64: =SUM(B64:G64) -> 0
A65: Imputed Loan Amount | B65: ='Residential Rental'!E91 -> 0 | C65: =Office!E91 -> 0 | D65: =Retail!E93 -> 0 | E65: =Hotel!E93 -> 0 | F65: =Industrial!E90 -> 0 | G65: ='Commercial Parking'!E93 -> 0 | H65: =SUM(B65:G65) -> 0
A66: Rate | B66: ='Residential Rental'!E92 -> 0 | C66: =Office!E92 -> 0 | D66: =Retail!E94 -> 0 | E66: =Hotel!E94 -> 0 | F66: =Industrial!E91 -> 0 | G66: ='Commercial Parking'!E94 -> 0 | H66: =IFERROR(SUMPRODUCT(B18:G18,B66:G66)/H18,0) -> 0
A67: Amortization Period, Years | B67: ='Residential Rental'!E93 -> 0 | C67: =Office!E93 -> 0 | D67: =Retail!E95 -> 0 | E67: =Hotel!E95 -> 0 | F67: =Industrial!E92 -> 0 | G67: ='Commercial Parking'!E95 -> 0 | H67: =IFERROR(SUMPRODUCT(B18:G18,B67:G67)/H18,0) -> 0
A68: Annual Debt Service (Amortized) | B68: ='Residential Rental'!E94 -> 0 | C68: =Office!E94 -> 0 | D68: =Retail!E96 -> 0 | E68: =Hotel!E96 -> 0 | F68: =Industrial!E93 -> 0 | G68: ='Commercial Parking'!E96 -> 0 | H68: =IFERROR((PMT(H66/12,H67*12,H65)*12),0) -> 0
A69: Total Debt | B69: ='Residential Rental'!E96 -> 5534747.669 | C69: =Office!E96 -> 0 | D69: =Retail!E98 -> 1442965.317 | E69: =Hotel!E98 -> 0 | F69: =Industrial!E95 -> 0 | G69: ='Commercial Parking'!E98 -> 0 | H69: =SUM(B69:G69) -> 6977712.985
A70: Total Debt Service | B70: ='Residential Rental'!E97 -> -398203.3046 | C70: =Office!E97 -> 0 | D70: =Retail!E99 -> -103815.6736 | E70: =Hotel!E99 -> 0 | F70: =Industrial!E96 -> 0 | G70: ='Commercial Parking'!E99 -> 0 | H70: =SUM(B70:G70) -> -502018.9782
A71: Summary
A72: Total Development Costs | B72: ='Residential Rental'!E99 -> 9224579.448 | C72: =Office!E99 -> 0 | D72: =Retail!E101 -> 2404942.194 | E72: =Hotel!E101 -> 0 | F72: =Industrial!E98 -> 0 | G72: ='Commercial Parking'!E101 -> 0 | H72: =SUM(B72:G72) -> 11629521.64
A73: Equity Required | B73: ='Residential Rental'!E100 -> 3689831.779 | C73: =Office!E100 -> 0 | D73: =Retail!E102 -> 961976.8777 | E73: =Hotel!E102 -> 0 | F73: =Industrial!E99 -> 0 | G73: ='Commercial Parking'!E102 -> 0 | H73: 4651808.657
A74: Total Development Offsets (Contributions to Equity) | B74: ='Residential Rental'!E101 -> 0 | C74: =Office!E101 -> 0 | D74: =Retail!E103 -> 0 | E74: =Hotel!E103 -> 0 | F74: =Industrial!E100 -> 0 | G74: ='Commercial Parking'!E103 -> 0 | H74: 0
A75: Net Equity Required | B75: ='Residential Rental'!E102 -> 3689831.779 | C75: =Office!E102 -> 0 | D75: =Retail!E104 -> 961976.8777 | E75: =Hotel!E104 -> 0 | F75: =Industrial!E101 -> 0 | G75: ='Commercial Parking'!E104 -> 0 | H75: 4651808.657
A76: Total Project Cost | B76: ='Residential Rental'!E103 -> 9224579.448 | C76: =Office!E103 -> 0 | D76: =Retail!E105 -> 2404942.194 | E76: =Hotel!E105 -> 0 | F76: =Industrial!E102 -> 0 | G76: ='Commercial Parking'!E105 -> 0 | H76: 11629521.64
A77: Total Project Cost After Development Offsets | B77: ='Residential Rental'!E104 -> 9224579.448 | C77: =Office!E104 -> 0 | D77: =Retail!E106 -> 2404942.194 | E77: =Hotel!E106 -> 0 | F77: =Industrial!E103 -> 0 | G77: ='Commercial Parking'!E106 -> 0 | H77: 11629521.64
A78: Public Participation
A79: Capital Investment | B79: ='Residential Rental'!E106 -> 0 | C79: =Office!E106 -> 0 | D79: =Retail!E108 -> 0 | E79: =Hotel!E108 -> 0 | F79: =Industrial!E105 -> 0 | G79: ='Commercial Parking'!E108 -> 0 | H79: =SUM(B79:G79) -> 0
A80: Annual Cash Throw Off | B80: ='Residential Rental'!E107 -> 0 | C80: =Office!E107 -> 0 | D80: =Retail!E109 -> 0 | E80: =Hotel!E109 -> 0 | F80: =Industrial!E106 -> 0 | G80: ='Commercial Parking'!E109 -> 0 | H80: =SUM(B80:G80) -> 0
A81: Share of Net Sales Price | B81: ='Residential Rental'!E108 -> 0 | C81: =Office!E108 -> 0 | D81: =Retail!E110 -> 0 | E81: =Hotel!E110 -> 0 | F81: =Industrial!E107 -> 0 | G81: ='Commercial Parking'!E110 -> 0 | H81: =IFERROR(SUMPRODUCT(B18:G18,B81:G81)/H18,0) -> 0
A82: Public Leveraging Loan Included in Analysis? | B82: ='Residential Rental'!E109 -> 0 | C82: =Office!E109 -> 0 | D82: =Retail!E111 -> 0 | E82: =Hotel!E111 -> 0 | F82: =Industrial!E108 -> 0 | G82: ='Commercial Parking'!E111 -> 0 | H82: =IFERROR(SUMPRODUCT(B18:G18,B82:G82)/H18,0) -> 0
A83: Target IRR | B83: ='Residential Rental'!E110 -> 0.05 | C83: =Office!E110 -> 0.05 | D83: =Retail!E112 -> 0.05 | E83: =Hotel!E112 -> 0.05 | F83: =Industrial!E109 -> 0.05 | G83: ='Commercial Parking'!E112 -> 0.05 | H83: =IFERROR(SUMPRODUCT(B18:G18,B83:G83)/H18,0) -> 0.05
A86: Operating Statement Summary | B86: Escalation | C86: Year 1 | D86: Year 2 | E86: Year 3 | F86: Year 4 | G86: Year 5 | H86: Year 6 | I86: Year 7 | J86: Year 8 | K86: Year 9 | L86: Year 10
A87: GPI | B87: =IFERROR(SUMPRODUCT('Advanced Financial'!C81:H81,B18:G18)/H18,0) -> 0.03 | C87: =N31 -> 1120128.688 | D87: =C87*(1+$B$87) -> 1153732.549 | E87: =D87*(1+$B$87) -> 1188344.526 | F87: =E87*(1+$B$87) -> 1223994.861 | G87: 1260714.707 | H87: 1298536.148 | I87: 1337492.233 | J87: 1377617 | K87: 1418945.51 | L87: 1461513.875
A88: Other Income | C88: =N32 -> 81180.32773 | D88: =C88*(1+$B$87) -> 83615.73756 | E88: =D88*(1+$B$87) -> 86124.20969 | F88: 88707.93598 | G88: 91369.17406 | H88: 94110.24928 | I88: 96933.55676 | J88: 99841.56346 | K88: 102836.8104 | L88: 105921.9147
A89: Total Income | C89: =C87+C88 -> 1201309.016 | D89: =D87+D88 -> 1237348.287 | E89: 1274468.735 | F89: 1312702.797 | G89: 1352083.881 | H89: 1392646.398 | I89: 1434425.79 | J89: 1477458.563 | K89: 1521782.32 | L89: 1567435.79
A90: Less: Vacancy | B90: =N34/$N$33 -> 0.05 | C90: =$B$90*C89 -> 60065.45081 | D90: =$B$90*D89 -> 61867.41433 | E90: 63723.43676 | F90: 65635.13987 | G90: 67604.19406 | H90: 69632.31988 | I90: 71721.28948 | J90: 73872.92817 | K90: 76089.11601 | L90: 78371.78949
A91: Less: Concessions, Market Loss | B91: =N35/$N$33 -> 0.02 | C91: =$B$91*C89 -> 24026.18032 | D91: =$B$91*D89 -> 24746.96573 | E91: 25489.37471 | F91: 26254.05595 | G91: 27041.67763 | H91: 27852.92795 | I91: 28688.51579 | J91: 29549.17127 | K91: 30435.6464 | L91: 31348.7158
A92: EGI | C92: =C89-C90-C91 -> 1117217.385 | D92: =D89-D90-D91 -> 1150733.907 | E92: 1185255.924 | F92: 1220813.602 | G92: 1257438.01 | H92: 1295161.15 | I92: 1334015.984 | J92: 1374036.464 | K92: 1415257.558 | L92: 1457715.285
A93: Less: Operating Costs | B93: =IFERROR(SUMPRODUCT('Advanced Financial'!C82:H82,B18:G18)/H18,0) -> 0.03 | C93: =N37 -> 165247.9837 | D93: =C93*(1+$B$93) -> 170205.4232 | E93: =D93*(1+$B$93) -> 175311.5859 | F93: 180570.9335 | G93: 185988.0615 | H93: 191567.7034 | I93: 197314.7345 | J93: 203234.1765 | K93: 209331.2018 | L93: 215611.1379
A94: Less: Property Taxes | C94: =SUM('Residential Rental'!E121,Office!E121,Retail!E124,Hotel!E124,Industrial!E121,'Commercial Parking'!E124) -> 174442.8246 | D94: =SUM('Residential Rental'!F121,Office!F121,Retail!F124,Hotel!F124,Industrial!F121,'Commercial Parking'!F124) -> 179676.1094 | E94: =SUM('Residential Rental'!G121,Office!G121,Retail!G124,Hotel!G124,Industrial!G121,'Commercial Parking'!G124) -> 185066.3927 | F94: =SUM('Residential Rental'!H121,Office!H121,Retail!H124,Hotel!H124,Industrial!H121,'Commercial Parking'!H124) -> 190618.3844 | G94: =SUM('Residential Rental'!I121,Office!I121,Retail!I124,Hotel!I124,Industrial!I121,'Commercial Parking'!I124) -> 196336.936 | H94: =SUM('Residential Rental'!J121,Office!J121,Retail!J124,Hotel!J124,Industrial!J121,'Commercial Parking'!J124) -> 202227.044 | I94: =SUM('Residential Rental'!K121,Office!K121,Retail!K124,Hotel!K124,Industrial!K121,'Commercial Parking'!K124) -> 208293.8554 | J94: =SUM('Residential Rental'!L121,Office!L121,Retail!L124,Hotel!L124,Industrial!L121,'Commercial Parking'!L124) -> 214542.671 | K94: =SUM('Residential Rental'!M121,Office!M121,Retail!M124,Hotel!M124,Industrial!M121,'Commercial Parking'!M124) -> 220978.9512 | L94: =SUM('Residential Rental'!N121,Office!N121,Retail!N124,Hotel!N124,Industrial!N121,'Commercial Parking'!N124) -> 227608.3197
A95: Plus: Property Tax Abatement | C95: =SUM('Residential Rental'!E122,Office!E122,Retail!E125,Hotel!E125,Industrial!E122,'Commercial Parking'!E125) -> 0 | D95: =SUM('Residential Rental'!F122,Office!F122,Retail!F125,Hotel!F125,Industrial!F122,'Commercial Parking'!F125) -> 0 | E95: =SUM('Residential Rental'!G122,Office!G122,Retail!G125,Hotel!G125,Industrial!G122,'Commercial Parking'!G125) -> 0 | F95: =SUM('Residential Rental'!H122,Office!H122,Retail!H125,Hotel!H125,Industrial!H122,'Commercial Parking'!H125) -> 0 | G95: =SUM('Residential Rental'!I122,Office!I122,Retail!I125,Hotel!I125,Industrial!I122,'Commercial Parking'!I125) -> 0 | H95: =SUM('Residential Rental'!J122,Office!J122,Retail!J125,Hotel!J125,Industrial!J122,'Commercial Parking'!J125) -> 0 | I95: =SUM('Residential Rental'!K122,Office!K122,Retail!K125,Hotel!K125,Industrial!K122,'Commercial Parking'!K125) -> 0 | J95: =SUM('Residential Rental'!L122,Office!L122,Retail!L125,Hotel!L125,Industrial!L122,'Commercial Parking'!L125) -> 0 | K95: =SUM('Residential Rental'!M122,Office!M122,Retail!M125,Hotel!M125,Industrial!M122,'Commercial Parking'!M125) -> 0 | L95: =SUM('Residential Rental'!N122,Office!N122,Retail!N125,Hotel!N125,Industrial!N122,'Commercial Parking'!N125) -> 0
A96: Plus Sales Tax Abatement | C96: =SUM(Office!E123,Retail!E126,Hotel!E126,Industrial!E123,'Commercial Parking'!E126) -> 0 | D96: =SUM(Office!F123,Retail!F126,Hotel!F126,Industrial!F123,'Commercial Parking'!F126) -> 0 | E96: =SUM(Office!G123,Retail!G126,Hotel!G126,Industrial!G123,'Commercial Parking'!G126) -> 0 | F96: =SUM(Office!H123,Retail!H126,Hotel!H126,Industrial!H123,'Commercial Parking'!H126) -> 0 | G96: =SUM(Office!I123,Retail!I126,Hotel!I126,Industrial!I123,'Commercial Parking'!I126) -> 0 | H96: =SUM(Office!J123,Retail!J126,Hotel!J126,Industrial!J123,'Commercial Parking'!J126) -> 0 | I96: =SUM(Office!K123,Retail!K126,Hotel!K126,Industrial!K123,'Commercial Parking'!K126) -> 0 | J96: =SUM(Office!L123,Retail!L126,Hotel!L126,Industrial!L123,'Commercial Parking'!L126) -> 0 | K96: =SUM(Office!M123,Retail!M126,Hotel!M126,Industrial!M123,'Commercial Parking'!M126) -> 0 | L96: =SUM(Office!N123,Retail!N126,Hotel!N126,Industrial!N123,'Commercial Parking'!N126) -> 0
A97: Plus TIF + IRA Retainage of Taxes | C97: =SUM('Residential Rental'!E124,Office!E124,Hotel!E127,Industrial!E124) -> 0 | D97: =SUM('Residential Rental'!F124,Office!F124,Hotel!F127,Industrial!F124) -> 0 | E97: =SUM('Residential Rental'!G124,Office!G124,Hotel!G127,Industrial!G124) -> 0 | F97: =SUM('Residential Rental'!H124,Office!H124,Hotel!H127,Industrial!H124) -> 0 | G97: =SUM('Residential Rental'!I124,Office!I124,Hotel!I127,Industrial!I124) -> 0 | H97: =SUM('Residential Rental'!J124,Office!J124,Hotel!J127,Industrial!J124) -> 0 | I97: =SUM('Residential Rental'!K124,Office!K124,Hotel!K127,Industrial!K124) -> 0 | J97: =SUM('Residential Rental'!L124,Office!L124,Hotel!L127,Industrial!L124) -> 0 | K97: =SUM('Residential Rental'!M124,Office!M124,Hotel!M127,Industrial!M124) -> 0 | L97: =SUM('Residential Rental'!N124,Office!N124,Hotel!N127,Industrial!N124) -> 0
A98: Cash Throw Off to Public Partner | C98: =SUM('Residential Rental'!E123,Office!E125,Retail!E128,Hotel!E128,'Commercial Parking'!E128) -> 0 | D98: =SUM('Residential Rental'!F123,Office!F125,Retail!F128,Hotel!F128,'Commercial Parking'!F128) -> 0 | E98: =SUM('Residential Rental'!G123,Office!G125,Retail!G128,Hotel!G128,'Commercial Parking'!G128) -> 0 | F98: =SUM('Residential Rental'!H123,Office!H125,Retail!H128,Hotel!H128,'Commercial Parking'!H128) -> 0 | G98: =SUM('Residential Rental'!I123,Office!I125,Retail!I128,Hotel!I128,'Commercial Parking'!I128) -> 0 | H98: =SUM('Residential Rental'!J123,Office!J125,Retail!J128,Hotel!J128,'Commercial Parking'!J128) -> 0 | I98: =SUM('Residential Rental'!K123,Office!K125,Retail!K128,Hotel!K128,'Commercial Parking'!K128) -> 0 | J98: =SUM('Residential Rental'!L123,Office!L125,Retail!L128,Hotel!L128,'Commercial Parking'!L128) -> 0 | K98: =SUM('Residential Rental'!M123,Office!M125,Retail!M128,Hotel!M128,'Commercial Parking'!M128) -> 0 | L98: =SUM('Residential Rental'!N123,Office!N125,Retail!N128,Hotel!N128) -> 0
A99: Plus: Retainage of Property & Sales Taxes | C99: =Retail!E127 -> 0 | D99: =Retail!F127 -> 0 | E99: =Retail!G127 -> 0 | F99: =Retail!H127 -> 0 | G99: =Retail!I127 -> 0 | H99: =Retail!J127 -> 0 | I99: =Retail!K127 -> 0 | J99: =Retail!L127 -> 0 | K99: =Retail!M127 -> 0 | L99: =Retail!N127 -> 0
A100: NOI | C100: =C92-C94-C93+C95+C96+C97+C98+C99 -> 777526.5767 | D100: =D92-D94-D93+D95+D96+D97+D98+D99 -> 800852.374 | E100: 824877.9452 | F100: 849624.2836 | G100: 875113.0121 | H100: 901366.4024 | I100: 928407.3945 | J100: 956259.6163 | K100: 984947.4048 | L100: 1014495.827
A102: Less: Debt Service | C102: =-$H$70 -> 502018.9782 | D102: =-$H$70 -> 502018.9782 | E102: 502018.9782 | F102: 502018.9782 | G102: 502018.9782 | H102: 502018.9782 | I102: 502018.9782 | J102: 502018.9782 | K102: 502018.9782 | L102: 502018.9782
A103: Net Cash Flow | C103: =C100-C102 -> 275507.5985 | D103: =D100-D102 -> 298833.3958 | E103: 322858.967 | F103: 347605.3054 | G103: 373094.0339 | H103: 399347.4243 | I103: 426388.4163 | J103: 454240.6382 | K103: 482928.4267 | L103: 512476.8488
A105: Cap Rate | C105: =C100/$H$72 -> 0.06685800161 | D105: 0.06886374166 | E105: 0.07092965391 | F105: 0.07305754353 | G105: 0.07524926983 | H105: 0.07750674793 | I105: 0.07983195036 | J105: 0.08222690887 | K105: 0.08469371614 | L105: 0.08723452762
A106: Cash on Cash Return (Equity Dividend Rate) | C106: =IFERROR(C103/$H$75,0) -> 0.0592259095 | D106: =D103/$H$75 -> 0.06424025962 | E106: 0.06940504024 | F106: 0.07472476429 | G106: 0.08020408005 | H106: 0.08584777529 | I106: 0.09166078138 | J106: 0.09764817766 | K106: 0.1038151958 | L106: 0.1101672245
A109: Project Value | B109: Year 0 | C109: Year 1 | D109: Year 2 | E109: Year 3 | F109: Year 4 | G109: Year 5 | H109: Year 6 | I109: Year 7 | J109: Year 8 | K109: Year 9 | L109: Year 10
A110: Terminal Cap Rate, Gross Sales Price | C110: =IFERROR(SUMPRODUCT('Advanced Financial'!C83:H83,B18:G18)/H18,0) -> 0.073 | L110: =L100/C110 -> 13897203.11
A111: Net Sales = Price Less Sales Cost | C111: =IFERROR(SUMPRODUCT('Advanced Financial'!C84:H84,B18:G18)/H18,0) -> 0.05 | L111: =L110*(1-C111) -> 13202342.95
A112: Less Mortgage Balance | L112: =Z158 -> 5839349.698
A113: Net Sales Proceeds | L113: =L111-L112 -> 7362993.256
A116: IRR - Unleveraged (Project Cost) | B116: Year 0 | C116: Year 1 | D116: Year 2 | E116: Year 3 | F116: Year 4 | G116: Year 5 | H116: Year 6 | I116: Year 7 | J116: Year 8 | K116: Year 9 | L116: Year 10
A117: Total Investment | B117: =-H77 -> -11629521.64
A118: Project NOI | C118: =C100 -> 777526.5767 | D118: =D100 -> 800852.374 | E118: =E100 -> 824877.9452 | F118: =F100 -> 849624.2836 | G118: 875113.0121 | H118: 901366.4024 | I118: 928407.3945 | J118: 956259.6163 | K118: 984947.4048 | L118: 1014495.827
A119: Net Sales Price | L119: =L111 -> 13202342.95
A120: Total | B120: =SUM(B117:B119) -> -11629521.64 | C120: =SUM(C117:C119) -> 777526.5767 | D120: 800852.374 | E120: 824877.9452 | F120: 849624.2836 | G120: 875113.0121 | H120: 901366.4024 | I120: 928407.3945 | J120: 956259.6163 | K120: 984947.4048 | L120: 14216838.78
A121: IRR - Project Cost | L121: =IFERROR(IRR(B120:L120),0) -> 0.08430347663
A122: NPV - Project Cost | L122: =NPV(N6,B120:L120) -> -2212281.676
A124: IRR - Leveraged (Before Tax) | B124: Year 0 | C124: Year 1 | D124: Year 2 | E124: Year 3 | F124: Year 4 | G124: Year 5 | H124: Year 6 | I124: Year 7 | J124: Year 8 | K124: Year 9 | L124: Year 10
A125: Original Investment (Equity) | B125: =-H75 -> -4651808.657
A126: Project Cash Flow | C126: =C103 -> 275507.5985 | D126: =D103 -> 298833.3958 | E126: 322858.967 | F126: 347605.3054 | G126: 373094.0339 | H126: 399347.4243 | I126: 426388.4163 | J126: 454240.6382 | K126: 482928.4267 | L126: 512476.8488
A127: Net Sales Proceeds | L127: =L113 -> 7362993.256
A128: Total | B128: =SUM(B125:B127) -> -4651808.657 | C128: =SUM(C125:C127) -> 275507.5985 | D128: 298833.3958 | E128: 322858.967 | F128: 347605.3054 | G128: 373094.0339 | H128: 399347.4243 | I128: 426388.4163 | J128: 454240.6382 | K128: 482928.4267 | L128: 7875470.105
A129: IRR - Equity | L129: =IFERROR(IRR(B128:L128),0) -> 0.1131415662
A130: NPV - Equity | L130: =NPV(N7,B128:L128) -> -2103564.409
A132: IRR - Public Participation | B132: Year 0 | C132: Year 1 | D132: Year 2 | E132: Year 3 | F132: Year 4 | G132: Year 5 | H132: Year 6 | I132: Year 7 | J132: Year 8 | K132: Year 9 | L132: Year 10
A133: Original Investment (Equity) | B133: =-(H79+(H65*H82)) -> 0
A134: Mezzanine Financing | C134: =-$H$68 -> 0 | D134: =-$H$68 -> 0 | E134: 0 | F134: 0 | G134: 0 | H134: 0 | I134: 0 | J134: 0 | K134: 0 | L134: 0
A135: Cash Throw Off | C135: =$H$80 -> 0 | D135: =SUM('Residential Rental'!F159,Office!F160,Retail!F163,Hotel!F163) -> 0 | E135: =SUM('Residential Rental'!G159,Office!G160,Retail!G163,Hotel!G163) -> 0 | F135: =SUM('Residential Rental'!H159,Office!H160,Retail!H163,Hotel!H163) -> 0 | G135: =SUM('Residential Rental'!I159,Office!I160,Retail!I163,Hotel!I163) -> 0 | H135: =SUM('Residential Rental'!J159,Office!J160,Retail!J163,Hotel!J163) -> 0 | I135: =SUM('Residential Rental'!K159,Office!K160,Retail!K163,Hotel!K163) -> 0 | J135: =SUM('Residential Rental'!L159,Office!L160,Retail!L163,Hotel!L163) -> 0 | K135: =SUM('Residential Rental'!M159,Office!M160,Retail!M163,Hotel!M163) -> 0 | L135: =SUM('Residential Rental'!N159,Office!N160,Retail!N163,Hotel!N163) -> 0
A136: Sale Proceeds | L136: =L127*H81 -> 0
A137: Loan Balance | L137: =U158*H82 -> 0
A138: Total | B138: =SUM(B133:B137) -> 0 | C138: =SUM(C133:C137) -> 0 | D138: 0 | E138: 0 | F138: 0 | G138: 0 | H138: 0 | I138: 0 | J138: 0 | K138: 0 | L138: 0
A139: IRR - Equity | L139: =IFERROR(IRR(B138:L138),0) -> 0
A140: NPV - Equity | L140: =NPV(N9,B138:L138) -> 0
A145: DEBT SERVICE MORTIZATION TABLES
A146: Primary Debt Amortization | F146: Low Interest Loan | K146: Total Debt Amortization | O146: Annual Debt Service Summary - Primary Debt | T146: Annual Debt Service Summary - Secondary Debt | Y146: Annual Debt Service Summary - Total Debt
A148: Period | B148: Balance | C148: Payment | D148: Interest | E148: Principal | F148: Period | G148: Balance | H148: Payment | I148: Interest | J148: Principal | K148: Period | L148: Balance | M148: Payment | N148: Principal | O148: Year | P148: Balance | Q148: Payment | R148: Interest | S148: Principal | T148: Year | U148: Balance | V148: Payment | W148: Interest | X148: Principal | Y148: Year | Z148: Balance | AA148: Payment | AB148: Interest | AC148: Principal
A149: 0 | B149: =H57 -> 6977712.985 | F149: 0 | G149: =H65 -> 0 | K149: 0 | L149: =B149+G149 -> 6977712.985 | O149: 1 | P149: =B161 -> 6892025.853 | Q149: =SUM(C150:C161) -> 502018.9782 | R149: =SUM(D150:D161) -> 416331.8455 | S149: =SUM(E150:E161) -> 85687.13271 | T149: 1 | U149: =G161 -> 0 | V149: =SUM(H150:H161) -> 0 | W149: =SUM(I150:I161) -> 0 | X149: =SUM(J150:J161) -> 0 | Y149: 1 | Z149: =P149+U149 -> 6892025.853 | AA149: =Q149+V149 -> 502018.9782 | AB149: 416331.8455 | AC149: 85687.13271
A150: 1 | B150: =B149-E150 -> 6970766.636 | C150: =-$H$61/12 -> 41834.91485 | D150: =$H$59/12*B149 -> 34888.56493 | E150: =C150-D150 -> 6946.349921 | F150: 1 | G150: =G149-J150 -> 0 | H150: =-$H$68/12 -> 0 | I150: =$H$66/12*G149 -> 0 | J150: =H150-I150 -> 0 | K150: 1 | L150: =G150+B150 -> 6970766.636 | M150: 41834.91485 | N150: =J150+E150 -> 6946.349921 | O150: 2 | P150: =B173 -> 6801053.725 | Q150: =SUM(C162:C173) -> 502018.9782 | R150: =SUM(D162:D173) -> 411046.8506 | S150: =SUM(E162:E173) -> 90972.12756 | T150: 2 | U150: =G173 -> 0 | V150: =SUM(H162:H173) -> 0 | W150: =SUM(I162:I173) -> 0 | X150: =SUM(J162:J173) -> 0 | Y150: 2 | Z150: =P150+U150 -> 6801053.725 | AA150: =Q150+V150 -> 502018.9782 | AB150: =R150+W150 -> 411046.8506 | AC150: =S150+X150 -> 90972.12756
A151: =A150+1 -> 2 | B151: 6963785.554 | C151: =-$H$61/12 -> 41834.91485 | D151: =$H$59/12*B150 -> 34853.83318 | E151: 6981.08167 | F151: =F150+1 -> 2 | G151: 0 | H151: =-$H$68/12 -> 0 | I151: =$H$66/12*G150 -> 0 | J151: 0 | K151: =K150+1 -> 2 | L151: 6963785.554 | M151: 41834.91485 | N151: 6981.08167 | O151: 3 | P151: =B185 -> 6704470.636 | Q151: =SUM(C174:C185) -> 502018.9782 | R151: =SUM(D174:D185) -> 405435.8888 | S151: 96583.08933 | T151: 3 | U151: =G185 -> 0 | V151: =SUM(H174:H185) -> 0 | W151: =SUM(I174:I185) -> 0 | X151: =SUM(J174:J185) -> 0 | Y151: 3 | Z151: 6704470.636 | AA151: 502018.9782 | AB151: 405435.8888 | AC151: 96583.08933
A152: 3 | B152: 6956769.567 | C152: 41834.91485 | D152: 34818.92777 | E152: 7015.987079 | F152: 3 | G152: =G151-J152 -> 0 | H152: 0 | I152: 0 | J152: 0 | K152: 3 | L152: 6956769.567 | M152: 41834.91485 | N152: 7015.987079 | O152: 4 | P152: =B197 -> 6601930.513 | Q152: =SUM(C186:C197) -> 502018.9782 | R152: =SUM(D186:D197) -> 399478.8552 | S152: 102540.1229 | T152: 4 | U152: =G197 -> 0 | V152: =SUM(H186:H197) -> 0 | W152: =SUM(I186:I197) -> 0 | X152: =SUM(J186:J197) -> 0 | Y152: 4 | Z152: 6601930.513 | AA152: 502018.9782 | AB152: 399478.8552 | AC152: 102540.1229
A153: 4 | B153: 6949718.5 | C153: 41834.91485 | D153: 34783.84783 | E153: 7051.067014 | F153: 4 | G153: 0 | H153: 0 | I153: 0 | J153: 0 | K153: 4 | L153: 6949718.5 | M153: 41834.91485 | N153: 7051.067014 | O153: 5 | P153: =B209 -> 6493065.94 | Q153: =SUM(C198:C209) -> 502018.9782 | R153: =SUM(D198:D209) -> 393154.4048 | S153: 108864.5734 | T153: 5 | U153: =G209 -> 0 | V153: =SUM(H198:H209) -> 0 | W153: =SUM(I198:I209) -> 0 | X153: =SUM(J198:J209) -> 0 | Y153: 5 | Z153: 6493065.94 | AA153: 502018.9782 | AB153: 393154.4048 | AC153: 108864.5734
A154: 5 | B154: 6942632.177 | C154: 41834.91485 | D154: 34748.5925 | E154: 7086.322349 | F154: 5 | G154: 0 | H154: 0 | I154: 0 | J154: 0 | K154: 5 | L154: 6942632.177 | M154: 41834.91485 | N154: 7086.322349 | O154: 6 | P154: =B221 -> 6377486.838 | Q154: =SUM(C210:C221) -> 502018.9782 | R154: =SUM(D210:D221) -> 386439.8761 | S154: 115579.102 | T154: 6 | U154: =G221 -> 0 | V154: =SUM(H210:H221) -> 0 | W154: =SUM(I210:I221) -> 0 | X154: =SUM(J210:J221) -> 0 | Y154: 6 | Z154: 6377486.838 | AA154: 502018.9782 | AB154: 386439.8761 | AC154: 115579.102
A155: 6 | B155: 6935510.423 | C155: 41834.91485 | D155: 34713.16089 | E155: 7121.753961 | F155: 6 | G155: 0 | H155: 0 | I155: 0 | J155: 0 | K155: 6 | L155: 6935510.423 | M155: 41834.91485 | N155: 7121.753961 | O155: 7 | P155: =B233 -> 6254779.069 | Q155: =SUM(C222:C233) -> 502018.9782 | R155: =SUM(D222:D233) -> 379311.21 | S155: 122707.7681 | T155: 7 | U155: =G233 -> 0 | V155: =SUM(H222:H233) -> 0 | W155: =SUM(I222:I233) -> 0 | X155: =SUM(J222:J233) -> 0 | Y155: 7 | Z155: 6254779.069 | AA155: 502018.9782 | AB155: 379311.21 | AC155: 122707.7681
A156: 7 | B156: 6928353.061 | C156: 41834.91485 | D156: 34677.55212 | E156: 7157.362731 | F156: 7 | G156: 0 | H156: 0 | I156: 0 | J156: 0 | K156: 7 | L156: 6928353.061 | M156: 41834.91485 | N156: 7157.362731 | O156: 8 | P156: =B245 -> 6124502.955 | Q156: =SUM(C234:C245) -> 502018.9782 | R156: =SUM(D234:D245) -> 371742.8634 | S156: 130276.1148 | T156: 8 | U156: =G245 -> 0 | V156: =SUM(H234:H245) -> 0 | W156: =SUM(I234:I245) -> 0 | X156: =SUM(J234:J245) -> 0 | Y156: 8 | Z156: 6124502.955 | AA156: 502018.9782 | AB156: 371742.8634 | AC156: 130276.1148
A157: 8 | B157: 6921159.911 | C157: 41834.91485 | D157: 34641.7653 | E157: 7193.149544 | F157: 8 | G157: 0 | H157: 0 | I157: 0 | J157: 0 | K157: 8 | L157: 6921159.911 | M157: 41834.91485 | N157: 7193.149544 | O157: 9 | P157: =B257 -> 5986191.694 | Q157: =SUM(C246:C257) -> 502018.9782 | R157: =SUM(D246:D257) -> 363707.7177 | S157: 138311.2605 | T157: 9 | U157: =G257 -> 0 | V157: =SUM(H246:H257) -> 0 | W157: =SUM(I246:I257) -> 0 | X157: =SUM(J246:J257) -> 0 | Y157: 9 | Z157: 5986191.694 | AA157: 502018.9782 | AB157: 363707.7177 | AC157: 138311.2605
A158: 9 | B158: 6913930.796 | C158: 41834.91485 | D158: 34605.79956 | E158: 7229.115292 | F158: 9 | G158: 0 | H158: 0 | I158: 0 | J158: 0 | K158: 9 | L158: 6913930.796 | M158: 41834.91485 | N158: 7229.115292 | O158: 10 | P158: =B269 -> 5839349.698 | Q158: =SUM(C258:C269) -> 502018.9782 | R158: =SUM(D258:D269) -> 355176.9818 | S158: 146841.9964 | T158: 10 | U158: =G269 -> 0 | V158: =SUM(H258:H269) -> 0 | W158: =SUM(I258:I269) -> 0 | X158: =SUM(J258:J269) -> 0 | Y158: 10 | Z158: 5839349.698 | AA158: 502018.9782 | AB158: 355176.9818 | AC158: 146841.9964
A159: 10 | B159: 6906665.535 | C159: 41834.91485 | D159: 34569.65398 | E159: 7265.260868 | F159: 10 | G159: 0 | H159: 0 | I159: 0 | J159: 0 | K159: 10 | L159: 6906665.535 | M159: 41834.91485 | N159: 7265.260868
A160: 11 | B160: 6899363.948 | C160: 41834.91485 | D160: 34533.32768 | E160: 7301.587173 | F160: 11 | G160: 0 | H160: 0 | I160: 0 | J160: 0 | K160: 11 | L160: 6899363.948 | M160: 41834.91485 | N160: 7301.587173
A161: 12 | B161: 6892025.853 | C161: 41834.91485 | D161: 34496.81974 | E161: 7338.095109 | F161: 12 | G161: 0 | H161: 0 | I161: 0 | J161: 0 | K161: 12 | L161: 6892025.853 | M161: 41834.91485 | N161: 7338.095109
A162: 13 | B162: 6884651.067 | C162: 41834.91485 | D162: 34460.12926 | E162: 7374.785584 | F162: 13 | G162: 0 | H162: 0 | I162: 0 | J162: 0 | K162: 13 | L162: 6884651.067 | M162: 41834.91485 | N162: 7374.785584
A163: 14 | B163: 6877239.408 | C163: 41834.91485 | D163: 34423.25534 | E163: 7411.659512 | F163: 14 | G163: 0 | H163: 0 | I163: 0 | J163: 0 | K163: 14 | L163: 6877239.408 | M163: 41834.91485 | N163: 7411.659512
A164: 15 | B164: 6869790.69 | C164: 41834.91485 | D164: 34386.19704 | E164: 7448.71781 | F164: 15 | G164: 0 | H164: 0 | I164: 0 | J164: 0 | K164: 15 | L164: 6869790.69 | M164: 41834.91485 | N164: 7448.71781
A165: 16 | B165: 6862304.728 | C165: 41834.91485 | D165: 34348.95345 | E165: 7485.961399 | F165: 16 | G165: 0 | H165: 0 | I165: 0 | J165: 0 | K165: 16 | L165: 6862304.728 | M165: 41834.91485 | N165: 7485.961399
A166: 17 | B166: 6854781.337 | C166: 41834.91485 | D166: 34311.52364 | E166: 7523.391206 | F166: 17 | G166: 0 | H166: 0 | I166: 0 | J166: 0 | K166: 17 | L166: 6854781.337 | M166: 41834.91485 | N166: 7523.391206
A167: 18 | B167: 6847220.329 | C167: 41834.91485 | D167: 34273.90669 | E167: 7561.008162 | F167: 18 | G167: 0 | H167: 0 | I167: 0 | J167: 0 | K167: 18 | L167: 6847220.329 | M167: 41834.91485 | N167: 7561.008162
A168: 19 | B168: 6839621.516 | C168: 41834.91485 | D168: 34236.10165 | E168: 7598.813203 | F168: 19 | G168: 0 | H168: 0 | I168: 0 | J168: 0 | K168: 19 | L168: 6839621.516 | M168: 41834.91485 | N168: 7598.813203
A169: 20 | B169: 6831984.709 | C169: 41834.91485 | D169: 34198.10758 | E169: 7636.807269 | F169: 20 | G169: 0 | H169: 0 | I169: 0 | J169: 0 | K169: 20 | L169: 6831984.709 | M169: 41834.91485 | N169: 7636.807269
A170: 21 | B170: 6824309.717 | C170: 41834.91485 | D170: 34159.92354 | E170: 7674.991305 | F170: 21 | G170: 0 | H170: 0 | I170: 0 | J170: 0 | K170: 21 | L170: 6824309.717 | M170: 41834.91485 | N170: 7674.991305
A171: 22 | B171: 6816596.351 | C171: 41834.91485 | D171: 34121.54859 | E171: 7713.366261 | F171: 22 | G171: 0 | H171: 0 | I171: 0 | J171: 0 | K171: 22 | L171: 6816596.351 | M171: 41834.91485 | N171: 7713.366261
A172: 23 | B172: 6808844.418 | C172: 41834.91485 | D172: 34082.98176 | E172: 7751.933093 | F172: 23 | G172: 0 | H172: 0 | I172: 0 | J172: 0 | K172: 23 | L172: 6808844.418 | M172: 41834.91485 | N172: 7751.933093
A173: 24 | B173: 6801053.725 | C173: 41834.91485 | D173: 34044.22209 | E173: 7790.692758 | F173: 24 | G173: 0 | H173: 0 | I173: 0 | J173: 0 | K173: 24 | L173: 6801053.725 | M173: 41834.91485 | N173: 7790.692758
A174: 25 | B174: 6793224.079 | C174: 41834.91485 | D174: 34005.26863 | E174: 7829.646222 | F174: 25 | G174: 0 | H174: 0 | I174: 0 | J174: 0 | K174: 25 | L174: 6793224.079 | M174: 41834.91485 | N174: 7829.646222
A175: 26 | B175: 6785355.285 | C175: 41834.91485 | D175: 33966.12039 | E175: 7868.794453 | F175: 26 | G175: 0 | H175: 0 | I175: 0 | J175: 0 | K175: 26 | L175: 6785355.285 | M175: 41834.91485 | N175: 7868.794453
A176: 27 | B176: 6777447.146 | C176: 41834.91485 | D176: 33926.77642 | E176: 7908.138425 | F176: 27 | G176: 0 | H176: 0 | I176: 0 | J176: 0 | K176: 27 | L176: 6777447.146 | M176: 41834.91485 | N176: 7908.138425
A177: 28 | B177: 6769499.467 | C177: 41834.91485 | D177: 33887.23573 | E177: 7947.679118 | F177: 28 | G177: 0 | H177: 0 | I177: 0 | J177: 0 | K177: 28 | L177: 6769499.467 | M177: 41834.91485 | N177: 7947.679118
A178: 29 | B178: 6761512.049 | C178: 41834.91485 | D178: 33847.49733 | E178: 7987.417513 | F178: 29 | G178: 0 | H178: 0 | I178: 0 | J178: 0 | K178: 29 | L178: 6761512.049 | M178: 41834.91485 | N178: 7987.417513
A179: 30 | B179: 6753484.695 | C179: 41834.91485 | D179: 33807.56025 | E179: 8027.354601 | F179: 30 | G179: 0 | H179: 0 | I179: 0 | J179: 0 | K179: 30 | L179: 6753484.695 | M179: 41834.91485 | N179: 8027.354601
A180: 31 | B180: 6745417.203 | C180: 41834.91485 | D180: 33767.42347 | E180: 8067.491374 | F180: 31 | G180: 0 | H180: 0 | I180: 0 | J180: 0 | K180: 31 | L180: 6745417.203 | M180: 41834.91485 | N180: 8067.491374
A181: 32 | B181: 6737309.375 | C181: 41834.91485 | D181: 33727.08602 | E181: 8107.828831 | F181: 32 | G181: 0 | H181: 0 | I181: 0 | J181: 0 | K181: 32 | L181: 6737309.375 | M181: 41834.91485 | N181: 8107.828831
A182: 33 | B182: 6729161.007 | C182: 41834.91485 | D182: 33686.54687 | E182: 8148.367975 | F182: 33 | G182: 0 | H182: 0 | I182: 0 | J182: 0 | K182: 33 | L182: 6729161.007 | M182: 41834.91485 | N182: =J182+E182 -> 8148.367975
A183: 34 | B183: 6720971.897 | C183: 41834.91485 | D183: 33645.80503 | E183: 8189.109815 | F183: 34 | G183: 0 | H183: 0 | I183: 0 | J183: 0 | K183: 34 | L183: 6720971.897 | M183: 41834.91485 | N183: 8189.109815
A184: 35 | B184: 6712741.841 | C184: 41834.91485 | D184: 33604.85948 | E184: 8230.055364 | F184: 35 | G184: 0 | H184: 0 | I184: 0 | J184: 0 | K184: 35 | L184: 6712741.841 | M184: 41834.91485 | N184: 8230.055364
A185: 36 | B185: 6704470.636 | C185: 41834.91485 | D185: 33563.70921 | E185: 8271.20564 | F185: 36 | G185: 0 | H185: 0 | I185: 0 | J185: 0 | K185: 36 | L185: 6704470.636 | M185: 41834.91485 | N185: 8271.20564
A186: 37 | B186: 6696158.074 | C186: 41834.91485 | D186: 33522.35318 | E186: 8312.561669 | F186: 37 | G186: 0 | H186: 0 | I186: 0 | J186: 0 | K186: 37 | L186: 6696158.074 | M186: 41834.91485 | N186: 8312.561669
A187: 38 | B187: 6687803.95 | C187: 41834.91485 | D187: 33480.79037 | E187: 8354.124477 | F187: 38 | G187: 0 | H187: 0 | I187: 0 | J187: 0 | K187: 38 | L187: 6687803.95 | M187: 41834.91485 | N187: 8354.124477
A188: 39 | B188: 6679408.055 | C188: 41834.91485 | D188: 33439.01975 | E188: 8395.895099 | F188: 39 | G188: 0 | H188: 0 | I188: 0 | J188: 0 | K188: 39 | L188: 6679408.055 | M188: 41834.91485 | N188: 8395.895099
A189: 40 | B189: 6670970.18 | C189: 41834.91485 | D189: 33397.04027 | E189: 8437.874575 | F189: 40 | G189: 0 | H189: 0 | I189: 0 | J189: 0 | K189: 40 | L189: 6670970.18 | M189: 41834.91485 | N189: 8437.874575
A190: 41 | B190: 6662490.116 | C190: 41834.91485 | D190: 33354.8509 | E190: 8480.063948 | F190: 41 | G190: 0 | H190: 0 | I190: 0 | J190: 0 | K190: 41 | L190: 6662490.116 | M190: 41834.91485 | N190: 8480.063948
A191: 42 | B191: 6653967.652 | C191: 41834.91485 | D191: 33312.45058 | E191: 8522.464268 | F191: 42 | G191: 0 | H191: 0 | I191: 0 | J191: 0 | K191: 42 | L191: 6653967.652 | M191: 41834.91485 | N191: 8522.464268
A192: 43 | B192: 6645402.575 | C192: 41834.91485 | D192: 33269.83826 | E192: 8565.076589 | F192: 43 | G192: 0 | H192: 0 | I192: 0 | J192: 0 | K192: 43 | L192: 6645402.575 | M192: 41834.91485 | N192: 8565.076589
A193: 44 | B193: 6636794.673 | C193: 41834.91485 | D193: 33227.01288 | E193: 8607.901972 | F193: 44 | G193: 0 | H193: 0 | I193: 0 | J193: 0 | K193: 44 | L193: 6636794.673 | M193: 41834.91485 | N193: 8607.901972
A194: 45 | B194: 6628143.732 | C194: 41834.91485 | D194: 33183.97337 | E194: 8650.941482 | F194: 45 | G194: 0 | H194: 0 | I194: 0 | J194: 0 | K194: 45 | L194: 6628143.732 | M194: 41834.91485 | N194: 8650.941482
A195: 46 | B195: 6619449.536 | C195: 41834.91485 | D195: 33140.71866 | E195: 8694.196189 | F195: 46 | G195: 0 | H195: 0 | I195: 0 | J195: 0 | K195: 46 | L195: 6619449.536 | M195: 41834.91485 | N195: 8694.196189
A196: 47 | B196: 6610711.868 | C196: 41834.91485 | D196: 33097.24768 | E196: 8737.66717 | F196: 47 | G196: 0 | H196: 0 | I196: 0 | J196: 0 | K196: 47 | L196: 6610711.868 | M196: 41834.91485 | N196: 8737.66717
A197: 48 | B197: 6601930.513 | C197: 41834.91485 | D197: 33053.55934 | E197: 8781.355506 | F197: 48 | G197: 0 | H197: 0 | I197: 0 | J197: 0 | K197: 48 | L197: 6601930.513 | M197: 41834.91485 | N197: 8781.355506
A198: 49 | B198: 6593105.251 | C198: 41834.91485 | D198: 33009.65256 | E198: 8825.262283 | F198: 49 | G198: 0 | H198: 0 | I198: 0 | J198: 0 | K198: 49 | L198: 6593105.251 | M198: 41834.91485 | N198: 8825.262283
A199: 50 | B199: 6584235.862 | C199: 41834.91485 | D199: 32965.52625 | E199: 8869.388595 | F199: 50 | G199: 0 | H199: 0 | I199: 0 | J199: 0 | K199: 50 | L199: 6584235.862 | M199: 41834.91485 | N199: 8869.388595
A200: 51 | B200: 6575322.126 | C200: 41834.91485 | D200: 32921.17931 | E200: 8913.735538 | F200: 51 | G200: 0 | H200: 0 | I200: 0 | J200: 0 | K200: 51 | L200: 6575322.126 | M200: 41834.91485 | N200: 8913.735538
A201: 52 | B201: 6566363.822 | C201: 41834.91485 | D201: 32876.61063 | E201: 8958.304215 | F201: 52 | G201: 0 | H201: 0 | I201: 0 | J201: 0 | K201: 52 | L201: 6566363.822 | M201: 41834.91485 | N201: 8958.304215
A202: 53 | B202: 6557360.727 | C202: 41834.91485 | D202: 32831.81911 | E202: 9003.095737 | F202: 53 | G202: 0 | H202: 0 | I202: 0 | J202: 0 | K202: 53 | L202: 6557360.727 | M202: 41834.91485 | N202: 9003.095737
A203: 54 | B203: 6548312.615 | C203: 41834.91485 | D203: 32786.80363 | E203: 9048.111215 | F203: 54 | G203: 0 | H203: 0 | I203: 0 | J203: 0 | K203: 54 | L203: 6548312.615 | M203: 41834.91485 | N203: 9048.111215
A204: 55 | B204: 6539219.264 | C204: 41834.91485 | D204: 32741.56308 | E204: 9093.351771 | F204: 55 | G204: 0 | H204: 0 | I204: 0 | J204: 0 | K204: 55 | L204: 6539219.264 | M204: 41834.91485 | N204: 9093.351771
A205: 56 | B205: 6530080.445 | C205: 41834.91485 | D205: 32696.09632 | E205: 9138.81853 | F205: 56 | G205: 0 | H205: 0 | I205: 0 | J205: 0 | K205: 56 | L205: 6530080.445 | M205: 41834.91485 | N205: 9138.81853
A206: 57 | B206: 6520895.932 | C206: 41834.91485 | D206: 32650.40223 | E206: 9184.512623 | F206: 57 | G206: 0 | H206: 0 | I206: 0 | J206: 0 | K206: 57 | L206: 6520895.932 | M206: 41834.91485 | N206: 9184.512623
A207: 58 | B207: 6511665.497 | C207: 41834.91485 | D207: 32604.47966 | E207: 9230.435186 | F207: 58 | G207: 0 | H207: 0 | I207: 0 | J207: 0 | K207: 58 | L207: 6511665.497 | M207: 41834.91485 | N207: 9230.435186
A208: 59 | B208: 6502388.91 | C208: 41834.91485 | D208: 32558.32749 | E208: 9276.587362 | F208: 59 | G208: 0 | H208: 0 | I208: 0 | J208: 0 | K208: 59 | L208: 6502388.91 | M208: 41834.91485 | N208: 9276.587362
A209: 60 | B209: 6493065.94 | C209: 41834.91485 | D209: 32511.94455 | E209: 9322.970299 | F209: 60 | G209: 0 | H209: 0 | I209: 0 | J209: 0 | K209: 60 | L209: 6493065.94 | M209: 41834.91485 | N209: 9322.970299
A210: 61 | B210: 6483696.354 | C210: 41834.91485 | D210: 32465.3297 | E210: 9369.58515 | F210: 61 | G210: 0 | H210: 0 | I210: 0 | J210: 0 | K210: 61 | L210: 6483696.354 | M210: 41834.91485 | N210: 9369.58515
A211: 62 | B211: 6474279.921 | C211: 41834.91485 | D211: 32418.48177 | E211: 9416.433076 | F211: 62 | G211: 0 | H211: 0 | I211: 0 | J211: 0 | K211: 62 | L211: 6474279.921 | M211: 41834.91485 | N211: 9416.433076
A212: 63 | B212: 6464816.406 | C212: 41834.91485 | D212: 32371.39961 | E212: 9463.515241 | F212: 63 | G212: 0 | H212: 0 | I212: 0 | J212: 0 | K212: 63 | L212: 6464816.406 | M212: 41834.91485 | N212: 9463.515241
A213: 64 | B213: 6455305.573 | C213: 41834.91485 | D213: 32324.08203 | E213: 9510.832817 | F213: 64 | G213: 0 | H213: 0 | I213: 0 | J213: 0 | K213: 64 | L213: 6455305.573 | M213: 41834.91485 | N213: =J213+E213 -> 9510.832817
A214: 65 | B214: =B213-E214 -> 6445747.186 | C214: 41834.91485 | D214: 32276.52787 | E214: =C214-D214 -> 9558.386982 | F214: 65 | G214: =G213-J214 -> 0 | H214: 0 | I214: 0 | J214: =H214-I214 -> 0 | K214: 65 | L214: =G214+B214 -> 6445747.186 | M214: 41834.91485 | N214: 9558.386982
A215: =A214+1 -> 66 | B215: 6436141.007 | C215: =-$H$61/12 -> 41834.91485 | D215: =$H$59/12*B214 -> 32228.73593 | E215: 9606.178916 | F215: =F214+1 -> 66 | G215: 0 | H215: =-$H$68/12 -> 0 | I215: =$H$66/12*G214 -> 0 | J215: 0 | K215: =K214+1 -> 66 | L215: 6436141.007 | M215: 41834.91485 | N215: 9606.178916
A216: 67 | B216: 6426486.798 | C216: 41834.91485 | D216: 32180.70504 | E216: 9654.209811 | F216: 67 | G216: 0 | H216: 0 | I216: 0 | J216: 0 | K216: 67 | L216: 6426486.798 | M216: 41834.91485 | N216: 9654.209811
A217: 68 | B217: 6416784.317 | C217: 41834.91485 | D217: 32132.43399 | E217: 9702.48086 | F217: 68 | G217: 0 | H217: 0 | I217: 0 | J217: 0 | K217: 68 | L217: 6416784.317 | M217: 41834.91485 | N217: 9702.48086
A218: 69 | B218: 6407033.323 | C218: 41834.91485 | D218: 32083.92158 | E218: 9750.993264 | F218: 69 | G218: 0 | H218: 0 | I218: 0 | J218: 0 | K218: 69 | L218: 6407033.323 | M218: 41834.91485 | N218: 9750.993264
A219: 70 | B219: 6397233.575 | C219: 41834.91485 | D219: 32035.16662 | E219: 9799.748231 | F219: 70 | G219: 0 | H219: 0 | I219: 0 | J219: 0 | K219: 70 | L219: 6397233.575 | M219: 41834.91485 | N219: 9799.748231
A220: 71 | B220: 6387384.828 | C220: 41834.91485 | D220: 31986.16788 | E220: 9848.746972 | F220: 71 | G220: 0 | H220: 0 | I220: 0 | J220: 0 | K220: 71 | L220: 6387384.828 | M220: 41834.91485 | N220: 9848.746972
A221: 72 | B221: 6377486.838 | C221: 41834.91485 | D221: 31936.92414 | E221: 9897.990707 | F221: 72 | G221: 0 | H221: 0 | I221: 0 | J221: 0 | K221: 72 | L221: 6377486.838 | M221: 41834.91485 | N221: 9897.990707
A222: 73 | B222: 6367539.357 | C222: 41834.91485 | D222: 31887.43419 | E222: 9947.48066 | F222: 73 | G222: 0 | H222: 0 | I222: 0 | J222: 0 | K222: 73 | L222: 6367539.357 | M222: 41834.91485 | N222: 9947.48066
A223: 74 | B223: 6357542.139 | C223: 41834.91485 | D223: 31837.69678 | E223: 9997.218064 | F223: 74 | G223: 0 | H223: 0 | I223: 0 | J223: 0 | K223: 74 | L223: 6357542.139 | M223: 41834.91485 | N223: 9997.218064
A224: 75 | B224: 6347494.935 | C224: 41834.91485 | D224: 31787.71069 | E224: 10047.20415 | F224: 75 | G224: 0 | H224: 0 | I224: 0 | J224: 0 | K224: 75 | L224: 6347494.935 | M224: 41834.91485 | N224: 10047.20415
A225: 76 | B225: 6337397.494 | C225: 41834.91485 | D225: 31737.47467 | E225: 10097.44017 | F225: 76 | G225: 0 | H225: 0 | I225: 0 | J225: 0 | K225: 76 | L225: 6337397.494 | M225: 41834.91485 | N225: 10097.44017
... 284 more rows

Sheet Building Envelope Calculator
A1: Building Envelope Calculator
A2: Land Uses
A3: Streets | B3: ='Physical Inputs'!B22*(1-'Physical Inputs'!B24) -> 0
A4: Landscaping | B4: ='Physical Inputs'!B22*'Physical Inputs'!B26 -> 0
A5: Land for Building and Parking | B5: ='Physical Inputs'!B22-'Building Envelope Calculator'!B4-B3 -> 43560
